Workbook

Sheet Main
A2: Project Information
B3: Title | C3: PJM Transmission & Substation Subcommittee (TSS)
B4: Description | C4: Substation Bus Conductors
B5: Element description: | C5: -enter conductor info-
B6: Prepared by: | C6: PJM TSS
B7: Date prepared: | C7: =NOW() -> 2024-08-15T14:20:18.540
A8: Conductor Data
A9: Shape:
C14: Low Resistance Temp. (˚C): | G14: Normal Temp. (˚C):
C15: High Resistance Temp. (˚C): | G15: 24 Hour Emergency Temp. (˚C):
C16: Low Temp. Resistance (Ω/ 1000ft.): | G16: 4 Hour Emergency Temp. (˚C):
C17: High Temp. Resistance (Ω/ 1000ft.): | G17: Emissivity:
G18: Absorptivity:
A19: Solar and Geographic Data
C20: Month: | G20: Latitude (˚N):
C21: Day: | G21: Elevation Above Sea Level (ft.):
C22: Hc: Altitude of the sun (˚): | D22: =Weather!B19 -> 72.24695045
C23: ="Qse: Total heat flux (W/ft2):" -> Qse: Total heat flux (W/ft2): | D23: =Weather!B20 -> 98.41403683 | G23: Suntime (hours):
C24: Zc: Azimuth of the sun (˚): | D24: =Weather!B21 -> 180 | G24: Atmosphere:
C25: θ: Angle of incidence of the sun's rays (˚): | D25: =Weather!B22 -> 90 | G25: Angle between wind and conductor (˚):
C26: Wind speed, Published rating (ft/sec): | D26: =Weather!B14 -> 2 | G26: Kangle (Wind direction factor): | H26: =kangle -> 1
C27: Wind speed, Comparison rating (ft/sec):
C28: Azimuth of Conductor (N-S = 0˚, E-W = 90˚):
A31: This spreadsheet is issued as Appendix A of the report | F31: ="At a Glance Rating" -> At a Glance Rating
A32: " Substation Conductor Ratings." | F32: Planning Rating (A) | G32: Normal | H32: Emergency 24 Hr | I32: Emergency < 1 Hr
A33: This report was prerpared by the | F33: Summer Daytime
A34: Transmission and Substation Subcommittee | F34: Summer Nighttime
F35: Winter Daytime
A36: PJM Interconnection, LLC | F36: Winter Nighttime
A37: 2024-04-19 | I37: =D26 & " ft/sec" -> 2 ft/sec

Sheet Weather
A1: Weather Data
A3: Month | B3: July
A4: Day | B4: 20
A5: Sun time | B5: 12:00:00 | D5: 14:00 Hours recommended by the PJM Bus Ampacity Taskforce
A6: Degrees North Latitude | B6: 40 | C6: o | D6: 40o recommended by the PJM Bus Ampacity T. F. | G6: =IF($B$6<25,"please enter value between 25 & 70",IF($B$6>70,"please enter value between 25 & 70","")) -> 
A7: Atmosphere | B7: Clear | D7: "Clear atmosphere recommended by the PJM Bus Ampacity Taskforce, Clear = 2, Industrial = 1
A8: Conductor Shape | B8: Round | C8: Bar | D8: Angle
A9: Emissivity (e) | B9: =+Cond!B17 -> 0.5 | C9: =Cond!E17 -> 0.5 | D9: =Cond!G17 -> 0.5 | E9: (selected when choosing conductor)
A10: Absorptivity (a) | B10: =+Cond!B18 -> 0.5 | C10: =Cond!E18 -> 0.5 | D10: =Cond!G18 -> 0.5 | E10: (selected when choosing conductor)
A11: Ambient Temperature Range | B11: -15oC to 40oC
A12: Elevation Above Sea Level | B12: 1000 | C12: ft | D12: 1000 ft recommended by the PJM Bus Ampacity Taskforce
A13: User defined Wind speed for comparison V1 | B13: 0 | C13: (ft/sec) | D13: User definable comparison wind speed
A14: Wind speed for Published Ratings V2 | B14: 2 | C14: (ft/sec)
A15: Angle between wind and conductor | B15: 90 | C15: o | D15: 90o recommended by the PJM Bus Ampacity Taskforce
A16: Z1 (Azimuth of Conductor (N-S = 0, E-W = 90) | B16: 90 | C16: o | D16: 90o recommended by the PJM Bus Ampacity Taskforce
A17: Kangle (Wind direction factor) | B17: =1.194-COS($B$15*PI()/180)+0.194*COS($B$15*2*PI()/180)+0.368*SIN(2*$B$15*PI()/180) -> 1
A19: ="Hc (Altitude of the sun) at " &B5& ":00 Hours" -> Hc (Altitude of the sun) at 0.5:00 Hours | B19: 72.24695045 | C19: o | D19: Value used in calculations and derived from the above data
A20: ="Qs (Total heat flux) at " &(B5)& ":00 Hours" -> Qs (Total heat flux) at 0.5:00 Hours | B20: 98.41403683 | C20: (W/ft2) | F20: To convert from Knots or mph to fps, enter below
A21: Zc (Azimuth of the sun) | B21: 180 | C21: o
A22: q (Effective angle of incidence of the sun's rays) | B22: 90 | C22: o | F22: 2 | G22: Knots = | H22: =F22*(6080/3600) -> 3.377777778 | I22: (ft/sec)
F23: 30 | G23: miles/hr = | H23: =F23*5280/3600 -> 44 | I23: (ft/sec)

Sheet Rating Report
A1: Bar Conductor Element | L1: Bar Conductor Element
A2: General data | L2: General data
C3: Substation: | D3: =Main!C3 -> PJM Transmission & Substation Subcommittee (TSS) | N3: Substation: | O3: =D3 -> PJM Transmission & Substation Subcommittee (TSS)
C4: Bus description: | D4: =Main!C4 -> Substation Bus Conductors | N4: Bus description: | O4: =D4 -> Substation Bus Conductors
C5: Element description: | D5: =Main!C5 -> -enter conductor info- | N5: Element description: | O5: =D5 -> -enter conductor info-
C6: Date prepared: | D6: =Main!C7 -> 2024-08-15T14:20:18.540 | F6: Prepared by: | G6: =Main!C6 -> PJM TSS | N6: Date prepared: | O6: =D6 -> 2024-08-15T14:20:18.540 | Q6: Prepared by: | R6: =G6 -> PJM TSS
A8: Conductor data | L8: Conductor data
C9: Name: | G9: Normal Temp. (˚C): | N9: Name: | O9: =D9 -> 0 | R9: Normal Temp. (˚C): | S9: =H9 -> 0
C10: Low Resistance Temp. (˚C): | G10: 24 Hour Emergency Temp. (˚C): | N10: Low Resistance Temp. (˚C): | O10: 0 | R10: 24 Hour Emergency Temp. (˚C): | S10: 0
C11: High Resisitance Temp. (˚C): | G11: 4 Hour Emergency Temp. (˚C): | N11: High Resisitance Temp. (˚C): | O11: 0 | R11: 4 Hour Emergency Temp. (˚C): | S11: 0
C12: Low Temp Resistance (Ω/1000ft.): | G12: Emissivity (e): | N12: Low Temp Resistance (Ω/1000ft.): | O12: 0 | R12: Emissivity (e): | S12: 0
C13: High Temp Resistance (Ω/1000ft.): | G13: Absorptivity (a): | N13: High Temp Resistance (Ω/1000ft.): | O13: 0 | R13: Absorptivity (a): | S13: 0
A16: Rating Parameters | L16: Rating Parameters
C17: Latitude (˚N): | D17: 40 | G17: Wind speed, Published ratings (ft/s): | H17: =Main!D26 -> 2 | N17: Latitude (˚N): | O17: =D17 -> 40 | R17: Wind speed, Published ratings (ft/s): | S17: =H17 -> 2
C18: Elevation Above Sea Level (ft.): | D18: 1000 | G18: Wind speed, Comparison rating (ft/s): | H18: 0 | N18: Elevation Above Sea Level (ft.): | O18: 1000 | R18: Wind speed, Comparison rating (ft/s): | S18: 0
C19: Suntime (hours): | D19: 12:00:00 | G19: Kangle (Wind direction factor): | H19: =Weather!B17 -> 1 | N19: Suntime (hours): | O19: 12:00:00 | R19: Kangle (Wind direction factor): | S19: 1
C20: Atmosphere: | D20: =Weather!B7 -> Clear | G20: Angle between wind and conductor (˚): | H20: =Weather!B15 -> 90 | N20: Atmosphere: | O20: Clear | R20: Angle between wind and conductor (˚): | S20: 90
G21: Z1 (Azimuth of Conductor (N-S = 0, E-W = 90): | H21: =Weather!B16 -> 90 | R21: Z1 (Azimuth of Conductor (N-S = 0, E-W = 90): | S21: 90
A23: Ratings calculated per IEEE 605™-200X | L23: Ratings calculated per IEEE 605™-200X
A24: Conductor Thermal Rating (Amps) | L24: Conductor Thermal Rating (Amps)
A25: Ambient Temperature (˚C) | D25: Daytime Rating | G25: Nighttime Rating | L25: Ambient Temperature (˚C) | O25: Daytime Rating | R25: Nighttime Rating
A26: Condition | C26: Temp. | D26: Normal | E26: Emergency < 24 Hr | F26: Emergency < 1 Hr | G26: Normal | H26: Emergency < 24 Hr | I26: Emergency < 1 Hr | L26: Temp (˚C) | N26: Temp (˚F) | O26: Normal | P26: Emergency < 24 Hr | Q26: Emergency < 1 Hr | R26: Normal | S26: Emergency < 24 Hr | T26: Emergency < 1 Hr
C27: -15 | M27: =(N27-32)*(5/9) -> -53.88888889 | N27: -65 | O27: 1842.053779 | P27: 1969.828592 | Q27: 2041.418793 | R27: 1874.1337 | S27: 1998.192269 | T27: 2067.917864
C28: -10 | M28: =(N28-32)*(5/9) -> -51.11111111 | N28: =N27+5 -> -60 | O28: 1825.296546 | P28: 1955.049177 | Q28: 2027.62825 | R28: 1857.665869 | S28: 1983.624194 | T28: 2054.305216
C29: -5 | M29: -48.33333333 | N29: =N28+5 -> -55 | O29: 1808.342861 | P29: 1940.121067 | Q29: 2013.709661 | R29: 1841.010294 | S29: 1968.912749 | T29: 2040.568598
C30: 0 | M30: -45.55555556 | N30: -50 | O30: 1791.185688 | P30: 1925.039514 | Q30: 1999.659149 | R30: 1824.160401 | S30: 1954.053426 | T30: 2026.704298
C31: 5 | M31: -42.77777778 | N31: -45 | O31: 1773.817629 | P31: 1909.799565 | Q31: 1985.47268 | R31: 1807.109289 | S31: 1939.041526 | T31: 2012.708465
A32: Winter Planning | C32: 10 | M32: -40 | N32: -40 | O32: 1756.230901 | P32: 1894.396052 | Q32: 1971.146065 | R32: 1789.849708 | S32: 1923.872153 | T32: 1998.577096
C33: 15 | M33: -37.22222222 | N33: -35 | O33: 1738.417302 | P33: 1878.823576 | Q33: 1956.674941 | R33: 1772.374034 | S33: 1908.540198 | T33: 1984.306032
C34: 20 | M34: -34.44444444 | N34: -30 | O34: 1720.368183 | P34: 1863.076496 | Q34: 1942.054772 | R34: 1754.674239 | S34: 1893.040329 | T34: 1969.890946
C35: 25 | M35: -31.66666667 | N35: -25 | O35: 1702.074411 | P35: 1847.14891 | Q35: 1927.28083 | R35: 1736.741864 | S35: 1877.366974 | T35: 1955.327338
C36: 30 | M36: -28.88888889 | N36: -20 | O36: 1683.526331 | P36: 1831.034643 | Q36: 1912.348188 | R36: 1718.567982 | S36: 1861.514309 | T36: 1940.610521
A37: Summer Planning | C37: 35 | M37: -26.11111111 | N37: -15 | O37: 1664.713723 | P37: 1814.727224 | Q37: 1897.25171 | R37: 1700.143164 | S37: 1845.476241 | T37: 1925.735613
C38: 40 | M38: -23.33333333 | N38: -10 | O38: 1645.625752 | P38: 1798.219867 | Q38: 1881.986033 | R38: 1681.457438 | S38: 1829.246389 | T38: 1910.697525
M39: -20.55555556 | N39: -5 | O39: 1626.250917 | P39: 1781.505453 | Q39: 1866.54556 | R39: 1662.500239 | S39: 1812.818065 | T39: 1895.490947
M40: -17.77777778 | N40: 0 | O40: 1606.576992 | P40: 1764.576499 | Q40: 1850.924439 | R40: 1643.260366 | S40: 1796.184255 | T40: 1880.110337
M41: -15 | N41: 5 | O41: 1586.590955 | P41: 1747.425138 | Q41: 1835.116549 | R41: 1623.725918 | S41: 1779.337594 | T41: 1864.549906
M42: -12.22222222 | N42: 10 | O42: 1566.278916 | P42: 1730.04309 | Q42: 1819.115483 | R42: 1603.884236 | S42: 1762.27034 | T42: 1848.803598
M43: -9.444444444 | N43: 15 | O43: 1545.626032 | P43: 1712.421625 | Q43: 1802.914528 | R43: 1583.721829 | S43: 1744.974349 | T43: 1832.865079
M44: -6.666666667 | N44: 20 | O44: 1524.61641 | P44: 1694.551531 | Q44: 1786.506644 | R44: 1563.224295 | S44: 1727.441042 | T44: 1816.727716
M45: -3.888888889 | N45: 25 | O45: 1503.232997 | P45: 1676.42308 | Q45: 1769.884442 | R45: 1542.376233 | S45: 1709.661371 | T45: 1800.384553
M46: -1.111111111 | N46: 30 | O46: 1481.457461 | P46: 1658.025976 | Q46: 1753.040154 | R46: 1521.161138 | S46: 1691.625785 | T46: 1783.828295
M47: 1.666666667 | N47: 35 | O47: 1459.270039 | P47: 1639.349313 | Q47: 1735.965614 | R47: 1499.561285 | S47: 1673.324186 | T47: 1767.051277
M48: 4.444444444 | N48: 40 | O48: 1436.649386 | P48: 1620.381523 | Q48: 1718.65222 | R48: 1477.557599 | S48: 1654.745884 | T48: 1750.045443
M49: 7.222222222 | N49: 45 | O49: 1413.572376 | P49: 1601.110313 | Q49: 1701.090901 | R49: 1455.1295 | S49: 1635.879548 | T49: 1732.802313
L50: Winter | M50: 10 | N50: 50 | O50: 1390.013888 | P50: 1581.5226 | Q50: 1683.272085 | R50: 1432.254729 | S50: 1616.713145 | T50: 1715.312949
M51: 12.77777778 | N51: 55 | O51: 1365.946551 | P51: 1561.604436 | Q51: 1665.185653 | R51: 1408.909145 | S51: 1597.233882 | T51: 1697.567926
M52: 15.55555556 | N52: 60 | O52: 1341.340444 | P52: 1541.340924 | Q52: 1646.820896 | R52: 1385.066492 | S52: 1577.428129 | T52: 1679.557283
M53: 18.33333333 | N53: 65 | O53: 1316.162746 | P53: 1520.716123 | Q53: 1628.166462 | R53: 1360.69812 | S53: 1557.281345 | T53: 1661.270487
M54: 21.11111111 | N54: 70 | O54: 1290.377313 | P54: 1499.712941 | Q54: 1609.210302 | R54: 1335.772664 | S54: 1536.777982 | T54: 1642.69638
M55: 23.88888889 | N55: 75 | O55: 1263.944182 | P55: 1478.313009 | Q55: 1589.939602 | R55: 1310.255661 | S55: 1515.901386 | T55: 1623.823125
M56: 26.66666667 | N56: 80 | O56: 1236.818971 | P56: 1456.49654 | Q56: 1570.34072 | R56: 1284.109094 | S56: 1494.633678 | T56: 1604.638146
M57: 29.44444444 | N57: 85 | O57: 1208.952142 | P57: 1434.242172 | Q57: 1550.399097 | R57: 1257.29085 | S57: 1472.955623 | T57: 1585.128058
M58: 32.22222222 | N58: 90 | O58: 1180.288115 | P58: 1411.526776 | Q58: 1530.099172 | R58: 1229.754055 | S58: 1450.846477 | T58: 1565.278594
L59: Summer | M59: 35 | N59: 95 | O59: 1150.764159 | P59: 1388.325242 | Q59: 1509.424277 | R59: 1201.446274 | S59: 1428.283808 | T59: 1545.074513
M60: 37.77777778 | N60: 100 | O60: 1120.30901 | P60: 1364.610226 | Q60: 1488.356525 | R60: 1172.308525 | S60: 1405.243299 | T60: 1524.499507
M61: 40.55555556 | N61: 105 | O61: 1088.84113 | P61: 1340.351854 | Q61: 1466.876668 | R61: 1142.274051 | S61: 1381.698503 | T61: 1503.536086
M62: 43.33333333 | N62: 110 | O62: 1056.266467 | P62: 1315.517377 | Q62: 1444.963956 | R62: 1111.266777 | S62: 1357.620576 | T62: 1482.165455
M63: 46.11111111 | N63: 115 | O63: 1022.475551 | P63: 1290.070752 | Q63: 1422.595951 | R63: 1079.199357 | S63: 1332.977946 | T63: 1460.367365
M64: 48.88888889 | N64: 120 | O64: 987.3396527 | P64: 1263.972155 | Q64: 1399.74833 | R64: 1045.970645 | S64: 1307.735932 | T64: 1438.11995
M65: 51.66666667 | N65: 125 | O65: 950.7056177 | P65: 1237.177386 | Q65: 1376.394648 | R65: 1011.462392 | S65: 1281.856288 | T65: 1415.39953
M66: 54.44444444 | N66: 130 | O66: 912.3887521 | P66: 1209.637145 | Q66: 1352.506061 | R66: 975.5348454 | S66: 1255.296651 | T66: 1392.180393
M67: 57.22222222 | N67: 135 | O67: 872.1628 | P67: 1181.296161 | Q67: 1328.051002 | R67: 938.0207617 | S67: 1228.009885 | T67: 1368.434531
M68: 60 | N68: 140 | O68: 829.7453922 | P68: 1152.092097 | Q68: 1302.994798 | R68: 898.7170943 | S68: 1199.943273 | T68: 1344.131335
M69: 62.77777778 | N69: 145 | O69: 784.7761878 | P69: 1121.954199 | Q69: 1277.299214 | R69: 857.3731187 | S69: 1171.037525 | T69: 1319.237236
M70: 65.55555556 | N70: 150 | O70: 736.7826407 | P70: 1090.801583 | Q70: 1250.921908 | R70: 813.6729437 | S70: 1141.225549 | T70: 1293.715279

Sheet Cond
A1: Conductor Data
B3: Round Conductor | E3: Bar Shaped Conductor | G3: Angle Shaped Conductor
B4: =INDEX('ConDat Round'!A$7:D$161,$A$35,1) -> 3-1/2" Alum, Sched 40, 6061 Alloy | E4: =INDEX('ConDat Bar'!A$7:K$122,$A$36,1) -> 0.25 x 3 inch Aluminum Bar Alloy 6061-T6 | G4: =INDEX('ConDat Angle'!A$7:HO$126,$A$37,1) -> 4 x 4 x 0.25 inch Aluminum Angle Alloy 6063-T6
A5: Diameter | B5: =INDEX('ConDat Round'!B$7:B$161,$A$35,1) -> 4 | C5: inches | E5: N/A | G5: N/A
A10: Tlow (minimum conductor temperature) | B10: =INDEX('ConDat Round'!D$7:D$161,$A$35,1) -> 20 | C10: oC | E10: =INDEX('ConDat Bar'!K$7:K$122,$A$36,1) -> 20 | F10: oC | G10: =INDEX('ConDat Angle'!N$7:HO$126,$A$37,1) -> 20 | H10: oC
A11: Thigh (maximum conductor temperature) | B11: =INDEX('ConDat Round'!F$7:F$161,$A$35,1) -> 70 | C11: oC | E11: =INDEX('ConDat Bar'!M$7:M$122,$A$36,1) -> 70 | F11: oC | G11: =INDEX('ConDat Angle'!P$7:P$126,$A$37,1) -> 70 | H11: oC
A12: Resistance@Tlow | B12: =(INDEX('ConDat Round'!C$7:C$161,$A$35,1))/1000000 -> 7.957e-06 | C12: ohms/ft | E12: =(INDEX('ConDat Bar'!J$7:J$122,$A$36,1))/1000000 -> 2.626604651e-05 | F12: ohms/ft | G12: =(INDEX('ConDat Angle'!M$7:M$126,$A$37,1))/1000000 -> 8.440414508e-06 | H12: ohms/ft
A13: Resistance@Thigh | B13: =(INDEX('ConDat Round'!E$7:E$161,$A$35,1))/1000000 -> 8.613e-06 | C13: ohms/ft | E13: =(INDEX('ConDat Bar'!L$7:L$122,$A$36,1))/1000000 -> 2.999690159e-05 | F13: ohms/ft | G13: =(INDEX('ConDat Angle'!O$7:O$126,$A$37,1))/1000000 -> 9.973871783e-06 | H13: ohms/ft
A14: Tnormal | B14: =(INDEX('ConDat Round'!G$7:G$161,$A$35,1)) -> 90 | C14: oC | E14: =(INDEX('ConDat Bar'!N$7:N$122,$A$36,1)) -> 90 | F14: oC | G14: =(INDEX('ConDat Angle'!Q$7:Q$126,$A$37,1)) -> 90 | H14: oC
A15: Temergency<24 | B15: =(INDEX('ConDat Round'!H$7:H$161,$A$35,1)) -> 115 | C15: oC | E15: =(INDEX('ConDat Bar'!O$7:O$122,$A$36,1)) -> 115 | F15: oC | G15: =(INDEX('ConDat Angle'!R$7:R$126,$A$37,1)) -> 115 | H15: oC
A16: Temergency<1 | B16: =(INDEX('ConDat Round'!I$7:I$161,$A$35,1)) -> 130 | C16: oC | E16: =(INDEX('ConDat Bar'!P$7:P$122,$A$36,1)) -> 130 | F16: oC | G16: =(INDEX('ConDat Angle'!S$7:S$126,$A$37,1)) -> 130 | H16: oC
A17: Emissivity | B17: =(INDEX('ConDat Round'!J$7:J$161,$A$35,1)) -> 0.5 | E17: =(INDEX('ConDat Bar'!Q$7:Q$122,$A$36,1)) -> 0.5 | G17: =(INDEX('ConDat Angle'!T$7:T$126,$A$37,1)) -> 0.5
A18: Absorptivity | B18: =(INDEX('ConDat Round'!K$7:K$161,$A$35,1)) -> 0.5 | E18: =(INDEX('ConDat Bar'!R$7:R$122,$A$36,1)) -> 0.5 | G18: =(INDEX('ConDat Angle'!U$7:U$126,$A$37,1)) -> 0.5
D19: Num | E19: =(INDEX('ConDat Bar'!E$7:BV$122,$A$36,1)) -> 1 | G19: =(INDEX('ConDat Angle'!B$7:B$126,$A$37,1)) -> 1
A20: Min Condr Temp for Ratings | B20: 50 | C20: deg C | D20: Thickness | E20: =(INDEX('ConDat Bar'!F$7:CV$122,$A$36,1)) -> 0.25 | F20: inches | G20: =(INDEX('ConDat Angle'!F$7:F$126,$A$37,1)) -> 0.25 | H20: inches
A21: Increment for Ratings | B21: 5 | C21: deg C | D21: Width | E21: =(INDEX('ConDat Bar'!G$7:G$122,$A$36,1)) -> 3 | F21: inches | G21: =(INDEX('ConDat Angle'!G$7:G$126,$A$37,1)) -> 4 | H21: inches
A22: Max Condr Temp for Ratings | B22: =min+26*incr -> 180 | C22: deg C | D22: Height | E22: N/A | G22: =(INDEX('ConDat Angle'!H$7:H$126,$A$37,1)) -> 4 | H22: inches
D23: Spacing | E23: =(INDEX('ConDat Bar'!H$7:EV$122,$A$36,1)) -> 0 | F23: inches | G23: =(INDEX('ConDat Angle'!I$7:I$126,$A$37,1)) -> 0 | H23: inches
D24: Projected Area | E24: =(INDEX('ConDat Bar'!I$7:I$122,$A$36,1)) -> 10.97693962 | F24: Sq inches | G24: =(INDEX('ConDat Angle'!J$7:J$126,$A$37,1)) -> 60.35013895 | H24: Sq inches
D25: Perimeter | E25: =(INDEX('ConDat Bar'!S$7:S$122,$A$36,1)) -> 6.5 | F25: inches | G25: =(INDEX('ConDat Angle'!V$7:V$126,$A$37,1)) -> 16 | H25: Sq inches
B27: This spreadsheet is issued as Appendix A of the report
B28: " Substation Conductor Ratings."
B29: This report was prerpared by the
B30: Transmission and Substation Design Committee
B31: Substation Bus Rating Task Force
B32: PJM Interconnection, LLC
B33: 2010-11-29
A35: 6 | B35: Round Conductor Row Index
A36: 4 | B36: Bar Conductor Row Index
A37: 4 | B37: Angle Conductor Row Index

Sheet ConDat Bar
A1: Conductor Data Table
N3: Rated Operating Temperatures | Q3: Emissivity | R3: Absorptivity
A4: Name | B4: % IACS | C4: Temp Coeff of | D4: Rac/Rdc | E4: Conductors | F4: Thick | G4: Width | H4: Spacing | I4: Projected Area | J4: Rlow | K4: Tlow | L4: Rhigh | M4: Thigh | N4: Tnormal | O4: Temergency<24 | P4: Temergency<1 | S4: Perimeter
C5: Resistance @ 20C | D5: at 70C | F5: inches | G5: inches | H5: inches | I5: sq. inches | J5: u ohm/ft | K5: deg C | L5: u ohm/ft | M5: deg C | N5: deg C | O5: deg C | P5: deg C | S5: inches
A7: 0.25 x 3 inch Aluminum Bar Alloy 6063-T6 | B7: 55 | C7: =(0.00403*B7)/61 -> 0.003633606557 | D7: 1.04 | E7: 1 | F7: 0.25 | G7: 3 | H7: 0 | I7: =12*((G7*SIN(RADIANS(90-Weather!$B$19))+((E7*F7)*((E7-1)*(H7/Weather!$B$9)*(SIN(RADIANS(Weather!$B$19))))))) -> 10.97693962 | J7: =8.145*D7/((B7/100)*(F7*G7))/E7 -> 20.53527273 | K7: 20 | L7: =J7*C7*(M7-K7)+J7 -> 24.26612781 | M7: 70 | N7: 90 | O7: 115 | P7: 130 | Q7: 0.5 | R7: 0.5 | S7: 6.5
A8: 2 - 3 x 0.25 inch Aluminum Bar Alloy 6063-T6 | B8: 55 | C8: =(0.00403*B8)/61 -> 0.003633606557 | D8: 1.04 | E8: 2 | F8: 0.25 | G8: 3 | H8: 0.25 | I8: =12*((G8*SIN(RADIANS(90-Weather!$B$19))+((E8*F8)*((E8-1)*(H8/Weather!$B$9)*(SIN(RADIANS(Weather!$B$19))))))) -> 13.83407834 | J8: =8.145*D8/((B8/100)*(F8*G8))/E8 -> 10.26763636 | K8: 20 | L8: =J8*C8*(M8-K8)+J8 -> 12.1330639 | M8: 70 | N8: 90 | O8: 115 | P8: 130 | Q8: 0.5 | R8: 0.5 | S8: 13
A9: 3 - 3 x 0.25 inch Aluminum Bar Alloy 6063-T6 | B9: 55 | C9: 0.003633606557 | D9: 1.04 | E9: 3 | F9: 0.25 | G9: 3 | H9: 0.25 | I9: =12*((G9*SIN(RADIANS(90-Weather!$B$19))+((E9*F9)*((E9-1)*(H9/Weather!$B$9)*(SIN(RADIANS(Weather!$B$19))))))) -> 19.54835577 | J9: 6.845090909 | K9: 20 | L9: 8.08870927 | M9: 70 | N9: 90 | O9: 115 | P9: 130 | Q9: 0.5 | R9: 0.5 | S9: 19.5
A10: 0.25 x 3 inch Aluminum Bar Alloy 6061-T6 | B10: 43 | C10: 0.002840819672 | D10: 1.04 | E10: 1 | F10: 0.25 | G10: 3 | H10: 0 | I10: =12*((G10*SIN(RADIANS(90-Weather!$B$19))+((E10*F10)*((E10-1)*(H10/Weather!$B$9)*(SIN(RADIANS(Weather!$B$19))))))) -> 10.97693962 | J10: 26.26604651 | K10: 20 | L10: 29.99690159 | M10: 70 | N10: 90 | O10: 115 | P10: 130 | Q10: 0.5 | R10: 0.5 | S10: 6.5
A11: 2 - 3 x 0.25 inch Aluminum Bar Alloy 6061-T6 | B11: 43 | C11: 0.002840819672 | D11: 1.04 | E11: 2 | F11: 0.25 | G11: 3 | H11: 0.25 | I11: =12*((G11*SIN(RADIANS(90-Weather!$B$19))+((E11*F11)*((E11-1)*(H11/Weather!$B$9)*(SIN(RADIANS(Weather!$B$19))))))) -> 13.83407834 | J11: 13.13302326 | K11: 20 | L11: 14.9984508 | M11: 70 | N11: 90 | O11: 115 | P11: 130 | Q11: 0.5 | R11: 0.5 | S11: 13
A12: 3 - 3 x 0.25 inch Aluminum Bar Alloy 6061-T6 | B12: 43 | C12: 0.002840819672 | D12: 1.04 | E12: 3 | F12: 0.25 | G12: 3 | H12: 0.25 | I12: =12*((G12*SIN(RADIANS(90-Weather!$B$19))+((E12*F12)*((E12-1)*(H12/Weather!$B$9)*(SIN(RADIANS(Weather!$B$19))))))) -> 19.54835577 | J12: 8.755348837 | K12: 20 | L12: 9.998967198 | M12: 70 | N12: 90 | O12: 115 | P12: 130 | Q12: 0.5 | R12: 0.5 | S12: 19.5
A13: 0.25 x 4 inch Aluminum Bar Alloy 6063-T6 | B13: 55 | C13: 0.003633606557 | D13: 1.04 | E13: 1 | F13: 0.25 | G13: 4 | H13: 0 | I13: =12*((G13*SIN(RADIANS(90-Weather!$B$19))+((E13*F13)*((E13-1)*(H13/Weather!$B$9)*(SIN(RADIANS(Weather!$B$19))))))) -> 14.6359195 | J13: 15.40145455 | K13: 20 | L13: 18.19959586 | M13: 70 | N13: 90 | O13: 115 | P13: 130 | Q13: 0.5 | R13: 0.5 | S13: 8.5
A14: 0.5 x 4 inch Aluminum Bar Alloy 6063-T6 | B14: 55 | C14: 0.003633606557 | D14: 1.04 | E14: 1 | F14: 0.5 | G14: 4 | H14: 0 | I14: =12*((G14*SIN(RADIANS(90-Weather!$B$19))+((E14*F14)*((E14-1)*(H14/Weather!$B$9)*(SIN(RADIANS(Weather!$B$19))))))) -> 14.6359195 | J14: 7.700727273 | K14: 20 | L14: 9.099797928 | M14: 70 | N14: 90 | O14: 115 | P14: 130 | Q14: 0.5 | R14: 0.5 | S14: 9
A15: 0.75 x 4 inch Aluminum Bar Alloy 6063-T6 | B15: 55 | C15: 0.003633606557 | D15: 1.04 | E15: 1 | F15: 0.75 | G15: 4 | H15: 0 | I15: =12*((G15*SIN(RADIANS(90-Weather!$B$19))+((E15*F15)*((E15-1)*(H15/Weather!$B$9)*(SIN(RADIANS(Weather!$B$19))))))) -> 14.6359195 | J15: 5.133818182 | K15: 20 | L15: 6.066531952 | M15: 70 | N15: 90 | O15: 115 | P15: 130 | Q15: 0.5 | R15: 0.5 | S15: 9.5
A16: 0.75 x 6 inch Aluminum | B16: 55 | C16: 0.003633606557 | D16: 1.33 | E16: 1 | F16: 0.75 | G16: 6 | H16: 0 | I16: =12*((G16*SIN(RADIANS(90-Weather!$B$19))+((E16*F16)*((E16-1)*(H16/Weather!$B$9)*(SIN(RADIANS(Weather!$B$19))))))) -> 21.95387925 | J16: 4.376909091 | K16: 20 | L16: 5.17210737 | M16: 70 | N16: 90 | O16: 115 | P16: 130 | Q16: 0.5 | R16: 0.5 | S16: 13.5
A17: 0.50 x 6 inch Aluminum Bar Alloy 6063-T6 | B17: 55 | C17: 0.003633606557 | D17: 1.22 | E17: 1 | F17: 0.5 | G17: 6 | H17: 0 | I17: =12*((G17*SIN(RADIANS(90-Weather!$B$19))+((E17*F17)*((E17-1)*(H17/Weather!$B$9)*(SIN(RADIANS(Weather!$B$19))))))) -> 21.95387925 | J17: 6.022363636 | K17: 20 | L17: 7.116508636 | M17: 70 | N17: 90 | O17: 115 | P17: 130 | Q17: 0.5 | R17: 0.5 | S17: 13
A18: 1.00 x 4 inch Aluminum Bar Alloy 6061-T6 | B18: 43 | C18: 0.002840819672 | D18: 1.04 | E18: 1 | F18: 1 | G18: 4 | H18: 0 | I18: =12*((G18*SIN(RADIANS(90-Weather!$B$19))+((E18*F18)*((E18-1)*(H18/Weather!$B$9)*(SIN(RADIANS(Weather!$B$19))))))) -> 14.6359195 | J18: 4.924883721 | K18: 20 | L18: 5.624419049 | M18: 70 | N18: 90 | O18: 115 | P18: 130 | Q18: 0.5 | R18: 0.5 | S18: 10
A19: 0.25 x 3 inch copper bar | B19: 99 | C19: =(0.00393*B19)/100 -> 0.0038907 | D19: 1.04 | E19: 1 | F19: 0.25 | G19: 3 | H19: 0 | I19: =12*((G19*SIN(RADIANS(90-Weather!$B$19))+((E19*F19)*((E19-1)*(H19/Weather!$B$9)*(SIN(RADIANS(Weather!$B$19))))))) -> 10.97693962 | J19: 11.40848485 | K19: 20 | L19: 13.62783445 | M19: 70 | N19: 90 | O19: 115 | P19: 130 | Q19: 0.85 | R19: 0.85 | S19: 6.5
A20: 0.25 x 4 inch copper bar | B20: 99 | C20: =(0.00393*B20)/100 -> 0.0038907 | D20: 1.06 | E20: 1 | F20: 0.25 | G20: 4 | H20: 0 | I20: =12*((G20*SIN(RADIANS(90-Weather!$B$19))+((E20*F20)*((E20-1)*(H20/Weather!$B$9)*(SIN(RADIANS(Weather!$B$19))))))) -> 14.6359195 | J20: 8.720909091 | K20: 20 | L20: 10.41743114 | M20: 70 | N20: 90 | O20: 115 | P20: 130 | Q20: 0.85 | R20: 0.85 | S20: 8.5
A21: 0.25 x 5 inch copper bar | B21: 99 | C21: 0.0038907 | D21: 1.08 | E21: 1 | F21: 0.25 | G21: 5 | H21: 0 | I21: =12*((G21*SIN(RADIANS(90-Weather!$B$19))+((E21*F21)*((E21-1)*(H21/Weather!$B$9)*(SIN(RADIANS(Weather!$B$19))))))) -> 18.29489937 | J21: 7.108363636 | K21: 20 | L21: 8.491189156 | M21: 70 | N21: 90 | O21: 115 | P21: 130 | Q21: 0.85 | R21: 0.85 | S21: 10.5
A22: 2 - 0.25 x 3 inch copper bar | B22: 98 | C22: 0.0038514 | D22: 1.04 | E22: 2 | F22: 0.25 | G22: 3 | H22: 0.25 | I22: =12*((G22*SIN(RADIANS(90-Weather!$B$19))+((E22*F22)*((E22-1)*(H22/Weather!$B$9)*(SIN(RADIANS(Weather!$B$19))))))) -> 13.83407834 | J22: 5.76244898 | K22: 20 | L22: 6.87212378 | M22: 70 | N22: 90 | O22: 115 | P22: 130 | Q22: 0.85 | R22: 0.85 | S22: 13
A23: 3 - 0.25 x 3 inch copper bar | B23: 99 | C23: 0.0038907 | D23: 1.04 | E23: 3 | F23: 0.25 | G23: 3 | H23: 0.25 | I23: =12*((G23*SIN(RADIANS(90-Weather!$B$19))+((E23*F23)*((E23-1)*(H23/Weather!$B$9)*(SIN(RADIANS(Weather!$B$19))))))) -> 19.54835577 | J23: 3.802828283 | K23: 20 | L23: 4.542611483 | M23: 70 | N23: 90 | O23: 115 | P23: 130 | Q23: 0.85 | R23: 0.85 | S23: 19.5
A24: 2 - 0.25 x 4 inch copper bar | B24: 99 | C24: 0.0038907 | D24: 1.06 | E24: 2 | F24: 0.25 | G24: 4 | H24: 0.25 | I24: =12*((G24*SIN(RADIANS(90-Weather!$B$19))+((E24*F24)*((E24-1)*(H24/Weather!$B$9)*(SIN(RADIANS(Weather!$B$19))))))) -> 17.49305821 | J24: 4.360454545 | K24: 20 | L24: 5.20871557 | M24: 70 | N24: 90 | O24: 115 | P24: 130 | Q24: 0.85 | R24: 0.85 | S24: 17
A25: 3 - 0.25 x 4 inch copper bar | B25: 99 | C25: 0.0038907 | D25: 1.06 | E25: 3 | F25: 0.25 | G25: 4 | H25: 0.25 | I25: =12*((G25*SIN(RADIANS(90-Weather!$B$19))+((E25*F25)*((E25-1)*(H25/Weather!$B$9)*(SIN(RADIANS(Weather!$B$19))))))) -> 23.20733565 | J25: 2.906969697 | K25: 20 | L25: 3.472477047 | M25: 70 | N25: 90 | O25: 115 | P25: 130 | Q25: 0.85 | R25: 0.85 | S25: 25.5
A26: 0.25 x 12 inch Copper | B26: 98 | C26: 0.0038514 | D26: 1.28 | E26: 1 | F26: 0.25 | G26: 12 | H26: 0 | I26: =12*((G26*SIN(RADIANS(90-Weather!$B$19))+((E26*F26)*((E26-1)*(H26/Weather!$B$9)*(SIN(RADIANS(Weather!$B$19))))))) -> 43.90775849 | J26: 3.546122449 | K26: 20 | L26: 4.228999249 | M26: 70 | N26: 90 | O26: 115 | P26: 130 | Q26: 0.85 | R26: 0.85 | S26: 24.5
A27: User definable
A28: User definable
A29: User definable
A30: User definable
A31: User definable
A32: User definable
A33: User definable
A34: User definable
A35: User definable | D35: Skin effect values from Table 59, Technical Data, Anderson, p. 56.
A36: User definable | D36: for No. 2 EC-T61. Used the same values for copper bars as equivalent sized aluminum.
A37: User definable
A38: User definable
A39: User definable
A40: User definable
A41: User definable
A42: User definable
A43: User definable
A44: User definable
A45: User definable
A46: User definable
A47: User definable
A48: User definable
A49: User definable
A50: User definable
A51: User definable
A52: User definable
A53: User definable
A54: User definable
A55: User definable
A56: User definable
A57: User definable
A58: User definable
A59: User definable
A60: User definable
A61: User definable
A62: User definable
A63: User definable
A64: User definable
A65: User definable
A66: User definable
A67: User definable
A68: User definable
A69: User definable
A70: User definable
A71: User definable
A72: User definable
A73: User definable
A74: User definable
A75: User definable
A76: User definable
A77: User definable
A78: User definable
A79: User definable
A80: User definable
A81: User definable
A82: User definable
A83: User definable
A84: User definable
A85: User definable
A86: User definable
A87: User definable
A88: User definable
A89: User definable
A90: User definable
A91: User definable
A92: User definable
A93: User definable
A94: User definable
A95: User definable
A96: User definable
A97: User definable
A98: User definable
A99: User definable
A100: User definable
A101: User definable
A102: User definable
A103: User definable
A104: User definable
A105: User definable
A106: User definable
A107: User definable
A108: User definable
A109: User definable
A110: User definable
A111: User definable
A112: User definable
A113: User definable
A114: User definable
A115: User definable
A116: User definable
A117: User definable
A118: User definable
A119: User definable
A120: User definable
A121: User definable
A122: User definable

Sheet ConDat Angle
A1: Conductor Data Table | O1: Note: FOR COPPER TUBES:
O2: R70c = 1.1925*R20c
G3: 8 | Q3: Rated Operating Temperatures | T3: Emissivity | U3: Absorptivity
A4: Name | B4: Conductors | C4: % IACS | D4: Temp Coeff of | E4: Cross-sectional Area | F4: Thick | G4: Width | H4: High | I4: Spacing | J4: Projected Area | K4: Rac/Rdc | L4: Rdc at 20 deg C | M4: Rlow | N4: Tlow | O4: Rhigh | P4: Thigh | Q4: Tnormal | R4: Temergency<24 | S4: Temergency<1 | V4: Surface Area
D5: Resistance @ 20C | E5: sq inches | F5: inches | G5: inches | H5: inches | I5: inches | J5: sq. inches | K5: at 70C | L5: u ohm/ft | M5: u ohm/ft | N5: deg C | O5: u ohm/ft | P5: deg C | Q5: deg C | R5: deg C | S5: deg C | V5: sq. inches
A7: 4 x 4 x 0.25 inch Aluminum Angle Alloy 6061-T6 | B7: 1 | C7: 43 | D7: =(0.00403*C7)/61 -> 0.002840819672 | E7: 1.93 | F7: 0.25 | G7: 4 | H7: 4 | I7: 0 | J7: =12*(H7*(SIN(RADIANS(90-Weather!$B$19)))+(G7*SIN(RADIANS(Weather!$B$19)))) -> 60.35013895 | K7: 1.1 | L7: =8.145/((C7/100)*(E7)) -> 9.814435474 | M7: =K7*L7 -> 10.79587902 | N7: 20 | O7: =M7*(1+((0.00403*C7)/61)*(P7-N7)) -> 12.3293363 | P7: 70 | Q7: 90 | R7: 115 | S7: 130 | T7: 0.5 | U7: 0.5 | V7: =(G7*2)+(H7*2) -> 16
A8: 3 x 3 x 0.25 inch Aluminum Angle Alloy 6061-T6 | B8: 1 | C8: 43 | D8: =(0.00403*C8)/61 -> 0.002840819672 | E8: 1.44 | F8: 0.25 | G8: 3 | H8: 3 | I8: 0 | J8: =12*(H8*(SIN(RADIANS(90-Weather!$B$19)))+(G8*SIN(RADIANS(Weather!$B$19)))) -> 45.26260421 | K8: 1.07 | L8: =8.145/((C8/100)*(E8)) -> 13.15406977 | M8: =K8*L8 -> 14.07485465 | N8: 20 | O8: =M8*(1+((0.00403*C8)/61)*(P8-N8)) -> 16.07406085 | P8: 70 | Q8: 90 | R8: 115 | S8: 130 | T8: 0.5 | U8: 0.5 | V8: =(G8*2)+(H8*2) -> 12
A9: 3.25 x 3.25 x 0.25 Aluminum Angle Alloy 2ECT6 | B9: 1 | C9: 61 | D9: 0.00403 | E9: 1.57 | F9: 0.25 | G9: 3.25 | H9: 3.25 | I9: 0 | J9: =12*(H9*(SIN(RADIANS(90-Weather!$B$19)))+(G9*SIN(RADIANS(Weather!$B$19)))) -> 49.0344879 | K9: 1.08 | L9: 8.504750966 | M9: 9.185131043 | N9: 20 | O9: 11.03593495 | P9: 70 | Q9: 90 | R9: 115 | S9: 130 | T9: 0.5 | U9: 0.5 | V9: 13
A10: 4 x 4 x 0.25 inch Aluminum Angle Alloy 6063-T6 | B10: 1 | C10: 55 | D10: 0.003633606557 | E10: 1.93 | F10: 0.25 | G10: 4 | H10: 4 | I10: 0 | J10: =12*(H10*(SIN(RADIANS(90-Weather!$B$19)))+(G10*SIN(RADIANS(Weather!$B$19)))) -> 60.35013895 | K10: 1.1 | L10: 7.673104098 | M10: 8.440414508 | N10: 20 | O10: 9.973871783 | P10: 70 | Q10: 90 | R10: 115 | S10: 130 | T10: 0.5 | U10: 0.5 | V10: 16
A11: 3 x 3 x 0.25 inch Aluminum Angle Alloy 6063-T6 | B11: 1 | C11: 55 | D11: 0.003633606557 | E11: 1.44 | F11: 0.25 | G11: 3 | H11: 3 | I11: 0 | J11: =12*(H11*(SIN(RADIANS(90-Weather!$B$19)))+(G11*SIN(RADIANS(Weather!$B$19)))) -> 45.26260421 | K11: 1.07 | L11: 10.28409091 | M11: 11.00397727 | N11: 20 | O11: 13.00318347 | P11: 70 | Q11: 90 | R11: 115 | S11: 130 | T11: 0.5 | U11: 0.5 | V11: 12
A12: 3.25 x 3.25 x 0.25 6063-T6 Alloy | B12: 1 | C12: 55 | D12: 0.003633606557 | E12: 1.57 | F12: 0.25 | G12: 3.25 | H12: 3.25 | I12: 0 | J12: =12*(H12*(SIN(RADIANS(90-Weather!$B$19)))+(G12*SIN(RADIANS(Weather!$B$19)))) -> 49.0344879 | K12: 1.08 | L12: 9.43254198 | M12: 10.18714534 | N12: 20 | O12: 12.03794924 | P12: 70 | Q12: 90 | R12: 115 | S12: 130 | T12: 0.5 | U12: 0.5 | V12: 13
A13: 4 x 4 x 0.25 inch Aluminum Angle Alloy 6101-T6 | B13: 1 | C13: 43 | D13: 0.002840819672 | E13: 1.93 | F13: 0.25 | G13: 4 | H13: 4 | I13: 0 | J13: =12*(H13*(SIN(RADIANS(90-Weather!$B$19)))+(G13*SIN(RADIANS(Weather!$B$19)))) -> 60.35013895 | K13: 1.1 | L13: 9.814435474 | M13: 10.79587902 | N13: 20 | O13: 12.3293363 | P13: 70 | Q13: 90 | R13: 115 | S13: 130 | T13: 0.5 | U13: 0.5 | V13: 16
A14: User definable
A15: User definable
A16: User definable
A17: User definable
A18: User definable
A19: User definable
A20: User definable
A21: User definable
A22: User definable
A23: User definable
A24: User definable
A25: User definable
A26: User definable
A27: User definable
A28: User definable
A29: User definable
A30: User definable
A31: User definable
A32: User definable
A33: User definable
A34: User definable
A35: User definable
A36: User definable
A37: User definable
A38: User definable
A39: User definable
A40: User definable
A41: User definable
A42: User definable
A43: User definable
A44: User definable
A45: User definable
A46: User definable
A47: User definable
A48: User definable
A49: User definable
A50: User definable
A51: User definable
A52: User definable
A53: User definable
A54: User definable
A55: User definable
A56: User definable
A57: User definable
A58: User definable
A59: User definable
A60: User definable
A61: User definable
A62: User definable
A63: User definable
A64: User definable
A65: User definable
A66: User definable
A67: User definable
A68: User definable
A69: User definable
A70: User definable
A71: User definable
A72: User definable
A73: User definable
A74: User definable
A75: User definable
A76: User definable
A77: User definable
A78: User definable
A79: User definable
A80: User definable
A81: User definable
A82: User definable
A83: User definable
A84: User definable
A85: User definable
A86: User definable
A87: User definable
A88: User definable
A89: User definable
A90: User definable
A91: User definable
A92: User definable
A93: User definable
A94: User definable
A95: User definable
A96: User definable
A97: User definable
A98: User definable
A99: User definable
A100: User definable
A101: User definable
A102: User definable
A103: User definable
A104: User definable
A105: User definable
A106: User definable
A107: User definable
A108: User definable
A109: User definable
A110: User definable
A111: User definable
A112: User definable
A113: User definable
A114: User definable
A115: User definable
A116: User definable
A117: User definable
A118: User definable
A119: User definable
A120: User definable
A121: User definable
A122: User definable
A123: User definable
A124: User definable
A125: User definable
A126: User definable

Sheet ConDat Round
A1: Conductor Data Table | D1: Note: FOR COPPER TUBES:
D2: R70c = 1.1925*R20c
G3: Rated Operating Temperatures | J3: Emissivity | K3: Absorptivity
A4: Name | B4: Outside Diam. | C4: Rlow | D4: Tlow | E4: Rhigh | F4: Thigh | G4: Tnormal | H4: Temergency<24 | I4: Temergency<1
B5: inches | C5: u ohm/ft | D5: deg C | E5: u ohm/ft | F5: deg C | G5: deg C | H5: deg C | I5: deg C
A7: 1" Alum, Sched 40, 6061 Alloy | B7: 1.315 | C7: 41.21 | D7: 20 | E7: 46.68 | F7: 70 | G7: 90 | H7: 115 | I7: 130 | J7: 0.5 | K7: 0.5
A8: 1-1/2" Alum, Sched 40, 6061 Alloy | B8: 1.9 | C8: 25.45 | D8: 20 | E8: 28.82 | F8: 70 | G8: 90 | H8: 115 | I8: 130 | J8: 0.5 | K8: 0.5
A9: 2" Alum, Sched 40, 6061 Alloy | B9: 2.375 | C9: 18.94 | D9: 20 | E9: 21.45 | F9: 70 | G9: 90 | H9: 115 | I9: 130 | J9: 0.5 | K9: 0.5
A10: 2-1/2" Alum, Sched 40, 6061 Alloy | B10: 2.875 | C10: 11.95 | D10: 20 | E10: 13.53 | F10: 70 | G10: 90 | H10: 115 | I10: 130 | J10: 0.5 | K10: 0.5
A11: 3" Alum, Sched 40, 6061 Alloy | B11: 3.5 | C11: 9.138 | D11: 20 | E11: 10.35 | F11: 70 | G11: 90 | H11: 115 | I11: 130 | J11: 0.5 | K11: 0.5
A12: 3-1/2" Alum, Sched 40, 6061 Alloy | B12: 4 | C12: 7.957 | D12: 20 | E12: 8.613 | F12: 70 | G12: 90 | H12: 115 | I12: 130 | J12: 0.5 | K12: 0.5
A13: 4" Alum, Sched 40, 6061 Alloy | B13: 4.5 | C13: 6.415 | D13: 20 | E13: 7.28 | F13: 70 | G13: 90 | H13: 115 | I13: 130 | J13: 0.5 | K13: 0.5
A14: 5" Alum, Sched 40, 6061 Alloy | B14: 5.563 | C14: 4.735 | D14: 20 | E14: 5.373 | F14: 70 | G14: 90 | H14: 115 | I14: 130 | J14: 0.5 | K14: 0.5
A15: 6" Alum, Sched 40, 6061 Alloy | B15: 6.625 | C15: 3.64822 | D15: 20 | E15: 4.13979 | F15: 70 | G15: 90 | H15: 115 | I15: 130 | J15: 0.5 | K15: 0.5
A16: 1" Alum, Sched 80, 6061 Alloy | B16: 1.315 | C16: 31.86 | D16: 20 | E16: 36.08 | F16: 70 | G16: 90 | H16: 115 | I16: 130 | J16: 0.5 | K16: 0.5
A17: 1-1/2" Alum, Sched 80, 6061 Alloy | B17: 1.9 | C17: 19.06 | D17: 20 | E17: 21.59 | F17: 70 | G17: 90 | H17: 115 | I17: 130 | J17: 0.5 | K17: 0.5
A18: 2" Alum, Sched 80, 6061 Alloy | B18: 2.375 | C18: 13.78 | D18: 20 | E18: 15.61 | F18: 70 | G18: 90 | H18: 115 | I18: 130 | J18: 0.5 | K18: 0.5
A19: 2-1/2" Alum, Sched 80, 6061 Alloy | B19: 2.875 | C19: 9.033 | D19: 20 | E19: 10.27 | F19: 70 | G19: 90 | H19: 115 | I19: 130 | J19: 0.5 | K19: 0.5
A20: 3" Alum, Sched 80, 6061 Alloy | B20: 3.5 | C20: 6.751 | D20: 20 | E20: 7.683 | F20: 70 | G20: 90 | H20: 115 | I20: 130 | J20: 0.5 | K20: 0.5
A21: 3-1/2" Alum, Sched 80, 6061 Alloy | B21: 4 | C21: 5.536 | D21: 20 | E21: 6.313 | F21: 70 | G21: 90 | H21: 115 | I21: 130 | J21: 0.5 | K21: 0.5
A22: 4" Alum, Sched 80, 6061 Alloy | B22: 4.5 | C22: 4.62 | D22: 20 | E22: 5.284 | F22: 70 | G22: 90 | H22: 115 | I22: 130 | J22: 0.5 | K22: 0.5
A23: 5" Alum, Sched 80, 6061 Alloy | B23: 5.563 | C23: 3.361 | D23: 20 | E23: 3.833 | F23: 70 | G23: 90 | H23: 115 | I23: 130 | J23: 0.5 | K23: 0.5
A24: 6" Alum, Sched 80, 6061 Alloy | B24: 6.625 | C24: 2.4249 | D24: 20 | E24: 2.79035 | F24: 70 | G24: 90 | H24: 115 | I24: 130 | J24: 0.5 | K24: 0.5
A25: 1" Alum, Sched 40, 6063 Alloy | B25: 1.315 | C25: 31.12 | D25: 20 | E25: 36.57 | F25: 70 | G25: 90 | H25: 115 | I25: 130 | J25: 0.5 | K25: 0.5
A26: 1-1/2" Alum, Sched 40, 6063 Alloy | B26: 1.9 | C26: 19.22 | D26: 20 | E26: 22.59 | F26: 70 | G26: 90 | H26: 115 | I26: 130 | J26: 0.5 | K26: 0.5
A27: 2" Alum, Sched 40, 6063 Alloy | B27: 2.375 | C27: 14.3 | D27: 20 | E27: 16.82 | F27: 70 | G27: 90 | H27: 115 | I27: 130 | J27: 0.5 | K27: 0.5
A28: 2-1/2" Alum, Sched 40, 6063 Alloy | B28: 2.875 | C28: 9.02 | D28: 20 | E28: 10.61 | F28: 70 | G28: 90 | H28: 115 | I28: 130 | J28: 0.5 | K28: 0.5
A29: 3" Alum, Sched 40, 6063 Alloy | B29: 3.5 | C29: 6.896 | D29: 20 | E29: 8.122 | F29: 70 | G29: 90 | H29: 115 | I29: 130 | J29: 0.5 | K29: 0.5
A30: 3-1/2" Alum, Sched 40, 6063 Alloy | B30: 4 | C30: 5.735 | D30: 20 | E30: 6.759 | F30: 70 | G30: 90 | H30: 115 | I30: 130 | J30: 0.5 | K30: 0.5
A31: 4" Alum, Sched 40, 6063 Alloy | B31: 4.5 | C31: 4.842 | D31: 20 | E31: 5.713 | F31: 70 | G31: 90 | H31: 115 | I31: 130 | J31: 0.5 | K31: 0.5
A32: 4-1/2" Alum, Sched 40, 6063 Alloy | B32: 5 | C32: 4.167 | D32: 20 | E32: 4.92 | F32: 70 | G32: 90 | H32: 115 | I32: 130 | J32: 0.5 | K32: 0.5
A33: 5" Alum, Sched 40, 6063 Alloy | B33: 5.563 | C33: 3.574 | D33: 20 | E33: 4.221 | F33: 70 | G33: 90 | H33: 115 | I33: 130 | J33: 0.5 | K33: 0.5
A34: 6" Alum, Sched 40, 6063 Alloy | B34: 6.625 | C34: 2.754 | D34: 20 | E34: 3.257 | F34: 70 | G34: 90 | H34: 115 | I34: 130 | J34: 0.5 | K34: 0.5
A35: 1" Alum, Sched 80, 6063 Alloy | B35: 1.315 | C35: 24.06 | D35: 20 | E35: 28.27 | F35: 70 | G35: 90 | H35: 115 | I35: 130 | J35: 0.5 | K35: 0.5
A36: 1-1/2" Alum, Sched 80, 6063 Alloy | B36: 1.9 | C36: 14.39 | D36: 20 | E36: 16.91 | F36: 70 | G36: 90 | H36: 115 | I36: 130 | J36: 0.5 | K36: 0.5
A37: 2" Alum, Sched 80, 6063 Alloy | B37: 2.375 | C37: 10.41 | D37: 20 | E37: 12.3 | F37: 70 | G37: 90 | H37: 115 | I37: 130 | J37: 0.5 | K37: 0.5
A38: 2-1/2" Alum, Sched 80, 6063 Alloy | B38: 2.875 | C38: 6.819 | D38: 20 | E38: 8.068 | F38: 70 | G38: 90 | H38: 115 | I38: 130 | J38: 0.5 | K38: 0.5
A39: 3" Alum, Sched 80, 6063 Alloy | B39: 3.5 | C39: 5.096 | D39: 20 | E39: 6.048 | F39: 70 | G39: 90 | H39: 115 | I39: 130 | J39: 0.5 | K39: 0.5
A40: 3-1/2" Alum, Sched 80, 6063 Alloy | B40: 4 | C40: 4.179 | D40: 20 | E40: 4.974 | F40: 70 | G40: 90 | H40: 115 | I40: 130 | J40: 0.5 | K40: 0.5
A41: 4" Alum, Sched 80, 6063 Alloy | B41: 4.5 | C41: 3.488 | D41: 20 | E41: 4.172 | F41: 80 | G41: 90 | H41: 115 | I41: 130 | J41: 0.5 | K41: 0.5
A42: 4-1/2" Alum, Sched 80, 6063 Alloy | B42: 5 | C42: 2.967 | D42: 20 | E42: 3.559 | F42: 70 | G42: 90 | H42: 115 | I42: 130 | J42: 0.5 | K42: 0.5
A43: 5" Alum, Sched 80, 6063 Alloy | B43: 5.563 | C43: 2.515 | D43: 20 | E43: 3.032 | F43: 70 | G43: 90 | H43: 115 | I43: 130 | J43: 0.5 | K43: 0.5
A44: 6" Alum, Sched 80, 6063 Alloy | B44: 6.625 | C44: 1.829 | D44: 20 | E44: 2.248 | F44: 70 | G44: 90 | H44: 115 | I44: 130 | J44: 0.5 | K44: 0.5
A45: 3/4" Copper, Schedule 40, 98% ICAS | B45: 1.05 | C45: 24.79 | D45: 20 | E45: 29.562 | F45: 70 | G45: 90 | H45: 115 | I45: 130 | J45: 0.85 | K45: 0.85
A46: 1" Copper, Schedule 40, 98% ICAS | B46: 1.315 | C46: 17.6 | D46: 20 | E46: 20.988 | F46: 70 | G46: 90 | H46: 115 | I46: 130 | J46: 0.85 | K46: 0.85
A47: 1-1/4" Copper, Schedule 40, 98% ICAS | B47: 1.66 | C47: 11.97 | D47: 20 | E47: 14.274 | F47: 70 | G47: 90 | H47: 115 | I47: 130 | J47: 0.85 | K47: 0.85
A48: 1-1/2" Copper, Schedule 40, 98% ICAS | B48: 1.9 | C48: 10.08 | D48: 20 | E48: 12.0204 | F48: 70 | G48: 90 | H48: 115 | I48: 130 | J48: 0.85 | K48: 0.85
A49: 2" Copper, Schedule 40, 98% ICAS | B49: 2.375 | C49: 7.62 | D49: 20 | E49: 9.08685 | F49: 70 | G49: 90 | H49: 115 | I49: 130 | J49: 0.85 | K49: 0.85
A50: 2-1/2" Copper, Schedule 40, 98% ICAS | B50: 2.875 | C50: 5.25 | D50: 20 | E50: 6.260625 | F50: 70 | G50: 90 | H50: 115 | I50: 130 | J50: 0.85 | K50: 0.85
A51: 3" Copper, Schedule 40, 98% ICAS | B51: 3.5 | C51: 3.682 | D51: 20 | E51: 4.390785 | F51: 70 | G51: 90 | H51: 115 | I51: 130 | J51: 0.85 | K51: 0.85
A52: 3-1/2" Copper, Schedule 40, 98% ICAS | B52: 4 | C52: 2.822 | D52: 20 | E52: 3.3652 | F52: 70 | G52: 90 | H52: 115 | I52: 130 | J52: 0.85 | K52: 0.85
A53: 4" Copper, Schedule 40, 98% ICAS | B53: 4.5 | C53: 2.49 | D53: 20 | E53: 2.9693 | F53: 70 | G53: 90 | H53: 115 | I53: 130 | J53: 0.85 | K53: 0.85
A54: 1" Copper, Schedule 80, 98% ICAS | B54: 1.315 | C54: 12.83 | D54: 20 | E54: 15.299775 | F54: 70 | G54: 90 | H54: 115 | I54: 130 | J54: 0.85 | K54: 0.85
A55: 1-1/2" Copper, Schedule 80, 98% ICAS | B55: 1.9 | C55: 7.68 | D55: 20 | E55: 9.1584 | F55: 70 | G55: 90 | H55: 115 | I55: 130 | J55: 0.85 | K55: 0.85
A56: 2" Copper, Schedule 80, 98% ICAS | B56: 2.375 | C56: 5.558 | D56: 20 | E56: 6.627915 | F56: 70 | G56: 90 | H56: 115 | I56: 130 | J56: 0.85 | K56: 0.85
A57: 2-1/2"Copper, Schedule 80, 98% ICAS | B57: 2.875 | C57: 3.641 | D57: 20 | E57: 4.3418925 | F57: 70 | G57: 90 | H57: 115 | I57: 130 | J57: 0.85 | K57: 0.85
A58: 3" Copper, Schedule 80, 98% ICAS | B58: 3.5 | C58: 2.723 | D58: 20 | E58: 3.2471775 | F58: 70 | G58: 90 | H58: 115 | I58: 130 | J58: 0.85 | K58: 0.85
A59: 3-1/2" Copper, Schedule 80, 98% ICAS | B59: 4 | C59: 2.24 | D59: 20 | E59: 2.6712 | F59: 70 | G59: 90 | H59: 115 | I59: 130 | J59: 0.85 | K59: 0.85
A60: 4" Copper, Schedule 80, 98% ICAS | B60: 4.5 | C60: 1.866 | D60: 20 | E60: 2.2252 | F60: 70 | G60: 90 | H60: 115 | I60: 130 | J60: 0.85 | K60: 0.85
A61: 1/0 ACSR 6/1 | B61: 0.398 | C61: =0.895*1000000/5280 -> 169.5075758 | D61: 25 | E61: =1.145*1000000/5280 -> 216.8560606 | F61: 75 | G61: 105 | H61: 130 | I61: 140 | J61: 0.7 | K61: 0.9
A62: 2/0 ACSR 6/1 | B62: 0.447 | C62: =0.681*1000000/5280 -> 128.9772727 | D62: 25 | E62: =0.932*1000000/5280 -> 176.5151515 | F62: 75 | G62: 105 | H62: 130 | I62: 140 | J62: 0.7 | K62: 0.9
A63: 3/0 ACSR 6/1 | B63: 0.502 | C63: =0.541*1000000/5280 -> 102.4621212 | D63: 25 | E63: =0.762*1000000/5280 -> 144.3181818 | F63: 75 | G63: 105 | H63: 130 | I63: 140 | J63: 0.7 | K63: 0.9
A64: 4/0 ACSR 6/1 | B64: 0.563 | C64: =0.429*1000000/5280 -> 81.25 | D64: 25 | E64: =0.628*1000000/5280 -> 118.9393939 | F64: 75 | G64: 105 | H64: 130 | I64: 140 | J64: 0.7 | K64: 0.9
A65: 159 kcm ACSR 12/7 | B65: 0.756 | C65: =0.546*1000000/5280 -> 103.4090909 | D65: 25 | E65: =0.958*1000000/5280 -> 181.4393939 | F65: 75 | G65: 105 | H65: 130 | I65: 140 | J65: 0.7 | K65: 0.9
A66: 203.2 kcm ACSR 16/19 | B66: 0.714 | C66: =0.411*1000000/5280 -> 77.84090909 | D66: 25 | E66: =0.82*1000000/5280 -> 155.3030303 | F66: 75 | G66: 105 | H66: 130 | I66: 140 | J66: 0.7 | K66: 0.9
A67: 266.8 kcm ACSR 26/7 | B67: 0.642 | C67: =0.3437*1000000/5280 -> 65.09469697 | D67: 25 | E67: =0.4113*1000000/5280 -> 77.89772727 | F67: 75 | G67: 105 | H67: 130 | I67: 140 | J67: 0.7 | K67: 0.9
A68: 266.8 kcm ACSR 30/7 | B68: 0.66 | C68: =0.3413*1000000/5280 -> 64.64015152 | D68: 25 | E68: =0.4083*1000000/5280 -> 77.32954545 | F68: 75 | G68: 105 | H68: 130 | I68: 140 | J68: 0.7 | K68: 0.9
A69: 336.4 kcm ACSR 18/1 | B69: 0.684 | C69: =0.2756*1000000/5280 -> 52.1969697 | D69: 25 | E69: =0.3298*1000000/5280 -> 62.46212121 | F69: 75 | G69: 105 | H69: 130 | I69: 140 | J69: 0.7 | K69: 0.9
A70: 336.4 kcm ACSR 26/7 | B70: 0.72 | C70: =0.2728*1000000/5280 -> 51.66666667 | D70: 25 | E70: =0.3264*1000000/5280 -> 61.81818182 | F70: 75 | G70: 105 | H70: 130 | I70: 140 | J70: 0.7 | K70: 0.9
A71: 336.4 kcm ACSR 30/7 | B71: 0.741 | C71: =0.2708*1000000/5280 -> 51.28787879 | D71: 25 | E71: =0.324*1000000/5280 -> 61.36363636 | F71: 75 | G71: 105 | H71: 130 | I71: 140 | J71: 0.7 | K71: 0.9
A72: 397.5 kcm ACSR 26/7 | B72: 0.783 | C72: =0.2311*1000000/5280 -> 43.76893939 | D72: 25 | E72: =0.2764*1000000/5280 -> 52.34848485 | F72: 75 | G72: 105 | H72: 130 | I72: 140 | J72: 0.7 | K72: 0.9
A73: 397.5 kcm ACSR 30/7 | B73: 0.806 | C73: =0.2294*1000000/5280 -> 43.4469697 | D73: 25 | E73: =0.2743*1000000/5280 -> 51.95075758 | F73: 75 | G73: 105 | H73: 130 | I73: 140 | J73: 0.7 | K73: 0.9
A74: 477 kcm ACSR 26/7 | B74: 0.858 | C74: =0.1928*1000000/5280 -> 36.51515152 | D74: 25 | E74: =0.2305*1000000/5280 -> 43.65530303 | F74: 75 | G74: 105 | H74: 130 | I74: 140 | J74: 0.7 | K74: 0.9
A75: 556. 5 kcm ACSR 24/7 | B75: 0.914 | C75: =0.1663*1000000/5280 -> 31.49621212 | D75: 25 | E75: =0.1988*1000000/5280 -> 37.65151515 | F75: 75 | G75: 105 | H75: 130 | I75: 140 | J75: 0.7 | K75: 0.9
A76: 556.5 kcm ACSR 26/7 | B76: 0.927 | C76: =0.1655*1000000/5280 -> 31.34469697 | D76: 25 | E76: =0.1978*1000000/5280 -> 37.46212121 | F76: 75 | G76: 105 | H76: 130 | I76: 140 | J76: 0.7 | K76: 0.9
A77: 556.5 kcm ACSR 30/7 | B77: 0.953 | C77: =0.1642*1000000/5280 -> 31.09848485 | D77: 25 | E77: =0.1963*1000000/5280 -> 37.1780303 | F77: 75 | G77: 105 | H77: 130 | I77: 140 | J77: 0.7 | K77: 0.9
A78: 605 kcm ACSR 24/7 | B78: 0.953 | C78: =0.1532*1000000/5280 -> 29.01515152 | D78: 25 | E78: =0.183*1000000/5280 -> 34.65909091 | F78: 75 | G78: 105 | H78: 130 | I78: 140 | J78: 0.7 | K78: 0.9
A79: 795 kcm ACSR 26/7 | B79: 1.108 | C79: =0.1166*1000000/5280 -> 22.08333333 | D79: 25 | E79: =0.139*1000000/5280 -> 26.32575758 | F79: 75 | G79: 105 | H79: 130 | I79: 140 | J79: 0.7 | K79: 0.9
A80: 795 kcm ACSR 30/7 | B80: 1.14 | C80: =0.1155*1000000/5280 -> 21.875 | D80: 25 | E80: =0.1379*1000000/5280 -> 26.11742424 | F80: 75 | G80: 105 | H80: 130 | I80: 140 | J80: 0.7 | K80: 0.9
A81: 795 kcm ACSR 30/19 | B81: 1.14 | C81: =0.1156*1000000/5280 -> 21.89393939 | D81: 25 | E81: =0.138*1000000/5280 -> 26.13636364 | F81: 75 | G81: 105 | H81: 130 | I81: 140 | J81: 0.7 | K81: 0.9
A82: 954 kcm ACSR 45/7 | B82: 1.165 | C82: =0.0994*1000000/5280 -> 18.82575758 | D82: 25 | E82: =0.1191*1000000/5280 -> 22.55681818 | F82: 75 | G82: 105 | H82: 130 | I82: 140 | J82: 0.7 | K82: 0.9
A83: 954 kcm ACSR 48/7 | B83: 1.175 | C83: 18.8 | D83: 25 | E83: 22.7 | F83: 75 | G83: 105 | H83: 130 | I83: 140 | J83: 0.7 | K83: 0.9 | L83: General Cable
A84: 1033.5 kcm ACSR 45/7 | B84: 1.212 | C84: =0.0921*1000000/5280 -> 17.44318182 | D84: 25 | E84: =0.1102*1000000/5280 -> 20.87121212 | F84: 75 | G84: 105 | H84: 130 | I84: 140 | J84: 0.7 | K84: 0.9
A85: 1033.5 kcm ACSR 54/7 | B85: 1.245 | C85: =0.091*1000000/5280 -> 17.23484848 | D85: 25 | E85: =0.1112*1000000/5280 -> 21.06060606 | F85: 75 | G85: 105 | H85: 130 | I85: 140 | J85: 0.7 | K85: 0.9
A86: 1272 kcm ACSR 45/7 | B86: 1.345 | C86: =0.0759*1000000/5280 -> 14.375 | D86: 25 | E86: =0.0903*1000000/5280 -> 17.10227273 | F86: 75 | G86: 105 | H86: 130 | I86: 140 | J86: 0.7 | K86: 0.9
A87: 1590 kcm ACSR 45/7 | B87: 1.504 | C87: =0.062*1000000/5280 -> 11.74242424 | D87: 25 | E87: =0.0733*1000000/5280 -> 13.88257576 | F87: 75 | G87: 105 | H87: 130 | I87: 140 | J87: 0.7 | K87: 0.9
A88: 1590 kcm ACSR 54/19 | B88: 1.545 | C88: =0.0611*1000000/5280 -> 11.5719697 | D88: 25 | E88: =0.0739*1000000/5280 -> 13.99621212 | F88: 75 | G88: 105 | H88: 130 | I88: 140 | J88: 0.7 | K88: 0.9
A89: 2167 kcm ACSR 72/7 | B89: 1.735 | C89: =0.0484*1000000/5280 -> 9.166666667 | D89: 25 | E89: =0.0562*1000000/5280 -> 10.64393939 | F89: 75 | G89: 105 | H89: 130 | I89: 140 | J89: 0.7 | K89: 0.9
A90: 2493 kcm ACAR 54/37 | B90: 1.821 | C90: 8.54167 | D90: 20 | E90: 10.49242 | F90: 100 | G90: 105 | H90: 130 | I90: 140 | J90: 0.7 | K90: 0.9 | L90: PPL 500kV Design Manual 1974
A91: 3/0 AAC 7 str | B91: 0.464 | C91: =0.5543*1000000/5280 -> 104.9810606 | D91: 25 | E91: =0.6652*1000000/5280 -> 125.9848485 | F91: 75 | G91: 105 | H91: 130 | I91: 140 | J91: 0.7 | K91: 0.9
A92: 250 kcm AAC 19 str | B92: 0.574 | C92: =0.3733*1000000/5280 -> 70.70075758 | D92: 25 | E92: =0.4469*1000000/5280 -> 84.64015152 | F92: 75 | G92: 105 | H92: 130 | I92: 140 | J92: 0.7 | K92: 0.9
A93: 300 kcm AAC 19 str | B93: 0.629 | C93: =0.3113*1000000/5280 -> 58.95833333 | D93: 25 | E93: =0.3726*1000000/5280 -> 70.56818182 | F93: 75 | G93: 105 | H93: 130 | I93: 140 | J93: 0.7 | K93: 0.9
A94: 336.4 kcm AAC 19 str | B94: 0.666 | C94: =0.2779*1000000/5280 -> 52.63257576 | D94: 25 | E94: =0.3325*1000000/5280 -> 62.97348485 | F94: 75 | G94: 105 | H94: 130 | I94: 140 | J94: 0.7 | K94: 0.9
A95: 350 kcm AAC 19 str | B95: 0.679 | C95: =0.2672*1000000/5280 -> 50.60606061 | D95: 25 | E95: =0.3197*1000000/5280 -> 60.54924242 | F95: 75 | G95: 105 | H95: 130 | I95: 140 | J95: 0.7 | K95: 0.9
A96: 500 kcm AAC 19 str | B96: 0.811 | C96: =0.1879*1000000/5280 -> 35.58712121 | D96: 25 | E96: =0.2245*1000000/5280 -> 42.51893939 | F96: 75 | G96: 105 | H96: 130 | I96: 140 | J96: 0.7 | K96: 0.9
A97: 556.5 kcm AAC 37 str | B97: 0.858 | C97: =0.1691*1000000/5280 -> 32.02651515 | D97: 25 | E97: =0.202*1000000/5280 -> 38.25757576 | F97: 75 | G97: 105 | H97: 130 | I97: 140 | J97: 0.7 | K97: 0.9
A98: 795 kcm AAC 37 str | B98: 1.026 | C98: =0.1197*1000000/5280 -> 22.67045455 | D98: 25 | E98: =0.1425*1000000/5280 -> 26.98863636 | F98: 75 | G98: 105 | H98: 130 | I98: 140 | J98: 0.7 | K98: 0.9
A99: 795 kcm AAC 61 str | B99: 1.028 | C99: =0.1197*1000000/5280 -> 22.67045455 | D99: 25 | E99: =0.1425*1000000/5280 -> 26.98863636 | F99: 75 | G99: 105 | H99: 130 | I99: 140 | J99: 0.7 | K99: 0.9
A100: 1000 kcm AAC 37 str | B100: 1.15 | C100: =0.0963*1000000/5280 -> 18.23863636 | D100: 25 | E100: =0.1142*1000000/5280 -> 21.62878788 | F100: 75 | G100: 105 | H100: 130 | I100: 140 | J100: 0.7 | K100: 0.9
A101: 1033.5 kcm AAC 61 str | B101: 1.172 | C101: =0.0934*1000000/5280 -> 17.68939394 | D101: 25 | E101: =0.1107*1000000/5280 -> 20.96590909 | F101: 75 | G101: 105 | H101: 130 | I101: 140 | J101: 0.7 | K101: 0.9
A102: 1510.5 kcm AAC 61 str | B102: 1.417 | C102: =0.0663*1000000/5280 -> 12.55681818 | D102: 25 | E102: =0.0778*1000000/5280 -> 14.73484848 | F102: 75 | G102: 105 | H102: 130 | I102: 140 | J102: 0.7 | K102: 0.9
A103: 1590 kcm AAC 61 str | B103: 1.454 | C103: =0.0635*1000000/5280 -> 12.02651515 | D103: 25 | E103: =0.0743*1000000/5280 -> 14.0719697 | F103: 75 | G103: 105 | H103: 130 | I103: 140 | J103: 0.7 | K103: 0.9
A104: 2000 kcm AAC 127 str | B104: 1.63 | C104: 10 | D104: 25 | E104: 11.098 | F104: 75 | G104: 105 | H104: 130 | I104: 140 | J104: 0.7 | K104: 0.9
A105: 3500 kcm AAC 127 str | B105: 2.158 | C105: =0.0355*1000000/5280 -> 6.723484848 | D105: 25 | E105: =0.0399*1000000/5280 -> 7.556818182 | F105: 75 | G105: 105 | H105: 130 | I105: 140 | J105: 0.7 | K105: 0.9
A106: 1/0 Copper 7 str | B106: 0.3684 | C106: =0.5615*1000000/5280 -> 106.344697 | D106: 25 | E106: =0.6658*1000000/5280 -> 126.0984848 | F106: 75 | G106: 90 | H106: 100 | I106: 110 | J106: 0.7 | K106: 0.9
A107: 2/0 Copper 7 str | B107: 0.4137 | C107: =0.4454*1000000/5280 -> 84.35606061 | D107: 25 | E107: =0.5279*1000000/5280 -> 99.98106061 | F107: 75 | G107: 90 | H107: 100 | I107: 110 | J107: 0.7 | K107: 0.9
A108: 4/0 Copper 7 str | B108: 0.5217 | C108: =0.2808*1000000/5280 -> 53.18181818 | D108: 25 | E108: =0.3326*1000000/5280 -> 62.99242424 | F108: 75 | G108: 90 | H108: 100 | I108: 110 | J108: 0.7 | K108: 0.9
A109: 4/0 Copper 19 str | B109: 0.5275 | C109: =0.2808*1000000/5280 -> 53.18181818 | D109: 25 | E109: =0.3326*1000000/5280 -> 62.99242424 | F109: 75 | G109: 90 | H109: 100 | I109: 110 | J109: 0.7 | K109: 0.9
A110: 250 kcm Copper 19 str | B110: 0.5735 | C110: =0.238*1000000/5280 -> 45.07575758 | D110: 25 | E110: =0.2819*1000000/5280 -> 53.39015152 | F110: 75 | G110: 90 | H110: 100 | I110: 110 | J110: 0.7 | K110: 0.9
A111: 350 kcm Copper 19 str | B111: 0.6785 | C111: =0.1709*1000000/5280 -> 32.36742424 | D111: 25 | E111: =0.2021*1000000/5280 -> 38.27651515 | F111: 75 | G111: 90 | H111: 100 | I111: 110 | J111: 0.7 | K111: 0.9
A112: 350 kcm Copper 37 str | B112: 0.6811 | C112: =0.1709*1000000/5280 -> 32.36742424 | D112: 25 | E112: =0.2021*1000000/5280 -> 38.27651515 | F112: 75 | G112: 90 | H112: 100 | I112: 110 | J112: 0.7 | K112: 0.9
A113: 500 kcm Copper 19 str | B113: 0.811 | C113: =0.1209*1000000/5280 -> 22.89772727 | D113: 25 | E113: =0.1425*1000000/5280 -> 26.98863636 | F113: 75 | G113: 90 | H113: 100 | I113: 110 | J113: 0.7 | K113: 0.9
A114: 500 kcm Copper 37 str | B114: 0.8134 | C114: =0.1209*1000000/5280 -> 22.89772727 | D114: 25 | E114: =0.1425*1000000/5280 -> 26.98863636 | F114: 75 | G114: 90 | H114: 100 | I114: 110 | J114: 0.7 | K114: 0.9
A115: 750 kcm Copper 37 str | B115: 0.9968 | C115: =0.0827*1000000/5280 -> 15.66287879 | D115: 25 | E115: =0.0968*1000000/5280 -> 18.33333333 | F115: 75 | G115: 90 | H115: 100 | I115: 110 | J115: 0.7 | K115: 0.9
A116: 750 kcm Copper 61 str | B116: 0.9981 | C116: =0.0827*1000000/5280 -> 15.66287879 | D116: 25 | E116: =0.0968*1000000/5280 -> 18.33333333 | F116: 75 | G116: 90 | H116: 100 | I116: 110 | J116: 0.7 | K116: 0.9
A117: 1000 kcm Copper 37 str | B117: 1.1508 | C117: =0.064*1000000/5280 -> 12.12121212 | D117: 25 | E117: =0.0744*1000000/5280 -> 14.09090909 | F117: 75 | G117: 90 | H117: 100 | I117: 110 | J117: 0.7 | K117: 0.9
A118: 1000 kcm Copper 61 str | B118: 1.152 | C118: =0.064*1000000/5280 -> 12.12121212 | D118: 25 | E118: =0.0744*1000000/5280 -> 14.09090909 | F118: 75 | G118: 90 | H118: 100 | I118: 110 | J118: 0.7 | K118: 0.9
A119: 1500 kcm Copper 61 str HD | B119: 1.411 | C119: 7.334 | D119: 20 | E119: 8.0089 | F119: 70 | G119: 90 | H119: 100 | I119: 110 | J119: 0.7 | K119: 0.9 | L119: Table 4-17 EE Handbook
A120: 2000 kcm Copper 127 str HD | B120: 1.632 | C120: 5.501 | D120: 20 | E120: 6.5599 | F120: 70 | G120: 90 | H120: 100 | I120: 110 | J120: 0.7 | K120: 0.9 | L120: Table 4-17 EE Handbook
A121: User definable
A122: User definable
A123: User definable
A124: User definable
A125: User definable
A126: User definable
A127: User definable
A128: User definable
A129: User definable
A130: User definable
A131: User definable
A132: User definable
A133: User definable
A134: User definable
A135: User definable
A136: User definable
A137: User definable
A138: User definable
A139: User definable
A140: User definable
A141: User definable
A142: User definable
A143: User definable
A144: User definable
A145: User definable
A146: User definable
A147: User definable
A148: User definable
A149: User definable
A150: User definable
A151: User definable
A152: User definable
A153: User definable
A154: User definable
A155: User definable
A156: User definable
A157: User definable
A158: User definable
A159: User definable
A160: User definable
A161: User definable

Sheet Rating with SUN Bar
A1: Steady State Thermal Rating: Bar Conductor with SUN (Ampacity), Amperes | Q1: Steady State Thermal Rating: Bar Conductor with SUN (Ampacity), Amperes
E2: Atmosphere: | F2: =Weather!$B$7 -> Clear | U2: Atmosphere: | V2: =Weather!$B$7 -> Clear
A3: =Cond!E4 -> 0.25 x 3 inch Aluminum Bar Alloy 6061-T6 | E3: e= | F3: =Cond!E17 -> 0.5 | G3: a= | H3: =Cond!E18 -> 0.5 | Q3: =A3 -> 0.25 x 3 inch Aluminum Bar Alloy 6061-T6 | U3: e= | V3: =Cond!E17 -> 0.5 | W3: a= | X3: =Cond!E18 -> 0.5
A5: Rating Condition: | B5: V1 | C5: Note: #NUM! Indicates that conductor cannot be operated at this temperature for the given ambient condition | Q5: Rating Condition: | R5: =B5 -> V1 | S5: Note: #NUM! Indicates that conductor cannot be operated at this temperature for the given ambient condition
A6: Wind Speed (ft/sec): | B6: =Weather!B13 -> 0 | Q6: Wind Speed (ft/sec): | R6: =B6 -> 0 | AO6: Winter Planning | AX6: Summer Planning
G7: Winter Planning | L7: Summer Planning | Q7: Ambient Temp (F) | R7: -65 | S7: -60 | T7: -55 | U7: -50 | V7: -45 | W7: -40 | X7: -35 | Y7: -30 | Z7: -25 | AA7: -20 | AB7: -15 | AC7: -10 | AD7: -5 | AE7: 0 | AF7: 5 | AG7: 10 | AH7: 15 | AI7: 20 | AJ7: 25 | AK7: 30 | AL7: 35 | AM7: 40 | AN7: 45 | AO7: 50 | AP7: 55 | AQ7: 60 | AR7: 65 | AS7: 70 | AT7: 75 | AU7: 80 | AV7: 85 | AW7: 90 | AX7: 95 | AY7: 100 | AZ7: 105 | BA7: 110 | BB7: 115 | BC7: 120 | BD7: 125 | BE7: 130 | BF7: 135 | BG7: 140 | BH7: 145 | BI7: 150
A8: Ambient Temp (C) | B8: -15 | C8: -10 | D8: -5 | E8: 0 | F8: 5 | G8: 10 | H8: 15 | I8: 20 | J8: 25 | K8: 30 | L8: 35 | M8: 40 | Q8: Ambient Temp (C) | R8: =CONVERT(R7,"F","C") -> -53.88888889 | S8: =CONVERT(S7,"F","C") -> -51.11111111 | T8: -48.33333333 | U8: -45.55555556 | V8: -42.77777778 | W8: -40 | X8: -37.22222222 | Y8: -34.44444444 | Z8: -31.66666667 | AA8: -28.88888889 | AB8: -26.11111111 | AC8: -23.33333333 | AD8: -20.55555556 | AE8: -17.77777778 | AF8: -15 | AG8: -12.22222222 | AH8: -9.444444444 | AI8: -6.666666667 | AJ8: -3.888888889 | AK8: -1.111111111 | AL8: 1.666666667 | AM8: 4.444444444 | AN8: 7.222222222 | AO8: 10 | AP8: 12.77777778 | AQ8: 15.55555556 | AR8: 18.33333333 | AS8: 21.11111111 | AT8: 23.88888889 | AU8: 26.66666667 | AV8: 29.44444444 | AW8: 32.22222222 | AX8: 35 | AY8: 37.77777778 | AZ8: 40.55555556 | BA8: 43.33333333 | BB8: 46.11111111 | BC8: 48.88888889 | BD8: 51.66666667 | BE8: 54.44444444 | BF8: 57.22222222 | BG8: 60 | BH8: 62.77777778 | BI8: 65.55555556
A9: Max Op Temp (C) | Q9: Max Op Temp (C)
A10: =min -> 50 | B10: =SQRT(('qc Bar'!D7+'qr Bar'!D7-'qs Bar'!D7)/('Resistance Bar'!D7)) -> 440.6036947 | C10: =SQRT(('qc Bar'!E7+'qr Bar'!E7-'qs Bar'!E7)/('Resistance Bar'!E7)) -> 419.8574963 | D10: =SQRT(('qc Bar'!F7+'qr Bar'!F7-'qs Bar'!F7)/('Resistance Bar'!F7)) -> 396.7131482 | E10: =SQRT(('qc Bar'!G7+'qr Bar'!G7-'qs Bar'!G7)/('Resistance Bar'!G7)) -> 370.6675296 | F10: =SQRT(('qc Bar'!H7+'qr Bar'!H7-'qs Bar'!H7)/('Resistance Bar'!H7)) -> 340.9965305 | G10: =SQRT(('qc Bar'!I7+'qr Bar'!I7-'qs Bar'!I7)/('Resistance Bar'!I7)) -> 306.581545 | H10: =SQRT(('qc Bar'!J7+'qr Bar'!J7-'qs Bar'!J7)/('Resistance Bar'!J7)) -> 265.504732 | I10: =SQRT(('qc Bar'!K7+'qr Bar'!K7-'qs Bar'!K7)/('Resistance Bar'!K7)) -> 213.8619858 | J10: =SQRT(('qc Bar'!L7+'qr Bar'!L7-'qs Bar'!L7)/('Resistance Bar'!L7)) -> 140.2882864 | K10: =SQRT(('qc Bar'!M7+'qr Bar'!M7-'qs Bar'!M7)/('Resistance Bar'!M7)) ->  | L10: =SQRT(('qc Bar'!N7+'qr Bar'!N7-'qs Bar'!N7)/('Resistance Bar'!N7)) ->  | M10: =SQRT(('qc Bar'!O7+'qr Bar'!O7-'qs Bar'!O7)/('Resistance Bar'!O7)) ->  | Q10: =min -> 50 | R10: =SQRT(('qc Bar'!T7+'qr Bar'!T7-'qs Bar'!T7)/('Resistance Bar'!T7)) -> 549.0519246 | S10: =SQRT(('qc Bar'!U7+'qr Bar'!U7-'qs Bar'!U7)/('Resistance Bar'!U7)) -> 543.5474459 | T10: =SQRT(('qc Bar'!V7+'qr Bar'!V7-'qs Bar'!V7)/('Resistance Bar'!V7)) -> 537.7726964 | U10: =SQRT(('qc Bar'!W7+'qr Bar'!W7-'qs Bar'!W7)/('Resistance Bar'!W7)) -> 531.7134178 | V10: =SQRT(('qc Bar'!X7+'qr Bar'!X7-'qs Bar'!X7)/('Resistance Bar'!X7)) -> 525.3541776 | W10: =SQRT(('qc Bar'!Y7+'qr Bar'!Y7-'qs Bar'!Y7)/('Resistance Bar'!Y7)) -> 518.6782143 | X10: =SQRT(('qc Bar'!Z7+'qr Bar'!Z7-'qs Bar'!Z7)/('Resistance Bar'!Z7)) -> 511.6672529 | Y10: =SQRT(('qc Bar'!AA7+'qr Bar'!AA7-'qs Bar'!AA7)/('Resistance Bar'!AA7)) -> 504.3012869 | Z10: =SQRT(('qc Bar'!AB7+'qr Bar'!AB7-'qs Bar'!AB7)/('Resistance Bar'!AB7)) -> 496.5583162 | AA10: =SQRT(('qc Bar'!AC7+'qr Bar'!AC7-'qs Bar'!AC7)/('Resistance Bar'!AC7)) -> 488.4140318 | AB10: =SQRT(('qc Bar'!AD7+'qr Bar'!AD7-'qs Bar'!AD7)/('Resistance Bar'!AD7)) -> 479.8414318 | AC10: =SQRT(('qc Bar'!AE7+'qr Bar'!AE7-'qs Bar'!AE7)/('Resistance Bar'!AE7)) -> 470.8103494 | AD10: =SQRT(('qc Bar'!AF7+'qr Bar'!AF7-'qs Bar'!AF7)/('Resistance Bar'!AF7)) -> 461.2868685 | AE10: =SQRT(('qc Bar'!AG7+'qr Bar'!AG7-'qs Bar'!AG7)/('Resistance Bar'!AG7)) -> 451.2325889 | AF10: =SQRT(('qc Bar'!AH7+'qr Bar'!AH7-'qs Bar'!AH7)/('Resistance Bar'!AH7)) -> 440.6036947 | AG10: =SQRT(('qc Bar'!AI7+'qr Bar'!AI7-'qs Bar'!AI7)/('Resistance Bar'!AI7)) -> 429.3497527 | AH10: =SQRT(('qc Bar'!AJ7+'qr Bar'!AJ7-'qs Bar'!AJ7)/('Resistance Bar'!AJ7)) -> 417.4121415 | AI10: =SQRT(('qc Bar'!AK7+'qr Bar'!AK7-'qs Bar'!AK7)/('Resistance Bar'!AK7)) -> 404.7219595 | AJ10: =SQRT(('qc Bar'!AL7+'qr Bar'!AL7-'qs Bar'!AL7)/('Resistance Bar'!AL7)) -> 391.1971819 | AK10: =SQRT(('qc Bar'!AM7+'qr Bar'!AM7-'qs Bar'!AM7)/('Resistance Bar'!AM7)) -> 376.7387091 | AL10: =SQRT(('qc Bar'!AN7+'qr Bar'!AN7-'qs Bar'!AN7)/('Resistance Bar'!AN7)) -> 361.2247209 | AM10: =SQRT(('qc Bar'!AO7+'qr Bar'!AO7-'qs Bar'!AO7)/('Resistance Bar'!AO7)) -> 344.5023512 | AN10: =SQRT(('qc Bar'!AP7+'qr Bar'!AP7-'qs Bar'!AP7)/('Resistance Bar'!AP7)) -> 326.3749358 | AO10: =SQRT(('qc Bar'!AQ7+'qr Bar'!AQ7-'qs Bar'!AQ7)/('Resistance Bar'!AQ7)) -> 306.581545 | AP10: =SQRT(('qc Bar'!AR7+'qr Bar'!AR7-'qs Bar'!AR7)/('Resistance Bar'!AR7)) -> 284.7621664 | AQ10: =SQRT(('qc Bar'!AS7+'qr Bar'!AS7-'qs Bar'!AS7)/('Resistance Bar'!AS7)) -> 260.393848 | AR10: =SQRT(('qc Bar'!AT7+'qr Bar'!AT7-'qs Bar'!AT7)/('Resistance Bar'!AT7)) -> 232.6610836 | AS10: =SQRT(('qc Bar'!AU7+'qr Bar'!AU7-'qs Bar'!AU7)/('Resistance Bar'!AU7)) -> 200.1515242 | AT10: =SQRT(('qc Bar'!AV7+'qr Bar'!AV7-'qs Bar'!AV7)/('Resistance Bar'!AV7)) -> 159.9553452 | AU10: =SQRT(('qc Bar'!AW7+'qr Bar'!AW7-'qs Bar'!AW7)/('Resistance Bar'!AW7)) -> 103.4347374 | AV10: =SQRT(('qc Bar'!AX7+'qr Bar'!AX7-'qs Bar'!AX7)/('Resistance Bar'!AX7)) ->  | AW10: =SQRT(('qc Bar'!AY7+'qr Bar'!AY7-'qs Bar'!AY7)/('Resistance Bar'!AY7)) ->  | AX10: =SQRT(('qc Bar'!AZ7+'qr Bar'!AZ7-'qs Bar'!AZ7)/('Resistance Bar'!AZ7)) ->  | AY10: =SQRT(('qc Bar'!BA7+'qr Bar'!BA7-'qs Bar'!BA7)/('Resistance Bar'!BA7)) ->  | AZ10: =SQRT(('qc Bar'!BB7+'qr Bar'!BB7-'qs Bar'!BB7)/('Resistance Bar'!BB7)) ->  | BA10: =SQRT(('qc Bar'!BC7+'qr Bar'!BC7-'qs Bar'!BC7)/('Resistance Bar'!BC7)) ->  | BB10: =SQRT(('qc Bar'!BD7+'qr Bar'!BD7-'qs Bar'!BD7)/('Resistance Bar'!BD7)) ->  | BC10: =SQRT(('qc Bar'!BE7+'qr Bar'!BE7-'qs Bar'!BE7)/('Resistance Bar'!BE7)) ->  | BD10: =SQRT(('qc Bar'!BF7+'qr Bar'!BF7-'qs Bar'!BF7)/('Resistance Bar'!BF7)) ->  | BE10: =SQRT(('qc Bar'!BG7+'qr Bar'!BG7-'qs Bar'!BG7)/('Resistance Bar'!BG7)) ->  | BF10: =SQRT(('qc Bar'!BH7+'qr Bar'!BH7-'qs Bar'!BH7)/('Resistance Bar'!BH7)) ->  | BG10: =SQRT(('qc Bar'!BI7+'qr Bar'!BI7-'qs Bar'!BI7)/('Resistance Bar'!BI7)) ->  | BH10: =SQRT(('qc Bar'!BJ7+'qr Bar'!BJ7-'qs Bar'!BJ7)/('Resistance Bar'!BJ7)) ->  | BI10: =SQRT(('qc Bar'!BK7+'qr Bar'!BK7-'qs Bar'!BK7)/('Resistance Bar'!BK7)) -> 
A11: =min+incr -> 55 | B11: =SQRT(('qc Bar'!D10+'qr Bar'!D10-'qs Bar'!D10)/('Resistance Bar'!D10)) -> 475.3926147 | C11: =SQRT(('qc Bar'!E10+'qr Bar'!E10-'qs Bar'!E10)/('Resistance Bar'!E10)) -> 456.4838112 | D11: =SQRT(('qc Bar'!F10+'qr Bar'!F10-'qs Bar'!F10)/('Resistance Bar'!F10)) -> 435.5716253 | E11: =SQRT(('qc Bar'!G10+'qr Bar'!G10-'qs Bar'!G10)/('Resistance Bar'!G10)) -> 412.303235 | F11: =SQRT(('qc Bar'!H10+'qr Bar'!H10-'qs Bar'!H10)/('Resistance Bar'!H10)) -> 386.2006989 | G11: =SQRT(('qc Bar'!I10+'qr Bar'!I10-'qs Bar'!I10)/('Resistance Bar'!I10)) -> 356.5845193 | H11: =SQRT(('qc Bar'!J10+'qr Bar'!J10-'qs Bar'!J10)/('Resistance Bar'!J10)) -> 322.4230769 | I11: =SQRT(('qc Bar'!K10+'qr Bar'!K10-'qs Bar'!K10)/('Resistance Bar'!K10)) -> 281.9940783 | J11: =SQRT(('qc Bar'!L10+'qr Bar'!L10-'qs Bar'!L10)/('Resistance Bar'!L10)) -> 231.9507439 | K11: =SQRT(('qc Bar'!M10+'qr Bar'!M10-'qs Bar'!M10)/('Resistance Bar'!M10)) -> 163.5662697 | L11: =SQRT(('qc Bar'!N10+'qr Bar'!N10-'qs Bar'!N10)/('Resistance Bar'!N10)) ->  | M11: =SQRT(('qc Bar'!O10+'qr Bar'!O10-'qs Bar'!O10)/('Resistance Bar'!O10)) ->  | Q11: =min+incr -> 55 | R11: =SQRT(('qc Bar'!T10+'qr Bar'!T10-'qs Bar'!T10)/('Resistance Bar'!T10)) -> 576.1405487 | S11: =SQRT(('qc Bar'!U10+'qr Bar'!U10-'qs Bar'!U10)/('Resistance Bar'!U10)) -> 570.9653601 | T11: =SQRT(('qc Bar'!V10+'qr Bar'!V10-'qs Bar'!V10)/('Resistance Bar'!V10)) -> 565.5420088 | U11: =SQRT(('qc Bar'!W10+'qr Bar'!W10-'qs Bar'!W10)/('Resistance Bar'!W10)) -> 559.8581712 | V11: =SQRT(('qc Bar'!X10+'qr Bar'!X10-'qs Bar'!X10)/('Resistance Bar'!X10)) -> 553.9005977 | W11: =SQRT(('qc Bar'!Y10+'qr Bar'!Y10-'qs Bar'!Y10)/('Resistance Bar'!Y10)) -> 547.6549993 | X11: =SQRT(('qc Bar'!Z10+'qr Bar'!Z10-'qs Bar'!Z10)/('Resistance Bar'!Z10)) -> 541.1059165 | Y11: =SQRT(('qc Bar'!AA10+'qr Bar'!AA10-'qs Bar'!AA10)/('Resistance Bar'!AA10)) -> 534.2365652 | Z11: =SQRT(('qc Bar'!AB10+'qr Bar'!AB10-'qs Bar'!AB10)/('Resistance Bar'!AB10)) -> 527.0286543 | AA11: =SQRT(('qc Bar'!AC10+'qr Bar'!AC10-'qs Bar'!AC10)/('Resistance Bar'!AC10)) -> 519.4621706 | AB11: =SQRT(('qc Bar'!AD10+'qr Bar'!AD10-'qs Bar'!AD10)/('Resistance Bar'!AD10)) -> 511.51512 | AC11: =SQRT(('qc Bar'!AE10+'qr Bar'!AE10-'qs Bar'!AE10)/('Resistance Bar'!AE10)) -> 503.163217 | AD11: =SQRT(('qc Bar'!AF10+'qr Bar'!AF10-'qs Bar'!AF10)/('Resistance Bar'!AF10)) -> 494.3795071 | AE11: =SQRT(('qc Bar'!AG10+'qr Bar'!AG10-'qs Bar'!AG10)/('Resistance Bar'!AG10)) -> 485.1339036 | AF11: =SQRT(('qc Bar'!AH10+'qr Bar'!AH10-'qs Bar'!AH10)/('Resistance Bar'!AH10)) -> 475.3926147 | AG11: =SQRT(('qc Bar'!AI10+'qr Bar'!AI10-'qs Bar'!AI10)/('Resistance Bar'!AI10)) -> 465.1174259 | AH11: =SQRT(('qc Bar'!AJ10+'qr Bar'!AJ10-'qs Bar'!AJ10)/('Resistance Bar'!AJ10)) -> 454.2647909 | AI11: =SQRT(('qc Bar'!AK10+'qr Bar'!AK10-'qs Bar'!AK10)/('Resistance Bar'!AK10)) -> 442.784664 | AJ11: =SQRT(('qc Bar'!AL10+'qr Bar'!AL10-'qs Bar'!AL10)/('Resistance Bar'!AL10)) -> 430.6189769 | AK11: =SQRT(('qc Bar'!AM10+'qr Bar'!AM10-'qs Bar'!AM10)/('Resistance Bar'!AM10)) -> 417.6996181 | AL11: =SQRT(('qc Bar'!AN10+'qr Bar'!AN10-'qs Bar'!AN10)/('Resistance Bar'!AN10)) -> 403.9456987 | AM11: =SQRT(('qc Bar'!AO10+'qr Bar'!AO10-'qs Bar'!AO10)/('Resistance Bar'!AO10)) -> 389.2597685 | AN11: =SQRT(('qc Bar'!AP10+'qr Bar'!AP10-'qs Bar'!AP10)/('Resistance Bar'!AP10)) -> 373.5224411 | AO11: =SQRT(('qc Bar'!AQ10+'qr Bar'!AQ10-'qs Bar'!AQ10)/('Resistance Bar'!AQ10)) -> 356.5845193 | AP11: =SQRT(('qc Bar'!AR10+'qr Bar'!AR10-'qs Bar'!AR10)/('Resistance Bar'!AR10)) -> 338.2550288 | AQ11: =SQRT(('qc Bar'!AS10+'qr Bar'!AS10-'qs Bar'!AS10)/('Resistance Bar'!AS10)) -> 318.2822004 | AR11: =SQRT(('qc Bar'!AT10+'qr Bar'!AT10-'qs Bar'!AT10)/('Resistance Bar'!AT10)) -> 296.3215172 | AS11: =SQRT(('qc Bar'!AU10+'qr Bar'!AU10-'qs Bar'!AU10)/('Resistance Bar'!AU10)) -> 271.8780594 | AT11: =SQRT(('qc Bar'!AV10+'qr Bar'!AV10-'qs Bar'!AV10)/('Resistance Bar'!AV10)) -> 244.1920721 | AU11: =SQRT(('qc Bar'!AW10+'qr Bar'!AW10-'qs Bar'!AW10)/('Resistance Bar'!AW10)) -> 211.9790865 | AV11: =SQRT(('qc Bar'!AX10+'qr Bar'!AX10-'qs Bar'!AX10)/('Resistance Bar'!AX10)) -> 172.702426 | AW11: =SQRT(('qc Bar'!AY10+'qr Bar'!AY10-'qs Bar'!AY10)/('Resistance Bar'!AY10)) -> 119.5618458 | AX11: =SQRT(('qc Bar'!AZ10+'qr Bar'!AZ10-'qs Bar'!AZ10)/('Resistance Bar'!AZ10)) ->  | AY11: =SQRT(('qc Bar'!BA10+'qr Bar'!BA10-'qs Bar'!BA10)/('Resistance Bar'!BA10)) ->  | AZ11: =SQRT(('qc Bar'!BB10+'qr Bar'!BB10-'qs Bar'!BB10)/('Resistance Bar'!BB10)) ->  | BA11: =SQRT(('qc Bar'!BC10+'qr Bar'!BC10-'qs Bar'!BC10)/('Resistance Bar'!BC10)) ->  | BB11: =SQRT(('qc Bar'!BD10+'qr Bar'!BD10-'qs Bar'!BD10)/('Resistance Bar'!BD10)) ->  | BC11: =SQRT(('qc Bar'!BE10+'qr Bar'!BE10-'qs Bar'!BE10)/('Resistance Bar'!BE10)) ->  | BD11: =SQRT(('qc Bar'!BF10+'qr Bar'!BF10-'qs Bar'!BF10)/('Resistance Bar'!BF10)) ->  | BE11: =SQRT(('qc Bar'!BG10+'qr Bar'!BG10-'qs Bar'!BG10)/('Resistance Bar'!BG10)) ->  | BF11: =SQRT(('qc Bar'!BH10+'qr Bar'!BH10-'qs Bar'!BH10)/('Resistance Bar'!BH10)) ->  | BG11: =SQRT(('qc Bar'!BI10+'qr Bar'!BI10-'qs Bar'!BI10)/('Resistance Bar'!BI10)) ->  | BH11: =SQRT(('qc Bar'!BJ10+'qr Bar'!BJ10-'qs Bar'!BJ10)/('Resistance Bar'!BJ10)) ->  | BI11: =SQRT(('qc Bar'!BK10+'qr Bar'!BK10-'qs Bar'!BK10)/('Resistance Bar'!BK10)) -> 
A12: =min+2*incr -> 60 | B12: =SQRT(('qc Bar'!D13+'qr Bar'!D13-'qs Bar'!D13)/('Resistance Bar'!D13)) -> 508.5663414 | C12: =SQRT(('qc Bar'!E13+'qr Bar'!E13-'qs Bar'!E13)/('Resistance Bar'!E13)) -> 491.1657586 | D12: =SQRT(('qc Bar'!F13+'qr Bar'!F13-'qs Bar'!F13)/('Resistance Bar'!F13)) -> 472.0454542 | E12: =SQRT(('qc Bar'!G13+'qr Bar'!G13-'qs Bar'!G13)/('Resistance Bar'!G13)) -> 450.9433024 | F12: =SQRT(('qc Bar'!H13+'qr Bar'!H13-'qs Bar'!H13)/('Resistance Bar'!H13)) -> 427.5192756 | G12: =SQRT(('qc Bar'!I13+'qr Bar'!I13-'qs Bar'!I13)/('Resistance Bar'!I13)) -> 401.3164029 | H12: =SQRT(('qc Bar'!J13+'qr Bar'!J13-'qs Bar'!J13)/('Resistance Bar'!J13)) -> 371.6918533 | I12: =SQRT(('qc Bar'!K13+'qr Bar'!K13-'qs Bar'!K13)/('Resistance Bar'!K13)) -> 337.6840654 | J12: =SQRT(('qc Bar'!L13+'qr Bar'!L13-'qs Bar'!L13)/('Resistance Bar'!L13)) -> 297.7231284 | K12: =SQRT(('qc Bar'!M13+'qr Bar'!M13-'qs Bar'!M13)/('Resistance Bar'!M13)) -> 248.8710882 | L12: =SQRT(('qc Bar'!N13+'qr Bar'!N13-'qs Bar'!N13)/('Resistance Bar'!N13)) -> 184.0637047 | M12: =SQRT(('qc Bar'!O13+'qr Bar'!O13-'qs Bar'!O13)/('Resistance Bar'!O13)) -> 66.49704563 | Q12: =min+2*incr -> 60 | R12: =SQRT(('qc Bar'!T13+'qr Bar'!T13-'qs Bar'!T13)/('Resistance Bar'!T13)) -> 602.6842314 | S12: =SQRT(('qc Bar'!U13+'qr Bar'!U13-'qs Bar'!U13)/('Resistance Bar'!U13)) -> 597.8022346 | T12: =SQRT(('qc Bar'!V13+'qr Bar'!V13-'qs Bar'!V13)/('Resistance Bar'!V13)) -> 592.6908545 | U12: =SQRT(('qc Bar'!W13+'qr Bar'!W13-'qs Bar'!W13)/('Resistance Bar'!W13)) -> 587.3392921 | V12: =SQRT(('qc Bar'!X13+'qr Bar'!X13-'qs Bar'!X13)/('Resistance Bar'!X13)) -> 581.7360018 | W12: =SQRT(('qc Bar'!Y13+'qr Bar'!Y13-'qs Bar'!Y13)/('Resistance Bar'!Y13)) -> 575.8686074 | X12: =SQRT(('qc Bar'!Z13+'qr Bar'!Z13-'qs Bar'!Z13)/('Resistance Bar'!Z13)) -> 569.7238049 | Y12: =SQRT(('qc Bar'!AA13+'qr Bar'!AA13-'qs Bar'!AA13)/('Resistance Bar'!AA13)) -> 563.2872506 | Z12: =SQRT(('qc Bar'!AB13+'qr Bar'!AB13-'qs Bar'!AB13)/('Resistance Bar'!AB13)) -> 556.5434296 | AA12: =SQRT(('qc Bar'!AC13+'qr Bar'!AC13-'qs Bar'!AC13)/('Resistance Bar'!AC13)) -> 549.4755031 | AB12: =SQRT(('qc Bar'!AD13+'qr Bar'!AD13-'qs Bar'!AD13)/('Resistance Bar'!AD13)) -> 542.0651274 | AC12: =SQRT(('qc Bar'!AE13+'qr Bar'!AE13-'qs Bar'!AE13)/('Resistance Bar'!AE13)) -> 534.2922396 | AD12: =SQRT(('qc Bar'!AF13+'qr Bar'!AF13-'qs Bar'!AF13)/('Resistance Bar'!AF13)) -> 526.1348021 | AE12: =SQRT(('qc Bar'!AG13+'qr Bar'!AG13-'qs Bar'!AG13)/('Resistance Bar'!AG13)) -> 517.5684948 | AF12: =SQRT(('qc Bar'!AH13+'qr Bar'!AH13-'qs Bar'!AH13)/('Resistance Bar'!AH13)) -> 508.5663414 | AG12: =SQRT(('qc Bar'!AI13+'qr Bar'!AI13-'qs Bar'!AI13)/('Resistance Bar'!AI13)) -> 499.098253 | AH12: =SQRT(('qc Bar'!AJ13+'qr Bar'!AJ13-'qs Bar'!AJ13)/('Resistance Bar'!AJ13)) -> 489.130463 | AI12: =SQRT(('qc Bar'!AK13+'qr Bar'!AK13-'qs Bar'!AK13)/('Resistance Bar'!AK13)) -> 478.6248214 | AJ12: =SQRT(('qc Bar'!AL13+'qr Bar'!AL13-'qs Bar'!AL13)/('Resistance Bar'!AL13)) -> 467.5379026 | AK12: =SQRT(('qc Bar'!AM13+'qr Bar'!AM13-'qs Bar'!AM13)/('Resistance Bar'!AM13)) -> 455.819862 | AL12: =SQRT(('qc Bar'!AN13+'qr Bar'!AN13-'qs Bar'!AN13)/('Resistance Bar'!AN13)) -> 443.4129481 | AM12: =SQRT(('qc Bar'!AO13+'qr Bar'!AO13-'qs Bar'!AO13)/('Resistance Bar'!AO13)) -> 430.2495344 | AN12: =SQRT(('qc Bar'!AP13+'qr Bar'!AP13-'qs Bar'!AP13)/('Resistance Bar'!AP13)) -> 416.2494665 | AO12: =SQRT(('qc Bar'!AQ13+'qr Bar'!AQ13-'qs Bar'!AQ13)/('Resistance Bar'!AQ13)) -> 401.3164029 | AP12: =SQRT(('qc Bar'!AR13+'qr Bar'!AR13-'qs Bar'!AR13)/('Resistance Bar'!AR13)) -> 385.3326426 | AQ12: =SQRT(('qc Bar'!AS13+'qr Bar'!AS13-'qs Bar'!AS13)/('Resistance Bar'!AS13)) -> 368.151588 | AR12: =SQRT(('qc Bar'!AT13+'qr Bar'!AT13-'qs Bar'!AT13)/('Resistance Bar'!AT13)) -> 349.5863648 | AS12: =SQRT(('qc Bar'!AU13+'qr Bar'!AU13-'qs Bar'!AU13)/('Resistance Bar'!AU13)) -> 329.3918816 | AT12: =SQRT(('qc Bar'!AV13+'qr Bar'!AV13-'qs Bar'!AV13)/('Resistance Bar'!AV13)) -> 307.2349902 | AU12: =SQRT(('qc Bar'!AW13+'qr Bar'!AW13-'qs Bar'!AW13)/('Resistance Bar'!AW13)) -> 282.641346 | AV12: =SQRT(('qc Bar'!AX13+'qr Bar'!AX13-'qs Bar'!AX13)/('Resistance Bar'!AX13)) -> 254.8918138 | AW12: =SQRT(('qc Bar'!AY13+'qr Bar'!AY13-'qs Bar'!AY13)/('Resistance Bar'!AY13)) -> 222.7932648 | AX12: =SQRT(('qc Bar'!AZ13+'qr Bar'!AZ13-'qs Bar'!AZ13)/('Resistance Bar'!AZ13)) -> 184.0637047 | AY12: =SQRT(('qc Bar'!BA13+'qr Bar'!BA13-'qs Bar'!BA13)/('Resistance Bar'!BA13)) -> 133.0033934 | AZ12: =SQRT(('qc Bar'!BB13+'qr Bar'!BB13-'qs Bar'!BB13)/('Resistance Bar'!BB13)) -> 32.56339356 | BA12: =SQRT(('qc Bar'!BC13+'qr Bar'!BC13-'qs Bar'!BC13)/('Resistance Bar'!BC13)) ->  | BB12: =SQRT(('qc Bar'!BD13+'qr Bar'!BD13-'qs Bar'!BD13)/('Resistance Bar'!BD13)) ->  | BC12: =SQRT(('qc Bar'!BE13+'qr Bar'!BE13-'qs Bar'!BE13)/('Resistance Bar'!BE13)) ->  | BD12: =SQRT(('qc Bar'!BF13+'qr Bar'!BF13-'qs Bar'!BF13)/('Resistance Bar'!BF13)) ->  | BE12: =SQRT(('qc Bar'!BG13+'qr Bar'!BG13-'qs Bar'!BG13)/('Resistance Bar'!BG13)) ->  | BF12: =SQRT(('qc Bar'!BH13+'qr Bar'!BH13-'qs Bar'!BH13)/('Resistance Bar'!BH13)) ->  | BG12: =SQRT(('qc Bar'!BI13+'qr Bar'!BI13-'qs Bar'!BI13)/('Resistance Bar'!BI13)) ->  | BH12: =SQRT(('qc Bar'!BJ13+'qr Bar'!BJ13-'qs Bar'!BJ13)/('Resistance Bar'!BJ13)) ->  | BI12: =SQRT(('qc Bar'!BK13+'qr Bar'!BK13-'qs Bar'!BK13)/('Resistance Bar'!BK13)) -> 
A13: =min+3*incr -> 65 | B13: =SQRT(('qc Bar'!D16+'qr Bar'!D16-'qs Bar'!D16)/('Resistance Bar'!D16)) -> 540.4398716 | C13: =SQRT(('qc Bar'!E16+'qr Bar'!E16-'qs Bar'!E16)/('Resistance Bar'!E16)) -> 524.3075622 | D13: =SQRT(('qc Bar'!F16+'qr Bar'!F16-'qs Bar'!F16)/('Resistance Bar'!F16)) -> 506.6689969 | E13: =SQRT(('qc Bar'!G16+'qr Bar'!G16-'qs Bar'!G16)/('Resistance Bar'!G16)) -> 487.3209616 | F13: =SQRT(('qc Bar'!H16+'qr Bar'!H16-'qs Bar'!H16)/('Resistance Bar'!H16)) -> 466.0083039 | G13: =SQRT(('qc Bar'!I16+'qr Bar'!I16-'qs Bar'!I16)/('Resistance Bar'!I16)) -> 442.4018317 | H13: =SQRT(('qc Bar'!J16+'qr Bar'!J16-'qs Bar'!J16)/('Resistance Bar'!J16)) -> 416.0622125 | I13: =SQRT(('qc Bar'!K16+'qr Bar'!K16-'qs Bar'!K16)/('Resistance Bar'!K16)) -> 386.3771253 | J13: =SQRT(('qc Bar'!L16+'qr Bar'!L16-'qs Bar'!L16)/('Resistance Bar'!L16)) -> 352.4423342 | K13: =SQRT(('qc Bar'!M16+'qr Bar'!M16-'qs Bar'!M16)/('Resistance Bar'!M16)) -> 312.8092825 | L13: =SQRT(('qc Bar'!N16+'qr Bar'!N16-'qs Bar'!N16)/('Resistance Bar'!N16)) -> 264.8502097 | M13: =SQRT(('qc Bar'!O16+'qr Bar'!O16-'qs Bar'!O16)/('Resistance Bar'!O16)) -> 202.6302922 | Q13: =min+3*incr -> 65 | R13: =SQRT(('qc Bar'!T16+'qr Bar'!T16-'qs Bar'!T16)/('Resistance Bar'!T16)) -> 628.7659457 | S13: =SQRT(('qc Bar'!U16+'qr Bar'!U16-'qs Bar'!U16)/('Resistance Bar'!U16)) -> 624.1471418 | T13: =SQRT(('qc Bar'!V16+'qr Bar'!V16-'qs Bar'!V16)/('Resistance Bar'!V16)) -> 619.3151281 | U13: =SQRT(('qc Bar'!W16+'qr Bar'!W16-'qs Bar'!W16)/('Resistance Bar'!W16)) -> 614.2603314 | V13: =SQRT(('qc Bar'!X16+'qr Bar'!X16-'qs Bar'!X16)/('Resistance Bar'!X16)) -> 608.9725662 | W13: =SQRT(('qc Bar'!Y16+'qr Bar'!Y16-'qs Bar'!Y16)/('Resistance Bar'!Y16)) -> 603.4409699 | X13: =SQRT(('qc Bar'!Z16+'qr Bar'!Z16-'qs Bar'!Z16)/('Resistance Bar'!Z16)) -> 597.6539304 | Y13: =SQRT(('qc Bar'!AA16+'qr Bar'!AA16-'qs Bar'!AA16)/('Resistance Bar'!AA16)) -> 591.5990012 | Z13: =SQRT(('qc Bar'!AB16+'qr Bar'!AB16-'qs Bar'!AB16)/('Resistance Bar'!AB16)) -> 585.2628046 | AA13: =SQRT(('qc Bar'!AC16+'qr Bar'!AC16-'qs Bar'!AC16)/('Resistance Bar'!AC16)) -> 578.6309198 | AB13: =SQRT(('qc Bar'!AD16+'qr Bar'!AD16-'qs Bar'!AD16)/('Resistance Bar'!AD16)) -> 571.6877517 | AC13: =SQRT(('qc Bar'!AE16+'qr Bar'!AE16-'qs Bar'!AE16)/('Resistance Bar'!AE16)) -> 564.4163781 | AD13: =SQRT(('qc Bar'!AF16+'qr Bar'!AF16-'qs Bar'!AF16)/('Resistance Bar'!AF16)) -> 556.7983695 | AE13: =SQRT(('qc Bar'!AG16+'qr Bar'!AG16-'qs Bar'!AG16)/('Resistance Bar'!AG16)) -> 548.8135758 | AF13: =SQRT(('qc Bar'!AH16+'qr Bar'!AH16-'qs Bar'!AH16)/('Resistance Bar'!AH16)) -> 540.4398716 | AG13: =SQRT(('qc Bar'!AI16+'qr Bar'!AI16-'qs Bar'!AI16)/('Resistance Bar'!AI16)) -> 531.6528505 | AH13: =SQRT(('qc Bar'!AJ16+'qr Bar'!AJ16-'qs Bar'!AJ16)/('Resistance Bar'!AJ16)) -> 522.4254538 | AI13: =SQRT(('qc Bar'!AK16+'qr Bar'!AK16-'qs Bar'!AK16)/('Resistance Bar'!AK16)) -> 512.7275178 | AJ13: =SQRT(('qc Bar'!AL16+'qr Bar'!AL16-'qs Bar'!AL16)/('Resistance Bar'!AL16)) -> 502.5252141 | AK13: =SQRT(('qc Bar'!AM16+'qr Bar'!AM16-'qs Bar'!AM16)/('Resistance Bar'!AM16)) -> 491.780352 | AL13: =SQRT(('qc Bar'!AN16+'qr Bar'!AN16-'qs Bar'!AN16)/('Resistance Bar'!AN16)) -> 480.449497 | AM13: =SQRT(('qc Bar'!AO16+'qr Bar'!AO16-'qs Bar'!AO16)/('Resistance Bar'!AO16)) -> 468.4828445 | AN13: =SQRT(('qc Bar'!AP16+'qr Bar'!AP16-'qs Bar'!AP16)/('Resistance Bar'!AP16)) -> 455.8227566 | AO13: =SQRT(('qc Bar'!AQ16+'qr Bar'!AQ16-'qs Bar'!AQ16)/('Resistance Bar'!AQ16)) -> 442.4018317 | AP13: =SQRT(('qc Bar'!AR16+'qr Bar'!AR16-'qs Bar'!AR16)/('Resistance Bar'!AR16)) -> 428.1403092 | AQ13: =SQRT(('qc Bar'!AS16+'qr Bar'!AS16-'qs Bar'!AS16)/('Resistance Bar'!AS16)) -> 412.9425015 | AR13: =SQRT(('qc Bar'!AT16+'qr Bar'!AT16-'qs Bar'!AT16)/('Resistance Bar'!AT16)) -> 396.6917699 | AS13: =SQRT(('qc Bar'!AU16+'qr Bar'!AU16-'qs Bar'!AU16)/('Resistance Bar'!AU16)) -> 379.2432347 | AT13: =SQRT(('qc Bar'!AV16+'qr Bar'!AV16-'qs Bar'!AV16)/('Resistance Bar'!AV16)) -> 360.4128285 | AU13: =SQRT(('qc Bar'!AW16+'qr Bar'!AW16-'qs Bar'!AW16)/('Resistance Bar'!AW16)) -> 339.96015 | AV13: =SQRT(('qc Bar'!AX16+'qr Bar'!AX16-'qs Bar'!AX16)/('Resistance Bar'!AX16)) -> 317.5601789 | AW13: =SQRT(('qc Bar'!AY16+'qr Bar'!AY16-'qs Bar'!AY16)/('Resistance Bar'!AY16)) -> 292.7534368 | AX13: =SQRT(('qc Bar'!AZ16+'qr Bar'!AZ16-'qs Bar'!AZ16)/('Resistance Bar'!AZ16)) -> 264.8502097 | AY13: =SQRT(('qc Bar'!BA16+'qr Bar'!BA16-'qs Bar'!BA16)/('Resistance Bar'!BA16)) -> 232.722972 | AZ13: =SQRT(('qc Bar'!BB16+'qr Bar'!BB16-'qs Bar'!BB16)/('Resistance Bar'!BB16)) -> 194.2675673 | BA13: =SQRT(('qc Bar'!BC16+'qr Bar'!BC16-'qs Bar'!BC16)/('Resistance Bar'!BC16)) -> 144.4906598 | BB13: =SQRT(('qc Bar'!BD16+'qr Bar'!BD16-'qs Bar'!BD16)/('Resistance Bar'!BD16)) -> 59.7084642 | BC13: =SQRT(('qc Bar'!BE16+'qr Bar'!BE16-'qs Bar'!BE16)/('Resistance Bar'!BE16)) ->  | BD13: =SQRT(('qc Bar'!BF16+'qr Bar'!BF16-'qs Bar'!BF16)/('Resistance Bar'!BF16)) ->  | BE13: =SQRT(('qc Bar'!BG16+'qr Bar'!BG16-'qs Bar'!BG16)/('Resistance Bar'!BG16)) ->  | BF13: =SQRT(('qc Bar'!BH16+'qr Bar'!BH16-'qs Bar'!BH16)/('Resistance Bar'!BH16)) ->  | BG13: =SQRT(('qc Bar'!BI16+'qr Bar'!BI16-'qs Bar'!BI16)/('Resistance Bar'!BI16)) ->  | BH13: =SQRT(('qc Bar'!BJ16+'qr Bar'!BJ16-'qs Bar'!BJ16)/('Resistance Bar'!BJ16)) ->  | BI13: =SQRT(('qc Bar'!BK16+'qr Bar'!BK16-'qs Bar'!BK16)/('Resistance Bar'!BK16)) -> 
A14: =min+4*incr -> 70 | B14: =SQRT(('qc Bar'!D19+'qr Bar'!D19-'qs Bar'!D19)/('Resistance Bar'!D19)) -> 571.2472272 | C14: =SQRT(('qc Bar'!E19+'qr Bar'!E19-'qs Bar'!E19)/('Resistance Bar'!E19)) -> 556.2015784 | D14: =SQRT(('qc Bar'!F19+'qr Bar'!F19-'qs Bar'!F19)/('Resistance Bar'!F19)) -> 539.8161013 | E14: =SQRT(('qc Bar'!G19+'qr Bar'!G19-'qs Bar'!G19)/('Resistance Bar'!G19)) -> 521.9280263 | F14: =SQRT(('qc Bar'!H19+'qr Bar'!H19-'qs Bar'!H19)/('Resistance Bar'!H19)) -> 502.3381217 | G14: =SQRT(('qc Bar'!I19+'qr Bar'!I19-'qs Bar'!I19)/('Resistance Bar'!I19)) -> 480.7971959 | H14: =SQRT(('qc Bar'!J19+'qr Bar'!J19-'qs Bar'!J19)/('Resistance Bar'!J19)) -> 456.9852938 | I14: =SQRT(('qc Bar'!K19+'qr Bar'!K19-'qs Bar'!K19)/('Resistance Bar'!K19)) -> 430.4780407 | J14: =SQRT(('qc Bar'!L19+'qr Bar'!L19-'qs Bar'!L19)/('Resistance Bar'!L19)) -> 400.6887667 | K14: =SQRT(('qc Bar'!M19+'qr Bar'!M19-'qs Bar'!M19)/('Resistance Bar'!M19)) -> 366.760769 | L14: =SQRT(('qc Bar'!N19+'qr Bar'!N19-'qs Bar'!N19)/('Resistance Bar'!N19)) -> 327.3438802 | M14: =SQRT(('qc Bar'!O19+'qr Bar'!O19-'qs Bar'!O19)/('Resistance Bar'!O19)) -> 280.0521045 | Q14: =min+4*incr -> 70 | R14: =SQRT(('qc Bar'!T19+'qr Bar'!T19-'qs Bar'!T19)/('Resistance Bar'!T19)) -> 654.4542153 | S14: =SQRT(('qc Bar'!U19+'qr Bar'!U19-'qs Bar'!U19)/('Resistance Bar'!U19)) -> 650.0733306 | T14: =SQRT(('qc Bar'!V19+'qr Bar'!V19-'qs Bar'!V19)/('Resistance Bar'!V19)) -> 645.4933292 | U14: =SQRT(('qc Bar'!W19+'qr Bar'!W19-'qs Bar'!W19)/('Resistance Bar'!W19)) -> 640.705641 | V14: =SQRT(('qc Bar'!X19+'qr Bar'!X19-'qs Bar'!X19)/('Resistance Bar'!X19)) -> 635.7011858 | W14: =SQRT(('qc Bar'!Y19+'qr Bar'!Y19-'qs Bar'!Y19)/('Resistance Bar'!Y19)) -> 630.4703232 | X14: =SQRT(('qc Bar'!Z19+'qr Bar'!Z19-'qs Bar'!Z19)/('Resistance Bar'!Z19)) -> 625.002796 | Y14: =SQRT(('qc Bar'!AA19+'qr Bar'!AA19-'qs Bar'!AA19)/('Resistance Bar'!AA19)) -> 619.2876657 | Z14: =SQRT(('qc Bar'!AB19+'qr Bar'!AB19-'qs Bar'!AB19)/('Resistance Bar'!AB19)) -> 613.313239 | AA14: =SQRT(('qc Bar'!AC19+'qr Bar'!AC19-'qs Bar'!AC19)/('Resistance Bar'!AC19)) -> 607.0669836 | AB14: =SQRT(('qc Bar'!AD19+'qr Bar'!AD19-'qs Bar'!AD19)/('Resistance Bar'!AD19)) -> 600.5354302 | AC14: =SQRT(('qc Bar'!AE19+'qr Bar'!AE19-'qs Bar'!AE19)/('Resistance Bar'!AE19)) -> 593.7040607 | AD14: =SQRT(('qc Bar'!AF19+'qr Bar'!AF19-'qs Bar'!AF19)/('Resistance Bar'!AF19)) -> 586.5571769 | AE14: =SQRT(('qc Bar'!AG19+'qr Bar'!AG19-'qs Bar'!AG19)/('Resistance Bar'!AG19)) -> 579.0777473 | AF14: =SQRT(('qc Bar'!AH19+'qr Bar'!AH19-'qs Bar'!AH19)/('Resistance Bar'!AH19)) -> 571.2472272 | AG14: =SQRT(('qc Bar'!AI19+'qr Bar'!AI19-'qs Bar'!AI19)/('Resistance Bar'!AI19)) -> 563.0453448 | AH14: =SQRT(('qc Bar'!AJ19+'qr Bar'!AJ19-'qs Bar'!AJ19)/('Resistance Bar'!AJ19)) -> 554.4498476 | AI14: =SQRT(('qc Bar'!AK19+'qr Bar'!AK19-'qs Bar'!AK19)/('Resistance Bar'!AK19)) -> 545.4361961 | AJ14: =SQRT(('qc Bar'!AL19+'qr Bar'!AL19-'qs Bar'!AL19)/('Resistance Bar'!AL19)) -> 535.9771951 | AK14: =SQRT(('qc Bar'!AM19+'qr Bar'!AM19-'qs Bar'!AM19)/('Resistance Bar'!AM19)) -> 526.0425413 | AL14: =SQRT(('qc Bar'!AN19+'qr Bar'!AN19-'qs Bar'!AN19)/('Resistance Bar'!AN19)) -> 515.5982675 | AM14: =SQRT(('qc Bar'!AO19+'qr Bar'!AO19-'qs Bar'!AO19)/('Resistance Bar'!AO19)) -> 504.6060484 | AN14: =SQRT(('qc Bar'!AP19+'qr Bar'!AP19-'qs Bar'!AP19)/('Resistance Bar'!AP19)) -> 493.0223266 | AO14: =SQRT(('qc Bar'!AQ19+'qr Bar'!AQ19-'qs Bar'!AQ19)/('Resistance Bar'!AQ19)) -> 480.7971959 | AP14: =SQRT(('qc Bar'!AR19+'qr Bar'!AR19-'qs Bar'!AR19)/('Resistance Bar'!AR19)) -> 467.8729545 | AQ14: =SQRT(('qc Bar'!AS19+'qr Bar'!AS19-'qs Bar'!AS19)/('Resistance Bar'!AS19)) -> 454.1821992 | AR14: =SQRT(('qc Bar'!AT19+'qr Bar'!AT19-'qs Bar'!AT19)/('Resistance Bar'!AT19)) -> 439.6452689 | AS14: =SQRT(('qc Bar'!AU19+'qr Bar'!AU19-'qs Bar'!AU19)/('Resistance Bar'!AU19)) -> 424.1667399 | AT14: =SQRT(('qc Bar'!AV19+'qr Bar'!AV19-'qs Bar'!AV19)/('Resistance Bar'!AV19)) -> 407.6305048 | AU14: =SQRT(('qc Bar'!AW19+'qr Bar'!AW19-'qs Bar'!AW19)/('Resistance Bar'!AW19)) -> 389.8926591 | AV14: =SQRT(('qc Bar'!AX19+'qr Bar'!AX19-'qs Bar'!AX19)/('Resistance Bar'!AX19)) -> 370.7708642 | AW14: =SQRT(('qc Bar'!AY19+'qr Bar'!AY19-'qs Bar'!AY19)/('Resistance Bar'!AY19)) -> 350.0277749 | AX14: =SQRT(('qc Bar'!AZ19+'qr Bar'!AZ19-'qs Bar'!AZ19)/('Resistance Bar'!AZ19)) -> 327.3438802 | AY14: =SQRT(('qc Bar'!BA19+'qr Bar'!BA19-'qs Bar'!BA19)/('Resistance Bar'!BA19)) -> 302.2700532 | AZ14: =SQRT(('qc Bar'!BB19+'qr Bar'!BB19-'qs Bar'!BB19)/('Resistance Bar'!BB19)) -> 274.1374025 | BA14: =SQRT(('qc Bar'!BC19+'qr Bar'!BC19-'qs Bar'!BC19)/('Resistance Bar'!BC19)) -> 241.8650518 | BB14: =SQRT(('qc Bar'!BD19+'qr Bar'!BD19-'qs Bar'!BD19)/('Resistance Bar'!BD19)) -> 203.4737729 | BC14: =SQRT(('qc Bar'!BE19+'qr Bar'!BE19-'qs Bar'!BE19)/('Resistance Bar'!BE19)) -> 154.4412297 | BD14: =SQRT(('qc Bar'!BF19+'qr Bar'!BF19-'qs Bar'!BF19)/('Resistance Bar'!BF19)) -> 76.43523638 | BE14: =SQRT(('qc Bar'!BG19+'qr Bar'!BG19-'qs Bar'!BG19)/('Resistance Bar'!BG19)) ->  | BF14: =SQRT(('qc Bar'!BH19+'qr Bar'!BH19-'qs Bar'!BH19)/('Resistance Bar'!BH19)) ->  | BG14: =SQRT(('qc Bar'!BI19+'qr Bar'!BI19-'qs Bar'!BI19)/('Resistance Bar'!BI19)) ->  | BH14: =SQRT(('qc Bar'!BJ19+'qr Bar'!BJ19-'qs Bar'!BJ19)/('Resistance Bar'!BJ19)) ->  | BI14: =SQRT(('qc Bar'!BK19+'qr Bar'!BK19-'qs Bar'!BK19)/('Resistance Bar'!BK19)) -> 
A15: =min+5*incr -> 75 | B15: =SQRT(('qc Bar'!D22+'qr Bar'!D22-'qs Bar'!D22)/('Resistance Bar'!D22)) -> 601.1676964 | C15: =SQRT(('qc Bar'!E22+'qr Bar'!E22-'qs Bar'!E22)/('Resistance Bar'!E22)) -> 587.0671068 | D15: =SQRT(('qc Bar'!F22+'qr Bar'!F22-'qs Bar'!F22)/('Resistance Bar'!F22)) -> 571.7601185 | E15: =SQRT(('qc Bar'!G22+'qr Bar'!G22-'qs Bar'!G22)/('Resistance Bar'!G22)) -> 555.1129543 | F15: =SQRT(('qc Bar'!H22+'qr Bar'!H22-'qs Bar'!H22)/('Resistance Bar'!H22)) -> 536.9651863 | G15: =SQRT(('qc Bar'!I22+'qr Bar'!I22-'qs Bar'!I22)/('Resistance Bar'!I22)) -> 517.1209983 | H15: =SQRT(('qc Bar'!J22+'qr Bar'!J22-'qs Bar'!J22)/('Resistance Bar'!J22)) -> 495.3363136 | I15: =SQRT(('qc Bar'!K22+'qr Bar'!K22-'qs Bar'!K22)/('Resistance Bar'!K22)) -> 471.2990938 | J15: =SQRT(('qc Bar'!L22+'qr Bar'!L22-'qs Bar'!L22)/('Resistance Bar'!L22)) -> 444.5977361 | K15: =SQRT(('qc Bar'!M22+'qr Bar'!M22-'qs Bar'!M22)/('Resistance Bar'!M22)) -> 414.667324 | L15: =SQRT(('qc Bar'!N22+'qr Bar'!N22-'qs Bar'!N22)/('Resistance Bar'!N22)) -> 380.6910109 | M15: =SQRT(('qc Bar'!O22+'qr Bar'!O22-'qs Bar'!O22)/('Resistance Bar'!O22)) -> 341.3995994 | Q15: =min+5*incr -> 75 | R15: =SQRT(('qc Bar'!T22+'qr Bar'!T22-'qs Bar'!T22)/('Resistance Bar'!T22)) -> 679.8063313 | S15: =SQRT(('qc Bar'!U22+'qr Bar'!U22-'qs Bar'!U22)/('Resistance Bar'!U22)) -> 675.6418208 | T15: =SQRT(('qc Bar'!V22+'qr Bar'!V22-'qs Bar'!V22)/('Resistance Bar'!V22)) -> 671.2905977 | U15: =SQRT(('qc Bar'!W22+'qr Bar'!W22-'qs Bar'!W22)/('Resistance Bar'!W22)) -> 666.744925 | V15: =SQRT(('qc Bar'!X22+'qr Bar'!X22-'qs Bar'!X22)/('Resistance Bar'!X22)) -> 661.9966354 | W15: =SQRT(('qc Bar'!Y22+'qr Bar'!Y22-'qs Bar'!Y22)/('Resistance Bar'!Y22)) -> 657.0370915 | X15: =SQRT(('qc Bar'!Z22+'qr Bar'!Z22-'qs Bar'!Z22)/('Resistance Bar'!Z22)) -> 651.8571409 | Y15: =SQRT(('qc Bar'!AA22+'qr Bar'!AA22-'qs Bar'!AA22)/('Resistance Bar'!AA22)) -> 646.4470666 | Z15: =SQRT(('qc Bar'!AB22+'qr Bar'!AB22-'qs Bar'!AB22)/('Resistance Bar'!AB22)) -> 640.796529 | AA15: =SQRT(('qc Bar'!AC22+'qr Bar'!AC22-'qs Bar'!AC22)/('Resistance Bar'!AC22)) -> 634.894502 | AB15: =SQRT(('qc Bar'!AD22+'qr Bar'!AD22-'qs Bar'!AD22)/('Resistance Bar'!AD22)) -> 628.7291982 | AC15: =SQRT(('qc Bar'!AE22+'qr Bar'!AE22-'qs Bar'!AE22)/('Resistance Bar'!AE22)) -> 622.2879843 | AD15: =SQRT(('qc Bar'!AF22+'qr Bar'!AF22-'qs Bar'!AF22)/('Resistance Bar'!AF22)) -> 615.5572834 | AE15: =SQRT(('qc Bar'!AG22+'qr Bar'!AG22-'qs Bar'!AG22)/('Resistance Bar'!AG22)) -> 608.5224615 | AF15: =SQRT(('qc Bar'!AH22+'qr Bar'!AH22-'qs Bar'!AH22)/('Resistance Bar'!AH22)) -> 601.1676964 | AG15: =SQRT(('qc Bar'!AI22+'qr Bar'!AI22-'qs Bar'!AI22)/('Resistance Bar'!AI22)) -> 593.4758239 | AH15: =SQRT(('qc Bar'!AJ22+'qr Bar'!AJ22-'qs Bar'!AJ22)/('Resistance Bar'!AJ22)) -> 585.4281563 | AI15: =SQRT(('qc Bar'!AK22+'qr Bar'!AK22-'qs Bar'!AK22)/('Resistance Bar'!AK22)) -> 577.0042694 | AJ15: =SQRT(('qc Bar'!AL22+'qr Bar'!AL22-'qs Bar'!AL22)/('Resistance Bar'!AL22)) -> 568.181747 | AK15: =SQRT(('qc Bar'!AM22+'qr Bar'!AM22-'qs Bar'!AM22)/('Resistance Bar'!AM22)) -> 558.935875 | AL15: =SQRT(('qc Bar'!AN22+'qr Bar'!AN22-'qs Bar'!AN22)/('Resistance Bar'!AN22)) -> 549.2392719 | AM15: =SQRT(('qc Bar'!AO22+'qr Bar'!AO22-'qs Bar'!AO22)/('Resistance Bar'!AO22)) -> 539.0614368 | AN15: =SQRT(('qc Bar'!AP22+'qr Bar'!AP22-'qs Bar'!AP22)/('Resistance Bar'!AP22)) -> 528.3681934 | AO15: =SQRT(('qc Bar'!AQ22+'qr Bar'!AQ22-'qs Bar'!AQ22)/('Resistance Bar'!AQ22)) -> 517.1209983 | AP15: =SQRT(('qc Bar'!AR22+'qr Bar'!AR22-'qs Bar'!AR22)/('Resistance Bar'!AR22)) -> 505.2760684 | AQ15: =SQRT(('qc Bar'!AS22+'qr Bar'!AS22-'qs Bar'!AS22)/('Resistance Bar'!AS22)) -> 492.78327 | AR15: =SQRT(('qc Bar'!AT22+'qr Bar'!AT22-'qs Bar'!AT22)/('Resistance Bar'!AT22)) -> 479.5846793 | AS15: =SQRT(('qc Bar'!AU22+'qr Bar'!AU22-'qs Bar'!AU22)/('Resistance Bar'!AU22)) -> 465.6126911 | AT15: =SQRT(('qc Bar'!AV22+'qr Bar'!AV22-'qs Bar'!AV22)/('Resistance Bar'!AV22)) -> 450.7874849 | AU15: =SQRT(('qc Bar'!AW22+'qr Bar'!AW22-'qs Bar'!AW22)/('Resistance Bar'!AW22)) -> 435.0135596 | AV15: =SQRT(('qc Bar'!AX22+'qr Bar'!AX22-'qs Bar'!AX22)/('Resistance Bar'!AX22)) -> 418.1748783 | AW15: =SQRT(('qc Bar'!AY22+'qr Bar'!AY22-'qs Bar'!AY22)/('Resistance Bar'!AY22)) -> 400.1278718 | AX15: =SQRT(('qc Bar'!AZ22+'qr Bar'!AZ22-'qs Bar'!AZ22)/('Resistance Bar'!AZ22)) -> 380.6910109 | AY15: =SQRT(('qc Bar'!BA22+'qr Bar'!BA22-'qs Bar'!BA22)/('Resistance Bar'!BA22)) -> 359.6286294 | AZ15: =SQRT(('qc Bar'!BB22+'qr Bar'!BB22-'qs Bar'!BB22)/('Resistance Bar'!BB22)) -> 336.6245508 | BA15: =SQRT(('qc Bar'!BC22+'qr Bar'!BC22-'qs Bar'!BC22)/('Resistance Bar'!BC22)) -> 311.2363218 | BB15: =SQRT(('qc Bar'!BD22+'qr Bar'!BD22-'qs Bar'!BD22)/('Resistance Bar'!BD22)) -> 282.809041 | BC15: =SQRT(('qc Bar'!BE22+'qr Bar'!BE22-'qs Bar'!BE22)/('Resistance Bar'!BE22)) -> 250.2939484 | BD15: =SQRT(('qc Bar'!BF22+'qr Bar'!BF22-'qs Bar'!BF22)/('Resistance Bar'!BF22)) -> 211.7983864 | BE15: =SQRT(('qc Bar'!BG22+'qr Bar'!BG22-'qs Bar'!BG22)/('Resistance Bar'!BG22)) -> 163.1182434 | BF15: =SQRT(('qc Bar'!BH22+'qr Bar'!BH22-'qs Bar'!BH22)/('Resistance Bar'!BH22)) -> 88.80387077 | BG15: =SQRT(('qc Bar'!BI22+'qr Bar'!BI22-'qs Bar'!BI22)/('Resistance Bar'!BI22)) ->  | BH15: =SQRT(('qc Bar'!BJ22+'qr Bar'!BJ22-'qs Bar'!BJ22)/('Resistance Bar'!BJ22)) ->  | BI15: =SQRT(('qc Bar'!BK22+'qr Bar'!BK22-'qs Bar'!BK22)/('Resistance Bar'!BK22)) -> 
A16: =min+6*incr -> 80 | B16: =SQRT(('qc Bar'!D25+'qr Bar'!D25-'qs Bar'!D25)/('Resistance Bar'!D25)) -> 630.3420751 | C16: =SQRT(('qc Bar'!E25+'qr Bar'!E25-'qs Bar'!E25)/('Resistance Bar'!E25)) -> 617.0734559 | D16: =SQRT(('qc Bar'!F25+'qr Bar'!F25-'qs Bar'!F25)/('Resistance Bar'!F25)) -> 602.7078547 | E16: =SQRT(('qc Bar'!G25+'qr Bar'!G25-'qs Bar'!G25)/('Resistance Bar'!G25)) -> 587.1330102 | F16: =SQRT(('qc Bar'!H25+'qr Bar'!H25-'qs Bar'!H25)/('Resistance Bar'!H25)) -> 570.216541 | G16: =SQRT(('qc Bar'!I25+'qr Bar'!I25-'qs Bar'!I25)/('Resistance Bar'!I25)) -> 551.800023 | H16: =SQRT(('qc Bar'!J25+'qr Bar'!J25-'qs Bar'!J25)/('Resistance Bar'!J25)) -> 531.6905732 | I16: =SQRT(('qc Bar'!K25+'qr Bar'!K25-'qs Bar'!K25)/('Resistance Bar'!K25)) -> 509.6485172 | J16: =SQRT(('qc Bar'!L25+'qr Bar'!L25-'qs Bar'!L25)/('Resistance Bar'!L25)) -> 485.3686296 | K16: =SQRT(('qc Bar'!M25+'qr Bar'!M25-'qs Bar'!M25)/('Resistance Bar'!M25)) -> 458.4502748 | L16: =SQRT(('qc Bar'!N25+'qr Bar'!N25-'qs Bar'!N25)/('Resistance Bar'!N25)) -> 428.3471197 | M16: =SQRT(('qc Bar'!O25+'qr Bar'!O25-'qs Bar'!O25)/('Resistance Bar'!O25)) -> 394.2760535 | Q16: =min+6*incr -> 80 | R16: =SQRT(('qc Bar'!T25+'qr Bar'!T25-'qs Bar'!T25)/('Resistance Bar'!T25)) -> 704.8707064 | S16: =SQRT(('qc Bar'!U25+'qr Bar'!U25-'qs Bar'!U25)/('Resistance Bar'!U25)) -> 700.9040144 | T16: =SQRT(('qc Bar'!V25+'qr Bar'!V25-'qs Bar'!V25)/('Resistance Bar'!V25)) -> 696.7616223 | U16: =SQRT(('qc Bar'!W25+'qr Bar'!W25-'qs Bar'!W25)/('Resistance Bar'!W25)) -> 692.4364944 | V16: =SQRT(('qc Bar'!X25+'qr Bar'!X25-'qs Bar'!X25)/('Resistance Bar'!X25)) -> 687.9212277 | W16: =SQRT(('qc Bar'!Y25+'qr Bar'!Y25-'qs Bar'!Y25)/('Resistance Bar'!Y25)) -> 683.2080199 | X16: =SQRT(('qc Bar'!Z25+'qr Bar'!Z25-'qs Bar'!Z25)/('Resistance Bar'!Z25)) -> 678.2886337 | Y16: =SQRT(('qc Bar'!AA25+'qr Bar'!AA25-'qs Bar'!AA25)/('Resistance Bar'!AA25)) -> 673.1543566 | Z16: =SQRT(('qc Bar'!AB25+'qr Bar'!AB25-'qs Bar'!AB25)/('Resistance Bar'!AB25)) -> 667.7959562 | AA16: =SQRT(('qc Bar'!AC25+'qr Bar'!AC25-'qs Bar'!AC25)/('Resistance Bar'!AC25)) -> 662.2036297 | AB16: =SQRT(('qc Bar'!AD25+'qr Bar'!AD25-'qs Bar'!AD25)/('Resistance Bar'!AD25)) -> 656.3669454 | AC16: =SQRT(('qc Bar'!AE25+'qr Bar'!AE25-'qs Bar'!AE25)/('Resistance Bar'!AE25)) -> 650.2747782 | AD16: =SQRT(('qc Bar'!AF25+'qr Bar'!AF25-'qs Bar'!AF25)/('Resistance Bar'!AF25)) -> 643.9152346 | AE16: =SQRT(('qc Bar'!AG25+'qr Bar'!AG25-'qs Bar'!AG25)/('Resistance Bar'!AG25)) -> 637.275567 | AF16: =SQRT(('qc Bar'!AH25+'qr Bar'!AH25-'qs Bar'!AH25)/('Resistance Bar'!AH25)) -> 630.3420751 | AG16: =SQRT(('qc Bar'!AI25+'qr Bar'!AI25-'qs Bar'!AI25)/('Resistance Bar'!AI25)) -> 623.0999923 | AH16: =SQRT(('qc Bar'!AJ25+'qr Bar'!AJ25-'qs Bar'!AJ25)/('Resistance Bar'!AJ25)) -> 615.533353 | AI16: =SQRT(('qc Bar'!AK25+'qr Bar'!AK25-'qs Bar'!AK25)/('Resistance Bar'!AK25)) -> 607.6248379 | AJ16: =SQRT(('qc Bar'!AL25+'qr Bar'!AL25-'qs Bar'!AL25)/('Resistance Bar'!AL25)) -> 599.3555918 | AK16: =SQRT(('qc Bar'!AM25+'qr Bar'!AM25-'qs Bar'!AM25)/('Resistance Bar'!AM25)) -> 590.7050089 | AL16: =SQRT(('qc Bar'!AN25+'qr Bar'!AN25-'qs Bar'!AN25)/('Resistance Bar'!AN25)) -> 581.6504761 | AM16: =SQRT(('qc Bar'!AO25+'qr Bar'!AO25-'qs Bar'!AO25)/('Resistance Bar'!AO25)) -> 572.1670662 | AN16: =SQRT(('qc Bar'!AP25+'qr Bar'!AP25-'qs Bar'!AP25)/('Resistance Bar'!AP25)) -> 562.2271659 | AO16: =SQRT(('qc Bar'!AQ25+'qr Bar'!AQ25-'qs Bar'!AQ25)/('Resistance Bar'!AQ25)) -> 551.800023 | AP16: =SQRT(('qc Bar'!AR25+'qr Bar'!AR25-'qs Bar'!AR25)/('Resistance Bar'!AR25)) -> 540.8511889 | AQ16: =SQRT(('qc Bar'!AS25+'qr Bar'!AS25-'qs Bar'!AS25)/('Resistance Bar'!AS25)) -> 529.341825 | AR16: =SQRT(('qc Bar'!AT25+'qr Bar'!AT25-'qs Bar'!AT25)/('Resistance Bar'!AT25)) -> 517.2278299 | AS16: =SQRT(('qc Bar'!AU25+'qr Bar'!AU25-'qs Bar'!AU25)/('Resistance Bar'!AU25)) -> 504.4587275 | AT16: =SQRT(('qc Bar'!AV25+'qr Bar'!AV25-'qs Bar'!AV25)/('Resistance Bar'!AV25)) -> 490.9762298 | AU16: =SQRT(('qc Bar'!AW25+'qr Bar'!AW25-'qs Bar'!AW25)/('Resistance Bar'!AW25)) -> 476.7123493 | AV16: =SQRT(('qc Bar'!AX25+'qr Bar'!AX25-'qs Bar'!AX25)/('Resistance Bar'!AX25)) -> 461.5868745 | AW16: =SQRT(('qc Bar'!AY25+'qr Bar'!AY25-'qs Bar'!AY25)/('Resistance Bar'!AY25)) -> 445.5039227 | AX16: =SQRT(('qc Bar'!AZ25+'qr Bar'!AZ25-'qs Bar'!AZ25)/('Resistance Bar'!AZ25)) -> 428.3471197 | AY16: =SQRT(('qc Bar'!BA25+'qr Bar'!BA25-'qs Bar'!BA25)/('Resistance Bar'!BA25)) -> 409.972669 | AZ16: =SQRT(('qc Bar'!BB25+'qr Bar'!BB25-'qs Bar'!BB25)/('Resistance Bar'!BB25)) -> 390.1990495 | BA16: =SQRT(('qc Bar'!BC25+'qr Bar'!BC25-'qs Bar'!BC25)/('Resistance Bar'!BC25)) -> 368.7910856 | BB16: =SQRT(('qc Bar'!BD25+'qr Bar'!BD25-'qs Bar'!BD25)/('Resistance Bar'!BD25)) -> 345.4340826 | BC16: =SQRT(('qc Bar'!BE25+'qr Bar'!BE25-'qs Bar'!BE25)/('Resistance Bar'!BE25)) -> 319.6891764 | BD16: =SQRT(('qc Bar'!BF25+'qr Bar'!BF25-'qs Bar'!BF25)/('Resistance Bar'!BF25)) -> 290.9098477 | BE16: =SQRT(('qc Bar'!BG25+'qr Bar'!BG25-'qs Bar'!BG25)/('Resistance Bar'!BG25)) -> 258.0678807 | BF16: =SQRT(('qc Bar'!BH25+'qr Bar'!BH25-'qs Bar'!BH25)/('Resistance Bar'!BH25)) -> 219.3280486 | BG16: =SQRT(('qc Bar'!BI25+'qr Bar'!BI25-'qs Bar'!BI25)/('Resistance Bar'!BI25)) -> 170.6982922 | BH16: =SQRT(('qc Bar'!BJ25+'qr Bar'!BJ25-'qs Bar'!BJ25)/('Resistance Bar'!BJ25)) -> 98.43976926 | BI16: =SQRT(('qc Bar'!BK25+'qr Bar'!BK25-'qs Bar'!BK25)/('Resistance Bar'!BK25)) -> 
A17: =min+7*incr -> 85 | B17: =SQRT(('qc Bar'!D28+'qr Bar'!D28-'qs Bar'!D28)/('Resistance Bar'!D28)) -> 658.8832008 | C17: =SQRT(('qc Bar'!E28+'qr Bar'!E28-'qs Bar'!E28)/('Resistance Bar'!E28)) -> 646.3544262 | D17: =SQRT(('qc Bar'!F28+'qr Bar'!F28-'qs Bar'!F28)/('Resistance Bar'!F28)) -> 632.8200799 | E17: =SQRT(('qc Bar'!G28+'qr Bar'!G28-'qs Bar'!G28)/('Resistance Bar'!G28)) -> 618.1843272 | F17: =SQRT(('qc Bar'!H28+'qr Bar'!H28-'qs Bar'!H28)/('Resistance Bar'!H28)) -> 602.3357367 | G17: =SQRT(('qc Bar'!I28+'qr Bar'!I28-'qs Bar'!I28)/('Resistance Bar'!I28)) -> 585.1431109 | H17: =SQRT(('qc Bar'!J28+'qr Bar'!J28-'qs Bar'!J28)/('Resistance Bar'!J28)) -> 566.4497376 | I17: =SQRT(('qc Bar'!K28+'qr Bar'!K28-'qs Bar'!K28)/('Resistance Bar'!K28)) -> 546.0652547 | J17: =SQRT(('qc Bar'!L28+'qr Bar'!L28-'qs Bar'!L28)/('Resistance Bar'!L28)) -> 523.7537831 | K17: =SQRT(('qc Bar'!M28+'qr Bar'!M28-'qs Bar'!M28)/('Resistance Bar'!M28)) -> 499.2159793 | L17: =SQRT(('qc Bar'!N28+'qr Bar'!N28-'qs Bar'!N28)/('Resistance Bar'!N28)) -> 472.0606685 | M17: =SQRT(('qc Bar'!O28+'qr Bar'!O28-'qs Bar'!O28)/('Resistance Bar'!O28)) -> 441.7574901 | Q17: =min+7*incr -> 85 | R17: =SQRT(('qc Bar'!T28+'qr Bar'!T28-'qs Bar'!T28)/('Resistance Bar'!T28)) -> 729.6886327 | S17: =SQRT(('qc Bar'!U28+'qr Bar'!U28-'qs Bar'!U28)/('Resistance Bar'!U28)) -> 725.9036337 | T17: =SQRT(('qc Bar'!V28+'qr Bar'!V28-'qs Bar'!V28)/('Resistance Bar'!V28)) -> 721.9527858 | U17: =SQRT(('qc Bar'!W28+'qr Bar'!W28-'qs Bar'!W28)/('Resistance Bar'!W28)) -> 717.8296507 | V17: =SQRT(('qc Bar'!X28+'qr Bar'!X28-'qs Bar'!X28)/('Resistance Bar'!X28)) -> 713.5274729 | W17: =SQRT(('qc Bar'!Y28+'qr Bar'!Y28-'qs Bar'!Y28)/('Resistance Bar'!Y28)) -> 709.0391545 | X17: =SQRT(('qc Bar'!Z28+'qr Bar'!Z28-'qs Bar'!Z28)/('Resistance Bar'!Z28)) -> 704.3572254 | Y17: =SQRT(('qc Bar'!AA28+'qr Bar'!AA28-'qs Bar'!AA28)/('Resistance Bar'!AA28)) -> 699.4738119 | Z17: =SQRT(('qc Bar'!AB28+'qr Bar'!AB28-'qs Bar'!AB28)/('Resistance Bar'!AB28)) -> 694.3806003 | AA17: =SQRT(('qc Bar'!AC28+'qr Bar'!AC28-'qs Bar'!AC28)/('Resistance Bar'!AC28)) -> 689.0687961 | AB17: =SQRT(('qc Bar'!AD28+'qr Bar'!AD28-'qs Bar'!AD28)/('Resistance Bar'!AD28)) -> 683.5290793 | AC17: =SQRT(('qc Bar'!AE28+'qr Bar'!AE28-'qs Bar'!AE28)/('Resistance Bar'!AE28)) -> 677.7515525 | AD17: =SQRT(('qc Bar'!AF28+'qr Bar'!AF28-'qs Bar'!AF28)/('Resistance Bar'!AF28)) -> 671.7256829 | AE17: =SQRT(('qc Bar'!AG28+'qr Bar'!AG28-'qs Bar'!AG28)/('Resistance Bar'!AG28)) -> 665.4402361 | AF17: =SQRT(('qc Bar'!AH28+'qr Bar'!AH28-'qs Bar'!AH28)/('Resistance Bar'!AH28)) -> 658.8832008 | AG17: =SQRT(('qc Bar'!AI28+'qr Bar'!AI28-'qs Bar'!AI28)/('Resistance Bar'!AI28)) -> 652.0417022 | AH17: =SQRT(('qc Bar'!AJ28+'qr Bar'!AJ28-'qs Bar'!AJ28)/('Resistance Bar'!AJ28)) -> 644.9019029 | AI17: =SQRT(('qc Bar'!AK28+'qr Bar'!AK28-'qs Bar'!AK28)/('Resistance Bar'!AK28)) -> 637.4488872 | AJ17: =SQRT(('qc Bar'!AL28+'qr Bar'!AL28-'qs Bar'!AL28)/('Resistance Bar'!AL28)) -> 629.666528 | AK17: =SQRT(('qc Bar'!AM28+'qr Bar'!AM28-'qs Bar'!AM28)/('Resistance Bar'!AM28)) -> 621.5373305 | AL17: =SQRT(('qc Bar'!AN28+'qr Bar'!AN28-'qs Bar'!AN28)/('Resistance Bar'!AN28)) -> 613.0422485 | AM17: =SQRT(('qc Bar'!AO28+'qr Bar'!AO28-'qs Bar'!AO28)/('Resistance Bar'!AO28)) -> 604.1604677 | AN17: =SQRT(('qc Bar'!AP28+'qr Bar'!AP28-'qs Bar'!AP28)/('Resistance Bar'!AP28)) -> 594.8691474 | AO17: =SQRT(('qc Bar'!AQ28+'qr Bar'!AQ28-'qs Bar'!AQ28)/('Resistance Bar'!AQ28)) -> 585.1431109 | AP17: =SQRT(('qc Bar'!AR28+'qr Bar'!AR28-'qs Bar'!AR28)/('Resistance Bar'!AR28)) -> 574.9544712 | AQ17: =SQRT(('qc Bar'!AS28+'qr Bar'!AS28-'qs Bar'!AS28)/('Resistance Bar'!AS28)) -> 564.2721754 | AR17: =SQRT(('qc Bar'!AT28+'qr Bar'!AT28-'qs Bar'!AT28)/('Resistance Bar'!AT28)) -> 553.0614434 | AS17: =SQRT(('qc Bar'!AU28+'qr Bar'!AU28-'qs Bar'!AU28)/('Resistance Bar'!AU28)) -> 541.2830709 | AT17: =SQRT(('qc Bar'!AV28+'qr Bar'!AV28-'qs Bar'!AV28)/('Resistance Bar'!AV28)) -> 528.8925522 | AU17: =SQRT(('qc Bar'!AW28+'qr Bar'!AW28-'qs Bar'!AW28)/('Resistance Bar'!AW28)) -> 515.8389639 | AV17: =SQRT(('qc Bar'!AX28+'qr Bar'!AX28-'qs Bar'!AX28)/('Resistance Bar'!AX28)) -> 502.0635232 | AW17: =SQRT(('qc Bar'!AY28+'qr Bar'!AY28-'qs Bar'!AY28)/('Resistance Bar'!AY28)) -> 487.4976959 | AX17: =SQRT(('qc Bar'!AZ28+'qr Bar'!AZ28-'qs Bar'!AZ28)/('Resistance Bar'!AZ28)) -> 472.0606685 | AY17: =SQRT(('qc Bar'!BA28+'qr Bar'!BA28-'qs Bar'!BA28)/('Resistance Bar'!BA28)) -> 455.6559013 | AZ17: =SQRT(('qc Bar'!BB28+'qr Bar'!BB28-'qs Bar'!BB28)/('Resistance Bar'!BB28)) -> 438.1663154 | BA17: =SQRT(('qc Bar'!BC28+'qr Bar'!BC28-'qs Bar'!BC28)/('Resistance Bar'!BC28)) -> 419.4473825 | BB17: =SQRT(('qc Bar'!BD28+'qr Bar'!BD28-'qs Bar'!BD28)/('Resistance Bar'!BD28)) -> 399.3168766 | BC17: =SQRT(('qc Bar'!BE28+'qr Bar'!BE28-'qs Bar'!BE28)/('Resistance Bar'!BE28)) -> 377.5390638 | BD17: =SQRT(('qc Bar'!BF28+'qr Bar'!BF28-'qs Bar'!BF28)/('Resistance Bar'!BF28)) -> 353.7991126 | BE17: =SQRT(('qc Bar'!BG28+'qr Bar'!BG28-'qs Bar'!BG28)/('Resistance Bar'!BG28)) -> 327.6590896 | BF17: =SQRT(('qc Bar'!BH28+'qr Bar'!BH28-'qs Bar'!BH28)/('Resistance Bar'!BH28)) -> 298.4761104 | BG17: =SQRT(('qc Bar'!BI28+'qr Bar'!BI28-'qs Bar'!BI28)/('Resistance Bar'!BI28)) -> 265.2329489 | BH17: =SQRT(('qc Bar'!BJ28+'qr Bar'!BJ28-'qs Bar'!BJ28)/('Resistance Bar'!BJ28)) -> 226.128671 | BI17: =SQRT(('qc Bar'!BK28+'qr Bar'!BK28-'qs Bar'!BK28)/('Resistance Bar'!BK28)) -> 177.3048481
A18: =min+8*incr -> 90 | B18: =SQRT(('qc Bar'!D31+'qr Bar'!D31-'qs Bar'!D31)/('Resistance Bar'!D31)) -> 686.8830544 | C18: =SQRT(('qc Bar'!E31+'qr Bar'!E31-'qs Bar'!E31)/('Resistance Bar'!E31)) -> 675.0178173 | D18: =SQRT(('qc Bar'!F31+'qr Bar'!F31-'qs Bar'!F31)/('Resistance Bar'!F31)) -> 662.2245732 | E18: =SQRT(('qc Bar'!G31+'qr Bar'!G31-'qs Bar'!G31)/('Resistance Bar'!G31)) -> 648.42033 | F18: =SQRT(('qc Bar'!H31+'qr Bar'!H31-'qs Bar'!H31)/('Resistance Bar'!H31)) -> 633.509735 | G18: =SQRT(('qc Bar'!I31+'qr Bar'!I31-'qs Bar'!I31)/('Resistance Bar'!I31)) -> 617.3820477 | H18: =SQRT(('qc Bar'!J31+'qr Bar'!J31-'qs Bar'!J31)/('Resistance Bar'!J31)) -> 599.9070697 | I18: =SQRT(('qc Bar'!K31+'qr Bar'!K31-'qs Bar'!K31)/('Resistance Bar'!K31)) -> 580.9295478 | J18: =SQRT(('qc Bar'!L31+'qr Bar'!L31-'qs Bar'!L31)/('Resistance Bar'!L31)) -> 560.2612835 | K18: =SQRT(('qc Bar'!M31+'qr Bar'!M31-'qs Bar'!M31)/('Resistance Bar'!M31)) -> 537.6696728 | L18: =SQRT(('qc Bar'!N31+'qr Bar'!N31-'qs Bar'!N31)/('Resistance Bar'!N31)) -> 512.8604619 | M18: =SQRT(('qc Bar'!O31+'qr Bar'!O31-'qs Bar'!O31)/('Resistance Bar'!O31)) -> 485.4506664 | Q18: =min+8*incr -> 90 | R18: =SQRT(('qc Bar'!T31+'qr Bar'!T31-'qs Bar'!T31)/('Resistance Bar'!T31)) -> 754.2956178 | S18: =SQRT(('qc Bar'!U31+'qr Bar'!U31-'qs Bar'!U31)/('Resistance Bar'!U31)) -> 750.6781864 | T18: =SQRT(('qc Bar'!V31+'qr Bar'!V31-'qs Bar'!V31)/('Resistance Bar'!V31)) -> 746.9037776 | U18: =SQRT(('qc Bar'!W31+'qr Bar'!W31-'qs Bar'!W31)/('Resistance Bar'!W31)) -> 742.9664664 | V18: =SQRT(('qc Bar'!X31+'qr Bar'!X31-'qs Bar'!X31)/('Resistance Bar'!X31)) -> 738.8600524 | W18: =SQRT(('qc Bar'!Y31+'qr Bar'!Y31-'qs Bar'!Y31)/('Resistance Bar'!Y31)) -> 734.578038 | X18: =SQRT(('qc Bar'!Z31+'qr Bar'!Z31-'qs Bar'!Z31)/('Resistance Bar'!Z31)) -> 730.1136047 | Y18: =SQRT(('qc Bar'!AA31+'qr Bar'!AA31-'qs Bar'!AA31)/('Resistance Bar'!AA31)) -> 725.459587 | Z18: =SQRT(('qc Bar'!AB31+'qr Bar'!AB31-'qs Bar'!AB31)/('Resistance Bar'!AB31)) -> 720.6084431 | AA18: =SQRT(('qc Bar'!AC31+'qr Bar'!AC31-'qs Bar'!AC31)/('Resistance Bar'!AC31)) -> 715.5522221 | AB18: =SQRT(('qc Bar'!AD31+'qr Bar'!AD31-'qs Bar'!AD31)/('Resistance Bar'!AD31)) -> 710.2825277 | AC18: =SQRT(('qc Bar'!AE31+'qr Bar'!AE31-'qs Bar'!AE31)/('Resistance Bar'!AE31)) -> 704.7904771 | AD18: =SQRT(('qc Bar'!AF31+'qr Bar'!AF31-'qs Bar'!AF31)/('Resistance Bar'!AF31)) -> 699.0666551 | AE18: =SQRT(('qc Bar'!AG31+'qr Bar'!AG31-'qs Bar'!AG31)/('Resistance Bar'!AG31)) -> 693.1010619 | AF18: =SQRT(('qc Bar'!AH31+'qr Bar'!AH31-'qs Bar'!AH31)/('Resistance Bar'!AH31)) -> 686.8830544 | AG18: =SQRT(('qc Bar'!AI31+'qr Bar'!AI31-'qs Bar'!AI31)/('Resistance Bar'!AI31)) -> 680.4012793 | AH18: =SQRT(('qc Bar'!AJ31+'qr Bar'!AJ31-'qs Bar'!AJ31)/('Resistance Bar'!AJ31)) -> 673.6435969 | AI18: =SQRT(('qc Bar'!AK31+'qr Bar'!AK31-'qs Bar'!AK31)/('Resistance Bar'!AK31)) -> 666.596993 | AJ18: =SQRT(('qc Bar'!AL31+'qr Bar'!AL31-'qs Bar'!AL31)/('Resistance Bar'!AL31)) -> 659.2474793 | AK18: =SQRT(('qc Bar'!AM31+'qr Bar'!AM31-'qs Bar'!AM31)/('Resistance Bar'!AM31)) -> 651.5799762 | AL18: =SQRT(('qc Bar'!AN31+'qr Bar'!AN31-'qs Bar'!AN31)/('Resistance Bar'!AN31)) -> 643.5781779 | AM18: =SQRT(('qc Bar'!AO31+'qr Bar'!AO31-'qs Bar'!AO31)/('Resistance Bar'!AO31)) -> 635.2243946 | AN18: =SQRT(('qc Bar'!AP31+'qr Bar'!AP31-'qs Bar'!AP31)/('Resistance Bar'!AP31)) -> 626.4993672 | AO18: =SQRT(('qc Bar'!AQ31+'qr Bar'!AQ31-'qs Bar'!AQ31)/('Resistance Bar'!AQ31)) -> 617.3820477 | AP18: =SQRT(('qc Bar'!AR31+'qr Bar'!AR31-'qs Bar'!AR31)/('Resistance Bar'!AR31)) -> 607.8493383 | AQ18: =SQRT(('qc Bar'!AS31+'qr Bar'!AS31-'qs Bar'!AS31)/('Resistance Bar'!AS31)) -> 597.8757792 | AR18: =SQRT(('qc Bar'!AT31+'qr Bar'!AT31-'qs Bar'!AT31)/('Resistance Bar'!AT31)) -> 587.4331703 | AS18: =SQRT(('qc Bar'!AU31+'qr Bar'!AU31-'qs Bar'!AU31)/('Resistance Bar'!AU31)) -> 576.4901114 | AT18: =SQRT(('qc Bar'!AV31+'qr Bar'!AV31-'qs Bar'!AV31)/('Resistance Bar'!AV31)) -> 565.0114359 | AU18: =SQRT(('qc Bar'!AW31+'qr Bar'!AW31-'qs Bar'!AW31)/('Resistance Bar'!AW31)) -> 552.9575074 | AV18: =SQRT(('qc Bar'!AX31+'qr Bar'!AX31-'qs Bar'!AX31)/('Resistance Bar'!AX31)) -> 540.2833363 | AW18: =SQRT(('qc Bar'!AY31+'qr Bar'!AY31-'qs Bar'!AY31)/('Resistance Bar'!AY31)) -> 526.9374541 | AX18: =SQRT(('qc Bar'!AZ31+'qr Bar'!AZ31-'qs Bar'!AZ31)/('Resistance Bar'!AZ31)) -> 512.8604619 | AY18: =SQRT(('qc Bar'!BA31+'qr Bar'!BA31-'qs Bar'!BA31)/('Resistance Bar'!BA31)) -> 497.9831261 | AZ18: =SQRT(('qc Bar'!BB31+'qr Bar'!BB31-'qs Bar'!BB31)/('Resistance Bar'!BB31)) -> 482.2238368 | BA18: =SQRT(('qc Bar'!BC31+'qr Bar'!BC31-'qs Bar'!BC31)/('Resistance Bar'!BC31)) -> 465.4851439 | BB18: =SQRT(('qc Bar'!BD31+'qr Bar'!BD31-'qs Bar'!BD31)/('Resistance Bar'!BD31)) -> 447.6489264 | BC18: =SQRT(('qc Bar'!BE31+'qr Bar'!BE31-'qs Bar'!BE31)/('Resistance Bar'!BE31)) -> 428.5694642 | BD18: =SQRT(('qc Bar'!BF31+'qr Bar'!BF31-'qs Bar'!BF31)/('Resistance Bar'!BF31)) -> 408.0631786 | BE18: =SQRT(('qc Bar'!BG31+'qr Bar'!BG31-'qs Bar'!BG31)/('Resistance Bar'!BG31)) -> 385.8928318 | BF18: =SQRT(('qc Bar'!BH31+'qr Bar'!BH31-'qs Bar'!BH31)/('Resistance Bar'!BH31)) -> 361.7420076 | BG18: =SQRT(('qc Bar'!BI31+'qr Bar'!BI31-'qs Bar'!BI31)/('Resistance Bar'!BI31)) -> 335.1713511 | BH18: =SQRT(('qc Bar'!BJ31+'qr Bar'!BJ31-'qs Bar'!BJ31)/('Resistance Bar'!BJ31)) -> 305.5374697 | BI18: =SQRT(('qc Bar'!BK31+'qr Bar'!BK31-'qs Bar'!BK31)/('Resistance Bar'!BK31)) -> 271.8259578
A19: =min+9*incr -> 95 | B19: =SQRT(('qc Bar'!D34+'qr Bar'!D34-'qs Bar'!D34)/('Resistance Bar'!D34)) -> 714.4177027 | C19: =SQRT(('qc Bar'!E34+'qr Bar'!E34-'qs Bar'!E34)/('Resistance Bar'!E34)) -> 703.1518975 | D19: =SQRT(('qc Bar'!F34+'qr Bar'!F34-'qs Bar'!F34)/('Resistance Bar'!F34)) -> 691.0247763 | E19: =SQRT(('qc Bar'!G34+'qr Bar'!G34-'qs Bar'!G34)/('Resistance Bar'!G34)) -> 677.9635909 | F19: =SQRT(('qc Bar'!H34+'qr Bar'!H34-'qs Bar'!H34)/('Resistance Bar'!H34)) -> 663.8856121 | G19: =SQRT(('qc Bar'!I34+'qr Bar'!I34-'qs Bar'!I34)/('Resistance Bar'!I34)) -> 648.6958746 | H19: =SQRT(('qc Bar'!J34+'qr Bar'!J34-'qs Bar'!J34)/('Resistance Bar'!J34)) -> 632.2842071 | I19: =SQRT(('qc Bar'!K34+'qr Bar'!K34-'qs Bar'!K34)/('Resistance Bar'!K34)) -> 614.5212474 | J19: =SQRT(('qc Bar'!L34+'qr Bar'!L34-'qs Bar'!L34)/('Resistance Bar'!L34)) -> 595.2529802 | K19: =SQRT(('qc Bar'!M34+'qr Bar'!M34-'qs Bar'!M34)/('Resistance Bar'!M34)) -> 574.2930606 | L19: =SQRT(('qc Bar'!N34+'qr Bar'!N34-'qs Bar'!N34)/('Resistance Bar'!N34)) -> 551.4117093 | M19: =SQRT(('qc Bar'!O34+'qr Bar'!O34-'qs Bar'!O34)/('Resistance Bar'!O34)) -> 526.3190826 | Q19: =min+9*incr -> 95 | R19: =SQRT(('qc Bar'!T34+'qr Bar'!T34-'qs Bar'!T34)/('Resistance Bar'!T34)) -> 778.722417 | S19: =SQRT(('qc Bar'!U34+'qr Bar'!U34-'qs Bar'!U34)/('Resistance Bar'!U34)) -> 775.260092 | T19: =SQRT(('qc Bar'!V34+'qr Bar'!V34-'qs Bar'!V34)/('Resistance Bar'!V34)) -> 771.6488258 | U19: =SQRT(('qc Bar'!W34+'qr Bar'!W34-'qs Bar'!W34)/('Resistance Bar'!W34)) -> 767.8831391 | V19: =SQRT(('qc Bar'!X34+'qr Bar'!X34-'qs Bar'!X34)/('Resistance Bar'!X34)) -> 763.9573111 | W19: =SQRT(('qc Bar'!Y34+'qr Bar'!Y34-'qs Bar'!Y34)/('Resistance Bar'!Y34)) -> 759.8653613 | X19: =SQRT(('qc Bar'!Z34+'qr Bar'!Z34-'qs Bar'!Z34)/('Resistance Bar'!Z34)) -> 755.6010299 | Y19: =SQRT(('qc Bar'!AA34+'qr Bar'!AA34-'qs Bar'!AA34)/('Resistance Bar'!AA34)) -> 751.1577563 | Z19: =SQRT(('qc Bar'!AB34+'qr Bar'!AB34-'qs Bar'!AB34)/('Resistance Bar'!AB34)) -> 746.5286548 | AA19: =SQRT(('qc Bar'!AC34+'qr Bar'!AC34-'qs Bar'!AC34)/('Resistance Bar'!AC34)) -> 741.706488 | AB19: =SQRT(('qc Bar'!AD34+'qr Bar'!AD34-'qs Bar'!AD34)/('Resistance Bar'!AD34)) -> 736.6836372 | AC19: =SQRT(('qc Bar'!AE34+'qr Bar'!AE34-'qs Bar'!AE34)/('Resistance Bar'!AE34)) -> 731.4520691 | AD19: =SQRT(('qc Bar'!AF34+'qr Bar'!AF34-'qs Bar'!AF34)/('Resistance Bar'!AF34)) -> 726.0032991 | AE19: =SQRT(('qc Bar'!AG34+'qr Bar'!AG34-'qs Bar'!AG34)/('Resistance Bar'!AG34)) -> 720.3283494 | AF19: =SQRT(('qc Bar'!AH34+'qr Bar'!AH34-'qs Bar'!AH34)/('Resistance Bar'!AH34)) -> 714.4177027 | AG19: =SQRT(('qc Bar'!AI34+'qr Bar'!AI34-'qs Bar'!AI34)/('Resistance Bar'!AI34)) -> 708.2612493 | AH19: =SQRT(('qc Bar'!AJ34+'qr Bar'!AJ34-'qs Bar'!AJ34)/('Resistance Bar'!AJ34)) -> 701.8482275 | AI19: =SQRT(('qc Bar'!AK34+'qr Bar'!AK34-'qs Bar'!AK34)/('Resistance Bar'!AK34)) -> 695.1671556 | AJ19: =SQRT(('qc Bar'!AL34+'qr Bar'!AL34-'qs Bar'!AL34)/('Resistance Bar'!AL34)) -> 688.205755 | AK19: =SQRT(('qc Bar'!AM34+'qr Bar'!AM34-'qs Bar'!AM34)/('Resistance Bar'!AM34)) -> 680.950861 | AL19: =SQRT(('qc Bar'!AN34+'qr Bar'!AN34-'qs Bar'!AN34)/('Resistance Bar'!AN34)) -> 673.3883212 | AM19: =SQRT(('qc Bar'!AO34+'qr Bar'!AO34-'qs Bar'!AO34)/('Resistance Bar'!AO34)) -> 665.5028777 | AN19: =SQRT(('qc Bar'!AP34+'qr Bar'!AP34-'qs Bar'!AP34)/('Resistance Bar'!AP34)) -> 657.2780298 | AO19: =SQRT(('qc Bar'!AQ34+'qr Bar'!AQ34-'qs Bar'!AQ34)/('Resistance Bar'!AQ34)) -> 648.6958746 | AP19: =SQRT(('qc Bar'!AR34+'qr Bar'!AR34-'qs Bar'!AR34)/('Resistance Bar'!AR34)) -> 639.7369185 | AQ19: =SQRT(('qc Bar'!AS34+'qr Bar'!AS34-'qs Bar'!AS34)/('Resistance Bar'!AS34)) -> 630.379856 | AR19: =SQRT(('qc Bar'!AT34+'qr Bar'!AT34-'qs Bar'!AT34)/('Resistance Bar'!AT34)) -> 620.6013047 | AS19: =SQRT(('qc Bar'!AU34+'qr Bar'!AU34-'qs Bar'!AU34)/('Resistance Bar'!AU34)) -> 610.3754896 | AT19: =SQRT(('qc Bar'!AV34+'qr Bar'!AV34-'qs Bar'!AV34)/('Resistance Bar'!AV34)) -> 599.6738601 | AU19: =SQRT(('qc Bar'!AW34+'qr Bar'!AW34-'qs Bar'!AW34)/('Resistance Bar'!AW34)) -> 588.4646246 | AV19: =SQRT(('qc Bar'!AX34+'qr Bar'!AX34-'qs Bar'!AX34)/('Resistance Bar'!AX34)) -> 576.7121778 | AW19: =SQRT(('qc Bar'!AY34+'qr Bar'!AY34-'qs Bar'!AY34)/('Resistance Bar'!AY34)) -> 564.3763892 | AX19: =SQRT(('qc Bar'!AZ34+'qr Bar'!AZ34-'qs Bar'!AZ34)/('Resistance Bar'!AZ34)) -> 551.4117093 | AY19: =SQRT(('qc Bar'!BA34+'qr Bar'!BA34-'qs Bar'!BA34)/('Resistance Bar'!BA34)) -> 537.7660326 | AZ19: =SQRT(('qc Bar'!BB34+'qr Bar'!BB34-'qs Bar'!BB34)/('Resistance Bar'!BB34)) -> 523.3792301 | BA19: =SQRT(('qc Bar'!BC34+'qr Bar'!BC34-'qs Bar'!BC34)/('Resistance Bar'!BC34)) -> 508.1812259 | BB19: =SQRT(('qc Bar'!BD34+'qr Bar'!BD34-'qs Bar'!BD34)/('Resistance Bar'!BD34)) -> 492.089431 | BC19: =SQRT(('qc Bar'!BE34+'qr Bar'!BE34-'qs Bar'!BE34)/('Resistance Bar'!BE34)) -> 475.0052482 | BD19: =SQRT(('qc Bar'!BF34+'qr Bar'!BF34-'qs Bar'!BF34)/('Resistance Bar'!BF34)) -> 456.8092001 | BE19: =SQRT(('qc Bar'!BG34+'qr Bar'!BG34-'qs Bar'!BG34)/('Resistance Bar'!BG34)) -> 437.3539477 | BF19: =SQRT(('qc Bar'!BH34+'qr Bar'!BH34-'qs Bar'!BH34)/('Resistance Bar'!BH34)) -> 416.4539603 | BG19: =SQRT(('qc Bar'!BI34+'qr Bar'!BI34-'qs Bar'!BI34)/('Resistance Bar'!BI34)) -> 393.8696255 | BH19: =SQRT(('qc Bar'!BJ34+'qr Bar'!BJ34-'qs Bar'!BJ34)/('Resistance Bar'!BJ34)) -> 369.2816181 | BI19: =SQRT(('qc Bar'!BK34+'qr Bar'!BK34-'qs Bar'!BK34)/('Resistance Bar'!BK34)) -> 342.2470259
A20: =min+10*incr -> 100 | B20: =SQRT(('qc Bar'!D37+'qr Bar'!D37-'qs Bar'!D37)/('Resistance Bar'!D37)) -> 741.5508336 | C20: =SQRT(('qc Bar'!E37+'qr Bar'!E37-'qs Bar'!E37)/('Resistance Bar'!E37)) -> 730.8299458 | D20: =SQRT(('qc Bar'!F37+'qr Bar'!F37-'qs Bar'!F37)/('Resistance Bar'!F37)) -> 719.3057362 | E20: =SQRT(('qc Bar'!G37+'qr Bar'!G37-'qs Bar'!G37)/('Resistance Bar'!G37)) -> 706.9137694 | F20: =SQRT(('qc Bar'!H37+'qr Bar'!H37-'qs Bar'!H37)/('Resistance Bar'!H37)) -> 693.581421 | G20: =SQRT(('qc Bar'!I37+'qr Bar'!I37-'qs Bar'!I37)/('Resistance Bar'!I37)) -> 679.2261586 | H20: =SQRT(('qc Bar'!J37+'qr Bar'!J37-'qs Bar'!J37)/('Resistance Bar'!J37)) -> 663.753321 | I20: =SQRT(('qc Bar'!K37+'qr Bar'!K37-'qs Bar'!K37)/('Resistance Bar'!K37)) -> 647.0531973 | J20: =SQRT(('qc Bar'!L37+'qr Bar'!L37-'qs Bar'!L37)/('Resistance Bar'!L37)) -> 628.9971182 | K20: =SQRT(('qc Bar'!M37+'qr Bar'!M37-'qs Bar'!M37)/('Resistance Bar'!M37)) -> 609.4321115 | L20: =SQRT(('qc Bar'!N37+'qr Bar'!N37-'qs Bar'!N37)/('Resistance Bar'!N37)) -> 588.1734144 | M20: =SQRT(('qc Bar'!O37+'qr Bar'!O37-'qs Bar'!O37)/('Resistance Bar'!O37)) -> 564.9936812 | Q20: =min+10*incr -> 100 | R20: =SQRT(('qc Bar'!T37+'qr Bar'!T37-'qs Bar'!T37)/('Resistance Bar'!T37)) -> 802.9958408 | S20: =SQRT(('qc Bar'!U37+'qr Bar'!U37-'qs Bar'!U37)/('Resistance Bar'!U37)) -> 799.6775596 | T20: =SQRT(('qc Bar'!V37+'qr Bar'!V37-'qs Bar'!V37)/('Resistance Bar'!V37)) -> 796.2176549 | U20: =SQRT(('qc Bar'!W37+'qr Bar'!W37-'qs Bar'!W37)/('Resistance Bar'!W37)) -> 792.6110375 | V20: =SQRT(('qc Bar'!X37+'qr Bar'!X37-'qs Bar'!X37)/('Resistance Bar'!X37)) -> 788.8524046 | W20: =SQRT(('qc Bar'!Y37+'qr Bar'!Y37-'qs Bar'!Y37)/('Resistance Bar'!Y37)) -> 784.9362252 | X20: =SQRT(('qc Bar'!Z37+'qr Bar'!Z37-'qs Bar'!Z37)/('Resistance Bar'!Z37)) -> 780.8567229 | Y20: =SQRT(('qc Bar'!AA37+'qr Bar'!AA37-'qs Bar'!AA37)/('Resistance Bar'!AA37)) -> 776.6078585 | Z20: =SQRT(('qc Bar'!AB37+'qr Bar'!AB37-'qs Bar'!AB37)/('Resistance Bar'!AB37)) -> 772.1833098 | AA20: =SQRT(('qc Bar'!AC37+'qr Bar'!AC37-'qs Bar'!AC37)/('Resistance Bar'!AC37)) -> 767.5764491 | AB20: =SQRT(('qc Bar'!AD37+'qr Bar'!AD37-'qs Bar'!AD37)/('Resistance Bar'!AD37)) -> 762.7803196 | AC20: =SQRT(('qc Bar'!AE37+'qr Bar'!AE37-'qs Bar'!AE37)/('Resistance Bar'!AE37)) -> 757.7876076 | AD20: =SQRT(('qc Bar'!AF37+'qr Bar'!AF37-'qs Bar'!AF37)/('Resistance Bar'!AF37)) -> 752.5906127 | AE20: =SQRT(('qc Bar'!AG37+'qr Bar'!AG37-'qs Bar'!AG37)/('Resistance Bar'!AG37)) -> 747.1812142 | AF20: =SQRT(('qc Bar'!AH37+'qr Bar'!AH37-'qs Bar'!AH37)/('Resistance Bar'!AH37)) -> 741.5508336 | AG20: =SQRT(('qc Bar'!AI37+'qr Bar'!AI37-'qs Bar'!AI37)/('Resistance Bar'!AI37)) -> 735.690392 | AH20: =SQRT(('qc Bar'!AJ37+'qr Bar'!AJ37-'qs Bar'!AJ37)/('Resistance Bar'!AJ37)) -> 729.5902633 | AI20: =SQRT(('qc Bar'!AK37+'qr Bar'!AK37-'qs Bar'!AK37)/('Resistance Bar'!AK37)) -> 723.2402206 | AJ20: =SQRT(('qc Bar'!AL37+'qr Bar'!AL37-'qs Bar'!AL37)/('Resistance Bar'!AL37)) -> 716.6293754 | AK20: =SQRT(('qc Bar'!AM37+'qr Bar'!AM37-'qs Bar'!AM37)/('Resistance Bar'!AM37)) -> 709.7461087 | AL20: =SQRT(('qc Bar'!AN37+'qr Bar'!AN37-'qs Bar'!AN37)/('Resistance Bar'!AN37)) -> 702.5779931 | AM20: =SQRT(('qc Bar'!AO37+'qr Bar'!AO37-'qs Bar'!AO37)/('Resistance Bar'!AO37)) -> 695.1117022 | AN20: =SQRT(('qc Bar'!AP37+'qr Bar'!AP37-'qs Bar'!AP37)/('Resistance Bar'!AP37)) -> 687.3329074 | AO20: =SQRT(('qc Bar'!AQ37+'qr Bar'!AQ37-'qs Bar'!AQ37)/('Resistance Bar'!AQ37)) -> 679.2261586 | AP20: =SQRT(('qc Bar'!AR37+'qr Bar'!AR37-'qs Bar'!AR37)/('Resistance Bar'!AR37)) -> 670.7747446 | AQ20: =SQRT(('qc Bar'!AS37+'qr Bar'!AS37-'qs Bar'!AS37)/('Resistance Bar'!AS37)) -> 661.9605315 | AR20: =SQRT(('qc Bar'!AT37+'qr Bar'!AT37-'qs Bar'!AT37)/('Resistance Bar'!AT37)) -> 652.7637715 | AS20: =SQRT(('qc Bar'!AU37+'qr Bar'!AU37-'qs Bar'!AU37)/('Resistance Bar'!AU37)) -> 643.1628783 | AT20: =SQRT(('qc Bar'!AV37+'qr Bar'!AV37-'qs Bar'!AV37)/('Resistance Bar'!AV37)) -> 633.1341586 | AU20: =SQRT(('qc Bar'!AW37+'qr Bar'!AW37-'qs Bar'!AW37)/('Resistance Bar'!AW37)) -> 622.6514914 | AV20: =SQRT(('qc Bar'!AX37+'qr Bar'!AX37-'qs Bar'!AX37)/('Resistance Bar'!AX37)) -> 611.6859397 | AW20: =SQRT(('qc Bar'!AY37+'qr Bar'!AY37-'qs Bar'!AY37)/('Resistance Bar'!AY37)) -> 600.2052787 | AX20: =SQRT(('qc Bar'!AZ37+'qr Bar'!AZ37-'qs Bar'!AZ37)/('Resistance Bar'!AZ37)) -> 588.1734144 | AY20: =SQRT(('qc Bar'!BA37+'qr Bar'!BA37-'qs Bar'!BA37)/('Resistance Bar'!BA37)) -> 575.5496627 | AZ20: =SQRT(('qc Bar'!BB37+'qr Bar'!BB37-'qs Bar'!BB37)/('Resistance Bar'!BB37)) -> 562.2878424 | BA20: =SQRT(('qc Bar'!BC37+'qr Bar'!BC37-'qs Bar'!BC37)/('Resistance Bar'!BC37)) -> 548.3351232 | BB20: =SQRT(('qc Bar'!BD37+'qr Bar'!BD37-'qs Bar'!BD37)/('Resistance Bar'!BD37)) -> 533.6305373 | BC20: =SQRT(('qc Bar'!BE37+'qr Bar'!BE37-'qs Bar'!BE37)/('Resistance Bar'!BE37)) -> 518.1030306 | BD20: =SQRT(('qc Bar'!BF37+'qr Bar'!BF37-'qs Bar'!BF37)/('Resistance Bar'!BF37)) -> 501.6688621 | BE20: =SQRT(('qc Bar'!BG37+'qr Bar'!BG37-'qs Bar'!BG37)/('Resistance Bar'!BG37)) -> 484.2280628 | BF20: =SQRT(('qc Bar'!BH37+'qr Bar'!BH37-'qs Bar'!BH37)/('Resistance Bar'!BH37)) -> 465.6595016 | BG20: =SQRT(('qc Bar'!BI37+'qr Bar'!BI37-'qs Bar'!BI37)/('Resistance Bar'!BI37)) -> 445.8138171 | BH20: =SQRT(('qc Bar'!BJ37+'qr Bar'!BJ37-'qs Bar'!BJ37)/('Resistance Bar'!BJ37)) -> 424.5029632 | BI20: =SQRT(('qc Bar'!BK37+'qr Bar'!BK37-'qs Bar'!BK37)/('Resistance Bar'!BK37)) -> 401.4841353
A21: =min+11*incr -> 105 | B21: =SQRT(('qc Bar'!D40+'qr Bar'!D40-'qs Bar'!D40)/('Resistance Bar'!D40)) -> 768.336344 | C21: =SQRT(('qc Bar'!E40+'qr Bar'!E40-'qs Bar'!E40)/('Resistance Bar'!E40)) -> 758.1135224 | D21: =SQRT(('qc Bar'!F40+'qr Bar'!F40-'qs Bar'!F40)/('Resistance Bar'!F40)) -> 747.1383068 | E21: =SQRT(('qc Bar'!G40+'qr Bar'!G40-'qs Bar'!G40)/('Resistance Bar'!G40)) -> 735.3531094 | F21: =SQRT(('qc Bar'!H40+'qr Bar'!H40-'qs Bar'!H40)/('Resistance Bar'!H40)) -> 722.6935293 | G21: =SQRT(('qc Bar'!I40+'qr Bar'!I40-'qs Bar'!I40)/('Resistance Bar'!I40)) -> 709.0870182 | H21: =SQRT(('qc Bar'!J40+'qr Bar'!J40-'qs Bar'!J40)/('Resistance Bar'!J40)) -> 694.4511818 | I21: =SQRT(('qc Bar'!K40+'qr Bar'!K40-'qs Bar'!K40)/('Resistance Bar'!K40)) -> 678.6915879 | J21: =SQRT(('qc Bar'!L40+'qr Bar'!L40-'qs Bar'!L40)/('Resistance Bar'!L40)) -> 661.6988894 | K21: =SQRT(('qc Bar'!M40+'qr Bar'!M40-'qs Bar'!M40)/('Resistance Bar'!M40)) -> 643.3449827 | L21: =SQRT(('qc Bar'!N40+'qr Bar'!N40-'qs Bar'!N40)/('Resistance Bar'!N40)) -> 623.4777665 | M21: =SQRT(('qc Bar'!O40+'qr Bar'!O40-'qs Bar'!O40)/('Resistance Bar'!O40)) -> 601.9138214 | Q21: =min+11*incr -> 105 | R21: =SQRT(('qc Bar'!T40+'qr Bar'!T40-'qs Bar'!T40)/('Resistance Bar'!T40)) -> 827.1393962 | S21: =SQRT(('qc Bar'!U40+'qr Bar'!U40-'qs Bar'!U40)/('Resistance Bar'!U40)) -> 823.9552817 | T21: =SQRT(('qc Bar'!V40+'qr Bar'!V40-'qs Bar'!V40)/('Resistance Bar'!V40)) -> 820.6362385 | U21: =SQRT(('qc Bar'!W40+'qr Bar'!W40-'qs Bar'!W40)/('Resistance Bar'!W40)) -> 817.1775212 | V21: =SQRT(('qc Bar'!X40+'qr Bar'!X40-'qs Bar'!X40)/('Resistance Bar'!X40)) -> 813.5741943 | W21: =SQRT(('qc Bar'!Y40+'qr Bar'!Y40-'qs Bar'!Y40)/('Resistance Bar'!Y40)) -> 809.8211202 | X21: =SQRT(('qc Bar'!Z40+'qr Bar'!Z40-'qs Bar'!Z40)/('Resistance Bar'!Z40)) -> 805.9129446 | Y21: =SQRT(('qc Bar'!AA40+'qr Bar'!AA40-'qs Bar'!AA40)/('Resistance Bar'!AA40)) -> 801.8440816 | Z21: =SQRT(('qc Bar'!AB40+'qr Bar'!AB40-'qs Bar'!AB40)/('Resistance Bar'!AB40)) -> 797.6086969 | AA21: =SQRT(('qc Bar'!AC40+'qr Bar'!AC40-'qs Bar'!AC40)/('Resistance Bar'!AC40)) -> 793.2006893 | AB21: =SQRT(('qc Bar'!AD40+'qr Bar'!AD40-'qs Bar'!AD40)/('Resistance Bar'!AD40)) -> 788.6136706 | AC21: =SQRT(('qc Bar'!AE40+'qr Bar'!AE40-'qs Bar'!AE40)/('Resistance Bar'!AE40)) -> 783.8409428 | AD21: =SQRT(('qc Bar'!AF40+'qr Bar'!AF40-'qs Bar'!AF40)/('Resistance Bar'!AF40)) -> 778.875474 | AE21: =SQRT(('qc Bar'!AG40+'qr Bar'!AG40-'qs Bar'!AG40)/('Resistance Bar'!AG40)) -> 773.7098698 | AF21: =SQRT(('qc Bar'!AH40+'qr Bar'!AH40-'qs Bar'!AH40)/('Resistance Bar'!AH40)) -> 768.336344 | AG21: =SQRT(('qc Bar'!AI40+'qr Bar'!AI40-'qs Bar'!AI40)/('Resistance Bar'!AI40)) -> 762.7466831 | AH21: =SQRT(('qc Bar'!AJ40+'qr Bar'!AJ40-'qs Bar'!AJ40)/('Resistance Bar'!AJ40)) -> 756.9322094 | AI21: =SQRT(('qc Bar'!AK40+'qr Bar'!AK40-'qs Bar'!AK40)/('Resistance Bar'!AK40)) -> 750.8837371 | AJ21: =SQRT(('qc Bar'!AL40+'qr Bar'!AL40-'qs Bar'!AL40)/('Resistance Bar'!AL40)) -> 744.5915249 | AK21: =SQRT(('qc Bar'!AM40+'qr Bar'!AM40-'qs Bar'!AM40)/('Resistance Bar'!AM40)) -> 738.0452214 | AL21: =SQRT(('qc Bar'!AN40+'qr Bar'!AN40-'qs Bar'!AN40)/('Resistance Bar'!AN40)) -> 731.2338034 | AM21: =SQRT(('qc Bar'!AO40+'qr Bar'!AO40-'qs Bar'!AO40)/('Resistance Bar'!AO40)) -> 724.1455064 | AN21: =SQRT(('qc Bar'!AP40+'qr Bar'!AP40-'qs Bar'!AP40)/('Resistance Bar'!AP40)) -> 716.7677442 | AO21: =SQRT(('qc Bar'!AQ40+'qr Bar'!AQ40-'qs Bar'!AQ40)/('Resistance Bar'!AQ40)) -> 709.0870182 | AP21: =SQRT(('qc Bar'!AR40+'qr Bar'!AR40-'qs Bar'!AR40)/('Resistance Bar'!AR40)) -> 701.0888118 | AQ21: =SQRT(('qc Bar'!AS40+'qr Bar'!AS40-'qs Bar'!AS40)/('Resistance Bar'!AS40)) -> 692.7574691 | AR21: =SQRT(('qc Bar'!AT40+'qr Bar'!AT40-'qs Bar'!AT40)/('Resistance Bar'!AT40)) -> 684.0760535 | AS21: =SQRT(('qc Bar'!AU40+'qr Bar'!AU40-'qs Bar'!AU40)/('Resistance Bar'!AU40)) -> 675.0261829 | AT21: =SQRT(('qc Bar'!AV40+'qr Bar'!AV40-'qs Bar'!AV40)/('Resistance Bar'!AV40)) -> 665.587836 | AU21: =SQRT(('qc Bar'!AW40+'qr Bar'!AW40-'qs Bar'!AW40)/('Resistance Bar'!AW40)) -> 655.7391236 | AV21: =SQRT(('qc Bar'!AX40+'qr Bar'!AX40-'qs Bar'!AX40)/('Resistance Bar'!AX40)) -> 645.4560158 | AW21: =SQRT(('qc Bar'!AY40+'qr Bar'!AY40-'qs Bar'!AY40)/('Resistance Bar'!AY40)) -> 634.712016 | AX21: =SQRT(('qc Bar'!AZ40+'qr Bar'!AZ40-'qs Bar'!AZ40)/('Resistance Bar'!AZ40)) -> 623.4777665 | AY21: =SQRT(('qc Bar'!BA40+'qr Bar'!BA40-'qs Bar'!BA40)/('Resistance Bar'!BA40)) -> 611.7205685 | AZ21: =SQRT(('qc Bar'!BB40+'qr Bar'!BB40-'qs Bar'!BB40)/('Resistance Bar'!BB40)) -> 599.4037915 | BA21: =SQRT(('qc Bar'!BC40+'qr Bar'!BC40-'qs Bar'!BC40)/('Resistance Bar'!BC40)) -> 586.4861401 | BB21: =SQRT(('qc Bar'!BD40+'qr Bar'!BD40-'qs Bar'!BD40)/('Resistance Bar'!BD40)) -> 572.9207326 | BC21: =SQRT(('qc Bar'!BE40+'qr Bar'!BE40-'qs Bar'!BE40)/('Resistance Bar'!BE40)) -> 558.653929 | BD21: =SQRT(('qc Bar'!BF40+'qr Bar'!BF40-'qs Bar'!BF40)/('Resistance Bar'!BF40)) -> 543.6238185 | BE21: =SQRT(('qc Bar'!BG40+'qr Bar'!BG40-'qs Bar'!BG40)/('Resistance Bar'!BG40)) -> 527.7582381 | BF21: =SQRT(('qc Bar'!BH40+'qr Bar'!BH40-'qs Bar'!BH40)/('Resistance Bar'!BH40)) -> 510.9721281 | BG21: =SQRT(('qc Bar'!BI40+'qr Bar'!BI40-'qs Bar'!BI40)/('Resistance Bar'!BI40)) -> 493.1639326 | BH21: =SQRT(('qc Bar'!BJ40+'qr Bar'!BJ40-'qs Bar'!BJ40)/('Resistance Bar'!BJ40)) -> 474.2105816 | BI21: =SQRT(('qc Bar'!BK40+'qr Bar'!BK40-'qs Bar'!BK40)/('Resistance Bar'!BK40)) -> 453.9603047
A22: =min+12*incr -> 110 | B22: =SQRT(('qc Bar'!D43+'qr Bar'!D43-'qs Bar'!D43)/('Resistance Bar'!D43)) -> 794.8202737 | C22: =SQRT(('qc Bar'!E43+'qr Bar'!E43-'qs Bar'!E43)/('Resistance Bar'!E43)) -> 785.0548779 | D22: =SQRT(('qc Bar'!F43+'qr Bar'!F43-'qs Bar'!F43)/('Resistance Bar'!F43)) -> 774.5821947 | E22: =SQRT(('qc Bar'!G43+'qr Bar'!G43-'qs Bar'!G43)/('Resistance Bar'!G43)) -> 763.3503509 | F22: =SQRT(('qc Bar'!H43+'qr Bar'!H43-'qs Bar'!H43)/('Resistance Bar'!H43)) -> 751.3017361 | G22: =SQRT(('qc Bar'!I43+'qr Bar'!I43-'qs Bar'!I43)/('Resistance Bar'!I43)) -> 738.3719487 | H22: =SQRT(('qc Bar'!J43+'qr Bar'!J43-'qs Bar'!J43)/('Resistance Bar'!J43)) -> 724.4884737 | I22: =SQRT(('qc Bar'!K43+'qr Bar'!K43-'qs Bar'!K43)/('Resistance Bar'!K43)) -> 709.5690017 | J22: =SQRT(('qc Bar'!L43+'qr Bar'!L43-'qs Bar'!L43)/('Resistance Bar'!L43)) -> 693.5192623 | K22: =SQRT(('qc Bar'!M43+'qr Bar'!M43-'qs Bar'!M43)/('Resistance Bar'!M43)) -> 676.230186 | L22: =SQRT(('qc Bar'!N43+'qr Bar'!N43-'qs Bar'!N43)/('Resistance Bar'!N43)) -> 657.574121 | M22: =SQRT(('qc Bar'!O43+'qr Bar'!O43-'qs Bar'!O43)/('Resistance Bar'!O43)) -> 637.3996841 | Q22: =min+12*incr -> 110 | R22: =SQRT(('qc Bar'!T43+'qr Bar'!T43-'qs Bar'!T43)/('Resistance Bar'!T43)) -> 851.1738002 | S22: =SQRT(('qc Bar'!U43+'qr Bar'!U43-'qs Bar'!U43)/('Resistance Bar'!U43)) -> 848.1149885 | T22: =SQRT(('qc Bar'!V43+'qr Bar'!V43-'qs Bar'!V43)/('Resistance Bar'!V43)) -> 844.9273988 | U22: =SQRT(('qc Bar'!W43+'qr Bar'!W43-'qs Bar'!W43)/('Resistance Bar'!W43)) -> 841.6065907 | V22: =SQRT(('qc Bar'!X43+'qr Bar'!X43-'qs Bar'!X43)/('Resistance Bar'!X43)) -> 838.1479538 | W22: =SQRT(('qc Bar'!Y43+'qr Bar'!Y43-'qs Bar'!Y43)/('Resistance Bar'!Y43)) -> 834.5466974 | X22: =SQRT(('qc Bar'!Z43+'qr Bar'!Z43-'qs Bar'!Z43)/('Resistance Bar'!Z43)) -> 830.797838 | Y22: =SQRT(('qc Bar'!AA43+'qr Bar'!AA43-'qs Bar'!AA43)/('Resistance Bar'!AA43)) -> 826.8961872 | Z22: =SQRT(('qc Bar'!AB43+'qr Bar'!AB43-'qs Bar'!AB43)/('Resistance Bar'!AB43)) -> 822.8363366 | AA22: =SQRT(('qc Bar'!AC43+'qr Bar'!AC43-'qs Bar'!AC43)/('Resistance Bar'!AC43)) -> 818.6126433 | AB22: =SQRT(('qc Bar'!AD43+'qr Bar'!AD43-'qs Bar'!AD43)/('Resistance Bar'!AD43)) -> 814.2192118 | AC22: =SQRT(('qc Bar'!AE43+'qr Bar'!AE43-'qs Bar'!AE43)/('Resistance Bar'!AE43)) -> 809.6498762 | AD22: =SQRT(('qc Bar'!AF43+'qr Bar'!AF43-'qs Bar'!AF43)/('Resistance Bar'!AF43)) -> 804.898179 | AE22: =SQRT(('qc Bar'!AG43+'qr Bar'!AG43-'qs Bar'!AG43)/('Resistance Bar'!AG43)) -> 799.9573486 | AF22: =SQRT(('qc Bar'!AH43+'qr Bar'!AH43-'qs Bar'!AH43)/('Resistance Bar'!AH43)) -> 794.8202737 | AG22: =SQRT(('qc Bar'!AI43+'qr Bar'!AI43-'qs Bar'!AI43)/('Resistance Bar'!AI43)) -> 789.4794759 | AH22: =SQRT(('qc Bar'!AJ43+'qr Bar'!AJ43-'qs Bar'!AJ43)/('Resistance Bar'!AJ43)) -> 783.927078 | AI22: =SQRT(('qc Bar'!AK43+'qr Bar'!AK43-'qs Bar'!AK43)/('Resistance Bar'!AK43)) -> 778.1547695 | AJ22: =SQRT(('qc Bar'!AL43+'qr Bar'!AL43-'qs Bar'!AL43)/('Resistance Bar'!AL43)) -> 772.1537679 | AK22: =SQRT(('qc Bar'!AM43+'qr Bar'!AM43-'qs Bar'!AM43)/('Resistance Bar'!AM43)) -> 765.9147748 | AL22: =SQRT(('qc Bar'!AN43+'qr Bar'!AN43-'qs Bar'!AN43)/('Resistance Bar'!AN43)) -> 759.4279275 | AM22: =SQRT(('qc Bar'!AO43+'qr Bar'!AO43-'qs Bar'!AO43)/('Resistance Bar'!AO43)) -> 752.6827432 | AN22: =SQRT(('qc Bar'!AP43+'qr Bar'!AP43-'qs Bar'!AP43)/('Resistance Bar'!AP43)) -> 745.6680566 | AO22: =SQRT(('qc Bar'!AQ43+'qr Bar'!AQ43-'qs Bar'!AQ43)/('Resistance Bar'!AQ43)) -> 738.3719487 | AP22: =SQRT(('qc Bar'!AR43+'qr Bar'!AR43-'qs Bar'!AR43)/('Resistance Bar'!AR43)) -> 730.7816659 | AQ22: =SQRT(('qc Bar'!AS43+'qr Bar'!AS43-'qs Bar'!AS43)/('Resistance Bar'!AS43)) -> 722.8835268 | AR22: =SQRT(('qc Bar'!AT43+'qr Bar'!AT43-'qs Bar'!AT43)/('Resistance Bar'!AT43)) -> 714.6628151 | AS22: =SQRT(('qc Bar'!AU43+'qr Bar'!AU43-'qs Bar'!AU43)/('Resistance Bar'!AU43)) -> 706.1036561 | AT22: =SQRT(('qc Bar'!AV43+'qr Bar'!AV43-'qs Bar'!AV43)/('Resistance Bar'!AV43)) -> 697.1888733 | AU22: =SQRT(('qc Bar'!AW43+'qr Bar'!AW43-'qs Bar'!AW43)/('Resistance Bar'!AW43)) -> 687.8998199 | AV22: =SQRT(('qc Bar'!AX43+'qr Bar'!AX43-'qs Bar'!AX43)/('Resistance Bar'!AX43)) -> 678.2161821 | AW22: =SQRT(('qc Bar'!AY43+'qr Bar'!AY43-'qs Bar'!AY43)/('Resistance Bar'!AY43)) -> 668.1157462 | AX22: =SQRT(('qc Bar'!AZ43+'qr Bar'!AZ43-'qs Bar'!AZ43)/('Resistance Bar'!AZ43)) -> 657.574121 | AY22: =SQRT(('qc Bar'!BA43+'qr Bar'!BA43-'qs Bar'!BA43)/('Resistance Bar'!BA43)) -> 646.5644054 | AZ22: =SQRT(('qc Bar'!BB43+'qr Bar'!BB43-'qs Bar'!BB43)/('Resistance Bar'!BB43)) -> 635.0567876 | BA22: =SQRT(('qc Bar'!BC43+'qr Bar'!BC43-'qs Bar'!BC43)/('Resistance Bar'!BC43)) -> 623.0180554 | BB22: =SQRT(('qc Bar'!BD43+'qr Bar'!BD43-'qs Bar'!BD43)/('Resistance Bar'!BD43)) -> 610.410995 | BC22: =SQRT(('qc Bar'!BE43+'qr Bar'!BE43-'qs Bar'!BE43)/('Resistance Bar'!BE43)) -> 597.1936442 | BD22: =SQRT(('qc Bar'!BF43+'qr Bar'!BF43-'qs Bar'!BF43)/('Resistance Bar'!BF43)) -> 583.3183532 | BE22: =SQRT(('qc Bar'!BG43+'qr Bar'!BG43-'qs Bar'!BG43)/('Resistance Bar'!BG43)) -> 568.7305903 | BF22: =SQRT(('qc Bar'!BH43+'qr Bar'!BH43-'qs Bar'!BH43)/('Resistance Bar'!BH43)) -> 553.3674004 | BG22: =SQRT(('qc Bar'!BI43+'qr Bar'!BI43-'qs Bar'!BI43)/('Resistance Bar'!BI43)) -> 537.1553842 | BH22: =SQRT(('qc Bar'!BJ43+'qr Bar'!BJ43-'qs Bar'!BJ43)/('Resistance Bar'!BJ43)) -> 520.0080021 | BI22: =SQRT(('qc Bar'!BK43+'qr Bar'!BK43-'qs Bar'!BK43)/('Resistance Bar'!BK43)) -> 501.8219014
A23: =min+13*incr -> 115 | B23: =SQRT(('qc Bar'!D46+'qr Bar'!D46-'qs Bar'!D46)/('Resistance Bar'!D46)) -> 821.0422758 | C23: =SQRT(('qc Bar'!E46+'qr Bar'!E46-'qs Bar'!E46)/('Resistance Bar'!E46)) -> 811.6987632 | D23: =SQRT(('qc Bar'!F46+'qr Bar'!F46-'qs Bar'!F46)/('Resistance Bar'!F46)) -> 801.6882155 | E23: =SQRT(('qc Bar'!G46+'qr Bar'!G46-'qs Bar'!G46)/('Resistance Bar'!G46)) -> 790.9635842 | F23: =SQRT(('qc Bar'!H46+'qr Bar'!H46-'qs Bar'!H46)/('Resistance Bar'!H46)) -> 779.472937 | G23: =SQRT(('qc Bar'!I46+'qr Bar'!I46-'qs Bar'!I46)/('Resistance Bar'!I46)) -> 767.1586142 | H23: =SQRT(('qc Bar'!J46+'qr Bar'!J46-'qs Bar'!J46)/('Resistance Bar'!J46)) -> 753.9561818 | I23: =SQRT(('qc Bar'!K46+'qr Bar'!K46-'qs Bar'!K46)/('Resistance Bar'!K46)) -> 739.7931196 | J23: =SQRT(('qc Bar'!L46+'qr Bar'!L46-'qs Bar'!L46)/('Resistance Bar'!L46)) -> 724.587155 | K23: =SQRT(('qc Bar'!M46+'qr Bar'!M46-'qs Bar'!M46)/('Resistance Bar'!M46)) -> 708.2441189 | L23: =SQRT(('qc Bar'!N46+'qr Bar'!N46-'qs Bar'!N46)/('Resistance Bar'!N46)) -> 690.6551415 | M23: =SQRT(('qc Bar'!O46+'qr Bar'!O46-'qs Bar'!O46)/('Resistance Bar'!O46)) -> 671.692921 | Q23: =min+13*incr -> 115 | R23: =SQRT(('qc Bar'!T46+'qr Bar'!T46-'qs Bar'!T46)/('Resistance Bar'!T46)) -> 875.1173969 | S23: =SQRT(('qc Bar'!U46+'qr Bar'!U46-'qs Bar'!U46)/('Resistance Bar'!U46)) -> 872.1758959 | T23: =SQRT(('qc Bar'!V46+'qr Bar'!V46-'qs Bar'!V46)/('Resistance Bar'!V46)) -> 869.1112895 | U23: =SQRT(('qc Bar'!W46+'qr Bar'!W46-'qs Bar'!W46)/('Resistance Bar'!W46)) -> 865.9194093 | V23: =SQRT(('qc Bar'!X46+'qr Bar'!X46-'qs Bar'!X46)/('Resistance Bar'!X46)) -> 862.5959342 | W23: =SQRT(('qc Bar'!Y46+'qr Bar'!Y46-'qs Bar'!Y46)/('Resistance Bar'!Y46)) -> 859.1363815 | X23: =SQRT(('qc Bar'!Z46+'qr Bar'!Z46-'qs Bar'!Z46)/('Resistance Bar'!Z46)) -> 855.5360961 | Y23: =SQRT(('qc Bar'!AA46+'qr Bar'!AA46-'qs Bar'!AA46)/('Resistance Bar'!AA46)) -> 851.7902399 | Z23: =SQRT(('qc Bar'!AB46+'qr Bar'!AB46-'qs Bar'!AB46)/('Resistance Bar'!AB46)) -> 847.8937795 | AA23: =SQRT(('qc Bar'!AC46+'qr Bar'!AC46-'qs Bar'!AC46)/('Resistance Bar'!AC46)) -> 843.8414735 | AB23: =SQRT(('qc Bar'!AD46+'qr Bar'!AD46-'qs Bar'!AD46)/('Resistance Bar'!AD46)) -> 839.6278572 | AC23: =SQRT(('qc Bar'!AE46+'qr Bar'!AE46-'qs Bar'!AE46)/('Resistance Bar'!AE46)) -> 835.2472278 | AD23: =SQRT(('qc Bar'!AF46+'qr Bar'!AF46-'qs Bar'!AF46)/('Resistance Bar'!AF46)) -> 830.6936263 | AE23: =SQRT(('qc Bar'!AG46+'qr Bar'!AG46-'qs Bar'!AG46)/('Resistance Bar'!AG46)) -> 825.9608189 | AF23: =SQRT(('qc Bar'!AH46+'qr Bar'!AH46-'qs Bar'!AH46)/('Resistance Bar'!AH46)) -> 821.0422758 | AG23: =SQRT(('qc Bar'!AI46+'qr Bar'!AI46-'qs Bar'!AI46)/('Resistance Bar'!AI46)) -> 815.9311481 | AH23: =SQRT(('qc Bar'!AJ46+'qr Bar'!AJ46-'qs Bar'!AJ46)/('Resistance Bar'!AJ46)) -> 810.6202421 | AI23: =SQRT(('qc Bar'!AK46+'qr Bar'!AK46-'qs Bar'!AK46)/('Resistance Bar'!AK46)) -> 805.1019907 | AJ23: =SQRT(('qc Bar'!AL46+'qr Bar'!AL46-'qs Bar'!AL46)/('Resistance Bar'!AL46)) -> 799.3684217 | AK23: =SQRT(('qc Bar'!AM46+'qr Bar'!AM46-'qs Bar'!AM46)/('Resistance Bar'!AM46)) -> 793.4111229 | AL23: =SQRT(('qc Bar'!AN46+'qr Bar'!AN46-'qs Bar'!AN46)/('Resistance Bar'!AN46)) -> 787.2212018 | AM23: =SQRT(('qc Bar'!AO46+'qr Bar'!AO46-'qs Bar'!AO46)/('Resistance Bar'!AO46)) -> 780.7892421 | AN23: =SQRT(('qc Bar'!AP46+'qr Bar'!AP46-'qs Bar'!AP46)/('Resistance Bar'!AP46)) -> 774.1052531 | AO23: =SQRT(('qc Bar'!AQ46+'qr Bar'!AQ46-'qs Bar'!AQ46)/('Resistance Bar'!AQ46)) -> 767.1586142 | AP23: =SQRT(('qc Bar'!AR46+'qr Bar'!AR46-'qs Bar'!AR46)/('Resistance Bar'!AR46)) -> 759.9380104 | AQ23: =SQRT(('qc Bar'!AS46+'qr Bar'!AS46-'qs Bar'!AS46)/('Resistance Bar'!AS46)) -> 752.4313604 | AR23: =SQRT(('qc Bar'!AT46+'qr Bar'!AT46-'qs Bar'!AT46)/('Resistance Bar'!AT46)) -> 744.6257337 | AS23: =SQRT(('qc Bar'!AU46+'qr Bar'!AU46-'qs Bar'!AU46)/('Resistance Bar'!AU46)) -> 736.507256 | AT23: =SQRT(('qc Bar'!AV46+'qr Bar'!AV46-'qs Bar'!AV46)/('Resistance Bar'!AV46)) -> 728.0610002 | AU23: =SQRT(('qc Bar'!AW46+'qr Bar'!AW46-'qs Bar'!AW46)/('Resistance Bar'!AW46)) -> 719.2708602 | AV23: =SQRT(('qc Bar'!AX46+'qr Bar'!AX46-'qs Bar'!AX46)/('Resistance Bar'!AX46)) -> 710.1194049 | AW23: =SQRT(('qc Bar'!AY46+'qr Bar'!AY46-'qs Bar'!AY46)/('Resistance Bar'!AY46)) -> 700.5877069 | AX23: =SQRT(('qc Bar'!AZ46+'qr Bar'!AZ46-'qs Bar'!AZ46)/('Resistance Bar'!AZ46)) -> 690.6551415 | AY23: =SQRT(('qc Bar'!BA46+'qr Bar'!BA46-'qs Bar'!BA46)/('Resistance Bar'!BA46)) -> 680.2991493 | AZ23: =SQRT(('qc Bar'!BB46+'qr Bar'!BB46-'qs Bar'!BB46)/('Resistance Bar'!BB46)) -> 669.4949534 | BA23: =SQRT(('qc Bar'!BC46+'qr Bar'!BC46-'qs Bar'!BC46)/('Resistance Bar'!BC46)) -> 658.2152204 | BB23: =SQRT(('qc Bar'!BD46+'qr Bar'!BD46-'qs Bar'!BD46)/('Resistance Bar'!BD46)) -> 646.4296512 | BC23: =SQRT(('qc Bar'!BE46+'qr Bar'!BE46-'qs Bar'!BE46)/('Resistance Bar'!BE46)) -> 634.1044817 | BD23: =SQRT(('qc Bar'!BF46+'qr Bar'!BF46-'qs Bar'!BF46)/('Resistance Bar'!BF46)) -> 621.2018695 | BE23: =SQRT(('qc Bar'!BG46+'qr Bar'!BG46-'qs Bar'!BG46)/('Resistance Bar'!BG46)) -> 607.6791305 | BF23: =SQRT(('qc Bar'!BH46+'qr Bar'!BH46-'qs Bar'!BH46)/('Resistance Bar'!BH46)) -> 593.4877812 | BG23: =SQRT(('qc Bar'!BI46+'qr Bar'!BI46-'qs Bar'!BI46)/('Resistance Bar'!BI46)) -> 578.5723175 | BH23: =SQRT(('qc Bar'!BJ46+'qr Bar'!BJ46-'qs Bar'!BJ46)/('Resistance Bar'!BJ46)) -> 562.8686404 | BI23: =SQRT(('qc Bar'!BK46+'qr Bar'!BK46-'qs Bar'!BK46)/('Resistance Bar'!BK46)) -> 546.3019901
A24: =min+14*incr -> 120 | B24: =SQRT(('qc Bar'!D49+'qr Bar'!D49-'qs Bar'!D49)/('Resistance Bar'!D49)) -> 847.0367526 | C24: =SQRT(('qc Bar'!E49+'qr Bar'!E49-'qs Bar'!E49)/('Resistance Bar'!E49)) -> 838.0838117 | D24: =SQRT(('qc Bar'!F49+'qr Bar'!F49-'qs Bar'!F49)/('Resistance Bar'!F49)) -> 828.4999964 | E24: =SQRT(('qc Bar'!G49+'qr Bar'!G49-'qs Bar'!G49)/('Resistance Bar'!G49)) -> 818.2423729 | F24: =SQRT(('qc Bar'!H49+'qr Bar'!H49-'qs Bar'!H49)/('Resistance Bar'!H49)) -> 807.2638109 | G24: =SQRT(('qc Bar'!I49+'qr Bar'!I49-'qs Bar'!I49)/('Resistance Bar'!I49)) -> 795.512299 | H24: =SQRT(('qc Bar'!J49+'qr Bar'!J49-'qs Bar'!J49)/('Resistance Bar'!J49)) -> 782.930104 | I24: =SQRT(('qc Bar'!K49+'qr Bar'!K49-'qs Bar'!K49)/('Resistance Bar'!K49)) -> 769.4527308 | J24: =SQRT(('qc Bar'!L49+'qr Bar'!L49-'qs Bar'!L49)/('Resistance Bar'!L49)) -> 755.0076186 | K24: =SQRT(('qc Bar'!M49+'qr Bar'!M49-'qs Bar'!M49)/('Resistance Bar'!M49)) -> 739.5124882 | L24: =SQRT(('qc Bar'!N49+'qr Bar'!N49-'qs Bar'!N49)/('Resistance Bar'!N49)) -> 722.8732168 | M24: =SQRT(('qc Bar'!O49+'qr Bar'!O49-'qs Bar'!O49)/('Resistance Bar'!O49)) -> 704.9810642 | Q24: =min+14*incr -> 120 | R24: =SQRT(('qc Bar'!T49+'qr Bar'!T49-'qs Bar'!T49)/('Resistance Bar'!T49)) -> 898.9864974 | S24: =SQRT(('qc Bar'!U49+'qr Bar'!U49-'qs Bar'!U49)/('Resistance Bar'!U49)) -> 896.1550708 | T24: =SQRT(('qc Bar'!V49+'qr Bar'!V49-'qs Bar'!V49)/('Resistance Bar'!V49)) -> 893.2057882 | U24: =SQRT(('qc Bar'!W49+'qr Bar'!W49-'qs Bar'!W49)/('Resistance Bar'!W49)) -> 890.1347255 | V24: =SQRT(('qc Bar'!X49+'qr Bar'!X49-'qs Bar'!X49)/('Resistance Bar'!X49)) -> 886.9378207 | W24: =SQRT(('qc Bar'!Y49+'qr Bar'!Y49-'qs Bar'!Y49)/('Resistance Bar'!Y49)) -> 883.6108657 | X24: =SQRT(('qc Bar'!Z49+'qr Bar'!Z49-'qs Bar'!Z49)/('Resistance Bar'!Z49)) -> 880.149498 | Y24: =SQRT(('qc Bar'!AA49+'qr Bar'!AA49-'qs Bar'!AA49)/('Resistance Bar'!AA49)) -> 876.5491907 | Z24: =SQRT(('qc Bar'!AB49+'qr Bar'!AB49-'qs Bar'!AB49)/('Resistance Bar'!AB49)) -> 872.8052424 | AA24: =SQRT(('qc Bar'!AC49+'qr Bar'!AC49-'qs Bar'!AC49)/('Resistance Bar'!AC49)) -> 868.9127658 | AB24: =SQRT(('qc Bar'!AD49+'qr Bar'!AD49-'qs Bar'!AD49)/('Resistance Bar'!AD49)) -> 864.8666757 | AC24: =SQRT(('qc Bar'!AE49+'qr Bar'!AE49-'qs Bar'!AE49)/('Resistance Bar'!AE49)) -> 860.6616753 | AD24: =SQRT(('qc Bar'!AF49+'qr Bar'!AF49-'qs Bar'!AF49)/('Resistance Bar'!AF49)) -> 856.2922414 | AE24: =SQRT(('qc Bar'!AG49+'qr Bar'!AG49-'qs Bar'!AG49)/('Resistance Bar'!AG49)) -> 851.7526089 | AF24: =SQRT(('qc Bar'!AH49+'qr Bar'!AH49-'qs Bar'!AH49)/('Resistance Bar'!AH49)) -> 847.0367526 | AG24: =SQRT(('qc Bar'!AI49+'qr Bar'!AI49-'qs Bar'!AI49)/('Resistance Bar'!AI49)) -> 842.1383679 | AH24: =SQRT(('qc Bar'!AJ49+'qr Bar'!AJ49-'qs Bar'!AJ49)/('Resistance Bar'!AJ49)) -> 837.0508497 | AI24: =SQRT(('qc Bar'!AK49+'qr Bar'!AK49-'qs Bar'!AK49)/('Resistance Bar'!AK49)) -> 831.7672684 | AJ24: =SQRT(('qc Bar'!AL49+'qr Bar'!AL49-'qs Bar'!AL49)/('Resistance Bar'!AL49)) -> 826.2803442 | AK24: =SQRT(('qc Bar'!AM49+'qr Bar'!AM49-'qs Bar'!AM49)/('Resistance Bar'!AM49)) -> 820.5824175 | AL24: =SQRT(('qc Bar'!AN49+'qr Bar'!AN49-'qs Bar'!AN49)/('Resistance Bar'!AN49)) -> 814.6654172 | AM24: =SQRT(('qc Bar'!AO49+'qr Bar'!AO49-'qs Bar'!AO49)/('Resistance Bar'!AO49)) -> 808.5208242 | AN24: =SQRT(('qc Bar'!AP49+'qr Bar'!AP49-'qs Bar'!AP49)/('Resistance Bar'!AP49)) -> 802.1396315 | AO24: =SQRT(('qc Bar'!AQ49+'qr Bar'!AQ49-'qs Bar'!AQ49)/('Resistance Bar'!AQ49)) -> 795.512299 | AP24: =SQRT(('qc Bar'!AR49+'qr Bar'!AR49-'qs Bar'!AR49)/('Resistance Bar'!AR49)) -> 788.6287025 | AQ24: =SQRT(('qc Bar'!AS49+'qr Bar'!AS49-'qs Bar'!AS49)/('Resistance Bar'!AS49)) -> 781.4780766 | AR24: =SQRT(('qc Bar'!AT49+'qr Bar'!AT49-'qs Bar'!AT49)/('Resistance Bar'!AT49)) -> 774.0489495 | AS24: =SQRT(('qc Bar'!AU49+'qr Bar'!AU49-'qs Bar'!AU49)/('Resistance Bar'!AU49)) -> 766.3290694 | AT24: =SQRT(('qc Bar'!AV49+'qr Bar'!AV49-'qs Bar'!AV49)/('Resistance Bar'!AV49)) -> 758.3053202 | AU24: =SQRT(('qc Bar'!AW49+'qr Bar'!AW49-'qs Bar'!AW49)/('Resistance Bar'!AW49)) -> 749.9636248 | AV24: =SQRT(('qc Bar'!AX49+'qr Bar'!AX49-'qs Bar'!AX49)/('Resistance Bar'!AX49)) -> 741.2888338 | AW24: =SQRT(('qc Bar'!AY49+'qr Bar'!AY49-'qs Bar'!AY49)/('Resistance Bar'!AY49)) -> 732.2645977 | AX24: =SQRT(('qc Bar'!AZ49+'qr Bar'!AZ49-'qs Bar'!AZ49)/('Resistance Bar'!AZ49)) -> 722.8732168 | AY24: =SQRT(('qc Bar'!BA49+'qr Bar'!BA49-'qs Bar'!BA49)/('Resistance Bar'!BA49)) -> 713.0954667 | AZ24: =SQRT(('qc Bar'!BB49+'qr Bar'!BB49-'qs Bar'!BB49)/('Resistance Bar'!BB49)) -> 702.910394 | BA24: =SQRT(('qc Bar'!BC49+'qr Bar'!BC49-'qs Bar'!BC49)/('Resistance Bar'!BC49)) -> 692.2950728 | BB24: =SQRT(('qc Bar'!BD49+'qr Bar'!BD49-'qs Bar'!BD49)/('Resistance Bar'!BD49)) -> 681.2243166 | BC24: =SQRT(('qc Bar'!BE49+'qr Bar'!BE49-'qs Bar'!BE49)/('Resistance Bar'!BE49)) -> 669.670332 | BD24: =SQRT(('qc Bar'!BF49+'qr Bar'!BF49-'qs Bar'!BF49)/('Resistance Bar'!BF49)) -> 657.6023004 | BE24: =SQRT(('qc Bar'!BG49+'qr Bar'!BG49-'qs Bar'!BG49)/('Resistance Bar'!BG49)) -> 644.9858678 | BF24: =SQRT(('qc Bar'!BH49+'qr Bar'!BH49-'qs Bar'!BH49)/('Resistance Bar'!BH49)) -> 631.7825177 | BG24: =SQRT(('qc Bar'!BI49+'qr Bar'!BI49-'qs Bar'!BI49)/('Resistance Bar'!BI49)) -> 617.9487908 | BH24: =SQRT(('qc Bar'!BJ49+'qr Bar'!BJ49-'qs Bar'!BJ49)/('Resistance Bar'!BJ49)) -> 603.4353043 | BI24: =SQRT(('qc Bar'!BK49+'qr Bar'!BK49-'qs Bar'!BK49)/('Resistance Bar'!BK49)) -> 588.1855026
A25: =min+15*incr -> 125 | B25: =SQRT(('qc Bar'!D52+'qr Bar'!D52-'qs Bar'!D52)/('Resistance Bar'!D52)) -> 872.8337455 | C25: =SQRT(('qc Bar'!E52+'qr Bar'!E52-'qs Bar'!E52)/('Resistance Bar'!E52)) -> 864.2436126 | D25: =SQRT(('qc Bar'!F52+'qr Bar'!F52-'qs Bar'!F52)/('Resistance Bar'!F52)) -> 855.0552831 | E25: =SQRT(('qc Bar'!G52+'qr Bar'!G52-'qs Bar'!G52)/('Resistance Bar'!G52)) -> 845.2293651 | F25: =SQRT(('qc Bar'!H52+'qr Bar'!H52-'qs Bar'!H52)/('Resistance Bar'!H52)) -> 834.7228301 | G25: =SQRT(('qc Bar'!I52+'qr Bar'!I52-'qs Bar'!I52)/('Resistance Bar'!I52)) -> 823.4884506 | H25: =SQRT(('qc Bar'!J52+'qr Bar'!J52-'qs Bar'!J52)/('Resistance Bar'!J52)) -> 811.474117 | I25: =SQRT(('qc Bar'!K52+'qr Bar'!K52-'qs Bar'!K52)/('Resistance Bar'!K52)) -> 798.622001 | J25: =SQRT(('qc Bar'!L52+'qr Bar'!L52-'qs Bar'!L52)/('Resistance Bar'!L52)) -> 784.86752 | K25: =SQRT(('qc Bar'!M52+'qr Bar'!M52-'qs Bar'!M52)/('Resistance Bar'!M52)) -> 770.1380403 | L25: =SQRT(('qc Bar'!N52+'qr Bar'!N52-'qs Bar'!N52)/('Resistance Bar'!N52)) -> 754.3512364 | M25: =SQRT(('qc Bar'!O52+'qr Bar'!O52-'qs Bar'!O52)/('Resistance Bar'!O52)) -> 737.4129822 | Q25: =min+15*incr -> 125 | R25: =SQRT(('qc Bar'!T52+'qr Bar'!T52-'qs Bar'!T52)/('Resistance Bar'!T52)) -> 922.7956613 | S25: =SQRT(('qc Bar'!U52+'qr Bar'!U52-'qs Bar'!U52)/('Resistance Bar'!U52)) -> 920.0677313 | T25: =SQRT(('qc Bar'!V52+'qr Bar'!V52-'qs Bar'!V52)/('Resistance Bar'!V52)) -> 917.2268187 | U25: =SQRT(('qc Bar'!W52+'qr Bar'!W52-'qs Bar'!W52)/('Resistance Bar'!W52)) -> 914.2692194 | V25: =SQRT(('qc Bar'!X52+'qr Bar'!X52-'qs Bar'!X52)/('Resistance Bar'!X52)) -> 911.1911046 | W25: =SQRT(('qc Bar'!Y52+'qr Bar'!Y52-'qs Bar'!Y52)/('Resistance Bar'!Y52)) -> 907.988513 | X25: =SQRT(('qc Bar'!Z52+'qr Bar'!Z52-'qs Bar'!Z52)/('Resistance Bar'!Z52)) -> 904.6573436 | Y25: =SQRT(('qc Bar'!AA52+'qr Bar'!AA52-'qs Bar'!AA52)/('Resistance Bar'!AA52)) -> 901.1933478 | Z25: =SQRT(('qc Bar'!AB52+'qr Bar'!AB52-'qs Bar'!AB52)/('Resistance Bar'!AB52)) -> 897.5921197 | AA25: =SQRT(('qc Bar'!AC52+'qr Bar'!AC52-'qs Bar'!AC52)/('Resistance Bar'!AC52)) -> 893.8490868 | AB25: =SQRT(('qc Bar'!AD52+'qr Bar'!AD52-'qs Bar'!AD52)/('Resistance Bar'!AD52)) -> 889.9594997 | AC25: =SQRT(('qc Bar'!AE52+'qr Bar'!AE52-'qs Bar'!AE52)/('Resistance Bar'!AE52)) -> 885.9184203 | AD25: =SQRT(('qc Bar'!AF52+'qr Bar'!AF52-'qs Bar'!AF52)/('Resistance Bar'!AF52)) -> 881.7207091 | AE25: =SQRT(('qc Bar'!AG52+'qr Bar'!AG52-'qs Bar'!AG52)/('Resistance Bar'!AG52)) -> 877.3610121 | AF25: =SQRT(('qc Bar'!AH52+'qr Bar'!AH52-'qs Bar'!AH52)/('Resistance Bar'!AH52)) -> 872.8337455 | AG25: =SQRT(('qc Bar'!AI52+'qr Bar'!AI52-'qs Bar'!AI52)/('Resistance Bar'!AI52)) -> 868.1330792 | AH25: =SQRT(('qc Bar'!AJ52+'qr Bar'!AJ52-'qs Bar'!AJ52)/('Resistance Bar'!AJ52)) -> 863.2529192 | AI25: =SQRT(('qc Bar'!AK52+'qr Bar'!AK52-'qs Bar'!AK52)/('Resistance Bar'!AK52)) -> 858.1868875 | AJ25: =SQRT(('qc Bar'!AL52+'qr Bar'!AL52-'qs Bar'!AL52)/('Resistance Bar'!AL52)) -> 852.9283004 | AK25: =SQRT(('qc Bar'!AM52+'qr Bar'!AM52-'qs Bar'!AM52)/('Resistance Bar'!AM52)) -> 847.4701448 | AL25: =SQRT(('qc Bar'!AN52+'qr Bar'!AN52-'qs Bar'!AN52)/('Resistance Bar'!AN52)) -> 841.8050507 | AM25: =SQRT(('qc Bar'!AO52+'qr Bar'!AO52-'qs Bar'!AO52)/('Resistance Bar'!AO52)) -> 835.9252626 | AN25: =SQRT(('qc Bar'!AP52+'qr Bar'!AP52-'qs Bar'!AP52)/('Resistance Bar'!AP52)) -> 829.8226059 | AO25: =SQRT(('qc Bar'!AQ52+'qr Bar'!AQ52-'qs Bar'!AQ52)/('Resistance Bar'!AQ52)) -> 823.4884506 | AP25: =SQRT(('qc Bar'!AR52+'qr Bar'!AR52-'qs Bar'!AR52)/('Resistance Bar'!AR52)) -> 816.9136699 | AQ25: =SQRT(('qc Bar'!AS52+'qr Bar'!AS52-'qs Bar'!AS52)/('Resistance Bar'!AS52)) -> 810.0885947 | AR25: =SQRT(('qc Bar'!AT52+'qr Bar'!AT52-'qs Bar'!AT52)/('Resistance Bar'!AT52)) -> 803.0029613 | AS25: =SQRT(('qc Bar'!AU52+'qr Bar'!AU52-'qs Bar'!AU52)/('Resistance Bar'!AU52)) -> 795.645853 | AT25: =SQRT(('qc Bar'!AV52+'qr Bar'!AV52-'qs Bar'!AV52)/('Resistance Bar'!AV52)) -> 788.0056342 | AU25: =SQRT(('qc Bar'!AW52+'qr Bar'!AW52-'qs Bar'!AW52)/('Resistance Bar'!AW52)) -> 780.0698747 | AV25: =SQRT(('qc Bar'!AX52+'qr Bar'!AX52-'qs Bar'!AX52)/('Resistance Bar'!AX52)) -> 771.8252637 | AW25: =SQRT(('qc Bar'!AY52+'qr Bar'!AY52-'qs Bar'!AY52)/('Resistance Bar'!AY52)) -> 763.2575117 | AX25: =SQRT(('qc Bar'!AZ52+'qr Bar'!AZ52-'qs Bar'!AZ52)/('Resistance Bar'!AZ52)) -> 754.3512364 | AY25: =SQRT(('qc Bar'!BA52+'qr Bar'!BA52-'qs Bar'!BA52)/('Resistance Bar'!BA52)) -> 745.089832 | AZ25: =SQRT(('qc Bar'!BB52+'qr Bar'!BB52-'qs Bar'!BB52)/('Resistance Bar'!BB52)) -> 735.4553164 | BA25: =SQRT(('qc Bar'!BC52+'qr Bar'!BC52-'qs Bar'!BC52)/('Resistance Bar'!BC52)) -> 725.4281532 | BB25: =SQRT(('qc Bar'!BD52+'qr Bar'!BD52-'qs Bar'!BD52)/('Resistance Bar'!BD52)) -> 714.9870416 | BC25: =SQRT(('qc Bar'!BE52+'qr Bar'!BE52-'qs Bar'!BE52)/('Resistance Bar'!BE52)) -> 704.108669 | BD25: =SQRT(('qc Bar'!BF52+'qr Bar'!BF52-'qs Bar'!BF52)/('Resistance Bar'!BF52)) -> 692.7674157 | BE25: =SQRT(('qc Bar'!BG52+'qr Bar'!BG52-'qs Bar'!BG52)/('Resistance Bar'!BG52)) -> 680.9350008 | BF25: =SQRT(('qc Bar'!BH52+'qr Bar'!BH52-'qs Bar'!BH52)/('Resistance Bar'!BH52)) -> 668.5800541 | BG25: =SQRT(('qc Bar'!BI52+'qr Bar'!BI52-'qs Bar'!BI52)/('Resistance Bar'!BI52)) -> 655.6675941 | BH25: =SQRT(('qc Bar'!BJ52+'qr Bar'!BJ52-'qs Bar'!BJ52)/('Resistance Bar'!BJ52)) -> 642.1583857 | BI25: =SQRT(('qc Bar'!BK52+'qr Bar'!BK52-'qs Bar'!BK52)/('Resistance Bar'!BK52)) -> 628.0081406
A26: =min+16*incr -> 130 | B26: =SQRT(('qc Bar'!D55+'qr Bar'!D55-'qs Bar'!D55)/('Resistance Bar'!D55)) -> 898.4596415 | C26: =SQRT(('qc Bar'!E55+'qr Bar'!E55-'qs Bar'!E55)/('Resistance Bar'!E55)) -> 890.2075537 | D26: =SQRT(('qc Bar'!F55+'qr Bar'!F55-'qs Bar'!F55)/('Resistance Bar'!F55)) -> 881.3869572 | E26: =SQRT(('qc Bar'!G55+'qr Bar'!G55-'qs Bar'!G55)/('Resistance Bar'!G55)) -> 871.9615339 | F26: =SQRT(('qc Bar'!H55+'qr Bar'!H55-'qs Bar'!H55)/('Resistance Bar'!H55)) -> 861.8917902 | G26: =SQRT(('qc Bar'!I55+'qr Bar'!I55-'qs Bar'!I55)/('Resistance Bar'!I55)) -> 851.1345901 | H26: =SQRT(('qc Bar'!J55+'qr Bar'!J55-'qs Bar'!J55)/('Resistance Bar'!J55)) -> 839.6425943 | I26: =SQRT(('qc Bar'!K55+'qr Bar'!K55-'qs Bar'!K55)/('Resistance Bar'!K55)) -> 827.3635782 | J26: =SQRT(('qc Bar'!L55+'qr Bar'!L55-'qs Bar'!L55)/('Resistance Bar'!L55)) -> 814.2395983 | K26: =SQRT(('qc Bar'!M55+'qr Bar'!M55-'qs Bar'!M55)/('Resistance Bar'!M55)) -> 800.2059598 | L26: =SQRT(('qc Bar'!N55+'qr Bar'!N55-'qs Bar'!N55)/('Resistance Bar'!N55)) -> 785.1899272 | M26: =SQRT(('qc Bar'!O55+'qr Bar'!O55-'qs Bar'!O55)/('Resistance Bar'!O55)) -> 769.1090922 | Q26: =min+16*incr -> 130 | R26: =SQRT(('qc Bar'!T55+'qr Bar'!T55-'qs Bar'!T55)/('Resistance Bar'!T55)) -> 946.5579302 | S26: =SQRT(('qc Bar'!U55+'qr Bar'!U55-'qs Bar'!U55)/('Resistance Bar'!U55)) -> 943.9274964 | T26: =SQRT(('qc Bar'!V55+'qr Bar'!V55-'qs Bar'!V55)/('Resistance Bar'!V55)) -> 941.188617 | U26: =SQRT(('qc Bar'!W55+'qr Bar'!W55-'qs Bar'!W55)/('Resistance Bar'!W55)) -> 938.3377877 | V26: =SQRT(('qc Bar'!X55+'qr Bar'!X55-'qs Bar'!X55)/('Resistance Bar'!X55)) -> 935.3713901 | W26: =SQRT(('qc Bar'!Y55+'qr Bar'!Y55-'qs Bar'!Y55)/('Resistance Bar'!Y55)) -> 932.2856855 | X26: =SQRT(('qc Bar'!Z55+'qr Bar'!Z55-'qs Bar'!Z55)/('Resistance Bar'!Z55)) -> 929.0768086 | Y26: =SQRT(('qc Bar'!AA55+'qr Bar'!AA55-'qs Bar'!AA55)/('Resistance Bar'!AA55)) -> 925.7407603 | Z26: =SQRT(('qc Bar'!AB55+'qr Bar'!AB55-'qs Bar'!AB55)/('Resistance Bar'!AB55)) -> 922.2733993 | AA26: =SQRT(('qc Bar'!AC55+'qr Bar'!AC55-'qs Bar'!AC55)/('Resistance Bar'!AC55)) -> 918.6704347 | AB26: =SQRT(('qc Bar'!AD55+'qr Bar'!AD55-'qs Bar'!AD55)/('Resistance Bar'!AD55)) -> 914.927416 | AC26: =SQRT(('qc Bar'!AE55+'qr Bar'!AE55-'qs Bar'!AE55)/('Resistance Bar'!AE55)) -> 911.0397238 | AD26: =SQRT(('qc Bar'!AF55+'qr Bar'!AF55-'qs Bar'!AF55)/('Resistance Bar'!AF55)) -> 907.0025586 | AE26: =SQRT(('qc Bar'!AG55+'qr Bar'!AG55-'qs Bar'!AG55)/('Resistance Bar'!AG55)) -> 902.8109296 | AF26: =SQRT(('qc Bar'!AH55+'qr Bar'!AH55-'qs Bar'!AH55)/('Resistance Bar'!AH55)) -> 898.4596415 | AG26: =SQRT(('qc Bar'!AI55+'qr Bar'!AI55-'qs Bar'!AI55)/('Resistance Bar'!AI55)) -> 893.9432809 | AH26: =SQRT(('qc Bar'!AJ55+'qr Bar'!AJ55-'qs Bar'!AJ55)/('Resistance Bar'!AJ55)) -> 889.2562008 | AI26: =SQRT(('qc Bar'!AK55+'qr Bar'!AK55-'qs Bar'!AK55)/('Resistance Bar'!AK55)) -> 884.3925042 | AJ26: =SQRT(('qc Bar'!AL55+'qr Bar'!AL55-'qs Bar'!AL55)/('Resistance Bar'!AL55)) -> 879.3460255 | AK26: =SQRT(('qc Bar'!AM55+'qr Bar'!AM55-'qs Bar'!AM55)/('Resistance Bar'!AM55)) -> 874.1103104 | AL26: =SQRT(('qc Bar'!AN55+'qr Bar'!AN55-'qs Bar'!AN55)/('Resistance Bar'!AN55)) -> 868.6785941 | AM26: =SQRT(('qc Bar'!AO55+'qr Bar'!AO55-'qs Bar'!AO55)/('Resistance Bar'!AO55)) -> 863.043776 | AN26: =SQRT(('qc Bar'!AP55+'qr Bar'!AP55-'qs Bar'!AP55)/('Resistance Bar'!AP55)) -> 857.1983933 | AO26: =SQRT(('qc Bar'!AQ55+'qr Bar'!AQ55-'qs Bar'!AQ55)/('Resistance Bar'!AQ55)) -> 851.1345901 | AP26: =SQRT(('qc Bar'!AR55+'qr Bar'!AR55-'qs Bar'!AR55)/('Resistance Bar'!AR55)) -> 844.8440847 | AQ26: =SQRT(('qc Bar'!AS55+'qr Bar'!AS55-'qs Bar'!AS55)/('Resistance Bar'!AS55)) -> 838.3181314 | AR26: =SQRT(('qc Bar'!AT55+'qr Bar'!AT55-'qs Bar'!AT55)/('Resistance Bar'!AT55)) -> 831.547479 | AS26: =SQRT(('qc Bar'!AU55+'qr Bar'!AU55-'qs Bar'!AU55)/('Resistance Bar'!AU55)) -> 824.5223239 | AT26: =SQRT(('qc Bar'!AV55+'qr Bar'!AV55-'qs Bar'!AV55)/('Resistance Bar'!AV55)) -> 817.2322571 | AU26: =SQRT(('qc Bar'!AW55+'qr Bar'!AW55-'qs Bar'!AW55)/('Resistance Bar'!AW55)) -> 809.6662044 | AV26: =SQRT(('qc Bar'!AX55+'qr Bar'!AX55-'qs Bar'!AX55)/('Resistance Bar'!AX55)) -> 801.812359 | AW26: =SQRT(('qc Bar'!AY55+'qr Bar'!AY55-'qs Bar'!AY55)/('Resistance Bar'!AY55)) -> 793.6581046 | AX26: =SQRT(('qc Bar'!AZ55+'qr Bar'!AZ55-'qs Bar'!AZ55)/('Resistance Bar'!AZ55)) -> 785.1899272 | AY26: =SQRT(('qc Bar'!BA55+'qr Bar'!BA55-'qs Bar'!BA55)/('Resistance Bar'!BA55)) -> 776.393315 | AZ26: =SQRT(('qc Bar'!BB55+'qr Bar'!BB55-'qs Bar'!BB55)/('Resistance Bar'!BB55)) -> 767.2526419 | BA26: =SQRT(('qc Bar'!BC55+'qr Bar'!BC55-'qs Bar'!BC55)/('Resistance Bar'!BC55)) -> 757.7510339 | BB26: =SQRT(('qc Bar'!BD55+'qr Bar'!BD55-'qs Bar'!BD55)/('Resistance Bar'!BD55)) -> 747.8702128 | BC26: =SQRT(('qc Bar'!BE55+'qr Bar'!BE55-'qs Bar'!BE55)/('Resistance Bar'!BE55)) -> 737.5903141 | BD26: =SQRT(('qc Bar'!BF55+'qr Bar'!BF55-'qs Bar'!BF55)/('Resistance Bar'!BF55)) -> 726.8896722 | BE26: =SQRT(('qc Bar'!BG55+'qr Bar'!BG55-'qs Bar'!BG55)/('Resistance Bar'!BG55)) -> 715.7445674 | BF26: =SQRT(('qc Bar'!BH55+'qr Bar'!BH55-'qs Bar'!BH55)/('Resistance Bar'!BH55)) -> 704.1289233 | BG26: =SQRT(('qc Bar'!BI55+'qr Bar'!BI55-'qs Bar'!BI55)/('Resistance Bar'!BI55)) -> 692.013944 | BH26: =SQRT(('qc Bar'!BJ55+'qr Bar'!BJ55-'qs Bar'!BJ55)/('Resistance Bar'!BJ55)) -> 679.3676761 | BI26: =SQRT(('qc Bar'!BK55+'qr Bar'!BK55-'qs Bar'!BK55)/('Resistance Bar'!BK55)) -> 666.1544729
A27: =min+17*incr -> 135 | B27: =SQRT(('qc Bar'!D58+'qr Bar'!D58-'qs Bar'!D58)/('Resistance Bar'!D58)) -> 923.9377392 | C27: =SQRT(('qc Bar'!E58+'qr Bar'!E58-'qs Bar'!E58)/('Resistance Bar'!E58)) -> 916.0014935 | D27: =SQRT(('qc Bar'!F58+'qr Bar'!F58-'qs Bar'!F58)/('Resistance Bar'!F58)) -> 907.5238394 | E27: =SQRT(('qc Bar'!G58+'qr Bar'!G58-'qs Bar'!G58)/('Resistance Bar'!G58)) -> 898.4711469 | F27: =SQRT(('qc Bar'!H58+'qr Bar'!H58-'qs Bar'!H58)/('Resistance Bar'!H58)) -> 888.806993 | G27: =SQRT(('qc Bar'!I58+'qr Bar'!I58-'qs Bar'!I58)/('Resistance Bar'!I58)) -> 878.4917722 | H27: =SQRT(('qc Bar'!J58+'qr Bar'!J58-'qs Bar'!J58)/('Resistance Bar'!J58)) -> 867.4822297 | I27: =SQRT(('qc Bar'!K58+'qr Bar'!K58-'qs Bar'!K58)/('Resistance Bar'!K58)) -> 855.7309006 | J27: =SQRT(('qc Bar'!L58+'qr Bar'!L58-'qs Bar'!L58)/('Resistance Bar'!L58)) -> 843.18543 | K27: =SQRT(('qc Bar'!M58+'qr Bar'!M58-'qs Bar'!M58)/('Resistance Bar'!M58)) -> 829.7877402 | L27: =SQRT(('qc Bar'!N58+'qr Bar'!N58-'qs Bar'!N58)/('Resistance Bar'!N58)) -> 815.4730023 | M27: =SQRT(('qc Bar'!O58+'qr Bar'!O58-'qs Bar'!O58)/('Resistance Bar'!O58)) -> 800.1683518 | Q27: =min+17*incr -> 135 | R27: =SQRT(('qc Bar'!T58+'qr Bar'!T58-'qs Bar'!T58)/('Resistance Bar'!T58)) -> 970.285023 | S27: =SQRT(('qc Bar'!U58+'qr Bar'!U58-'qs Bar'!U58)/('Resistance Bar'!U58)) -> 967.7465937 | T27: =SQRT(('qc Bar'!V58+'qr Bar'!V58-'qs Bar'!V58)/('Resistance Bar'!V58)) -> 965.1039542 | U27: =SQRT(('qc Bar'!W58+'qr Bar'!W58-'qs Bar'!W58)/('Resistance Bar'!W58)) -> 962.3537813 | V27: =SQRT(('qc Bar'!X58+'qr Bar'!X58-'qs Bar'!X58)/('Resistance Bar'!X58)) -> 959.4926481 | W27: =SQRT(('qc Bar'!Y58+'qr Bar'!Y58-'qs Bar'!Y58)/('Resistance Bar'!Y58)) -> 956.5170176 | X27: =SQRT(('qc Bar'!Z58+'qr Bar'!Z58-'qs Bar'!Z58)/('Resistance Bar'!Z58)) -> 953.4232376 | Y27: =SQRT(('qc Bar'!AA58+'qr Bar'!AA58-'qs Bar'!AA58)/('Resistance Bar'!AA58)) -> 950.2075339 | Z27: =SQRT(('qc Bar'!AB58+'qr Bar'!AB58-'qs Bar'!AB58)/('Resistance Bar'!AB58)) -> 946.8660037 | AA27: =SQRT(('qc Bar'!AC58+'qr Bar'!AC58-'qs Bar'!AC58)/('Resistance Bar'!AC58)) -> 943.3946085 | AB27: =SQRT(('qc Bar'!AD58+'qr Bar'!AD58-'qs Bar'!AD58)/('Resistance Bar'!AD58)) -> 939.7891659 | AC27: =SQRT(('qc Bar'!AE58+'qr Bar'!AE58-'qs Bar'!AE58)/('Resistance Bar'!AE58)) -> 936.045341 | AD27: =SQRT(('qc Bar'!AF58+'qr Bar'!AF58-'qs Bar'!AF58)/('Resistance Bar'!AF58)) -> 932.1586375 | AE27: =SQRT(('qc Bar'!AG58+'qr Bar'!AG58-'qs Bar'!AG58)/('Resistance Bar'!AG58)) -> 928.1243872 | AF27: =SQRT(('qc Bar'!AH58+'qr Bar'!AH58-'qs Bar'!AH58)/('Resistance Bar'!AH58)) -> 923.9377392 | AG27: =SQRT(('qc Bar'!AI58+'qr Bar'!AI58-'qs Bar'!AI58)/('Resistance Bar'!AI58)) -> 919.5936481 | AH27: =SQRT(('qc Bar'!AJ58+'qr Bar'!AJ58-'qs Bar'!AJ58)/('Resistance Bar'!AJ58)) -> 915.0868608 | AI27: =SQRT(('qc Bar'!AK58+'qr Bar'!AK58-'qs Bar'!AK58)/('Resistance Bar'!AK58)) -> 910.4119025 | AJ27: =SQRT(('qc Bar'!AL58+'qr Bar'!AL58-'qs Bar'!AL58)/('Resistance Bar'!AL58)) -> 905.5630608 | AK27: =SQRT(('qc Bar'!AM58+'qr Bar'!AM58-'qs Bar'!AM58)/('Resistance Bar'!AM58)) -> 900.5343694 | AL27: =SQRT(('qc Bar'!AN58+'qr Bar'!AN58-'qs Bar'!AN58)/('Resistance Bar'!AN58)) -> 895.3195886 | AM27: =SQRT(('qc Bar'!AO58+'qr Bar'!AO58-'qs Bar'!AO58)/('Resistance Bar'!AO58)) -> 889.9121853 | AN27: =SQRT(('qc Bar'!AP58+'qr Bar'!AP58-'qs Bar'!AP58)/('Resistance Bar'!AP58)) -> 884.30531 | AO27: =SQRT(('qc Bar'!AQ58+'qr Bar'!AQ58-'qs Bar'!AQ58)/('Resistance Bar'!AQ58)) -> 878.4917722 | AP27: =SQRT(('qc Bar'!AR58+'qr Bar'!AR58-'qs Bar'!AR58)/('Resistance Bar'!AR58)) -> 872.4640121 | AQ27: =SQRT(('qc Bar'!AS58+'qr Bar'!AS58-'qs Bar'!AS58)/('Resistance Bar'!AS58)) -> 866.2140705 | AR27: =SQRT(('qc Bar'!AT58+'qr Bar'!AT58-'qs Bar'!AT58)/('Resistance Bar'!AT58)) -> 859.7335538 | AS27: =SQRT(('qc Bar'!AU58+'qr Bar'!AU58-'qs Bar'!AU58)/('Resistance Bar'!AU58)) -> 853.0135966 | AT27: =SQRT(('qc Bar'!AV58+'qr Bar'!AV58-'qs Bar'!AV58)/('Resistance Bar'!AV58)) -> 846.0448184 | AU27: =SQRT(('qc Bar'!AW58+'qr Bar'!AW58-'qs Bar'!AW58)/('Resistance Bar'!AW58)) -> 838.8172758 | AV27: =SQRT(('qc Bar'!AX58+'qr Bar'!AX58-'qs Bar'!AX58)/('Resistance Bar'!AX58)) -> 831.3204088 | AW27: =SQRT(('qc Bar'!AY58+'qr Bar'!AY58-'qs Bar'!AY58)/('Resistance Bar'!AY58)) -> 823.5429792 | AX27: =SQRT(('qc Bar'!AZ58+'qr Bar'!AZ58-'qs Bar'!AZ58)/('Resistance Bar'!AZ58)) -> 815.4730023 | AY27: =SQRT(('qc Bar'!BA58+'qr Bar'!BA58-'qs Bar'!BA58)/('Resistance Bar'!BA58)) -> 807.0976676 | AZ27: =SQRT(('qc Bar'!BB58+'qr Bar'!BB58-'qs Bar'!BB58)/('Resistance Bar'!BB58)) -> 798.4032494 | BA27: =SQRT(('qc Bar'!BC58+'qr Bar'!BC58-'qs Bar'!BC58)/('Resistance Bar'!BC58)) -> 789.375004 | BB27: =SQRT(('qc Bar'!BD58+'qr Bar'!BD58-'qs Bar'!BD58)/('Resistance Bar'!BD58)) -> 779.9970508 | BC27: =SQRT(('qc Bar'!BE58+'qr Bar'!BE58-'qs Bar'!BE58)/('Resistance Bar'!BE58)) -> 770.2522353 | BD27: =SQRT(('qc Bar'!BF58+'qr Bar'!BF58-'qs Bar'!BF58)/('Resistance Bar'!BF58)) -> 760.1219695 | BE27: =SQRT(('qc Bar'!BG58+'qr Bar'!BG58-'qs Bar'!BG58)/('Resistance Bar'!BG58)) -> 749.5860453 | BF27: =SQRT(('qc Bar'!BH58+'qr Bar'!BH58-'qs Bar'!BH58)/('Resistance Bar'!BH58)) -> 738.6224149 | BG27: =SQRT(('qc Bar'!BI58+'qr Bar'!BI58-'qs Bar'!BI58)/('Resistance Bar'!BI58)) -> 727.2069309 | BH27: =SQRT(('qc Bar'!BJ58+'qr Bar'!BJ58-'qs Bar'!BJ58)/('Resistance Bar'!BJ58)) -> 715.3130365 | BI27: =SQRT(('qc Bar'!BK58+'qr Bar'!BK58-'qs Bar'!BK58)/('Resistance Bar'!BK58)) -> 702.911394
A28: =min+18*incr -> 140 | B28: =SQRT(('qc Bar'!D61+'qr Bar'!D61-'qs Bar'!D61)/('Resistance Bar'!D61)) -> 949.2887083 | C28: =SQRT(('qc Bar'!E61+'qr Bar'!E61-'qs Bar'!E61)/('Resistance Bar'!E61)) -> 941.6483009 | D28: =SQRT(('qc Bar'!F61+'qr Bar'!F61-'qs Bar'!F61)/('Resistance Bar'!F61)) -> 933.4913308 | E28: =SQRT(('qc Bar'!G61+'qr Bar'!G61-'qs Bar'!G61)/('Resistance Bar'!G61)) -> 924.7865338 | F28: =SQRT(('qc Bar'!H61+'qr Bar'!H61-'qs Bar'!H61)/('Resistance Bar'!H61)) -> 915.5001746 | G28: =SQRT(('qc Bar'!I61+'qr Bar'!I61-'qs Bar'!I61)/('Resistance Bar'!I61)) -> 905.5957174 | H28: =SQRT(('qc Bar'!J61+'qr Bar'!J61-'qs Bar'!J61)/('Resistance Bar'!J61)) -> 895.0334353 | I28: =SQRT(('qc Bar'!K61+'qr Bar'!K61-'qs Bar'!K61)/('Resistance Bar'!K61)) -> 883.769944 | J28: =SQRT(('qc Bar'!L61+'qr Bar'!L61-'qs Bar'!L61)/('Resistance Bar'!L61)) -> 871.757641 | K28: =SQRT(('qc Bar'!M61+'qr Bar'!M61-'qs Bar'!M61)/('Resistance Bar'!M61)) -> 858.9440258 | L28: =SQRT(('qc Bar'!N61+'qr Bar'!N61-'qs Bar'!N61)/('Resistance Bar'!N61)) -> 845.2708698 | M28: =SQRT(('qc Bar'!O61+'qr Bar'!O61-'qs Bar'!O61)/('Resistance Bar'!O61)) -> 830.6731895 | Q28: =min+18*incr -> 140 | R28: =SQRT(('qc Bar'!T61+'qr Bar'!T61-'qs Bar'!T61)/('Resistance Bar'!T61)) -> 993.9875012 | S28: =SQRT(('qc Bar'!U61+'qr Bar'!U61-'qs Bar'!U61)/('Resistance Bar'!U61)) -> 991.5360352 | T28: =SQRT(('qc Bar'!V61+'qr Bar'!V61-'qs Bar'!V61)/('Resistance Bar'!V61)) -> 988.9843219 | U28: =SQRT(('qc Bar'!W61+'qr Bar'!W61-'qs Bar'!W61)/('Resistance Bar'!W61)) -> 986.329204 | V28: =SQRT(('qc Bar'!X61+'qr Bar'!X61-'qs Bar'!X61)/('Resistance Bar'!X61)) -> 983.5674288 | W28: =SQRT(('qc Bar'!Y61+'qr Bar'!Y61-'qs Bar'!Y61)/('Resistance Bar'!Y61)) -> 980.6956431 | X28: =SQRT(('qc Bar'!Z61+'qr Bar'!Z61-'qs Bar'!Z61)/('Resistance Bar'!Z61)) -> 977.7103879 | Y28: =SQRT(('qc Bar'!AA61+'qr Bar'!AA61-'qs Bar'!AA61)/('Resistance Bar'!AA61)) -> 974.6080931 | Z28: =SQRT(('qc Bar'!AB61+'qr Bar'!AB61-'qs Bar'!AB61)/('Resistance Bar'!AB61)) -> 971.3850713 | AA28: =SQRT(('qc Bar'!AC61+'qr Bar'!AC61-'qs Bar'!AC61)/('Resistance Bar'!AC61)) -> 968.037512 | AB28: =SQRT(('qc Bar'!AD61+'qr Bar'!AD61-'qs Bar'!AD61)/('Resistance Bar'!AD61)) -> 964.5614738 | AC28: =SQRT(('qc Bar'!AE61+'qr Bar'!AE61-'qs Bar'!AE61)/('Resistance Bar'!AE61)) -> 960.9528777 | AD28: =SQRT(('qc Bar'!AF61+'qr Bar'!AF61-'qs Bar'!AF61)/('Resistance Bar'!AF61)) -> 957.2074987 | AE28: =SQRT(('qc Bar'!AG61+'qr Bar'!AG61-'qs Bar'!AG61)/('Resistance Bar'!AG61)) -> 953.3209568 | AF28: =SQRT(('qc Bar'!AH61+'qr Bar'!AH61-'qs Bar'!AH61)/('Resistance Bar'!AH61)) -> 949.2887083 | AG28: =SQRT(('qc Bar'!AI61+'qr Bar'!AI61-'qs Bar'!AI61)/('Resistance Bar'!AI61)) -> 945.1060348 | AH28: =SQRT(('qc Bar'!AJ61+'qr Bar'!AJ61-'qs Bar'!AJ61)/('Resistance Bar'!AJ61)) -> 940.7680321 | AI28: =SQRT(('qc Bar'!AK61+'qr Bar'!AK61-'qs Bar'!AK61)/('Resistance Bar'!AK61)) -> 936.2695986 | AJ28: =SQRT(('qc Bar'!AL61+'qr Bar'!AL61-'qs Bar'!AL61)/('Resistance Bar'!AL61)) -> 931.6054215 | AK28: =SQRT(('qc Bar'!AM61+'qr Bar'!AM61-'qs Bar'!AM61)/('Resistance Bar'!AM61)) -> 926.7699625 | AL28: =SQRT(('qc Bar'!AN61+'qr Bar'!AN61-'qs Bar'!AN61)/('Resistance Bar'!AN61)) -> 921.7574419 | AM28: =SQRT(('qc Bar'!AO61+'qr Bar'!AO61-'qs Bar'!AO61)/('Resistance Bar'!AO61)) -> 916.5618214 | AN28: =SQRT(('qc Bar'!AP61+'qr Bar'!AP61-'qs Bar'!AP61)/('Resistance Bar'!AP61)) -> 911.1767848 | AO28: =SQRT(('qc Bar'!AQ61+'qr Bar'!AQ61-'qs Bar'!AQ61)/('Resistance Bar'!AQ61)) -> 905.5957174 | AP28: =SQRT(('qc Bar'!AR61+'qr Bar'!AR61-'qs Bar'!AR61)/('Resistance Bar'!AR61)) -> 899.8116824 | AQ28: =SQRT(('qc Bar'!AS61+'qr Bar'!AS61-'qs Bar'!AS61)/('Resistance Bar'!AS61)) -> 893.8173959 | AR28: =SQRT(('qc Bar'!AT61+'qr Bar'!AT61-'qs Bar'!AT61)/('Resistance Bar'!AT61)) -> 887.605198 | AS28: =SQRT(('qc Bar'!AU61+'qr Bar'!AU61-'qs Bar'!AU61)/('Resistance Bar'!AU61)) -> 881.167022 | AT28: =SQRT(('qc Bar'!AV61+'qr Bar'!AV61-'qs Bar'!AV61)/('Resistance Bar'!AV61)) -> 874.4943591 | AU28: =SQRT(('qc Bar'!AW61+'qr Bar'!AW61-'qs Bar'!AW61)/('Resistance Bar'!AW61)) -> 867.5782193 | AV28: =SQRT(('qc Bar'!AX61+'qr Bar'!AX61-'qs Bar'!AX61)/('Resistance Bar'!AX61)) -> 860.4090881 | AW28: =SQRT(('qc Bar'!AY61+'qr Bar'!AY61-'qs Bar'!AY61)/('Resistance Bar'!AY61)) -> 852.9768773 | AX28: =SQRT(('qc Bar'!AZ61+'qr Bar'!AZ61-'qs Bar'!AZ61)/('Resistance Bar'!AZ61)) -> 845.2708698 | AY28: =SQRT(('qc Bar'!BA61+'qr Bar'!BA61-'qs Bar'!BA61)/('Resistance Bar'!BA61)) -> 837.2796575 | AZ28: =SQRT(('qc Bar'!BB61+'qr Bar'!BB61-'qs Bar'!BB61)/('Resistance Bar'!BB61)) -> 828.9910704 | BA28: =SQRT(('qc Bar'!BC61+'qr Bar'!BC61-'qs Bar'!BC61)/('Resistance Bar'!BC61)) -> 820.3920963 | BB28: =SQRT(('qc Bar'!BD61+'qr Bar'!BD61-'qs Bar'!BD61)/('Resistance Bar'!BD61)) -> 811.4687893 | BC28: =SQRT(('qc Bar'!BE61+'qr Bar'!BE61-'qs Bar'!BE61)/('Resistance Bar'!BE61)) -> 802.206164 | BD28: =SQRT(('qc Bar'!BF61+'qr Bar'!BF61-'qs Bar'!BF61)/('Resistance Bar'!BF61)) -> 792.5880746 | BE28: =SQRT(('qc Bar'!BG61+'qr Bar'!BG61-'qs Bar'!BG61)/('Resistance Bar'!BG61)) -> 782.5970742 | BF28: =SQRT(('qc Bar'!BH61+'qr Bar'!BH61-'qs Bar'!BH61)/('Resistance Bar'!BH61)) -> 772.2142511 | BG28: =SQRT(('qc Bar'!BI61+'qr Bar'!BI61-'qs Bar'!BI61)/('Resistance Bar'!BI61)) -> 761.4190383 | BH28: =SQRT(('qc Bar'!BJ61+'qr Bar'!BJ61-'qs Bar'!BJ61)/('Resistance Bar'!BJ61)) -> 750.1889877 | BI28: =SQRT(('qc Bar'!BK61+'qr Bar'!BK61-'qs Bar'!BK61)/('Resistance Bar'!BK61)) -> 738.499504
A29: =min+19*incr -> 145 | B29: =SQRT(('qc Bar'!D64+'qr Bar'!D64-'qs Bar'!D64)/('Resistance Bar'!D64)) -> 974.5309651 | C29: =SQRT(('qc Bar'!E64+'qr Bar'!E64-'qs Bar'!E64)/('Resistance Bar'!E64)) -> 967.168295 | D29: =SQRT(('qc Bar'!F64+'qr Bar'!F64-'qs Bar'!F64)/('Resistance Bar'!F64)) -> 959.31193 | E29: =SQRT(('qc Bar'!G64+'qr Bar'!G64-'qs Bar'!G64)/('Resistance Bar'!G64)) -> 950.9327014 | F29: =SQRT(('qc Bar'!H64+'qr Bar'!H64-'qs Bar'!H64)/('Resistance Bar'!H64)) -> 941.9992414 | G29: =SQRT(('qc Bar'!I64+'qr Bar'!I64-'qs Bar'!I64)/('Resistance Bar'!I64)) -> 932.4777031 | H29: =SQRT(('qc Bar'!J64+'qr Bar'!J64-'qs Bar'!J64)/('Resistance Bar'!J64)) -> 922.3314302 | I29: =SQRT(('qc Bar'!K64+'qr Bar'!K64-'qs Bar'!K64)/('Resistance Bar'!K64)) -> 911.5205659 | J29: =SQRT(('qc Bar'!L64+'qr Bar'!L64-'qs Bar'!L64)/('Resistance Bar'!L64)) -> 900.0015861 | K29: =SQRT(('qc Bar'!M64+'qr Bar'!M64-'qs Bar'!M64)/('Resistance Bar'!M64)) -> 887.726739 | L29: =SQRT(('qc Bar'!N64+'qr Bar'!N64-'qs Bar'!N64)/('Resistance Bar'!N64)) -> 874.6433656 | M29: =SQRT(('qc Bar'!O64+'qr Bar'!O64-'qs Bar'!O64)/('Resistance Bar'!O64)) -> 860.6930701 | Q29: =min+19*incr -> 145 | R29: =SQRT(('qc Bar'!T64+'qr Bar'!T64-'qs Bar'!T64)/('Resistance Bar'!T64)) -> 1017.674909 | S29: =SQRT(('qc Bar'!U64+'qr Bar'!U64-'qs Bar'!U64)/('Resistance Bar'!U64)) -> 1015.305765 | T29: =SQRT(('qc Bar'!V64+'qr Bar'!V64-'qs Bar'!V64)/('Resistance Bar'!V64)) -> 1012.840091 | U29: =SQRT(('qc Bar'!W64+'qr Bar'!W64-'qs Bar'!W64)/('Resistance Bar'!W64)) -> 1010.27488 | V29: =SQRT(('qc Bar'!X64+'qr Bar'!X64-'qs Bar'!X64)/('Resistance Bar'!X64)) -> 1007.60704 | W29: =SQRT(('qc Bar'!Y64+'qr Bar'!Y64-'qs Bar'!Y64)/('Resistance Bar'!Y64)) -> 1004.833386 | X29: =SQRT(('qc Bar'!Z64+'qr Bar'!Z64-'qs Bar'!Z64)/('Resistance Bar'!Z64)) -> 1001.950634 | Y29: =SQRT(('qc Bar'!AA64+'qr Bar'!AA64-'qs Bar'!AA64)/('Resistance Bar'!AA64)) -> 998.9553996 | Z29: =SQRT(('qc Bar'!AB64+'qr Bar'!AB64-'qs Bar'!AB64)/('Resistance Bar'!AB64)) -> 995.8441919 | AA29: =SQRT(('qc Bar'!AC64+'qr Bar'!AC64-'qs Bar'!AC64)/('Resistance Bar'!AC64)) -> 992.6134064 | AB29: =SQRT(('qc Bar'!AD64+'qr Bar'!AD64-'qs Bar'!AD64)/('Resistance Bar'!AD64)) -> 989.25932 | AC29: =SQRT(('qc Bar'!AE64+'qr Bar'!AE64-'qs Bar'!AE64)/('Resistance Bar'!AE64)) -> 985.7780843 | AD29: =SQRT(('qc Bar'!AF64+'qr Bar'!AF64-'qs Bar'!AF64)/('Resistance Bar'!AF64)) -> 982.1657184 | AE29: =SQRT(('qc Bar'!AG64+'qr Bar'!AG64-'qs Bar'!AG64)/('Resistance Bar'!AG64)) -> 978.4181017 | AF29: =SQRT(('qc Bar'!AH64+'qr Bar'!AH64-'qs Bar'!AH64)/('Resistance Bar'!AH64)) -> 974.5309651 | AG29: =SQRT(('qc Bar'!AI64+'qr Bar'!AI64-'qs Bar'!AI64)/('Resistance Bar'!AI64)) -> 970.4998826 | AH29: =SQRT(('qc Bar'!AJ64+'qr Bar'!AJ64-'qs Bar'!AJ64)/('Resistance Bar'!AJ64)) -> 966.3202613 | AI29: =SQRT(('qc Bar'!AK64+'qr Bar'!AK64-'qs Bar'!AK64)/('Resistance Bar'!AK64)) -> 961.9873311 | AJ29: =SQRT(('qc Bar'!AL64+'qr Bar'!AL64-'qs Bar'!AL64)/('Resistance Bar'!AL64)) -> 957.4961331 | AK29: =SQRT(('qc Bar'!AM64+'qr Bar'!AM64-'qs Bar'!AM64)/('Resistance Bar'!AM64)) -> 952.8415076 | AL29: =SQRT(('qc Bar'!AN64+'qr Bar'!AN64-'qs Bar'!AN64)/('Resistance Bar'!AN64)) -> 948.0180801 | AM29: =SQRT(('qc Bar'!AO64+'qr Bar'!AO64-'qs Bar'!AO64)/('Resistance Bar'!AO64)) -> 943.0202469 | AN29: =SQRT(('qc Bar'!AP64+'qr Bar'!AP64-'qs Bar'!AP64)/('Resistance Bar'!AP64)) -> 937.8421587 | AO29: =SQRT(('qc Bar'!AQ64+'qr Bar'!AQ64-'qs Bar'!AQ64)/('Resistance Bar'!AQ64)) -> 932.4777031 | AP29: =SQRT(('qc Bar'!AR64+'qr Bar'!AR64-'qs Bar'!AR64)/('Resistance Bar'!AR64)) -> 926.9204849 | AQ29: =SQRT(('qc Bar'!AS64+'qr Bar'!AS64-'qs Bar'!AS64)/('Resistance Bar'!AS64)) -> 921.1638049 | AR29: =SQRT(('qc Bar'!AT64+'qr Bar'!AT64-'qs Bar'!AT64)/('Resistance Bar'!AT64)) -> 915.2006364 | AS29: =SQRT(('qc Bar'!AU64+'qr Bar'!AU64-'qs Bar'!AU64)/('Resistance Bar'!AU64)) -> 909.0235986 | AT29: =SQRT(('qc Bar'!AV64+'qr Bar'!AV64-'qs Bar'!AV64)/('Resistance Bar'!AV64)) -> 902.6249284 | AU29: =SQRT(('qc Bar'!AW64+'qr Bar'!AW64-'qs Bar'!AW64)/('Resistance Bar'!AW64)) -> 895.9964479 | AV29: =SQRT(('qc Bar'!AX64+'qr Bar'!AX64-'qs Bar'!AX64)/('Resistance Bar'!AX64)) -> 889.1295287 | AW29: =SQRT(('qc Bar'!AY64+'qr Bar'!AY64-'qs Bar'!AY64)/('Resistance Bar'!AY64)) -> 882.0150525 | AX29: =SQRT(('qc Bar'!AZ64+'qr Bar'!AZ64-'qs Bar'!AZ64)/('Resistance Bar'!AZ64)) -> 874.6433656 | AY29: =SQRT(('qc Bar'!BA64+'qr Bar'!BA64-'qs Bar'!BA64)/('Resistance Bar'!BA64)) -> 867.0042299 | AZ29: =SQRT(('qc Bar'!BB64+'qr Bar'!BB64-'qs Bar'!BB64)/('Resistance Bar'!BB64)) -> 859.0867656 | BA29: =SQRT(('qc Bar'!BC64+'qr Bar'!BC64-'qs Bar'!BC64)/('Resistance Bar'!BC64)) -> 850.8793881 | BB29: =SQRT(('qc Bar'!BD64+'qr Bar'!BD64-'qs Bar'!BD64)/('Resistance Bar'!BD64)) -> 842.3697354 | BC29: =SQRT(('qc Bar'!BE64+'qr Bar'!BE64-'qs Bar'!BE64)/('Resistance Bar'!BE64)) -> 833.544586 | BD29: =SQRT(('qc Bar'!BF64+'qr Bar'!BF64-'qs Bar'!BF64)/('Resistance Bar'!BF64)) -> 824.3897649 | BE29: =SQRT(('qc Bar'!BG64+'qr Bar'!BG64-'qs Bar'!BG64)/('Resistance Bar'!BG64)) -> 814.8900356 | BF29: =SQRT(('qc Bar'!BH64+'qr Bar'!BH64-'qs Bar'!BH64)/('Resistance Bar'!BH64)) -> 805.0289763 | BG29: =SQRT(('qc Bar'!BI64+'qr Bar'!BI64-'qs Bar'!BI64)/('Resistance Bar'!BI64)) -> 794.7888354 | BH29: =SQRT(('qc Bar'!BJ64+'qr Bar'!BJ64-'qs Bar'!BJ64)/('Resistance Bar'!BJ64)) -> 784.1503642 | BI29: =SQRT(('qc Bar'!BK64+'qr Bar'!BK64-'qs Bar'!BK64)/('Resistance Bar'!BK64)) -> 773.0926209
A30: =min+20*incr -> 150 | B30: =SQRT(('qc Bar'!D67+'qr Bar'!D67-'qs Bar'!D67)/('Resistance Bar'!D67)) -> 999.6809826 | C30: =SQRT(('qc Bar'!E67+'qr Bar'!E67-'qs Bar'!E67)/('Resistance Bar'!E67)) -> 992.579605 | D30: =SQRT(('qc Bar'!F67+'qr Bar'!F67-'qs Bar'!F67)/('Resistance Bar'!F67)) -> 985.0056549 | E30: =SQRT(('qc Bar'!G67+'qr Bar'!G67-'qs Bar'!G67)/('Resistance Bar'!G67)) -> 976.9318303 | F30: =SQRT(('qc Bar'!H67+'qr Bar'!H67-'qs Bar'!H67)/('Resistance Bar'!H67)) -> 968.3288619 | G30: =SQRT(('qc Bar'!I67+'qr Bar'!I67-'qs Bar'!I67)/('Resistance Bar'!I67)) -> 959.1652729 | H30: =SQRT(('qc Bar'!J67+'qr Bar'!J67-'qs Bar'!J67)/('Resistance Bar'!J67)) -> 949.4070985 | I30: =SQRT(('qc Bar'!K67+'qr Bar'!K67-'qs Bar'!K67)/('Resistance Bar'!K67)) -> 939.0175546 | J30: =SQRT(('qc Bar'!L67+'qr Bar'!L67-'qs Bar'!L67)/('Resistance Bar'!L67)) -> 927.9566462 | K30: =SQRT(('qc Bar'!M67+'qr Bar'!M67-'qs Bar'!M67)/('Resistance Bar'!M67)) -> 916.1807004 | L30: =SQRT(('qc Bar'!N67+'qr Bar'!N67-'qs Bar'!N67)/('Resistance Bar'!N67)) -> 903.6418054 | M30: =SQRT(('qc Bar'!O67+'qr Bar'!O67-'qs Bar'!O67)/('Resistance Bar'!O67)) -> 890.287131 | Q30: =min+20*incr -> 150 | R30: =SQRT(('qc Bar'!T67+'qr Bar'!T67-'qs Bar'!T67)/('Resistance Bar'!T67)) -> 1041.355891 | S30: =SQRT(('qc Bar'!U67+'qr Bar'!U67-'qs Bar'!U67)/('Resistance Bar'!U67)) -> 1039.064786 | T30: =SQRT(('qc Bar'!V67+'qr Bar'!V67-'qs Bar'!V67)/('Resistance Bar'!V67)) -> 1036.680643 | U30: =SQRT(('qc Bar'!W67+'qr Bar'!W67-'qs Bar'!W67)/('Resistance Bar'!W67)) -> 1034.200597 | V30: =SQRT(('qc Bar'!X67+'qr Bar'!X67-'qs Bar'!X67)/('Resistance Bar'!X67)) -> 1031.6217 | W30: =SQRT(('qc Bar'!Y67+'qr Bar'!Y67-'qs Bar'!Y67)/('Resistance Bar'!Y67)) -> 1028.940921 | X30: =SQRT(('qc Bar'!Z67+'qr Bar'!Z67-'qs Bar'!Z67)/('Resistance Bar'!Z67)) -> 1026.155138 | Y30: =SQRT(('qc Bar'!AA67+'qr Bar'!AA67-'qs Bar'!AA67)/('Resistance Bar'!AA67)) -> 1023.261137 | Z30: =SQRT(('qc Bar'!AB67+'qr Bar'!AB67-'qs Bar'!AB67)/('Resistance Bar'!AB67)) -> 1020.255603 | AA30: =SQRT(('qc Bar'!AC67+'qr Bar'!AC67-'qs Bar'!AC67)/('Resistance Bar'!AC67)) -> 1017.135122 | AB30: =SQRT(('qc Bar'!AD67+'qr Bar'!AD67-'qs Bar'!AD67)/('Resistance Bar'!AD67)) -> 1013.896168 | AC30: =SQRT(('qc Bar'!AE67+'qr Bar'!AE67-'qs Bar'!AE67)/('Resistance Bar'!AE67)) -> 1010.535101 | AD30: =SQRT(('qc Bar'!AF67+'qr Bar'!AF67-'qs Bar'!AF67)/('Resistance Bar'!AF67)) -> 1007.048161 | AE30: =SQRT(('qc Bar'!AG67+'qr Bar'!AG67-'qs Bar'!AG67)/('Resistance Bar'!AG67)) -> 1003.431462 | AF30: =SQRT(('qc Bar'!AH67+'qr Bar'!AH67-'qs Bar'!AH67)/('Resistance Bar'!AH67)) -> 999.6809826 | AG30: =SQRT(('qc Bar'!AI67+'qr Bar'!AI67-'qs Bar'!AI67)/('Resistance Bar'!AI67)) -> 995.7925583 | AH30: =SQRT(('qc Bar'!AJ67+'qr Bar'!AJ67-'qs Bar'!AJ67)/('Resistance Bar'!AJ67)) -> 991.7618753 | AI30: =SQRT(('qc Bar'!AK67+'qr Bar'!AK67-'qs Bar'!AK67)/('Resistance Bar'!AK67)) -> 987.5844599 | AJ30: =SQRT(('qc Bar'!AL67+'qr Bar'!AL67-'qs Bar'!AL67)/('Resistance Bar'!AL67)) -> 983.2556689 | AK30: =SQRT(('qc Bar'!AM67+'qr Bar'!AM67-'qs Bar'!AM67)/('Resistance Bar'!AM67)) -> 978.7706788 | AL30: =SQRT(('qc Bar'!AN67+'qr Bar'!AN67-'qs Bar'!AN67)/('Resistance Bar'!AN67)) -> 974.1244744 | AM30: =SQRT(('qc Bar'!AO67+'qr Bar'!AO67-'qs Bar'!AO67)/('Resistance Bar'!AO67)) -> 969.3118361 | AN30: =SQRT(('qc Bar'!AP67+'qr Bar'!AP67-'qs Bar'!AP67)/('Resistance Bar'!AP67)) -> 964.327326 | AO30: =SQRT(('qc Bar'!AQ67+'qr Bar'!AQ67-'qs Bar'!AQ67)/('Resistance Bar'!AQ67)) -> 959.1652729 | AP30: =SQRT(('qc Bar'!AR67+'qr Bar'!AR67-'qs Bar'!AR67)/('Resistance Bar'!AR67)) -> 953.8197557 | AQ30: =SQRT(('qc Bar'!AS67+'qr Bar'!AS67-'qs Bar'!AS67)/('Resistance Bar'!AS67)) -> 948.2845857 | AR30: =SQRT(('qc Bar'!AT67+'qr Bar'!AT67-'qs Bar'!AT67)/('Resistance Bar'!AT67)) -> 942.553286 | AS30: =SQRT(('qc Bar'!AU67+'qr Bar'!AU67-'qs Bar'!AU67)/('Resistance Bar'!AU67)) -> 936.6190706 | AT30: =SQRT(('qc Bar'!AV67+'qr Bar'!AV67-'qs Bar'!AV67)/('Resistance Bar'!AV67)) -> 930.4748194 | AU30: =SQRT(('qc Bar'!AW67+'qr Bar'!AW67-'qs Bar'!AW67)/('Resistance Bar'!AW67)) -> 924.1130524 | AV30: =SQRT(('qc Bar'!AX67+'qr Bar'!AX67-'qs Bar'!AX67)/('Resistance Bar'!AX67)) -> 917.5258993 | AW30: =SQRT(('qc Bar'!AY67+'qr Bar'!AY67-'qs Bar'!AY67)/('Resistance Bar'!AY67)) -> 910.7050676 | AX30: =SQRT(('qc Bar'!AZ67+'qr Bar'!AZ67-'qs Bar'!AZ67)/('Resistance Bar'!AZ67)) -> 903.6418054 | AY30: =SQRT(('qc Bar'!BA67+'qr Bar'!BA67-'qs Bar'!BA67)/('Resistance Bar'!BA67)) -> 896.3268613 | AZ30: =SQRT(('qc Bar'!BB67+'qr Bar'!BB67-'qs Bar'!BB67)/('Resistance Bar'!BB67)) -> 888.7504383 | BA30: =SQRT(('qc Bar'!BC67+'qr Bar'!BC67-'qs Bar'!BC67)/('Resistance Bar'!BC67)) -> 880.9021426 | BB30: =SQRT(('qc Bar'!BD67+'qr Bar'!BD67-'qs Bar'!BD67)/('Resistance Bar'!BD67)) -> 872.7709264 | BC30: =SQRT(('qc Bar'!BE67+'qr Bar'!BE67-'qs Bar'!BE67)/('Resistance Bar'!BE67)) -> 864.3450222 | BD30: =SQRT(('qc Bar'!BF67+'qr Bar'!BF67-'qs Bar'!BF67)/('Resistance Bar'!BF67)) -> 855.6118691 | BE30: =SQRT(('qc Bar'!BG67+'qr Bar'!BG67-'qs Bar'!BG67)/('Resistance Bar'!BG67)) -> 846.5580283 | BF30: =SQRT(('qc Bar'!BH67+'qr Bar'!BH67-'qs Bar'!BH67)/('Resistance Bar'!BH67)) -> 837.1690872 | BG30: =SQRT(('qc Bar'!BI67+'qr Bar'!BI67-'qs Bar'!BI67)/('Resistance Bar'!BI67)) -> 827.4295488 | BH30: =SQRT(('qc Bar'!BJ67+'qr Bar'!BJ67-'qs Bar'!BJ67)/('Resistance Bar'!BJ67)) -> 817.3227043 | BI30: =SQRT(('qc Bar'!BK67+'qr Bar'!BK67-'qs Bar'!BK67)/('Resistance Bar'!BK67)) -> 806.8304854
A31: =min+21*incr -> 155 | B31: =SQRT(('qc Bar'!D70+'qr Bar'!D70-'qs Bar'!D70)/('Resistance Bar'!D70)) -> 1024.753548 | C31: =SQRT(('qc Bar'!E70+'qr Bar'!E70-'qs Bar'!E70)/('Resistance Bar'!E70)) -> 1017.898468 | D31: =SQRT(('qc Bar'!F70+'qr Bar'!F70-'qs Bar'!F70)/('Resistance Bar'!F70)) -> 1010.59039 | E31: =SQRT(('qc Bar'!G70+'qr Bar'!G70-'qs Bar'!G70)/('Resistance Bar'!G70)) -> 1002.803682 | F31: =SQRT(('qc Bar'!H70+'qr Bar'!H70-'qs Bar'!H70)/('Resistance Bar'!H70)) -> 994.5109459 | G31: =SQRT(('qc Bar'!I70+'qr Bar'!I70-'qs Bar'!I70)/('Resistance Bar'!I70)) -> 985.682807 | H31: =SQRT(('qc Bar'!J70+'qr Bar'!J70-'qs Bar'!J70)/('Resistance Bar'!J70)) -> 976.2876743 | I31: =SQRT(('qc Bar'!K70+'qr Bar'!K70-'qs Bar'!K70)/('Resistance Bar'!K70)) -> 966.2914589 | J31: =SQRT(('qc Bar'!L70+'qr Bar'!L70-'qs Bar'!L70)/('Resistance Bar'!L70)) -> 955.6572423 | K31: =SQRT(('qc Bar'!M70+'qr Bar'!M70-'qs Bar'!M70)/('Resistance Bar'!M70)) -> 944.3448841 | L31: =SQRT(('qc Bar'!N70+'qr Bar'!N70-'qs Bar'!N70)/('Resistance Bar'!N70)) -> 932.3105535 | M31: =SQRT(('qc Bar'!O70+'qr Bar'!O70-'qs Bar'!O70)/('Resistance Bar'!O70)) -> 919.5061687 | Q31: =min+21*incr -> 155 | R31: =SQRT(('qc Bar'!T70+'qr Bar'!T70-'qs Bar'!T70)/('Resistance Bar'!T70)) -> 1065.038296 | S31: =SQRT(('qc Bar'!U70+'qr Bar'!U70-'qs Bar'!U70)/('Resistance Bar'!U70)) -> 1062.821268 | T31: =SQRT(('qc Bar'!V70+'qr Bar'!V70-'qs Bar'!V70)/('Resistance Bar'!V70)) -> 1060.514489 | U31: =SQRT(('qc Bar'!W70+'qr Bar'!W70-'qs Bar'!W70)/('Resistance Bar'!W70)) -> 1058.115225 | V31: =SQRT(('qc Bar'!X70+'qr Bar'!X70-'qs Bar'!X70)/('Resistance Bar'!X70)) -> 1055.620662 | W31: =SQRT(('qc Bar'!Y70+'qr Bar'!Y70-'qs Bar'!Y70)/('Resistance Bar'!Y70)) -> 1053.027911 | X31: =SQRT(('qc Bar'!Z70+'qr Bar'!Z70-'qs Bar'!Z70)/('Resistance Bar'!Z70)) -> 1050.333998 | Y31: =SQRT(('qc Bar'!AA70+'qr Bar'!AA70-'qs Bar'!AA70)/('Resistance Bar'!AA70)) -> 1047.535864 | Z31: =SQRT(('qc Bar'!AB70+'qr Bar'!AB70-'qs Bar'!AB70)/('Resistance Bar'!AB70)) -> 1044.630358 | AA31: =SQRT(('qc Bar'!AC70+'qr Bar'!AC70-'qs Bar'!AC70)/('Resistance Bar'!AC70)) -> 1041.614237 | AB31: =SQRT(('qc Bar'!AD70+'qr Bar'!AD70-'qs Bar'!AD70)/('Resistance Bar'!AD70)) -> 1038.484154 | AC31: =SQRT(('qc Bar'!AE70+'qr Bar'!AE70-'qs Bar'!AE70)/('Resistance Bar'!AE70)) -> 1035.236662 | AD31: =SQRT(('qc Bar'!AF70+'qr Bar'!AF70-'qs Bar'!AF70)/('Resistance Bar'!AF70)) -> 1031.868201 | AE31: =SQRT(('qc Bar'!AG70+'qr Bar'!AG70-'qs Bar'!AG70)/('Resistance Bar'!AG70)) -> 1028.375096 | AF31: =SQRT(('qc Bar'!AH70+'qr Bar'!AH70-'qs Bar'!AH70)/('Resistance Bar'!AH70)) -> 1024.753548 | AG31: =SQRT(('qc Bar'!AI70+'qr Bar'!AI70-'qs Bar'!AI70)/('Resistance Bar'!AI70)) -> 1020.999632 | AH31: =SQRT(('qc Bar'!AJ70+'qr Bar'!AJ70-'qs Bar'!AJ70)/('Resistance Bar'!AJ70)) -> 1017.109284 | AI31: =SQRT(('qc Bar'!AK70+'qr Bar'!AK70-'qs Bar'!AK70)/('Resistance Bar'!AK70)) -> 1013.078296 | AJ31: =SQRT(('qc Bar'!AL70+'qr Bar'!AL70-'qs Bar'!AL70)/('Resistance Bar'!AL70)) -> 1008.902309 | AK31: =SQRT(('qc Bar'!AM70+'qr Bar'!AM70-'qs Bar'!AM70)/('Resistance Bar'!AM70)) -> 1004.576798 | AL31: =SQRT(('qc Bar'!AN70+'qr Bar'!AN70-'qs Bar'!AN70)/('Resistance Bar'!AN70)) -> 1000.09707 | AM31: =SQRT(('qc Bar'!AO70+'qr Bar'!AO70-'qs Bar'!AO70)/('Resistance Bar'!AO70)) -> 995.4582452 | AN31: =SQRT(('qc Bar'!AP70+'qr Bar'!AP70-'qs Bar'!AP70)/('Resistance Bar'!AP70)) -> 990.6552514 | AO31: =SQRT(('qc Bar'!AQ70+'qr Bar'!AQ70-'qs Bar'!AQ70)/('Resistance Bar'!AQ70)) -> 985.682807 | AP31: =SQRT(('qc Bar'!AR70+'qr Bar'!AR70-'qs Bar'!AR70)/('Resistance Bar'!AR70)) -> 980.5354088 | AQ31: =SQRT(('qc Bar'!AS70+'qr Bar'!AS70-'qs Bar'!AS70)/('Resistance Bar'!AS70)) -> 975.2073162 | AR31: =SQRT(('qc Bar'!AT70+'qr Bar'!AT70-'qs Bar'!AT70)/('Resistance Bar'!AT70)) -> 969.6925343 | AS31: =SQRT(('qc Bar'!AU70+'qr Bar'!AU70-'qs Bar'!AU70)/('Resistance Bar'!AU70)) -> 963.9847954 | AT31: =SQRT(('qc Bar'!AV70+'qr Bar'!AV70-'qs Bar'!AV70)/('Resistance Bar'!AV70)) -> 958.0775389 | AU31: =SQRT(('qc Bar'!AW70+'qr Bar'!AW70-'qs Bar'!AW70)/('Resistance Bar'!AW70)) -> 951.9638889 | AV31: =SQRT(('qc Bar'!AX70+'qr Bar'!AX70-'qs Bar'!AX70)/('Resistance Bar'!AX70)) -> 945.6366296 | AW31: =SQRT(('qc Bar'!AY70+'qr Bar'!AY70-'qs Bar'!AY70)/('Resistance Bar'!AY70)) -> 939.0881779 | AX31: =SQRT(('qc Bar'!AZ70+'qr Bar'!AZ70-'qs Bar'!AZ70)/('Resistance Bar'!AZ70)) -> 932.3105535 | AY31: =SQRT(('qc Bar'!BA70+'qr Bar'!BA70-'qs Bar'!BA70)/('Resistance Bar'!BA70)) -> 925.2953455 | AZ31: =SQRT(('qc Bar'!BB70+'qr Bar'!BB70-'qs Bar'!BB70)/('Resistance Bar'!BB70)) -> 918.0336746 | BA31: =SQRT(('qc Bar'!BC70+'qr Bar'!BC70-'qs Bar'!BC70)/('Resistance Bar'!BC70)) -> 910.5161518 | BB31: =SQRT(('qc Bar'!BD70+'qr Bar'!BD70-'qs Bar'!BD70)/('Resistance Bar'!BD70)) -> 902.732832 | BC31: =SQRT(('qc Bar'!BE70+'qr Bar'!BE70-'qs Bar'!BE70)/('Resistance Bar'!BE70)) -> 894.6731609 | BD31: =SQRT(('qc Bar'!BF70+'qr Bar'!BF70-'qs Bar'!BF70)/('Resistance Bar'!BF70)) -> 886.3259166 | BE31: =SQRT(('qc Bar'!BG70+'qr Bar'!BG70-'qs Bar'!BG70)/('Resistance Bar'!BG70)) -> 877.6791425 | BF31: =SQRT(('qc Bar'!BH70+'qr Bar'!BH70-'qs Bar'!BH70)/('Resistance Bar'!BH70)) -> 868.7200717 | BG31: =SQRT(('qc Bar'!BI70+'qr Bar'!BI70-'qs Bar'!BI70)/('Resistance Bar'!BI70)) -> 859.4350405 | BH31: =SQRT(('qc Bar'!BJ70+'qr Bar'!BJ70-'qs Bar'!BJ70)/('Resistance Bar'!BJ70)) -> 849.8093902 | BI31: =SQRT(('qc Bar'!BK70+'qr Bar'!BK70-'qs Bar'!BK70)/('Resistance Bar'!BK70)) -> 839.8273534
A32: =min+22*incr -> 160 | B32: =SQRT(('qc Bar'!D73+'qr Bar'!D73-'qs Bar'!D73)/('Resistance Bar'!D73)) -> 1049.76198 | C32: =SQRT(('qc Bar'!E73+'qr Bar'!E73-'qs Bar'!E73)/('Resistance Bar'!E73)) -> 1043.139478 | D32: =SQRT(('qc Bar'!F73+'qr Bar'!F73-'qs Bar'!F73)/('Resistance Bar'!F73)) -> 1036.082171 | E32: =SQRT(('qc Bar'!G73+'qr Bar'!G73-'qs Bar'!G73)/('Resistance Bar'!G73)) -> 1028.565932 | F32: =SQRT(('qc Bar'!H73+'qr Bar'!H73-'qs Bar'!H73)/('Resistance Bar'!H73)) -> 1020.565038 | G32: =SQRT(('qc Bar'!I73+'qr Bar'!I73-'qs Bar'!I73)/('Resistance Bar'!I73)) -> 1012.051986 | H32: =SQRT(('qc Bar'!J73+'qr Bar'!J73-'qs Bar'!J73)/('Resistance Bar'!J73)) -> 1002.997295 | I32: =SQRT(('qc Bar'!K73+'qr Bar'!K73-'qs Bar'!K73)/('Resistance Bar'!K73)) -> 993.369252 | J32: =SQRT(('qc Bar'!L73+'qr Bar'!L73-'qs Bar'!L73)/('Resistance Bar'!L73)) -> 983.1336405 | K32: =SQRT(('qc Bar'!M73+'qr Bar'!M73-'qs Bar'!M73)/('Resistance Bar'!M73)) -> 972.2534007 | L32: =SQRT(('qc Bar'!N73+'qr Bar'!N73-'qs Bar'!N73)/('Resistance Bar'!N73)) -> 960.6882394 | M32: =SQRT(('qc Bar'!O73+'qr Bar'!O73-'qs Bar'!O73)/('Resistance Bar'!O73)) -> 948.3941603 | Q32: =min+22*incr -> 160 | R32: =SQRT(('qc Bar'!T73+'qr Bar'!T73-'qs Bar'!T73)/('Resistance Bar'!T73)) -> 1088.729267 | S32: =SQRT(('qc Bar'!U73+'qr Bar'!U73-'qs Bar'!U73)/('Resistance Bar'!U73)) -> 1086.582639 | T32: =SQRT(('qc Bar'!V73+'qr Bar'!V73-'qs Bar'!V73)/('Resistance Bar'!V73)) -> 1084.349364 | U32: =SQRT(('qc Bar'!W73+'qr Bar'!W73-'qs Bar'!W73)/('Resistance Bar'!W73)) -> 1082.026823 | V32: =SQRT(('qc Bar'!X73+'qr Bar'!X73-'qs Bar'!X73)/('Resistance Bar'!X73)) -> 1079.612331 | W32: =SQRT(('qc Bar'!Y73+'qr Bar'!Y73-'qs Bar'!Y73)/('Resistance Bar'!Y73)) -> 1077.103126 | X32: =SQRT(('qc Bar'!Z73+'qr Bar'!Z73-'qs Bar'!Z73)/('Resistance Bar'!Z73)) -> 1074.496372 | Y32: =SQRT(('qc Bar'!AA73+'qr Bar'!AA73-'qs Bar'!AA73)/('Resistance Bar'!AA73)) -> 1071.789152 | Z32: =SQRT(('qc Bar'!AB73+'qr Bar'!AB73-'qs Bar'!AB73)/('Resistance Bar'!AB73)) -> 1068.978466 | AA32: =SQRT(('qc Bar'!AC73+'qr Bar'!AC73-'qs Bar'!AC73)/('Resistance Bar'!AC73)) -> 1066.061226 | AB32: =SQRT(('qc Bar'!AD73+'qr Bar'!AD73-'qs Bar'!AD73)/('Resistance Bar'!AD73)) -> 1063.034254 | AC32: =SQRT(('qc Bar'!AE73+'qr Bar'!AE73-'qs Bar'!AE73)/('Resistance Bar'!AE73)) -> 1059.894273 | AD32: =SQRT(('qc Bar'!AF73+'qr Bar'!AF73-'qs Bar'!AF73)/('Resistance Bar'!AF73)) -> 1056.637908 | AE32: =SQRT(('qc Bar'!AG73+'qr Bar'!AG73-'qs Bar'!AG73)/('Resistance Bar'!AG73)) -> 1053.261675 | AF32: =SQRT(('qc Bar'!AH73+'qr Bar'!AH73-'qs Bar'!AH73)/('Resistance Bar'!AH73)) -> 1049.76198 | AG32: =SQRT(('qc Bar'!AI73+'qr Bar'!AI73-'qs Bar'!AI73)/('Resistance Bar'!AI73)) -> 1046.135112 | AH32: =SQRT(('qc Bar'!AJ73+'qr Bar'!AJ73-'qs Bar'!AJ73)/('Resistance Bar'!AJ73)) -> 1042.377233 | AI32: =SQRT(('qc Bar'!AK73+'qr Bar'!AK73-'qs Bar'!AK73)/('Resistance Bar'!AK73)) -> 1038.484377 | AJ32: =SQRT(('qc Bar'!AL73+'qr Bar'!AL73-'qs Bar'!AL73)/('Resistance Bar'!AL73)) -> 1034.452436 | AK32: =SQRT(('qc Bar'!AM73+'qr Bar'!AM73-'qs Bar'!AM73)/('Resistance Bar'!AM73)) -> 1030.277159 | AL32: =SQRT(('qc Bar'!AN73+'qr Bar'!AN73-'qs Bar'!AN73)/('Resistance Bar'!AN73)) -> 1025.954138 | AM32: =SQRT(('qc Bar'!AO73+'qr Bar'!AO73-'qs Bar'!AO73)/('Resistance Bar'!AO73)) -> 1021.478798 | AN32: =SQRT(('qc Bar'!AP73+'qr Bar'!AP73-'qs Bar'!AP73)/('Resistance Bar'!AP73)) -> 1016.846393 | AO32: =SQRT(('qc Bar'!AQ73+'qr Bar'!AQ73-'qs Bar'!AQ73)/('Resistance Bar'!AQ73)) -> 1012.051986 | AP32: =SQRT(('qc Bar'!AR73+'qr Bar'!AR73-'qs Bar'!AR73)/('Resistance Bar'!AR73)) -> 1007.090447 | AQ32: =SQRT(('qc Bar'!AS73+'qr Bar'!AS73-'qs Bar'!AS73)/('Resistance Bar'!AS73)) -> 1001.956429 | AR32: =SQRT(('qc Bar'!AT73+'qr Bar'!AT73-'qs Bar'!AT73)/('Resistance Bar'!AT73)) -> 996.6443624 | AS32: =SQRT(('qc Bar'!AU73+'qr Bar'!AU73-'qs Bar'!AU73)/('Resistance Bar'!AU73)) -> 991.1484355 | AT32: =SQRT(('qc Bar'!AV73+'qr Bar'!AV73-'qs Bar'!AV73)/('Resistance Bar'!AV73)) -> 985.462577 | AU32: =SQRT(('qc Bar'!AW73+'qr Bar'!AW73-'qs Bar'!AW73)/('Resistance Bar'!AW73)) -> 979.5804384 | AV32: =SQRT(('qc Bar'!AX73+'qr Bar'!AX73-'qs Bar'!AX73)/('Resistance Bar'!AX73)) -> 973.4953725 | AW32: =SQRT(('qc Bar'!AY73+'qr Bar'!AY73-'qs Bar'!AY73)/('Resistance Bar'!AY73)) -> 967.2004111 | AX32: =SQRT(('qc Bar'!AZ73+'qr Bar'!AZ73-'qs Bar'!AZ73)/('Resistance Bar'!AZ73)) -> 960.6882394 | AY32: =SQRT(('qc Bar'!BA73+'qr Bar'!BA73-'qs Bar'!BA73)/('Resistance Bar'!BA73)) -> 953.9511688 | AZ32: =SQRT(('qc Bar'!BB73+'qr Bar'!BB73-'qs Bar'!BB73)/('Resistance Bar'!BB73)) -> 946.9811052 | BA32: =SQRT(('qc Bar'!BC73+'qr Bar'!BC73-'qs Bar'!BC73)/('Resistance Bar'!BC73)) -> 939.7695156 | BB32: =SQRT(('qc Bar'!BD73+'qr Bar'!BD73-'qs Bar'!BD73)/('Resistance Bar'!BD73)) -> 932.3073893 | BC32: =SQRT(('qc Bar'!BE73+'qr Bar'!BE73-'qs Bar'!BE73)/('Resistance Bar'!BE73)) -> 924.5851958 | BD32: =SQRT(('qc Bar'!BF73+'qr Bar'!BF73-'qs Bar'!BF73)/('Resistance Bar'!BF73)) -> 916.5928367 | BE32: =SQRT(('qc Bar'!BG73+'qr Bar'!BG73-'qs Bar'!BG73)/('Resistance Bar'!BG73)) -> 908.319592 | BF32: =SQRT(('qc Bar'!BH73+'qr Bar'!BH73-'qs Bar'!BH73)/('Resistance Bar'!BH73)) -> 899.75406 | BG32: =SQRT(('qc Bar'!BI73+'qr Bar'!BI73-'qs Bar'!BI73)/('Resistance Bar'!BI73)) -> 890.8840887 | BH32: =SQRT(('qc Bar'!BJ73+'qr Bar'!BJ73-'qs Bar'!BJ73)/('Resistance Bar'!BJ73)) -> 881.6966983 | BI32: =SQRT(('qc Bar'!BK73+'qr Bar'!BK73-'qs Bar'!BK73)/('Resistance Bar'!BK73)) -> 872.1779923
A33: =min+23*incr -> 165 | B33: =SQRT(('qc Bar'!D76+'qr Bar'!D76-'qs Bar'!D76)/('Resistance Bar'!D76)) -> 1074.718309 | C33: =SQRT(('qc Bar'!E76+'qr Bar'!E76-'qs Bar'!E76)/('Resistance Bar'!E76)) -> 1068.315794 | D33: =SQRT(('qc Bar'!F76+'qr Bar'!F76-'qs Bar'!F76)/('Resistance Bar'!F76)) -> 1061.495431 | E33: =SQRT(('qc Bar'!G76+'qr Bar'!G76-'qs Bar'!G76)/('Resistance Bar'!G76)) -> 1054.234452 | F33: =SQRT(('qc Bar'!H76+'qr Bar'!H76-'qs Bar'!H76)/('Resistance Bar'!H76)) -> 1046.508639 | G33: =SQRT(('qc Bar'!I76+'qr Bar'!I76-'qs Bar'!I76)/('Resistance Bar'!I76)) -> 1038.292174 | H33: =SQRT(('qc Bar'!J76+'qr Bar'!J76-'qs Bar'!J76)/('Resistance Bar'!J76)) -> 1029.557449 | I33: =SQRT(('qc Bar'!K76+'qr Bar'!K76-'qs Bar'!K76)/('Resistance Bar'!K76)) -> 1020.274868 | J33: =SQRT(('qc Bar'!L76+'qr Bar'!L76-'qs Bar'!L76)/('Resistance Bar'!L76)) -> 1010.412596 | K33: =SQRT(('qc Bar'!M76+'qr Bar'!M76-'qs Bar'!M76)/('Resistance Bar'!M76)) -> 999.9362802 | L33: =SQRT(('qc Bar'!N76+'qr Bar'!N76-'qs Bar'!N76)/('Resistance Bar'!N76)) -> 988.808715 | M33: =SQRT(('qc Bar'!O76+'qr Bar'!O76-'qs Bar'!O76)/('Resistance Bar'!O76)) -> 976.9894474 | Q33: =min+23*incr -> 165 | R33: =SQRT(('qc Bar'!T76+'qr Bar'!T76-'qs Bar'!T76)/('Resistance Bar'!T76)) -> 1112.435311 | S33: =SQRT(('qc Bar'!U76+'qr Bar'!U76-'qs Bar'!U76)/('Resistance Bar'!U76)) -> 1110.35567 | T33: =SQRT(('qc Bar'!V76+'qr Bar'!V76-'qs Bar'!V76)/('Resistance Bar'!V76)) -> 1108.192311 | U33: =SQRT(('qc Bar'!W76+'qr Bar'!W76-'qs Bar'!W76)/('Resistance Bar'!W76)) -> 1105.942729 | V33: =SQRT(('qc Bar'!X76+'qr Bar'!X76-'qs Bar'!X76)/('Resistance Bar'!X76)) -> 1103.604352 | W33: =SQRT(('qc Bar'!Y76+'qr Bar'!Y76-'qs Bar'!Y76)/('Resistance Bar'!Y76)) -> 1101.174539 | X33: =SQRT(('qc Bar'!Z76+'qr Bar'!Z76-'qs Bar'!Z76)/('Resistance Bar'!Z76)) -> 1098.650581 | Y33: =SQRT(('qc Bar'!AA76+'qr Bar'!AA76-'qs Bar'!AA76)/('Resistance Bar'!AA76)) -> 1096.029692 | Z33: =SQRT(('qc Bar'!AB76+'qr Bar'!AB76-'qs Bar'!AB76)/('Resistance Bar'!AB76)) -> 1093.309011 | AA33: =SQRT(('qc Bar'!AC76+'qr Bar'!AC76-'qs Bar'!AC76)/('Resistance Bar'!AC76)) -> 1090.485593 | AB33: =SQRT(('qc Bar'!AD76+'qr Bar'!AD76-'qs Bar'!AD76)/('Resistance Bar'!AD76)) -> 1087.556413 | AC33: =SQRT(('qc Bar'!AE76+'qr Bar'!AE76-'qs Bar'!AE76)/('Resistance Bar'!AE76)) -> 1084.518352 | AD33: =SQRT(('qc Bar'!AF76+'qr Bar'!AF76-'qs Bar'!AF76)/('Resistance Bar'!AF76)) -> 1081.368203 | AE33: =SQRT(('qc Bar'!AG76+'qr Bar'!AG76-'qs Bar'!AG76)/('Resistance Bar'!AG76)) -> 1078.102659 | AF33: =SQRT(('qc Bar'!AH76+'qr Bar'!AH76-'qs Bar'!AH76)/('Resistance Bar'!AH76)) -> 1074.718309 | AG33: =SQRT(('qc Bar'!AI76+'qr Bar'!AI76-'qs Bar'!AI76)/('Resistance Bar'!AI76)) -> 1071.211638 | AH33: =SQRT(('qc Bar'!AJ76+'qr Bar'!AJ76-'qs Bar'!AJ76)/('Resistance Bar'!AJ76)) -> 1067.579015 | AI33: =SQRT(('qc Bar'!AK76+'qr Bar'!AK76-'qs Bar'!AK76)/('Resistance Bar'!AK76)) -> 1063.81669 | AJ33: =SQRT(('qc Bar'!AL76+'qr Bar'!AL76-'qs Bar'!AL76)/('Resistance Bar'!AL76)) -> 1059.920787 | AK33: =SQRT(('qc Bar'!AM76+'qr Bar'!AM76-'qs Bar'!AM76)/('Resistance Bar'!AM76)) -> 1055.887297 | AL33: =SQRT(('qc Bar'!AN76+'qr Bar'!AN76-'qs Bar'!AN76)/('Resistance Bar'!AN76)) -> 1051.712069 | AM33: =SQRT(('qc Bar'!AO76+'qr Bar'!AO76-'qs Bar'!AO76)/('Resistance Bar'!AO76)) -> 1047.390806 | AN33: =SQRT(('qc Bar'!AP76+'qr Bar'!AP76-'qs Bar'!AP76)/('Resistance Bar'!AP76)) -> 1042.919049 | AO33: =SQRT(('qc Bar'!AQ76+'qr Bar'!AQ76-'qs Bar'!AQ76)/('Resistance Bar'!AQ76)) -> 1038.292174 | AP33: =SQRT(('qc Bar'!AR76+'qr Bar'!AR76-'qs Bar'!AR76)/('Resistance Bar'!AR76)) -> 1033.505377 | AQ33: =SQRT(('qc Bar'!AS76+'qr Bar'!AS76-'qs Bar'!AS76)/('Resistance Bar'!AS76)) -> 1028.553668 | AR33: =SQRT(('qc Bar'!AT76+'qr Bar'!AT76-'qs Bar'!AT76)/('Resistance Bar'!AT76)) -> 1023.431851 | AS33: =SQRT(('qc Bar'!AU76+'qr Bar'!AU76-'qs Bar'!AU76)/('Resistance Bar'!AU76)) -> 1018.134517 | AT33: =SQRT(('qc Bar'!AV76+'qr Bar'!AV76-'qs Bar'!AV76)/('Resistance Bar'!AV76)) -> 1012.656026 | AU33: =SQRT(('qc Bar'!AW76+'qr Bar'!AW76-'qs Bar'!AW76)/('Resistance Bar'!AW76)) -> 1006.990493 | AV33: =SQRT(('qc Bar'!AX76+'qr Bar'!AX76-'qs Bar'!AX76)/('Resistance Bar'!AX76)) -> 1001.131769 | AW33: =SQRT(('qc Bar'!AY76+'qr Bar'!AY76-'qs Bar'!AY76)/('Resistance Bar'!AY76)) -> 995.0734215 | AX33: =SQRT(('qc Bar'!AZ76+'qr Bar'!AZ76-'qs Bar'!AZ76)/('Resistance Bar'!AZ76)) -> 988.808715 | AY33: =SQRT(('qc Bar'!BA76+'qr Bar'!BA76-'qs Bar'!BA76)/('Resistance Bar'!BA76)) -> 982.330586 | AZ33: =SQRT(('qc Bar'!BB76+'qr Bar'!BB76-'qs Bar'!BB76)/('Resistance Bar'!BB76)) -> 975.6316182 | BA33: =SQRT(('qc Bar'!BC76+'qr Bar'!BC76-'qs Bar'!BC76)/('Resistance Bar'!BC76)) -> 968.7040137 | BB33: =SQRT(('qc Bar'!BD76+'qr Bar'!BD76-'qs Bar'!BD76)/('Resistance Bar'!BD76)) -> 961.5395618 | BC33: =SQRT(('qc Bar'!BE76+'qr Bar'!BE76-'qs Bar'!BE76)/('Resistance Bar'!BE76)) -> 954.1296034 | BD33: =SQRT(('qc Bar'!BF76+'qr Bar'!BF76-'qs Bar'!BF76)/('Resistance Bar'!BF76)) -> 946.4649928 | BE33: =SQRT(('qc Bar'!BG76+'qr Bar'!BG76-'qs Bar'!BG76)/('Resistance Bar'!BG76)) -> 938.536053 | BF33: =SQRT(('qc Bar'!BH76+'qr Bar'!BH76-'qs Bar'!BH76)/('Resistance Bar'!BH76)) -> 930.332528 | BG33: =SQRT(('qc Bar'!BI76+'qr Bar'!BI76-'qs Bar'!BI76)/('Resistance Bar'!BI76)) -> 921.8435269 | BH33: =SQRT(('qc Bar'!BJ76+'qr Bar'!BJ76-'qs Bar'!BJ76)/('Resistance Bar'!BJ76)) -> 913.0574623 | BI33: =SQRT(('qc Bar'!BK76+'qr Bar'!BK76-'qs Bar'!BK76)/('Resistance Bar'!BK76)) -> 903.9619805
A34: =min+24*incr -> 170 | B34: =SQRT(('qc Bar'!D79+'qr Bar'!D79-'qs Bar'!D79)/('Resistance Bar'!D79)) -> 1099.633433 | C34: =SQRT(('qc Bar'!E79+'qr Bar'!E79-'qs Bar'!E79)/('Resistance Bar'!E79)) -> 1093.439315 | D34: =SQRT(('qc Bar'!F79+'qr Bar'!F79-'qs Bar'!F79)/('Resistance Bar'!F79)) -> 1086.843195 | E34: =SQRT(('qc Bar'!G79+'qr Bar'!G79-'qs Bar'!G79)/('Resistance Bar'!G79)) -> 1079.823535 | F34: =SQRT(('qc Bar'!H79+'qr Bar'!H79-'qs Bar'!H79)/('Resistance Bar'!H79)) -> 1072.357482 | G34: =SQRT(('qc Bar'!I79+'qr Bar'!I79-'qs Bar'!I79)/('Resistance Bar'!I79)) -> 1064.420727 | H34: =SQRT(('qc Bar'!J79+'qr Bar'!J79-'qs Bar'!J79)/('Resistance Bar'!J79)) -> 1055.987351 | I34: =SQRT(('qc Bar'!K79+'qr Bar'!K79-'qs Bar'!K79)/('Resistance Bar'!K79)) -> 1047.029639 | J34: =SQRT(('qc Bar'!L79+'qr Bar'!L79-'qs Bar'!L79)/('Resistance Bar'!L79)) -> 1037.517876 | K34: =SQRT(('qc Bar'!M79+'qr Bar'!M79-'qs Bar'!M79)/('Resistance Bar'!M79)) -> 1027.420099 | L34: =SQRT(('qc Bar'!N79+'qr Bar'!N79-'qs Bar'!N79)/('Resistance Bar'!N79)) -> 1016.701816 | M34: =SQRT(('qc Bar'!O79+'qr Bar'!O79-'qs Bar'!O79)/('Resistance Bar'!O79)) -> 1005.325669 | Q34: =min+24*incr -> 170 | R34: =SQRT(('qc Bar'!T79+'qr Bar'!T79-'qs Bar'!T79)/('Resistance Bar'!T79)) -> 1136.162374 | S34: =SQRT(('qc Bar'!U79+'qr Bar'!U79-'qs Bar'!U79)/('Resistance Bar'!U79)) -> 1134.146539 | T34: =SQRT(('qc Bar'!V79+'qr Bar'!V79-'qs Bar'!V79)/('Resistance Bar'!V79)) -> 1132.049761 | U34: =SQRT(('qc Bar'!W79+'qr Bar'!W79-'qs Bar'!W79)/('Resistance Bar'!W79)) -> 1129.869635 | V34: =SQRT(('qc Bar'!X79+'qr Bar'!X79-'qs Bar'!X79)/('Resistance Bar'!X79)) -> 1127.603697 | W34: =SQRT(('qc Bar'!Y79+'qr Bar'!Y79-'qs Bar'!Y79)/('Resistance Bar'!Y79)) -> 1125.249419 | X34: =SQRT(('qc Bar'!Z79+'qr Bar'!Z79-'qs Bar'!Z79)/('Resistance Bar'!Z79)) -> 1122.804208 | Y34: =SQRT(('qc Bar'!AA79+'qr Bar'!AA79-'qs Bar'!AA79)/('Resistance Bar'!AA79)) -> 1120.2654 | Z34: =SQRT(('qc Bar'!AB79+'qr Bar'!AB79-'qs Bar'!AB79)/('Resistance Bar'!AB79)) -> 1117.63026 | AA34: =SQRT(('qc Bar'!AC79+'qr Bar'!AC79-'qs Bar'!AC79)/('Resistance Bar'!AC79)) -> 1114.89598 | AB34: =SQRT(('qc Bar'!AD79+'qr Bar'!AD79-'qs Bar'!AD79)/('Resistance Bar'!AD79)) -> 1112.05967 | AC34: =SQRT(('qc Bar'!AE79+'qr Bar'!AE79-'qs Bar'!AE79)/('Resistance Bar'!AE79)) -> 1109.118362 | AD34: =SQRT(('qc Bar'!AF79+'qr Bar'!AF79-'qs Bar'!AF79)/('Resistance Bar'!AF79)) -> 1106.068999 | AE34: =SQRT(('qc Bar'!AG79+'qr Bar'!AG79-'qs Bar'!AG79)/('Resistance Bar'!AG79)) -> 1102.908436 | AF34: =SQRT(('qc Bar'!AH79+'qr Bar'!AH79-'qs Bar'!AH79)/('Resistance Bar'!AH79)) -> 1099.633433 | AG34: =SQRT(('qc Bar'!AI79+'qr Bar'!AI79-'qs Bar'!AI79)/('Resistance Bar'!AI79)) -> 1096.240651 | AH34: =SQRT(('qc Bar'!AJ79+'qr Bar'!AJ79-'qs Bar'!AJ79)/('Resistance Bar'!AJ79)) -> 1092.726648 | AI34: =SQRT(('qc Bar'!AK79+'qr Bar'!AK79-'qs Bar'!AK79)/('Resistance Bar'!AK79)) -> 1089.087872 | AJ34: =SQRT(('qc Bar'!AL79+'qr Bar'!AL79-'qs Bar'!AL79)/('Resistance Bar'!AL79)) -> 1085.320655 | AK34: =SQRT(('qc Bar'!AM79+'qr Bar'!AM79-'qs Bar'!AM79)/('Resistance Bar'!AM79)) -> 1081.42121 | AL34: =SQRT(('qc Bar'!AN79+'qr Bar'!AN79-'qs Bar'!AN79)/('Resistance Bar'!AN79)) -> 1077.385619 | AM34: =SQRT(('qc Bar'!AO79+'qr Bar'!AO79-'qs Bar'!AO79)/('Resistance Bar'!AO79)) -> 1073.20983 | AN34: =SQRT(('qc Bar'!AP79+'qr Bar'!AP79-'qs Bar'!AP79)/('Resistance Bar'!AP79)) -> 1068.889648 | AO34: =SQRT(('qc Bar'!AQ79+'qr Bar'!AQ79-'qs Bar'!AQ79)/('Resistance Bar'!AQ79)) -> 1064.420727 | AP34: =SQRT(('qc Bar'!AR79+'qr Bar'!AR79-'qs Bar'!AR79)/('Resistance Bar'!AR79)) -> 1059.79856 | AQ34: =SQRT(('qc Bar'!AS79+'qr Bar'!AS79-'qs Bar'!AS79)/('Resistance Bar'!AS79)) -> 1055.018468 | AR34: =SQRT(('qc Bar'!AT79+'qr Bar'!AT79-'qs Bar'!AT79)/('Resistance Bar'!AT79)) -> 1050.075593 | AS34: =SQRT(('qc Bar'!AU79+'qr Bar'!AU79-'qs Bar'!AU79)/('Resistance Bar'!AU79)) -> 1044.964883 | AT34: =SQRT(('qc Bar'!AV79+'qr Bar'!AV79-'qs Bar'!AV79)/('Resistance Bar'!AV79)) -> 1039.681082 | AU34: =SQRT(('qc Bar'!AW79+'qr Bar'!AW79-'qs Bar'!AW79)/('Resistance Bar'!AW79)) -> 1034.218711 | AV34: =SQRT(('qc Bar'!AX79+'qr Bar'!AX79-'qs Bar'!AX79)/('Resistance Bar'!AX79)) -> 1028.572062 | AW34: =SQRT(('qc Bar'!AY79+'qr Bar'!AY79-'qs Bar'!AY79)/('Resistance Bar'!AY79)) -> 1022.735174 | AX34: =SQRT(('qc Bar'!AZ79+'qr Bar'!AZ79-'qs Bar'!AZ79)/('Resistance Bar'!AZ79)) -> 1016.701816 | AY34: =SQRT(('qc Bar'!BA79+'qr Bar'!BA79-'qs Bar'!BA79)/('Resistance Bar'!BA79)) -> 1010.465472 | AZ34: =SQRT(('qc Bar'!BB79+'qr Bar'!BB79-'qs Bar'!BB79)/('Resistance Bar'!BB79)) -> 1004.019313 | BA34: =SQRT(('qc Bar'!BC79+'qr Bar'!BC79-'qs Bar'!BC79)/('Resistance Bar'!BC79)) -> 997.35618 | BB34: =SQRT(('qc Bar'!BD79+'qr Bar'!BD79-'qs Bar'!BD79)/('Resistance Bar'!BD79)) -> 990.4685507 | BC34: =SQRT(('qc Bar'!BE79+'qr Bar'!BE79-'qs Bar'!BE79)/('Resistance Bar'!BE79)) -> 983.3485154 | BD34: =SQRT(('qc Bar'!BF79+'qr Bar'!BF79-'qs Bar'!BF79)/('Resistance Bar'!BF79)) -> 975.9877431 | BE34: =SQRT(('qc Bar'!BG79+'qr Bar'!BG79-'qs Bar'!BG79)/('Resistance Bar'!BG79)) -> 968.3774455 | BF34: =SQRT(('qc Bar'!BH79+'qr Bar'!BH79-'qs Bar'!BH79)/('Resistance Bar'!BH79)) -> 960.5083371 | BG34: =SQRT(('qc Bar'!BI79+'qr Bar'!BI79-'qs Bar'!BI79)/('Resistance Bar'!BI79)) -> 952.3705909 | BH34: =SQRT(('qc Bar'!BJ79+'qr Bar'!BJ79-'qs Bar'!BJ79)/('Resistance Bar'!BJ79)) -> 943.9537879 | BI34: =SQRT(('qc Bar'!BK79+'qr Bar'!BK79-'qs Bar'!BK79)/('Resistance Bar'!BK79)) -> 935.246861
A35: =min+25*incr -> 175 | B35: =SQRT(('qc Bar'!D82+'qr Bar'!D82-'qs Bar'!D82)/('Resistance Bar'!D82)) -> 1124.517248 | C35: =SQRT(('qc Bar'!E82+'qr Bar'!E82-'qs Bar'!E82)/('Resistance Bar'!E82)) -> 1118.520833 | D35: =SQRT(('qc Bar'!F82+'qr Bar'!F82-'qs Bar'!F82)/('Resistance Bar'!F82)) -> 1112.137254 | E35: =SQRT(('qc Bar'!G82+'qr Bar'!G82-'qs Bar'!G82)/('Resistance Bar'!G82)) -> 1105.346098 | F35: =SQRT(('qc Bar'!H82+'qr Bar'!H82-'qs Bar'!H82)/('Resistance Bar'!H82)) -> 1098.125749 | G35: =SQRT(('qc Bar'!I82+'qr Bar'!I82-'qs Bar'!I82)/('Resistance Bar'!I82)) -> 1090.453265 | H35: =SQRT(('qc Bar'!J82+'qr Bar'!J82-'qs Bar'!J82)/('Resistance Bar'!J82)) -> 1082.304242 | I35: =SQRT(('qc Bar'!K82+'qr Bar'!K82-'qs Bar'!K82)/('Resistance Bar'!K82)) -> 1073.652658 | J35: =SQRT(('qc Bar'!L82+'qr Bar'!L82-'qs Bar'!L82)/('Resistance Bar'!L82)) -> 1064.470687 | K35: =SQRT(('qc Bar'!M82+'qr Bar'!M82-'qs Bar'!M82)/('Resistance Bar'!M82)) -> 1054.728491 | L35: =SQRT(('qc Bar'!N82+'qr Bar'!N82-'qs Bar'!N82)/('Resistance Bar'!N82)) -> 1044.393976 | M35: =SQRT(('qc Bar'!O82+'qr Bar'!O82-'qs Bar'!O82)/('Resistance Bar'!O82)) -> 1033.432505 | Q35: =min+25*incr -> 175 | R35: =SQRT(('qc Bar'!T82+'qr Bar'!T82-'qs Bar'!T82)/('Resistance Bar'!T82)) -> 1159.915891 | S35: =SQRT(('qc Bar'!U82+'qr Bar'!U82-'qs Bar'!U82)/('Resistance Bar'!U82)) -> 1157.960898 | T35: =SQRT(('qc Bar'!V82+'qr Bar'!V82-'qs Bar'!V82)/('Resistance Bar'!V82)) -> 1155.927588 | U35: =SQRT(('qc Bar'!W82+'qr Bar'!W82-'qs Bar'!W82)/('Resistance Bar'!W82)) -> 1153.813655 | V35: =SQRT(('qc Bar'!X82+'qr Bar'!X82-'qs Bar'!X82)/('Resistance Bar'!X82)) -> 1151.616734 | W35: =SQRT(('qc Bar'!Y82+'qr Bar'!Y82-'qs Bar'!Y82)/('Resistance Bar'!Y82)) -> 1149.334401 | X35: =SQRT(('qc Bar'!Z82+'qr Bar'!Z82-'qs Bar'!Z82)/('Resistance Bar'!Z82)) -> 1146.96417 | Y35: =SQRT(('qc Bar'!AA82+'qr Bar'!AA82-'qs Bar'!AA82)/('Resistance Bar'!AA82)) -> 1144.503492 | Z35: =SQRT(('qc Bar'!AB82+'qr Bar'!AB82-'qs Bar'!AB82)/('Resistance Bar'!AB82)) -> 1141.949751 | AA35: =SQRT(('qc Bar'!AC82+'qr Bar'!AC82-'qs Bar'!AC82)/('Resistance Bar'!AC82)) -> 1139.300259 | AB35: =SQRT(('qc Bar'!AD82+'qr Bar'!AD82-'qs Bar'!AD82)/('Resistance Bar'!AD82)) -> 1136.552257 | AC35: =SQRT(('qc Bar'!AE82+'qr Bar'!AE82-'qs Bar'!AE82)/('Resistance Bar'!AE82)) -> 1133.702912 | AD35: =SQRT(('qc Bar'!AF82+'qr Bar'!AF82-'qs Bar'!AF82)/('Resistance Bar'!AF82)) -> 1130.749308 | AE35: =SQRT(('qc Bar'!AG82+'qr Bar'!AG82-'qs Bar'!AG82)/('Resistance Bar'!AG82)) -> 1127.688448 | AF35: =SQRT(('qc Bar'!AH82+'qr Bar'!AH82-'qs Bar'!AH82)/('Resistance Bar'!AH82)) -> 1124.517248 | AG35: =SQRT(('qc Bar'!AI82+'qr Bar'!AI82-'qs Bar'!AI82)/('Resistance Bar'!AI82)) -> 1121.232532 | AH35: =SQRT(('qc Bar'!AJ82+'qr Bar'!AJ82-'qs Bar'!AJ82)/('Resistance Bar'!AJ82)) -> 1117.831029 | AI35: =SQRT(('qc Bar'!AK82+'qr Bar'!AK82-'qs Bar'!AK82)/('Resistance Bar'!AK82)) -> 1114.309368 | AJ35: =SQRT(('qc Bar'!AL82+'qr Bar'!AL82-'qs Bar'!AL82)/('Resistance Bar'!AL82)) -> 1110.664072 | AK35: =SQRT(('qc Bar'!AM82+'qr Bar'!AM82-'qs Bar'!AM82)/('Resistance Bar'!AM82)) -> 1106.891554 | AL35: =SQRT(('qc Bar'!AN82+'qr Bar'!AN82-'qs Bar'!AN82)/('Resistance Bar'!AN82)) -> 1102.988108 | AM35: =SQRT(('qc Bar'!AO82+'qr Bar'!AO82-'qs Bar'!AO82)/('Resistance Bar'!AO82)) -> 1098.949906 | AN35: =SQRT(('qc Bar'!AP82+'qr Bar'!AP82-'qs Bar'!AP82)/('Resistance Bar'!AP82)) -> 1094.77299 | AO35: =SQRT(('qc Bar'!AQ82+'qr Bar'!AQ82-'qs Bar'!AQ82)/('Resistance Bar'!AQ82)) -> 1090.453265 | AP35: =SQRT(('qc Bar'!AR82+'qr Bar'!AR82-'qs Bar'!AR82)/('Resistance Bar'!AR82)) -> 1085.986488 | AQ35: =SQRT(('qc Bar'!AS82+'qr Bar'!AS82-'qs Bar'!AS82)/('Resistance Bar'!AS82)) -> 1081.368266 | AR35: =SQRT(('qc Bar'!AT82+'qr Bar'!AT82-'qs Bar'!AT82)/('Resistance Bar'!AT82)) -> 1076.594038 | AS35: =SQRT(('qc Bar'!AU82+'qr Bar'!AU82-'qs Bar'!AU82)/('Resistance Bar'!AU82)) -> 1071.659073 | AT35: =SQRT(('qc Bar'!AV82+'qr Bar'!AV82-'qs Bar'!AV82)/('Resistance Bar'!AV82)) -> 1066.558455 | AU35: =SQRT(('qc Bar'!AW82+'qr Bar'!AW82-'qs Bar'!AW82)/('Resistance Bar'!AW82)) -> 1061.287071 | AV35: =SQRT(('qc Bar'!AX82+'qr Bar'!AX82-'qs Bar'!AX82)/('Resistance Bar'!AX82)) -> 1055.8396 | AW35: =SQRT(('qc Bar'!AY82+'qr Bar'!AY82-'qs Bar'!AY82)/('Resistance Bar'!AY82)) -> 1050.210496 | AX35: =SQRT(('qc Bar'!AZ82+'qr Bar'!AZ82-'qs Bar'!AZ82)/('Resistance Bar'!AZ82)) -> 1044.393976 | AY35: =SQRT(('qc Bar'!BA82+'qr Bar'!BA82-'qs Bar'!BA82)/('Resistance Bar'!BA82)) -> 1038.384003 | AZ35: =SQRT(('qc Bar'!BB82+'qr Bar'!BB82-'qs Bar'!BB82)/('Resistance Bar'!BB82)) -> 1032.174264 | BA35: =SQRT(('qc Bar'!BC82+'qr Bar'!BC82-'qs Bar'!BC82)/('Resistance Bar'!BC82)) -> 1025.758153 | BB35: =SQRT(('qc Bar'!BD82+'qr Bar'!BD82-'qs Bar'!BD82)/('Resistance Bar'!BD82)) -> 1019.12875 | BC35: =SQRT(('qc Bar'!BE82+'qr Bar'!BE82-'qs Bar'!BE82)/('Resistance Bar'!BE82)) -> 1012.278793 | BD35: =SQRT(('qc Bar'!BF82+'qr Bar'!BF82-'qs Bar'!BF82)/('Resistance Bar'!BF82)) -> 1005.200654 | BE35: =SQRT(('qc Bar'!BG82+'qr Bar'!BG82-'qs Bar'!BG82)/('Resistance Bar'!BG82)) -> 997.8863078 | BF35: =SQRT(('qc Bar'!BH82+'qr Bar'!BH82-'qs Bar'!BH82)/('Resistance Bar'!BH82)) -> 990.3272991 | BG35: =SQRT(('qc Bar'!BI82+'qr Bar'!BI82-'qs Bar'!BI82)/('Resistance Bar'!BI82)) -> 982.5147066 | BH35: =SQRT(('qc Bar'!BJ82+'qr Bar'!BJ82-'qs Bar'!BJ82)/('Resistance Bar'!BJ82)) -> 974.4391016 | BI35: =SQRT(('qc Bar'!BK82+'qr Bar'!BK82-'qs Bar'!BK82)/('Resistance Bar'!BK82)) -> 966.090502
A36: =min+26*incr -> 180 | B36: =SQRT(('qc Bar'!D85+'qr Bar'!D85-'qs Bar'!D85)/('Resistance Bar'!D85)) -> 1149.378762 | C36: =SQRT(('qc Bar'!E85+'qr Bar'!E85-'qs Bar'!E85)/('Resistance Bar'!E85)) -> 1143.570155 | D36: =SQRT(('qc Bar'!F85+'qr Bar'!F85-'qs Bar'!F85)/('Resistance Bar'!F85)) -> 1137.388312 | E36: =SQRT(('qc Bar'!G85+'qr Bar'!G85-'qs Bar'!G85)/('Resistance Bar'!G85)) -> 1130.813848 | F36: =SQRT(('qc Bar'!H85+'qr Bar'!H85-'qs Bar'!H85)/('Resistance Bar'!H85)) -> 1123.826271 | G36: =SQRT(('qc Bar'!I85+'qr Bar'!I85-'qs Bar'!I85)/('Resistance Bar'!I85)) -> 1116.403883 | H36: =SQRT(('qc Bar'!J85+'qr Bar'!J85-'qs Bar'!J85)/('Resistance Bar'!J85)) -> 1108.523651 | I36: =SQRT(('qc Bar'!K85+'qr Bar'!K85-'qs Bar'!K85)/('Resistance Bar'!K85)) -> 1100.161075 | J36: =SQRT(('qc Bar'!L85+'qr Bar'!L85-'qs Bar'!L85)/('Resistance Bar'!L85)) -> 1091.290026 | K36: =SQRT(('qc Bar'!M85+'qr Bar'!M85-'qs Bar'!M85)/('Resistance Bar'!M85)) -> 1081.882563 | L36: =SQRT(('qc Bar'!N85+'qr Bar'!N85-'qs Bar'!N85)/('Resistance Bar'!N85)) -> 1071.908724 | M36: =SQRT(('qc Bar'!O85+'qr Bar'!O85-'qs Bar'!O85)/('Resistance Bar'!O85)) -> 1061.336278 | Q36: =min+26*incr -> 180 | R36: =SQRT(('qc Bar'!T85+'qr Bar'!T85-'qs Bar'!T85)/('Resistance Bar'!T85)) -> 1183.700843 | S36: =SQRT(('qc Bar'!U85+'qr Bar'!U85-'qs Bar'!U85)/('Resistance Bar'!U85)) -> 1181.803919 | T36: =SQRT(('qc Bar'!V85+'qr Bar'!V85-'qs Bar'!V85)/('Resistance Bar'!V85)) -> 1179.831173 | U36: =SQRT(('qc Bar'!W85+'qr Bar'!W85-'qs Bar'!W85)/('Resistance Bar'!W85)) -> 1177.780386 | V36: =SQRT(('qc Bar'!X85+'qr Bar'!X85-'qs Bar'!X85)/('Resistance Bar'!X85)) -> 1175.649288 | W36: =SQRT(('qc Bar'!Y85+'qr Bar'!Y85-'qs Bar'!Y85)/('Resistance Bar'!Y85)) -> 1173.435553 | X36: =SQRT(('qc Bar'!Z85+'qr Bar'!Z85-'qs Bar'!Z85)/('Resistance Bar'!Z85)) -> 1171.136794 | Y36: =SQRT(('qc Bar'!AA85+'qr Bar'!AA85-'qs Bar'!AA85)/('Resistance Bar'!AA85)) -> 1168.750567 | Z36: =SQRT(('qc Bar'!AB85+'qr Bar'!AB85-'qs Bar'!AB85)/('Resistance Bar'!AB85)) -> 1166.274367 | AA36: =SQRT(('qc Bar'!AC85+'qr Bar'!AC85-'qs Bar'!AC85)/('Resistance Bar'!AC85)) -> 1163.705619 | AB36: =SQRT(('qc Bar'!AD85+'qr Bar'!AD85-'qs Bar'!AD85)/('Resistance Bar'!AD85)) -> 1161.041686 | AC36: =SQRT(('qc Bar'!AE85+'qr Bar'!AE85-'qs Bar'!AE85)/('Resistance Bar'!AE85)) -> 1158.279856 | AD36: =SQRT(('qc Bar'!AF85+'qr Bar'!AF85-'qs Bar'!AF85)/('Resistance Bar'!AF85)) -> 1155.417346 | AE36: =SQRT(('qc Bar'!AG85+'qr Bar'!AG85-'qs Bar'!AG85)/('Resistance Bar'!AG85)) -> 1152.451295 | AF36: =SQRT(('qc Bar'!AH85+'qr Bar'!AH85-'qs Bar'!AH85)/('Resistance Bar'!AH85)) -> 1149.378762 | AG36: =SQRT(('qc Bar'!AI85+'qr Bar'!AI85-'qs Bar'!AI85)/('Resistance Bar'!AI85)) -> 1146.196722 | AH36: =SQRT(('qc Bar'!AJ85+'qr Bar'!AJ85-'qs Bar'!AJ85)/('Resistance Bar'!AJ85)) -> 1142.90206 | AI36: =SQRT(('qc Bar'!AK85+'qr Bar'!AK85-'qs Bar'!AK85)/('Resistance Bar'!AK85)) -> 1139.491572 | AJ36: =SQRT(('qc Bar'!AL85+'qr Bar'!AL85-'qs Bar'!AL85)/('Resistance Bar'!AL85)) -> 1135.961954 | AK36: =SQRT(('qc Bar'!AM85+'qr Bar'!AM85-'qs Bar'!AM85)/('Resistance Bar'!AM85)) -> 1132.309801 | AL36: =SQRT(('qc Bar'!AN85+'qr Bar'!AN85-'qs Bar'!AN85)/('Resistance Bar'!AN85)) -> 1128.531603 | AM36: =SQRT(('qc Bar'!AO85+'qr Bar'!AO85-'qs Bar'!AO85)/('Resistance Bar'!AO85)) -> 1124.623733 | AN36: =SQRT(('qc Bar'!AP85+'qr Bar'!AP85-'qs Bar'!AP85)/('Resistance Bar'!AP85)) -> 1120.582449 | AO36: =SQRT(('qc Bar'!AQ85+'qr Bar'!AQ85-'qs Bar'!AQ85)/('Resistance Bar'!AQ85)) -> 1116.403883 | AP36: =SQRT(('qc Bar'!AR85+'qr Bar'!AR85-'qs Bar'!AR85)/('Resistance Bar'!AR85)) -> 1112.084033 | AQ36: =SQRT(('qc Bar'!AS85+'qr Bar'!AS85-'qs Bar'!AS85)/('Resistance Bar'!AS85)) -> 1107.618758 | AR36: =SQRT(('qc Bar'!AT85+'qr Bar'!AT85-'qs Bar'!AT85)/('Resistance Bar'!AT85)) -> 1103.003771 | AS36: =SQRT(('qc Bar'!AU85+'qr Bar'!AU85-'qs Bar'!AU85)/('Resistance Bar'!AU85)) -> 1098.234627 | AT36: =SQRT(('qc Bar'!AV85+'qr Bar'!AV85-'qs Bar'!AV85)/('Resistance Bar'!AV85)) -> 1093.306713 | AU36: =SQRT(('qc Bar'!AW85+'qr Bar'!AW85-'qs Bar'!AW85)/('Resistance Bar'!AW85)) -> 1088.215242 | AV36: =SQRT(('qc Bar'!AX85+'qr Bar'!AX85-'qs Bar'!AX85)/('Resistance Bar'!AX85)) -> 1082.955239 | AW36: =SQRT(('qc Bar'!AY85+'qr Bar'!AY85-'qs Bar'!AY85)/('Resistance Bar'!AY85)) -> 1077.521529 | AX36: =SQRT(('qc Bar'!AZ85+'qr Bar'!AZ85-'qs Bar'!AZ85)/('Resistance Bar'!AZ85)) -> 1071.908724 | AY36: =SQRT(('qc Bar'!BA85+'qr Bar'!BA85-'qs Bar'!BA85)/('Resistance Bar'!BA85)) -> 1066.111209 | AZ36: =SQRT(('qc Bar'!BB85+'qr Bar'!BB85-'qs Bar'!BB85)/('Resistance Bar'!BB85)) -> 1060.123127 | BA36: =SQRT(('qc Bar'!BC85+'qr Bar'!BC85-'qs Bar'!BC85)/('Resistance Bar'!BC85)) -> 1053.938359 | BB36: =SQRT(('qc Bar'!BD85+'qr Bar'!BD85-'qs Bar'!BD85)/('Resistance Bar'!BD85)) -> 1047.550509 | BC36: =SQRT(('qc Bar'!BE85+'qr Bar'!BE85-'qs Bar'!BE85)/('Resistance Bar'!BE85)) -> 1040.952881 | BD36: =SQRT(('qc Bar'!BF85+'qr Bar'!BF85-'qs Bar'!BF85)/('Resistance Bar'!BF85)) -> 1034.138458 | BE36: =SQRT(('qc Bar'!BG85+'qr Bar'!BG85-'qs Bar'!BG85)/('Resistance Bar'!BG85)) -> 1027.099875 | BF36: =SQRT(('qc Bar'!BH85+'qr Bar'!BH85-'qs Bar'!BH85)/('Resistance Bar'!BH85)) -> 1019.829394 | BG36: =SQRT(('qc Bar'!BI85+'qr Bar'!BI85-'qs Bar'!BI85)/('Resistance Bar'!BI85)) -> 1012.318871 | BH36: =SQRT(('qc Bar'!BJ85+'qr Bar'!BJ85-'qs Bar'!BJ85)/('Resistance Bar'!BJ85)) -> 1004.559725 | BI36: =SQRT(('qc Bar'!BK85+'qr Bar'!BK85-'qs Bar'!BK85)/('Resistance Bar'!BK85)) -> 996.5428952
A38: Rating Condition: | B38: V2 | Q38: Rating Condition: | R38: V2
A39: Wind Speed (ft/sec): | B39: =Weather!B14 -> 2 | Q39: Wind Speed (ft/sec): | R39: =Weather!B14 -> 2 | AO39: Winter Planning | AX39: Summer Planning
G40: Winter Planning | L40: Summer Planning | Q40: Ambient Temp (F) | R40: -65 | S40: -60 | T40: -55 | U40: -50 | V40: -45 | W40: -40 | X40: -35 | Y40: -30 | Z40: -25 | AA40: -20 | AB40: -15 | AC40: -10 | AD40: -5 | AE40: 0 | AF40: 5 | AG40: 10 | AH40: 15 | AI40: 20 | AJ40: 25 | AK40: 30 | AL40: 35 | AM40: 40 | AN40: 45 | AO40: 50 | AP40: 55 | AQ40: 60 | AR40: 65 | AS40: 70 | AT40: 75 | AU40: 80 | AV40: 85 | AW40: 90 | AX40: 95 | AY40: 100 | AZ40: 105 | BA40: 110 | BB40: 115 | BC40: 120 | BD40: 125 | BE40: 130 | BF40: 135 | BG40: 140 | BH40: 145 | BI40: 150
A41: Ambient Temp (C) | B41: -15 | C41: -10 | D41: -5 | E41: 0 | F41: 5 | G41: 10 | H41: 15 | I41: 20 | J41: 25 | K41: 30 | L41: 35 | M41: 40 | Q41: Ambient Temp (C) | R41: =CONVERT(R40,"F","C") -> -53.88888889 | S41: =CONVERT(S40,"F","C") -> -51.11111111 | T41: -48.33333333 | U41: -45.55555556 | V41: -42.77777778 | W41: -40 | X41: -37.22222222 | Y41: -34.44444444 | Z41: -31.66666667 | AA41: -28.88888889 | AB41: -26.11111111 | AC41: -23.33333333 | AD41: -20.55555556 | AE41: -17.77777778 | AF41: -15 | AG41: -12.22222222 | AH41: -9.444444444 | AI41: -6.666666667 | AJ41: -3.888888889 | AK41: -1.111111111 | AL41: 1.666666667 | AM41: 4.444444444 | AN41: 7.222222222 | AO41: 10 | AP41: 12.77777778 | AQ41: 15.55555556 | AR41: 18.33333333 | AS41: 21.11111111 | AT41: 23.88888889 | AU41: 26.66666667 | AV41: 29.44444444 | AW41: 32.22222222 | AX41: 35 | AY41: 37.77777778 | AZ41: 40.55555556 | BA41: 43.33333333 | BB41: 46.11111111 | BC41: 48.88888889 | BD41: 51.66666667 | BE41: 54.44444444 | BF41: 57.22222222 | BG41: 60 | BH41: 62.77777778 | BI41: 65.55555556
A42: Max Op Temp (C) | Q42: Max Op Temp (C)
A43: =min -> 50 | B43: =SQRT(('qc Bar'!D8+'qr Bar'!D8-'qs Bar'!D8)/('Resistance Bar'!D8)) -> 1266.41988 | C43: =SQRT(('qc Bar'!E8+'qr Bar'!E8-'qs Bar'!E8)/('Resistance Bar'!E8)) -> 1215.01907 | D43: =SQRT(('qc Bar'!F8+'qr Bar'!F8-'qs Bar'!F8)/('Resistance Bar'!F8)) -> 1160.985222 | E43: =SQRT(('qc Bar'!G8+'qr Bar'!G8-'qs Bar'!G8)/('Resistance Bar'!G8)) -> 1103.91349 | F43: =SQRT(('qc Bar'!H8+'qr Bar'!H8-'qs Bar'!H8)/('Resistance Bar'!H8)) -> 1043.285712 | G43: =SQRT(('qc Bar'!I8+'qr Bar'!I8-'qs Bar'!I8)/('Resistance Bar'!I8)) -> 978.4196059 | H43: =SQRT(('qc Bar'!J8+'qr Bar'!J8-'qs Bar'!J8)/('Resistance Bar'!J8)) -> 908.3841125 | I43: =SQRT(('qc Bar'!K8+'qr Bar'!K8-'qs Bar'!K8)/('Resistance Bar'!K8)) -> 831.8483798 | J43: =SQRT(('qc Bar'!L8+'qr Bar'!L8-'qs Bar'!L8)/('Resistance Bar'!L8)) -> 746.786807 | K43: =SQRT(('qc Bar'!M8+'qr Bar'!M8-'qs Bar'!M8)/('Resistance Bar'!M8)) -> 649.8252213 | L43: =SQRT(('qc Bar'!N8+'qr Bar'!N8-'qs Bar'!N8)/('Resistance Bar'!N8)) -> 534.4833556 | M43: =SQRT(('qc Bar'!O8+'qr Bar'!O8-'qs Bar'!O8)/('Resistance Bar'!O8)) -> 384.5029512 | Q43: =min -> 50 | R43: =SQRT(('qc Bar'!T8+'qr Bar'!T8-'qs Bar'!T8)/('Resistance Bar'!T8)) -> 1603.601249 | S43: =SQRT(('qc Bar'!U8+'qr Bar'!U8-'qs Bar'!U8)/('Resistance Bar'!U8)) -> 1582.291036 | T43: =SQRT(('qc Bar'!V8+'qr Bar'!V8-'qs Bar'!V8)/('Resistance Bar'!V8)) -> 1560.636801 | U43: =SQRT(('qc Bar'!W8+'qr Bar'!W8-'qs Bar'!W8)/('Resistance Bar'!W8)) -> 1538.62217 | V43: =SQRT(('qc Bar'!X8+'qr Bar'!X8-'qs Bar'!X8)/('Resistance Bar'!X8)) -> 1516.229538 | W43: =SQRT(('qc Bar'!Y8+'qr Bar'!Y8-'qs Bar'!Y8)/('Resistance Bar'!Y8)) -> 1493.439941 | X43: =SQRT(('qc Bar'!Z8+'qr Bar'!Z8-'qs Bar'!Z8)/('Resistance Bar'!Z8)) -> 1470.232899 | Y43: =SQRT(('qc Bar'!AA8+'qr Bar'!AA8-'qs Bar'!AA8)/('Resistance Bar'!AA8)) -> 1446.586242 | Z43: =SQRT(('qc Bar'!AB8+'qr Bar'!AB8-'qs Bar'!AB8)/('Resistance Bar'!AB8)) -> 1422.475899 | AA43: =SQRT(('qc Bar'!AC8+'qr Bar'!AC8-'qs Bar'!AC8)/('Resistance Bar'!AC8)) -> 1397.875666 | AB43: =SQRT(('qc Bar'!AD8+'qr Bar'!AD8-'qs Bar'!AD8)/('Resistance Bar'!AD8)) -> 1372.756926 | AC43: =SQRT(('qc Bar'!AE8+'qr Bar'!AE8-'qs Bar'!AE8)/('Resistance Bar'!AE8)) -> 1347.088318 | AD43: =SQRT(('qc Bar'!AF8+'qr Bar'!AF8-'qs Bar'!AF8)/('Resistance Bar'!AF8)) -> 1320.835352 | AE43: =SQRT(('qc Bar'!AG8+'qr Bar'!AG8-'qs Bar'!AG8)/('Resistance Bar'!AG8)) -> 1293.959949 | AF43: =SQRT(('qc Bar'!AH8+'qr Bar'!AH8-'qs Bar'!AH8)/('Resistance Bar'!AH8)) -> 1266.41988 | AG43: =SQRT(('qc Bar'!AI8+'qr Bar'!AI8-'qs Bar'!AI8)/('Resistance Bar'!AI8)) -> 1238.168104 | AH43: =SQRT(('qc Bar'!AJ8+'qr Bar'!AJ8-'qs Bar'!AJ8)/('Resistance Bar'!AJ8)) -> 1209.151945 | AI43: =SQRT(('qc Bar'!AK8+'qr Bar'!AK8-'qs Bar'!AK8)/('Resistance Bar'!AK8)) -> 1179.312091 | AJ43: =SQRT(('qc Bar'!AL8+'qr Bar'!AL8-'qs Bar'!AL8)/('Resistance Bar'!AL8)) -> 1148.58134 | AK43: =SQRT(('qc Bar'!AM8+'qr Bar'!AM8-'qs Bar'!AM8)/('Resistance Bar'!AM8)) -> 1116.88303 | AL43: =SQRT(('qc Bar'!AN8+'qr Bar'!AN8-'qs Bar'!AN8)/('Resistance Bar'!AN8)) -> 1084.129038 | AM43: =SQRT(('qc Bar'!AO8+'qr Bar'!AO8-'qs Bar'!AO8)/('Resistance Bar'!AO8)) -> 1050.217195 | AN43: =SQRT(('qc Bar'!AP8+'qr Bar'!AP8-'qs Bar'!AP8)/('Resistance Bar'!AP8)) -> 1015.027901 | AO43: =SQRT(('qc Bar'!AQ8+'qr Bar'!AQ8-'qs Bar'!AQ8)/('Resistance Bar'!AQ8)) -> 978.4196059 | AP43: =SQRT(('qc Bar'!AR8+'qr Bar'!AR8-'qs Bar'!AR8)/('Resistance Bar'!AR8)) -> 940.2226506 | AQ43: =SQRT(('qc Bar'!AS8+'qr Bar'!AS8-'qs Bar'!AS8)/('Resistance Bar'!AS8)) -> 900.2306969 | AR43: =SQRT(('qc Bar'!AT8+'qr Bar'!AT8-'qs Bar'!AT8)/('Resistance Bar'!AT8)) -> 858.1884505 | AS43: =SQRT(('qc Bar'!AU8+'qr Bar'!AU8-'qs Bar'!AU8)/('Resistance Bar'!AU8)) -> 813.7735235 | AT43: =SQRT(('qc Bar'!AV8+'qr Bar'!AV8-'qs Bar'!AV8)/('Resistance Bar'!AV8)) -> 766.5685947 | AU43: =SQRT(('qc Bar'!AW8+'qr Bar'!AW8-'qs Bar'!AW8)/('Resistance Bar'!AW8)) -> 716.016646 | AV43: =SQRT(('qc Bar'!AX8+'qr Bar'!AX8-'qs Bar'!AX8)/('Resistance Bar'!AX8)) -> 661.3446778 | AW43: =SQRT(('qc Bar'!AY8+'qr Bar'!AY8-'qs Bar'!AY8)/('Resistance Bar'!AY8)) -> 601.4235805 | AX43: =SQRT(('qc Bar'!AZ8+'qr Bar'!AZ8-'qs Bar'!AZ8)/('Resistance Bar'!AZ8)) -> 534.4833556 | AY43: =SQRT(('qc Bar'!BA8+'qr Bar'!BA8-'qs Bar'!BA8)/('Resistance Bar'!BA8)) -> 457.4441026 | AZ43: =SQRT(('qc Bar'!BB8+'qr Bar'!BB8-'qs Bar'!BB8)/('Resistance Bar'!BB8)) -> 363.9369669 | BA43: =SQRT(('qc Bar'!BC8+'qr Bar'!BC8-'qs Bar'!BC8)/('Resistance Bar'!BC8)) -> 235.0515916 | BB43: =SQRT(('qc Bar'!BD8+'qr Bar'!BD8-'qs Bar'!BD8)/('Resistance Bar'!BD8)) ->  | BC43: =SQRT(('qc Bar'!BE8+'qr Bar'!BE8-'qs Bar'!BE8)/('Resistance Bar'!BE8)) ->  | BD43: =SQRT(('qc Bar'!BF8+'qr Bar'!BF8-'qs Bar'!BF8)/('Resistance Bar'!BF8)) ->  | BE43: =SQRT(('qc Bar'!BG8+'qr Bar'!BG8-'qs Bar'!BG8)/('Resistance Bar'!BG8)) ->  | BF43: =SQRT(('qc Bar'!BH8+'qr Bar'!BH8-'qs Bar'!BH8)/('Resistance Bar'!BH8)) ->  | BG43: =SQRT(('qc Bar'!BI8+'qr Bar'!BI8-'qs Bar'!BI8)/('Resistance Bar'!BI8)) ->  | BH43: =SQRT(('qc Bar'!BJ8+'qr Bar'!BJ8-'qs Bar'!BJ8)/('Resistance Bar'!BJ8)) ->  | BI43: =SQRT(('qc Bar'!BK8+'qr Bar'!BK8-'qs Bar'!BK8)/('Resistance Bar'!BK8)) -> 
A44: =min+incr -> 55 | B44: =SQRT(('qc Bar'!D11+'qr Bar'!D11-'qs Bar'!D11)/('Resistance Bar'!D11)) -> 1312.653744 | C44: =SQRT(('qc Bar'!E11+'qr Bar'!E11-'qs Bar'!E11)/('Resistance Bar'!E11)) -> 1263.788386 | D44: =SQRT(('qc Bar'!F11+'qr Bar'!F11-'qs Bar'!F11)/('Resistance Bar'!F11)) -> 1212.615581 | E44: =SQRT(('qc Bar'!G11+'qr Bar'!G11-'qs Bar'!G11)/('Resistance Bar'!G11)) -> 1158.81248 | F44: =SQRT(('qc Bar'!H11+'qr Bar'!H11-'qs Bar'!H11)/('Resistance Bar'!H11)) -> 1101.975427 | G44: =SQRT(('qc Bar'!I11+'qr Bar'!I11-'qs Bar'!I11)/('Resistance Bar'!I11)) -> 1041.58796 | H44: =SQRT(('qc Bar'!J11+'qr Bar'!J11-'qs Bar'!J11)/('Resistance Bar'!J11)) -> 976.9702901 | I44: =SQRT(('qc Bar'!K11+'qr Bar'!K11-'qs Bar'!K11)/('Resistance Bar'!K11)) -> 907.1951946 | J44: =SQRT(('qc Bar'!L11+'qr Bar'!L11-'qs Bar'!L11)/('Resistance Bar'!L11)) -> 830.9380584 | K44: =SQRT(('qc Bar'!M11+'qr Bar'!M11-'qs Bar'!M11)/('Resistance Bar'!M11)) -> 746.1842988 | L44: =SQRT(('qc Bar'!N11+'qr Bar'!N11-'qs Bar'!N11)/('Resistance Bar'!N11)) -> 649.5817281 | M44: =SQRT(('qc Bar'!O11+'qr Bar'!O11-'qs Bar'!O11)/('Resistance Bar'!O11)) -> 534.7036025 | Q44: =min+incr -> 55 | R44: =SQRT(('qc Bar'!T11+'qr Bar'!T11-'qs Bar'!T11)/('Resistance Bar'!T11)) -> 1636.542993 | S44: =SQRT(('qc Bar'!U11+'qr Bar'!U11-'qs Bar'!U11)/('Resistance Bar'!U11)) -> 1615.938563 | T44: =SQRT(('qc Bar'!V11+'qr Bar'!V11-'qs Bar'!V11)/('Resistance Bar'!V11)) -> 1595.016788 | U44: =SQRT(('qc Bar'!W11+'qr Bar'!W11-'qs Bar'!W11)/('Resistance Bar'!W11)) -> 1573.763222 | V44: =SQRT(('qc Bar'!X11+'qr Bar'!X11-'qs Bar'!X11)/('Resistance Bar'!X11)) -> 1552.162396 | W44: =SQRT(('qc Bar'!Y11+'qr Bar'!Y11-'qs Bar'!Y11)/('Resistance Bar'!Y11)) -> 1530.19771 | X44: =SQRT(('qc Bar'!Z11+'qr Bar'!Z11-'qs Bar'!Z11)/('Resistance Bar'!Z11)) -> 1507.851317 | Y44: =SQRT(('qc Bar'!AA11+'qr Bar'!AA11-'qs Bar'!AA11)/('Resistance Bar'!AA11)) -> 1485.103982 | Z44: =SQRT(('qc Bar'!AB11+'qr Bar'!AB11-'qs Bar'!AB11)/('Resistance Bar'!AB11)) -> 1461.934927 | AA44: =SQRT(('qc Bar'!AC11+'qr Bar'!AC11-'qs Bar'!AC11)/('Resistance Bar'!AC11)) -> 1438.321646 | AB44: =SQRT(('qc Bar'!AD11+'qr Bar'!AD11-'qs Bar'!AD11)/('Resistance Bar'!AD11)) -> 1414.2397 | AC44: =SQRT(('qc Bar'!AE11+'qr Bar'!AE11-'qs Bar'!AE11)/('Resistance Bar'!AE11)) -> 1389.662467 | AD44: =SQRT(('qc Bar'!AF11+'qr Bar'!AF11-'qs Bar'!AF11)/('Resistance Bar'!AF11)) -> 1364.56086 | AE44: =SQRT(('qc Bar'!AG11+'qr Bar'!AG11-'qs Bar'!AG11)/('Resistance Bar'!AG11)) -> 1338.902985 | AF44: =SQRT(('qc Bar'!AH11+'qr Bar'!AH11-'qs Bar'!AH11)/('Resistance Bar'!AH11)) -> 1312.653744 | AG44: =SQRT(('qc Bar'!AI11+'qr Bar'!AI11-'qs Bar'!AI11)/('Resistance Bar'!AI11)) -> 1285.774357 | AH44: =SQRT(('qc Bar'!AJ11+'qr Bar'!AJ11-'qs Bar'!AJ11)/('Resistance Bar'!AJ11)) -> 1258.221793 | AI44: =SQRT(('qc Bar'!AK11+'qr Bar'!AK11-'qs Bar'!AK11)/('Resistance Bar'!AK11)) -> 1229.94807 | AJ44: =SQRT(('qc Bar'!AL11+'qr Bar'!AL11-'qs Bar'!AL11)/('Resistance Bar'!AL11)) -> 1200.899413 | AK44: =SQRT(('qc Bar'!AM11+'qr Bar'!AM11-'qs Bar'!AM11)/('Resistance Bar'!AM11)) -> 1171.015208 | AL44: =SQRT(('qc Bar'!AN11+'qr Bar'!AN11-'qs Bar'!AN11)/('Resistance Bar'!AN11)) -> 1140.2267 | AM44: =SQRT(('qc Bar'!AO11+'qr Bar'!AO11-'qs Bar'!AO11)/('Resistance Bar'!AO11)) -> 1108.455355 | AN44: =SQRT(('qc Bar'!AP11+'qr Bar'!AP11-'qs Bar'!AP11)/('Resistance Bar'!AP11)) -> 1075.61077 | AO44: =SQRT(('qc Bar'!AQ11+'qr Bar'!AQ11-'qs Bar'!AQ11)/('Resistance Bar'!AQ11)) -> 1041.58796 | AP44: =SQRT(('qc Bar'!AR11+'qr Bar'!AR11-'qs Bar'!AR11)/('Resistance Bar'!AR11)) -> 1006.2638 | AQ44: =SQRT(('qc Bar'!AS11+'qr Bar'!AS11-'qs Bar'!AS11)/('Resistance Bar'!AS11)) -> 969.4922564 | AR44: =SQRT(('qc Bar'!AT11+'qr Bar'!AT11-'qs Bar'!AT11)/('Resistance Bar'!AT11)) -> 931.0978662 | AS44: =SQRT(('qc Bar'!AU11+'qr Bar'!AU11-'qs Bar'!AU11)/('Resistance Bar'!AU11)) -> 890.8666117 | AT44: =SQRT(('qc Bar'!AV11+'qr Bar'!AV11-'qs Bar'!AV11)/('Resistance Bar'!AV11)) -> 848.5327862 | AU44: =SQRT(('qc Bar'!AW11+'qr Bar'!AW11-'qs Bar'!AW11)/('Resistance Bar'!AW11)) -> 803.7594614 | AV44: =SQRT(('qc Bar'!AX11+'qr Bar'!AX11-'qs Bar'!AX11)/('Resistance Bar'!AX11)) -> 756.1082715 | AW44: =SQRT(('qc Bar'!AY11+'qr Bar'!AY11-'qs Bar'!AY11)/('Resistance Bar'!AY11)) -> 704.9903562 | AX44: =SQRT(('qc Bar'!AZ11+'qr Bar'!AZ11-'qs Bar'!AZ11)/('Resistance Bar'!AZ11)) -> 649.5817281 | AY44: =SQRT(('qc Bar'!BA11+'qr Bar'!BA11-'qs Bar'!BA11)/('Resistance Bar'!BA11)) -> 588.665267 | AZ44: =SQRT(('qc Bar'!BB11+'qr Bar'!BB11-'qs Bar'!BB11)/('Resistance Bar'!BB11)) -> 520.3022896 | BA44: =SQRT(('qc Bar'!BC11+'qr Bar'!BC11-'qs Bar'!BC11)/('Resistance Bar'!BC11)) -> 441.0343724 | BB44: =SQRT(('qc Bar'!BD11+'qr Bar'!BD11-'qs Bar'!BD11)/('Resistance Bar'!BD11)) -> 343.3789804 | BC44: =SQRT(('qc Bar'!BE11+'qr Bar'!BE11-'qs Bar'!BE11)/('Resistance Bar'!BE11)) -> 202.2365161 | BD44: =SQRT(('qc Bar'!BF11+'qr Bar'!BF11-'qs Bar'!BF11)/('Resistance Bar'!BF11)) ->  | BE44: =SQRT(('qc Bar'!BG11+'qr Bar'!BG11-'qs Bar'!BG11)/('Resistance Bar'!BG11)) ->  | BF44: =SQRT(('qc Bar'!BH11+'qr Bar'!BH11-'qs Bar'!BH11)/('Resistance Bar'!BH11)) ->  | BG44: =SQRT(('qc Bar'!BI11+'qr Bar'!BI11-'qs Bar'!BI11)/('Resistance Bar'!BI11)) ->  | BH44: =SQRT(('qc Bar'!BJ11+'qr Bar'!BJ11-'qs Bar'!BJ11)/('Resistance Bar'!BJ11)) ->  | BI44: =SQRT(('qc Bar'!BK11+'qr Bar'!BK11-'qs Bar'!BK11)/('Resistance Bar'!BK11)) -> 
A45: =min+2*incr -> 60 | B45: =SQRT(('qc Bar'!D14+'qr Bar'!D14-'qs Bar'!D14)/('Resistance Bar'!D14)) -> 1356.703215 | C45: =SQRT(('qc Bar'!E14+'qr Bar'!E14-'qs Bar'!E14)/('Resistance Bar'!E14)) -> 1310.096303 | D45: =SQRT(('qc Bar'!F14+'qr Bar'!F14-'qs Bar'!F14)/('Resistance Bar'!F14)) -> 1261.445949 | E45: =SQRT(('qc Bar'!G14+'qr Bar'!G14-'qs Bar'!G14)/('Resistance Bar'!G14)) -> 1210.489526 | F45: =SQRT(('qc Bar'!H14+'qr Bar'!H14-'qs Bar'!H14)/('Resistance Bar'!H14)) -> 1156.904986 | G45: =SQRT(('qc Bar'!I14+'qr Bar'!I14-'qs Bar'!I14)/('Resistance Bar'!I14)) -> 1100.289792 | H45: =SQRT(('qc Bar'!J14+'qr Bar'!J14-'qs Bar'!J14)/('Resistance Bar'!J14)) -> 1040.129089 | I45: =SQRT(('qc Bar'!K14+'qr Bar'!K14-'qs Bar'!K14)/('Resistance Bar'!K14)) -> 975.7454662 | J45: =SQRT(('qc Bar'!L14+'qr Bar'!L14-'qs Bar'!L14)/('Resistance Bar'!L14)) -> 906.2153703 | K45: =SQRT(('qc Bar'!M14+'qr Bar'!M14-'qs Bar'!M14)/('Resistance Bar'!M14)) -> 830.2201889 | L45: =SQRT(('qc Bar'!N14+'qr Bar'!N14-'qs Bar'!N14)/('Resistance Bar'!N14)) -> 745.7559982 | M45: =SQRT(('qc Bar'!O14+'qr Bar'!O14-'qs Bar'!O14)/('Resistance Bar'!O14)) -> 649.491991 | Q45: =min+2*incr -> 60 | R45: =SQRT(('qc Bar'!T14+'qr Bar'!T14-'qs Bar'!T14)/('Resistance Bar'!T14)) -> 1668.43287 | S45: =SQRT(('qc Bar'!U14+'qr Bar'!U14-'qs Bar'!U14)/('Resistance Bar'!U14)) -> 1648.486307 | T45: =SQRT(('qc Bar'!V14+'qr Bar'!V14-'qs Bar'!V14)/('Resistance Bar'!V14)) -> 1628.24594 | U45: =SQRT(('qc Bar'!W14+'qr Bar'!W14-'qs Bar'!W14)/('Resistance Bar'!W14)) -> 1607.698941 | V45: =SQRT(('qc Bar'!X14+'qr Bar'!X14-'qs Bar'!X14)/('Resistance Bar'!X14)) -> 1586.831617 | W45: =SQRT(('qc Bar'!Y14+'qr Bar'!Y14-'qs Bar'!Y14)/('Resistance Bar'!Y14)) -> 1565.629333 | X45: =SQRT(('qc Bar'!Z14+'qr Bar'!Z14-'qs Bar'!Z14)/('Resistance Bar'!Z14)) -> 1544.076409 | Y45: =SQRT(('qc Bar'!AA14+'qr Bar'!AA14-'qs Bar'!AA14)/('Resistance Bar'!AA14)) -> 1522.156017 | Z45: =SQRT(('qc Bar'!AB14+'qr Bar'!AB14-'qs Bar'!AB14)/('Resistance Bar'!AB14)) -> 1499.850058 | AA45: =SQRT(('qc Bar'!AC14+'qr Bar'!AC14-'qs Bar'!AC14)/('Resistance Bar'!AC14)) -> 1477.13902 | AB45: =SQRT(('qc Bar'!AD14+'qr Bar'!AD14-'qs Bar'!AD14)/('Resistance Bar'!AD14)) -> 1454.001816 | AC45: =SQRT(('qc Bar'!AE14+'qr Bar'!AE14-'qs Bar'!AE14)/('Resistance Bar'!AE14)) -> 1430.4156 | AD45: =SQRT(('qc Bar'!AF14+'qr Bar'!AF14-'qs Bar'!AF14)/('Resistance Bar'!AF14)) -> 1406.355548 | AE45: =SQRT(('qc Bar'!AG14+'qr Bar'!AG14-'qs Bar'!AG14)/('Resistance Bar'!AG14)) -> 1381.794611 | AF45: =SQRT(('qc Bar'!AH14+'qr Bar'!AH14-'qs Bar'!AH14)/('Resistance Bar'!AH14)) -> 1356.703215 | AG45: =SQRT(('qc Bar'!AI14+'qr Bar'!AI14-'qs Bar'!AI14)/('Resistance Bar'!AI14)) -> 1331.048917 | AH45: =SQRT(('qc Bar'!AJ14+'qr Bar'!AJ14-'qs Bar'!AJ14)/('Resistance Bar'!AJ14)) -> 1304.79599 | AI45: =SQRT(('qc Bar'!AK14+'qr Bar'!AK14-'qs Bar'!AK14)/('Resistance Bar'!AK14)) -> 1277.904933 | AJ45: =SQRT(('qc Bar'!AL14+'qr Bar'!AL14-'qs Bar'!AL14)/('Resistance Bar'!AL14)) -> 1250.331878 | AK45: =SQRT(('qc Bar'!AM14+'qr Bar'!AM14-'qs Bar'!AM14)/('Resistance Bar'!AM14)) -> 1222.027872 | AL45: =SQRT(('qc Bar'!AN14+'qr Bar'!AN14-'qs Bar'!AN14)/('Resistance Bar'!AN14)) -> 1192.938 | AM45: =SQRT(('qc Bar'!AO14+'qr Bar'!AO14-'qs Bar'!AO14)/('Resistance Bar'!AO14)) -> 1163.000294 | AN45: =SQRT(('qc Bar'!AP14+'qr Bar'!AP14-'qs Bar'!AP14)/('Resistance Bar'!AP14)) -> 1132.144385 | AO45: =SQRT(('qc Bar'!AQ14+'qr Bar'!AQ14-'qs Bar'!AQ14)/('Resistance Bar'!AQ14)) -> 1100.289792 | AP45: =SQRT(('qc Bar'!AR14+'qr Bar'!AR14-'qs Bar'!AR14)/('Resistance Bar'!AR14)) -> 1067.343728 | AQ45: =SQRT(('qc Bar'!AS14+'qr Bar'!AS14-'qs Bar'!AS14)/('Resistance Bar'!AS14)) -> 1033.198265 | AR45: =SQRT(('qc Bar'!AT14+'qr Bar'!AT14-'qs Bar'!AT14)/('Resistance Bar'!AT14)) -> 997.7265836 | AS45: =SQRT(('qc Bar'!AU14+'qr Bar'!AU14-'qs Bar'!AU14)/('Resistance Bar'!AU14)) -> 960.7779399 | AT45: =SQRT(('qc Bar'!AV14+'qr Bar'!AV14-'qs Bar'!AV14)/('Resistance Bar'!AV14)) -> 922.1707499 | AU45: =SQRT(('qc Bar'!AW14+'qr Bar'!AW14-'qs Bar'!AW14)/('Resistance Bar'!AW14)) -> 881.6828695 | AV45: =SQRT(('qc Bar'!AX14+'qr Bar'!AX14-'qs Bar'!AX14)/('Resistance Bar'!AX14)) -> 839.0375232 | AW45: =SQRT(('qc Bar'!AY14+'qr Bar'!AY14-'qs Bar'!AY14)/('Resistance Bar'!AY14)) -> 793.8822392 | AX45: =SQRT(('qc Bar'!AZ14+'qr Bar'!AZ14-'qs Bar'!AZ14)/('Resistance Bar'!AZ14)) -> 745.7559982 | AY45: =SQRT(('qc Bar'!BA14+'qr Bar'!BA14-'qs Bar'!BA14)/('Resistance Bar'!BA14)) -> 694.03536 | AZ45: =SQRT(('qc Bar'!BB14+'qr Bar'!BB14-'qs Bar'!BB14)/('Resistance Bar'!BB14)) -> 637.840316 | BA45: =SQRT(('qc Bar'!BC14+'qr Bar'!BC14-'qs Bar'!BC14)/('Resistance Bar'!BC14)) -> 575.8554854 | BB45: =SQRT(('qc Bar'!BD14+'qr Bar'!BD14-'qs Bar'!BD14)/('Resistance Bar'!BD14)) -> 505.9493921 | BC45: =SQRT(('qc Bar'!BE14+'qr Bar'!BE14-'qs Bar'!BE14)/('Resistance Bar'!BE14)) -> 424.214366 | BD45: =SQRT(('qc Bar'!BF14+'qr Bar'!BF14-'qs Bar'!BF14)/('Resistance Bar'!BF14)) -> 321.7458712 | BE45: =SQRT(('qc Bar'!BG14+'qr Bar'!BG14-'qs Bar'!BG14)/('Resistance Bar'!BG14)) -> 163.2917245 | BF45: =SQRT(('qc Bar'!BH14+'qr Bar'!BH14-'qs Bar'!BH14)/('Resistance Bar'!BH14)) ->  | BG45: =SQRT(('qc Bar'!BI14+'qr Bar'!BI14-'qs Bar'!BI14)/('Resistance Bar'!BI14)) ->  | BH45: =SQRT(('qc Bar'!BJ14+'qr Bar'!BJ14-'qs Bar'!BJ14)/('Resistance Bar'!BJ14)) ->  | BI45: =SQRT(('qc Bar'!BK14+'qr Bar'!BK14-'qs Bar'!BK14)/('Resistance Bar'!BK14)) -> 
A46: =min+3*incr -> 65 | B46: =SQRT(('qc Bar'!D17+'qr Bar'!D17-'qs Bar'!D17)/('Resistance Bar'!D17)) -> 1398.814475 | C46: =SQRT(('qc Bar'!E17+'qr Bar'!E17-'qs Bar'!E17)/('Resistance Bar'!E17)) -> 1354.237049 | D46: =SQRT(('qc Bar'!F17+'qr Bar'!F17-'qs Bar'!F17)/('Resistance Bar'!F17)) -> 1307.833797 | E46: =SQRT(('qc Bar'!G17+'qr Bar'!G17-'qs Bar'!G17)/('Resistance Bar'!G17)) -> 1259.387453 | F46: =SQRT(('qc Bar'!H17+'qr Bar'!H17-'qs Bar'!H17)/('Resistance Bar'!H17)) -> 1208.635924 | G46: =SQRT(('qc Bar'!I17+'qr Bar'!I17-'qs Bar'!I17)/('Resistance Bar'!I17)) -> 1155.257905 | H46: =SQRT(('qc Bar'!J17+'qr Bar'!J17-'qs Bar'!J17)/('Resistance Bar'!J17)) -> 1098.851914 | I46: =SQRT(('qc Bar'!K17+'qr Bar'!K17-'qs Bar'!K17)/('Resistance Bar'!K17)) -> 1038.904613 | J46: =SQRT(('qc Bar'!L17+'qr Bar'!L17-'qs Bar'!L17)/('Resistance Bar'!L17)) -> 974.7408527 | K46: =SQRT(('qc Bar'!M17+'qr Bar'!M17-'qs Bar'!M17)/('Resistance Bar'!M17)) -> 905.4405857 | L46: =SQRT(('qc Bar'!N17+'qr Bar'!N17-'qs Bar'!N17)/('Resistance Bar'!N17)) -> 829.690971 | M46: =SQRT(('qc Bar'!O17+'qr Bar'!O17-'qs Bar'!O17)/('Resistance Bar'!O17)) -> 745.498389 | Q46: =min+3*incr -> 65 | R46: =SQRT(('qc Bar'!T17+'qr Bar'!T17-'qs Bar'!T17)/('Resistance Bar'!T17)) -> 1699.359282 | S46: =SQRT(('qc Bar'!U17+'qr Bar'!U17-'qs Bar'!U17)/('Resistance Bar'!U17)) -> 1680.027961 | T46: =SQRT(('qc Bar'!V17+'qr Bar'!V17-'qs Bar'!V17)/('Resistance Bar'!V17)) -> 1660.423733 | U46: =SQRT(('qc Bar'!W17+'qr Bar'!W17-'qs Bar'!W17)/('Resistance Bar'!W17)) -> 1640.535137 | V46: =SQRT(('qc Bar'!X17+'qr Bar'!X17-'qs Bar'!X17)/('Resistance Bar'!X17)) -> 1620.349976 | W46: =SQRT(('qc Bar'!Y17+'qr Bar'!Y17-'qs Bar'!Y17)/('Resistance Bar'!Y17)) -> 1599.855257 | X46: =SQRT(('qc Bar'!Z17+'qr Bar'!Z17-'qs Bar'!Z17)/('Resistance Bar'!Z17)) -> 1579.037107 | Y46: =SQRT(('qc Bar'!AA17+'qr Bar'!AA17-'qs Bar'!AA17)/('Resistance Bar'!AA17)) -> 1557.880692 | Z46: =SQRT(('qc Bar'!AB17+'qr Bar'!AB17-'qs Bar'!AB17)/('Resistance Bar'!AB17)) -> 1536.37012 | AA46: =SQRT(('qc Bar'!AC17+'qr Bar'!AC17-'qs Bar'!AC17)/('Resistance Bar'!AC17)) -> 1514.488327 | AB46: =SQRT(('qc Bar'!AD17+'qr Bar'!AD17-'qs Bar'!AD17)/('Resistance Bar'!AD17)) -> 1492.216955 | AC46: =SQRT(('qc Bar'!AE17+'qr Bar'!AE17-'qs Bar'!AE17)/('Resistance Bar'!AE17)) -> 1469.536207 | AD46: =SQRT(('qc Bar'!AF17+'qr Bar'!AF17-'qs Bar'!AF17)/('Resistance Bar'!AF17)) -> 1446.424679 | AE46: =SQRT(('qc Bar'!AG17+'qr Bar'!AG17-'qs Bar'!AG17)/('Resistance Bar'!AG17)) -> 1422.859174 | AF46: =SQRT(('qc Bar'!AH17+'qr Bar'!AH17-'qs Bar'!AH17)/('Resistance Bar'!AH17)) -> 1398.814475 | AG46: =SQRT(('qc Bar'!AI17+'qr Bar'!AI17-'qs Bar'!AI17)/('Resistance Bar'!AI17)) -> 1374.263088 | AH46: =SQRT(('qc Bar'!AJ17+'qr Bar'!AJ17-'qs Bar'!AJ17)/('Resistance Bar'!AJ17)) -> 1349.17494 | AI46: =SQRT(('qc Bar'!AK17+'qr Bar'!AK17-'qs Bar'!AK17)/('Resistance Bar'!AK17)) -> 1323.517018 | AJ46: =SQRT(('qc Bar'!AL17+'qr Bar'!AL17-'qs Bar'!AL17)/('Resistance Bar'!AL17)) -> 1297.252949 | AK46: =SQRT(('qc Bar'!AM17+'qr Bar'!AM17-'qs Bar'!AM17)/('Resistance Bar'!AM17)) -> 1270.342483 | AL46: =SQRT(('qc Bar'!AN17+'qr Bar'!AN17-'qs Bar'!AN17)/('Resistance Bar'!AN17)) -> 1242.74089 | AM46: =SQRT(('qc Bar'!AO17+'qr Bar'!AO17-'qs Bar'!AO17)/('Resistance Bar'!AO17)) -> 1214.398208 | AN46: =SQRT(('qc Bar'!AP17+'qr Bar'!AP17-'qs Bar'!AP17)/('Resistance Bar'!AP17)) -> 1185.258336 | AO46: =SQRT(('qc Bar'!AQ17+'qr Bar'!AQ17-'qs Bar'!AQ17)/('Resistance Bar'!AQ17)) -> 1155.257905 | AP46: =SQRT(('qc Bar'!AR17+'qr Bar'!AR17-'qs Bar'!AR17)/('Resistance Bar'!AR17)) -> 1124.324866 | AQ46: =SQRT(('qc Bar'!AS17+'qr Bar'!AS17-'qs Bar'!AS17)/('Resistance Bar'!AS17)) -> 1092.376705 | AR46: =SQRT(('qc Bar'!AT17+'qr Bar'!AT17-'qs Bar'!AT17)/('Resistance Bar'!AT17)) -> 1059.31815 | AS46: =SQRT(('qc Bar'!AU17+'qr Bar'!AU17-'qs Bar'!AU17)/('Resistance Bar'!AU17)) -> 1025.038193 | AT46: =SQRT(('qc Bar'!AV17+'qr Bar'!AV17-'qs Bar'!AV17)/('Resistance Bar'!AV17)) -> 989.4061432 | AU46: =SQRT(('qc Bar'!AW17+'qr Bar'!AW17-'qs Bar'!AW17)/('Resistance Bar'!AW17)) -> 952.2663007 | AV46: =SQRT(('qc Bar'!AX17+'qr Bar'!AX17-'qs Bar'!AX17)/('Resistance Bar'!AX17)) -> 913.4306256 | AW46: =SQRT(('qc Bar'!AY17+'qr Bar'!AY17-'qs Bar'!AY17)/('Resistance Bar'!AY17)) -> 872.668367 | AX46: =SQRT(('qc Bar'!AZ17+'qr Bar'!AZ17-'qs Bar'!AZ17)/('Resistance Bar'!AZ17)) -> 829.690971 | AY46: =SQRT(('qc Bar'!BA17+'qr Bar'!BA17-'qs Bar'!BA17)/('Resistance Bar'!BA17)) -> 784.1293302 | AZ46: =SQRT(('qc Bar'!BB17+'qr Bar'!BB17-'qs Bar'!BB17)/('Resistance Bar'!BB17)) -> 735.4980044 | BA46: =SQRT(('qc Bar'!BC17+'qr Bar'!BC17-'qs Bar'!BC17)/('Resistance Bar'!BC17)) -> 683.135928 | BB46: =SQRT(('qc Bar'!BD17+'qr Bar'!BD17-'qs Bar'!BD17)/('Resistance Bar'!BD17)) -> 626.101383 | BC46: =SQRT(('qc Bar'!BE17+'qr Bar'!BE17-'qs Bar'!BE17)/('Resistance Bar'!BE17)) -> 562.9688871 | BD46: =SQRT(('qc Bar'!BF17+'qr Bar'!BF17-'qs Bar'!BF17)/('Resistance Bar'!BF17)) -> 491.3854059 | BE46: =SQRT(('qc Bar'!BG17+'qr Bar'!BG17-'qs Bar'!BG17)/('Resistance Bar'!BG17)) -> 406.9049745 | BF46: =SQRT(('qc Bar'!BH17+'qr Bar'!BH17-'qs Bar'!BH17)/('Resistance Bar'!BH17)) -> 298.7671107 | BG46: =SQRT(('qc Bar'!BI17+'qr Bar'!BI17-'qs Bar'!BI17)/('Resistance Bar'!BI17)) -> 111.9000583 | BH46: =SQRT(('qc Bar'!BJ17+'qr Bar'!BJ17-'qs Bar'!BJ17)/('Resistance Bar'!BJ17)) ->  | BI46: =SQRT(('qc Bar'!BK17+'qr Bar'!BK17-'qs Bar'!BK17)/('Resistance Bar'!BK17)) -> 
A47: =min+4*incr -> 70 | B47: =SQRT(('qc Bar'!D20+'qr Bar'!D20-'qs Bar'!D20)/('Resistance Bar'!D20)) -> 1439.194699 | C47: =SQRT(('qc Bar'!E20+'qr Bar'!E20-'qs Bar'!E20)/('Resistance Bar'!E20)) -> 1396.454857 | D47: =SQRT(('qc Bar'!F20+'qr Bar'!F20-'qs Bar'!F20)/('Resistance Bar'!F20)) -> 1352.071094 | E47: =SQRT(('qc Bar'!G20+'qr Bar'!G20-'qs Bar'!G20)/('Resistance Bar'!G20)) -> 1305.861064 | F47: =SQRT(('qc Bar'!H20+'qr Bar'!H20-'qs Bar'!H20)/('Resistance Bar'!H20)) -> 1257.607852 | G47: =SQRT(('qc Bar'!I20+'qr Bar'!I20-'qs Bar'!I20)/('Resistance Bar'!I20)) -> 1207.049859 | H47: =SQRT(('qc Bar'!J20+'qr Bar'!J20-'qs Bar'!J20)/('Resistance Bar'!J20)) -> 1153.866472 | I47: =SQRT(('qc Bar'!K20+'qr Bar'!K20-'qs Bar'!K20)/('Resistance Bar'!K20)) -> 1097.657192 | J47: =SQRT(('qc Bar'!L20+'qr Bar'!L20-'qs Bar'!L20)/('Resistance Bar'!L20)) -> 1037.910114 | K47: =SQRT(('qc Bar'!M20+'qr Bar'!M20-'qs Bar'!M20)/('Resistance Bar'!M20)) -> 973.9522312 | L47: =SQRT(('qc Bar'!N20+'qr Bar'!N20-'qs Bar'!N20)/('Resistance Bar'!N20)) -> 904.8668462 | M47: =SQRT(('qc Bar'!O20+'qr Bar'!O20-'qs Bar'!O20)/('Resistance Bar'!O20)) -> 829.3466597 | Q47: =min+4*incr -> 70 | R47: =SQRT(('qc Bar'!T20+'qr Bar'!T20-'qs Bar'!T20)/('Resistance Bar'!T20)) -> 1729.401396 | S47: =SQRT(('qc Bar'!U20+'qr Bar'!U20-'qs Bar'!U20)/('Resistance Bar'!U20)) -> 1710.647192 | T47: =SQRT(('qc Bar'!V20+'qr Bar'!V20-'qs Bar'!V20)/('Resistance Bar'!V20)) -> 1691.638733 | U47: =SQRT(('qc Bar'!W20+'qr Bar'!W20-'qs Bar'!W20)/('Resistance Bar'!W20)) -> 1672.365719 | V47: =SQRT(('qc Bar'!X20+'qr Bar'!X20-'qs Bar'!X20)/('Resistance Bar'!X20)) -> 1652.817225 | W47: =SQRT(('qc Bar'!Y20+'qr Bar'!Y20-'qs Bar'!Y20)/('Resistance Bar'!Y20)) -> 1632.981641 | X47: =SQRT(('qc Bar'!Z20+'qr Bar'!Z20-'qs Bar'!Z20)/('Resistance Bar'!Z20)) -> 1612.846615 | Y47: =SQRT(('qc Bar'!AA20+'qr Bar'!AA20-'qs Bar'!AA20)/('Resistance Bar'!AA20)) -> 1592.39898 | Z47: =SQRT(('qc Bar'!AB20+'qr Bar'!AB20-'qs Bar'!AB20)/('Resistance Bar'!AB20)) -> 1571.624681 | AA47: =SQRT(('qc Bar'!AC20+'qr Bar'!AC20-'qs Bar'!AC20)/('Resistance Bar'!AC20)) -> 1550.508682 | AB47: =SQRT(('qc Bar'!AD20+'qr Bar'!AD20-'qs Bar'!AD20)/('Resistance Bar'!AD20)) -> 1529.034869 | AC47: =SQRT(('qc Bar'!AE20+'qr Bar'!AE20-'qs Bar'!AE20)/('Resistance Bar'!AE20)) -> 1507.185938 | AD47: =SQRT(('qc Bar'!AF20+'qr Bar'!AF20-'qs Bar'!AF20)/('Resistance Bar'!AF20)) -> 1484.943267 | AE47: =SQRT(('qc Bar'!AG20+'qr Bar'!AG20-'qs Bar'!AG20)/('Resistance Bar'!AG20)) -> 1462.286763 | AF47: =SQRT(('qc Bar'!AH20+'qr Bar'!AH20-'qs Bar'!AH20)/('Resistance Bar'!AH20)) -> 1439.194699 | AG47: =SQRT(('qc Bar'!AI20+'qr Bar'!AI20-'qs Bar'!AI20)/('Resistance Bar'!AI20)) -> 1415.643514 | AH47: =SQRT(('qc Bar'!AJ20+'qr Bar'!AJ20-'qs Bar'!AJ20)/('Resistance Bar'!AJ20)) -> 1391.607586 | AI47: =SQRT(('qc Bar'!AK20+'qr Bar'!AK20-'qs Bar'!AK20)/('Resistance Bar'!AK20)) -> 1367.058965 | AJ47: =SQRT(('qc Bar'!AL20+'qr Bar'!AL20-'qs Bar'!AL20)/('Resistance Bar'!AL20)) -> 1341.967061 | AK47: =SQRT(('qc Bar'!AM20+'qr Bar'!AM20-'qs Bar'!AM20)/('Resistance Bar'!AM20)) -> 1316.298276 | AL47: =SQRT(('qc Bar'!AN20+'qr Bar'!AN20-'qs Bar'!AN20)/('Resistance Bar'!AN20)) -> 1290.015563 | AM47: =SQRT(('qc Bar'!AO20+'qr Bar'!AO20-'qs Bar'!AO20)/('Resistance Bar'!AO20)) -> 1263.077904 | AN47: =SQRT(('qc Bar'!AP20+'qr Bar'!AP20-'qs Bar'!AP20)/('Resistance Bar'!AP20)) -> 1235.439671 | AO47: =SQRT(('qc Bar'!AQ20+'qr Bar'!AQ20-'qs Bar'!AQ20)/('Resistance Bar'!AQ20)) -> 1207.049859 | AP47: =SQRT(('qc Bar'!AR20+'qr Bar'!AR20-'qs Bar'!AR20)/('Resistance Bar'!AR20)) -> 1177.851139 | AQ47: =SQRT(('qc Bar'!AS20+'qr Bar'!AS20-'qs Bar'!AS20)/('Resistance Bar'!AS20)) -> 1147.778682 | AR47: =SQRT(('qc Bar'!AT20+'qr Bar'!AT20-'qs Bar'!AT20)/('Resistance Bar'!AT20)) -> 1116.758691 | AS47: =SQRT(('qc Bar'!AU20+'qr Bar'!AU20-'qs Bar'!AU20)/('Resistance Bar'!AU20)) -> 1084.706536 | AT47: =SQRT(('qc Bar'!AV20+'qr Bar'!AV20-'qs Bar'!AV20)/('Resistance Bar'!AV20)) -> 1051.524348 | AU47: =SQRT(('qc Bar'!AW20+'qr Bar'!AW20-'qs Bar'!AW20)/('Resistance Bar'!AW20)) -> 1017.097898 | AV47: =SQRT(('qc Bar'!AX20+'qr Bar'!AX20-'qs Bar'!AX20)/('Resistance Bar'!AX20)) -> 981.2924285 | AW47: =SQRT(('qc Bar'!AY20+'qr Bar'!AY20-'qs Bar'!AY20)/('Resistance Bar'!AY20)) -> 943.9470302 | AX47: =SQRT(('qc Bar'!AZ20+'qr Bar'!AZ20-'qs Bar'!AZ20)/('Resistance Bar'!AZ20)) -> 904.8668462 | AY47: =SQRT(('qc Bar'!BA20+'qr Bar'!BA20-'qs Bar'!BA20)/('Resistance Bar'!BA20)) -> 863.8120027 | AZ47: =SQRT(('qc Bar'!BB20+'qr Bar'!BB20-'qs Bar'!BB20)/('Resistance Bar'!BB20)) -> 820.4814 | BA47: =SQRT(('qc Bar'!BC20+'qr Bar'!BC20-'qs Bar'!BC20)/('Resistance Bar'!BC20)) -> 774.4881042 | BB47: =SQRT(('qc Bar'!BD20+'qr Bar'!BD20-'qs Bar'!BD20)/('Resistance Bar'!BD20)) -> 725.3203081 | BC47: =SQRT(('qc Bar'!BE20+'qr Bar'!BE20-'qs Bar'!BE20)/('Resistance Bar'!BE20)) -> 672.275924 | BD47: =SQRT(('qc Bar'!BF20+'qr Bar'!BF20-'qs Bar'!BF20)/('Resistance Bar'!BF20)) -> 614.3450738 | BE47: =SQRT(('qc Bar'!BG20+'qr Bar'!BG20-'qs Bar'!BG20)/('Resistance Bar'!BG20)) -> 549.9784285 | BF47: =SQRT(('qc Bar'!BH20+'qr Bar'!BH20-'qs Bar'!BH20)/('Resistance Bar'!BH20)) -> 476.5668041 | BG47: =SQRT(('qc Bar'!BI20+'qr Bar'!BI20-'qs Bar'!BI20)/('Resistance Bar'!BI20)) -> 389.0122523 | BH47: =SQRT(('qc Bar'!BJ20+'qr Bar'!BJ20-'qs Bar'!BJ20)/('Resistance Bar'!BJ20)) -> 274.0652516 | BI47: =SQRT(('qc Bar'!BK20+'qr Bar'!BK20-'qs Bar'!BK20)/('Resistance Bar'!BK20)) -> 
A48: =min+5*incr -> 75 | B48: =SQRT(('qc Bar'!D23+'qr Bar'!D23-'qs Bar'!D23)/('Resistance Bar'!D23)) -> 1478.020315 | C48: =SQRT(('qc Bar'!E23+'qr Bar'!E23-'qs Bar'!E23)/('Resistance Bar'!E23)) -> 1436.955257 | D48: =SQRT(('qc Bar'!F23+'qr Bar'!F23-'qs Bar'!F23)/('Resistance Bar'!F23)) -> 1394.400191 | E48: =SQRT(('qc Bar'!G23+'qr Bar'!G23-'qs Bar'!G23)/('Resistance Bar'!G23)) -> 1350.20015 | F48: =SQRT(('qc Bar'!H23+'qr Bar'!H23-'qs Bar'!H23)/('Resistance Bar'!H23)) -> 1304.173007 | G48: =SQRT(('qc Bar'!I23+'qr Bar'!I23-'qs Bar'!I23)/('Resistance Bar'!I23)) -> 1256.10217 | H48: =SQRT(('qc Bar'!J23+'qr Bar'!J23-'qs Bar'!J23)/('Resistance Bar'!J23)) -> 1205.726487 | I48: =SQRT(('qc Bar'!K23+'qr Bar'!K23-'qs Bar'!K23)/('Resistance Bar'!K23)) -> 1152.725986 | J48: =SQRT(('qc Bar'!L23+'qr Bar'!L23-'qs Bar'!L23)/('Resistance Bar'!L23)) -> 1096.701089 | K48: =SQRT(('qc Bar'!M23+'qr Bar'!M23-'qs Bar'!M23)/('Resistance Bar'!M23)) -> 1037.141233 | L48: =SQRT(('qc Bar'!N23+'qr Bar'!N23-'qs Bar'!N23)/('Resistance Bar'!N23)) -> 973.3754436 | M48: =SQRT(('qc Bar'!O23+'qr Bar'!O23-'qs Bar'!O23)/('Resistance Bar'!O23)) -> 904.4902145 | Q48: =min+5*incr -> 75 | R48: =SQRT(('qc Bar'!T23+'qr Bar'!T23-'qs Bar'!T23)/('Resistance Bar'!T23)) -> 1758.630443 | S48: =SQRT(('qc Bar'!U23+'qr Bar'!U23-'qs Bar'!U23)/('Resistance Bar'!U23)) -> 1740.419092 | T48: =SQRT(('qc Bar'!V23+'qr Bar'!V23-'qs Bar'!V23)/('Resistance Bar'!V23)) -> 1721.970211 | U48: =SQRT(('qc Bar'!W23+'qr Bar'!W23-'qs Bar'!W23)/('Resistance Bar'!W23)) -> 1703.274501 | V48: =SQRT(('qc Bar'!X23+'qr Bar'!X23-'qs Bar'!X23)/('Resistance Bar'!X23)) -> 1684.322119 | W48: =SQRT(('qc Bar'!Y23+'qr Bar'!Y23-'qs Bar'!Y23)/('Resistance Bar'!Y23)) -> 1665.102637 | X48: =SQRT(('qc Bar'!Z23+'qr Bar'!Z23-'qs Bar'!Z23)/('Resistance Bar'!Z23)) -> 1645.60499 | Y48: =SQRT(('qc Bar'!AA23+'qr Bar'!AA23-'qs Bar'!AA23)/('Resistance Bar'!AA23)) -> 1625.81742 | Z48: =SQRT(('qc Bar'!AB23+'qr Bar'!AB23-'qs Bar'!AB23)/('Resistance Bar'!AB23)) -> 1605.727411 | AA48: =SQRT(('qc Bar'!AC23+'qr Bar'!AC23-'qs Bar'!AC23)/('Resistance Bar'!AC23)) -> 1585.321624 | AB48: =SQRT(('qc Bar'!AD23+'qr Bar'!AD23-'qs Bar'!AD23)/('Resistance Bar'!AD23)) -> 1564.585813 | AC48: =SQRT(('qc Bar'!AE23+'qr Bar'!AE23-'qs Bar'!AE23)/('Resistance Bar'!AE23)) -> 1543.504735 | AD48: =SQRT(('qc Bar'!AF23+'qr Bar'!AF23-'qs Bar'!AF23)/('Resistance Bar'!AF23)) -> 1522.062051 | AE48: =SQRT(('qc Bar'!AG23+'qr Bar'!AG23-'qs Bar'!AG23)/('Resistance Bar'!AG23)) -> 1500.24021 | AF48: =SQRT(('qc Bar'!AH23+'qr Bar'!AH23-'qs Bar'!AH23)/('Resistance Bar'!AH23)) -> 1478.020315 | AG48: =SQRT(('qc Bar'!AI23+'qr Bar'!AI23-'qs Bar'!AI23)/('Resistance Bar'!AI23)) -> 1455.381975 | AH48: =SQRT(('qc Bar'!AJ23+'qr Bar'!AJ23-'qs Bar'!AJ23)/('Resistance Bar'!AJ23)) -> 1432.303127 | AI48: =SQRT(('qc Bar'!AK23+'qr Bar'!AK23-'qs Bar'!AK23)/('Resistance Bar'!AK23)) -> 1408.759835 | AJ48: =SQRT(('qc Bar'!AL23+'qr Bar'!AL23-'qs Bar'!AL23)/('Resistance Bar'!AL23)) -> 1384.726062 | AK48: =SQRT(('qc Bar'!AM23+'qr Bar'!AM23-'qs Bar'!AM23)/('Resistance Bar'!AM23)) -> 1360.173385 | AL48: =SQRT(('qc Bar'!AN23+'qr Bar'!AN23-'qs Bar'!AN23)/('Resistance Bar'!AN23)) -> 1335.070684 | AM48: =SQRT(('qc Bar'!AO23+'qr Bar'!AO23-'qs Bar'!AO23)/('Resistance Bar'!AO23)) -> 1309.383754 | AN48: =SQRT(('qc Bar'!AP23+'qr Bar'!AP23-'qs Bar'!AP23)/('Resistance Bar'!AP23)) -> 1283.074855 | AO48: =SQRT(('qc Bar'!AQ23+'qr Bar'!AQ23-'qs Bar'!AQ23)/('Resistance Bar'!AQ23)) -> 1256.10217 | AP48: =SQRT(('qc Bar'!AR23+'qr Bar'!AR23-'qs Bar'!AR23)/('Resistance Bar'!AR23)) -> 1228.419145 | AQ48: =SQRT(('qc Bar'!AS23+'qr Bar'!AS23-'qs Bar'!AS23)/('Resistance Bar'!AS23)) -> 1199.973692 | AR48: =SQRT(('qc Bar'!AT23+'qr Bar'!AT23-'qs Bar'!AT23)/('Resistance Bar'!AT23)) -> 1170.707207 | AS48: =SQRT(('qc Bar'!AU23+'qr Bar'!AU23-'qs Bar'!AU23)/('Resistance Bar'!AU23)) -> 1140.553345 | AT48: =SQRT(('qc Bar'!AV23+'qr Bar'!AV23-'qs Bar'!AV23)/('Resistance Bar'!AV23)) -> 1109.436491 | AU48: =SQRT(('qc Bar'!AW23+'qr Bar'!AW23-'qs Bar'!AW23)/('Resistance Bar'!AW23)) -> 1077.269803 | AV48: =SQRT(('qc Bar'!AX23+'qr Bar'!AX23-'qs Bar'!AX23)/('Resistance Bar'!AX23)) -> 1043.952706 | AW48: =SQRT(('qc Bar'!AY23+'qr Bar'!AY23-'qs Bar'!AY23)/('Resistance Bar'!AY23)) -> 1009.367594 | AX48: =SQRT(('qc Bar'!AZ23+'qr Bar'!AZ23-'qs Bar'!AZ23)/('Resistance Bar'!AZ23)) -> 973.3754436 | AY48: =SQRT(('qc Bar'!BA23+'qr Bar'!BA23-'qs Bar'!BA23)/('Resistance Bar'!BA23)) -> 935.8098602 | AZ48: =SQRT(('qc Bar'!BB23+'qr Bar'!BB23-'qs Bar'!BB23)/('Resistance Bar'!BB23)) -> 896.4687852 | BA48: =SQRT(('qc Bar'!BC23+'qr Bar'!BC23-'qs Bar'!BC23)/('Resistance Bar'!BC23)) -> 855.1026666 | BB48: =SQRT(('qc Bar'!BD23+'qr Bar'!BD23-'qs Bar'!BD23)/('Resistance Bar'!BD23)) -> 811.3970277 | BC48: =SQRT(('qc Bar'!BE23+'qr Bar'!BE23-'qs Bar'!BE23)/('Resistance Bar'!BE23)) -> 764.9458074 | BD48: =SQRT(('qc Bar'!BF23+'qr Bar'!BF23-'qs Bar'!BF23)/('Resistance Bar'!BF23)) -> 715.2086833 | BE48: =SQRT(('qc Bar'!BG23+'qr Bar'!BG23-'qs Bar'!BG23)/('Resistance Bar'!BG23)) -> 661.4387479 | BF48: =SQRT(('qc Bar'!BH23+'qr Bar'!BH23-'qs Bar'!BH23)/('Resistance Bar'!BH23)) -> 602.5506199 | BG48: =SQRT(('qc Bar'!BI23+'qr Bar'!BI23-'qs Bar'!BI23)/('Resistance Bar'!BI23)) -> 536.8550805 | BH48: =SQRT(('qc Bar'!BJ23+'qr Bar'!BJ23-'qs Bar'!BJ23)/('Resistance Bar'!BJ23)) -> 461.4448498 | BI48: =SQRT(('qc Bar'!BK23+'qr Bar'!BK23-'qs Bar'!BK23)/('Resistance Bar'!BK23)) -> 370.4225182
A49: =min+6*incr -> 80 | B49: =SQRT(('qc Bar'!D26+'qr Bar'!D26-'qs Bar'!D26)/('Resistance Bar'!D26)) -> 1515.443119 | C49: =SQRT(('qc Bar'!E26+'qr Bar'!E26-'qs Bar'!E26)/('Resistance Bar'!E26)) -> 1475.913273 | D49: =SQRT(('qc Bar'!F26+'qr Bar'!F26-'qs Bar'!F26)/('Resistance Bar'!F26)) -> 1435.025033 | E49: =SQRT(('qc Bar'!G26+'qr Bar'!G26-'qs Bar'!G26)/('Resistance Bar'!G26)) -> 1392.645247 | F49: =SQRT(('qc Bar'!H26+'qr Bar'!H26-'qs Bar'!H26)/('Resistance Bar'!H26)) -> 1348.619077 | G49: =SQRT(('qc Bar'!I26+'qr Bar'!I26-'qs Bar'!I26)/('Resistance Bar'!I26)) -> 1302.764595 | H49: =SQRT(('qc Bar'!J26+'qr Bar'!J26-'qs Bar'!J26)/('Resistance Bar'!J26)) -> 1254.865492 | I49: =SQRT(('qc Bar'!K26+'qr Bar'!K26-'qs Bar'!K26)/('Resistance Bar'!K26)) -> 1204.661025 | J49: =SQRT(('qc Bar'!L26+'qr Bar'!L26-'qs Bar'!L26)/('Resistance Bar'!L26)) -> 1151.831813 | K49: =SQRT(('qc Bar'!M26+'qr Bar'!M26-'qs Bar'!M26)/('Resistance Bar'!M26)) -> 1095.97913 | L49: =SQRT(('qc Bar'!N26+'qr Bar'!N26-'qs Bar'!N26)/('Resistance Bar'!N26)) -> 1036.593674 | M49: =SQRT(('qc Bar'!O26+'qr Bar'!O26-'qs Bar'!O26)/('Resistance Bar'!O26)) -> 973.0063898 | Q49: =min+6*incr -> 80 | R49: =SQRT(('qc Bar'!T26+'qr Bar'!T26-'qs Bar'!T26)/('Resistance Bar'!T26)) -> 1787.110795 | S49: =SQRT(('qc Bar'!U26+'qr Bar'!U26-'qs Bar'!U26)/('Resistance Bar'!U26)) -> 1769.411357 | T49: =SQRT(('qc Bar'!V26+'qr Bar'!V26-'qs Bar'!V26)/('Resistance Bar'!V26)) -> 1751.48946 | U49: =SQRT(('qc Bar'!W26+'qr Bar'!W26-'qs Bar'!W26)/('Resistance Bar'!W26)) -> 1733.336663 | V49: =SQRT(('qc Bar'!X26+'qr Bar'!X26-'qs Bar'!X26)/('Resistance Bar'!X26)) -> 1714.944059 | W49: =SQRT(('qc Bar'!Y26+'qr Bar'!Y26-'qs Bar'!Y26)/('Resistance Bar'!Y26)) -> 1696.302229 | X49: =SQRT(('qc Bar'!Z26+'qr Bar'!Z26-'qs Bar'!Z26)/('Resistance Bar'!Z26)) -> 1677.40121 | Y49: =SQRT(('qc Bar'!AA26+'qr Bar'!AA26-'qs Bar'!AA26)/('Resistance Bar'!AA26)) -> 1658.23044 | Z49: =SQRT(('qc Bar'!AB26+'qr Bar'!AB26-'qs Bar'!AB26)/('Resistance Bar'!AB26)) -> 1638.778711 | AA49: =SQRT(('qc Bar'!AC26+'qr Bar'!AC26-'qs Bar'!AC26)/('Resistance Bar'!AC26)) -> 1619.034112 | AB49: =SQRT(('qc Bar'!AD26+'qr Bar'!AD26-'qs Bar'!AD26)/('Resistance Bar'!AD26)) -> 1598.983965 | AC49: =SQRT(('qc Bar'!AE26+'qr Bar'!AE26-'qs Bar'!AE26)/('Resistance Bar'!AE26)) -> 1578.61475 | AD49: =SQRT(('qc Bar'!AF26+'qr Bar'!AF26-'qs Bar'!AF26)/('Resistance Bar'!AF26)) -> 1557.912025 | AE49: =SQRT(('qc Bar'!AG26+'qr Bar'!AG26-'qs Bar'!AG26)/('Resistance Bar'!AG26)) -> 1536.860338 | AF49: =SQRT(('qc Bar'!AH26+'qr Bar'!AH26-'qs Bar'!AH26)/('Resistance Bar'!AH26)) -> 1515.443119 | AG49: =SQRT(('qc Bar'!AI26+'qr Bar'!AI26-'qs Bar'!AI26)/('Resistance Bar'!AI26)) -> 1493.64256 | AH49: =SQRT(('qc Bar'!AJ26+'qr Bar'!AJ26-'qs Bar'!AJ26)/('Resistance Bar'!AJ26)) -> 1471.439486 | AI49: =SQRT(('qc Bar'!AK26+'qr Bar'!AK26-'qs Bar'!AK26)/('Resistance Bar'!AK26)) -> 1448.813196 | AJ49: =SQRT(('qc Bar'!AL26+'qr Bar'!AL26-'qs Bar'!AL26)/('Resistance Bar'!AL26)) -> 1425.741281 | AK49: =SQRT(('qc Bar'!AM26+'qr Bar'!AM26-'qs Bar'!AM26)/('Resistance Bar'!AM26)) -> 1402.199424 | AL49: =SQRT(('qc Bar'!AN26+'qr Bar'!AN26-'qs Bar'!AN26)/('Resistance Bar'!AN26)) -> 1378.161154 | AM49: =SQRT(('qc Bar'!AO26+'qr Bar'!AO26-'qs Bar'!AO26)/('Resistance Bar'!AO26)) -> 1353.597567 | AN49: =SQRT(('qc Bar'!AP26+'qr Bar'!AP26-'qs Bar'!AP26)/('Resistance Bar'!AP26)) -> 1328.47699 | AO49: =SQRT(('qc Bar'!AQ26+'qr Bar'!AQ26-'qs Bar'!AQ26)/('Resistance Bar'!AQ26)) -> 1302.764595 | AP49: =SQRT(('qc Bar'!AR26+'qr Bar'!AR26-'qs Bar'!AR26)/('Resistance Bar'!AR26)) -> 1276.421925 | AQ49: =SQRT(('qc Bar'!AS26+'qr Bar'!AS26-'qs Bar'!AS26)/('Resistance Bar'!AS26)) -> 1249.406336 | AR49: =SQRT(('qc Bar'!AT26+'qr Bar'!AT26-'qs Bar'!AT26)/('Resistance Bar'!AT26)) -> 1221.670315 | AS49: =SQRT(('qc Bar'!AU26+'qr Bar'!AU26-'qs Bar'!AU26)/('Resistance Bar'!AU26)) -> 1193.160652 | AT49: =SQRT(('qc Bar'!AV26+'qr Bar'!AV26-'qs Bar'!AV26)/('Resistance Bar'!AV26)) -> 1163.817418 | AU49: =SQRT(('qc Bar'!AW26+'qr Bar'!AW26-'qs Bar'!AW26)/('Resistance Bar'!AW26)) -> 1133.572694 | AV49: =SQRT(('qc Bar'!AX26+'qr Bar'!AX26-'qs Bar'!AX26)/('Resistance Bar'!AX26)) -> 1102.348968 | AW49: =SQRT(('qc Bar'!AY26+'qr Bar'!AY26-'qs Bar'!AY26)/('Resistance Bar'!AY26)) -> 1070.057098 | AX49: =SQRT(('qc Bar'!AZ26+'qr Bar'!AZ26-'qs Bar'!AZ26)/('Resistance Bar'!AZ26)) -> 1036.593674 | AY49: =SQRT(('qc Bar'!BA26+'qr Bar'!BA26-'qs Bar'!BA26)/('Resistance Bar'!BA26)) -> 1001.837556 | AZ49: =SQRT(('qc Bar'!BB26+'qr Bar'!BB26-'qs Bar'!BB26)/('Resistance Bar'!BB26)) -> 965.6452419 | BA49: =SQRT(('qc Bar'!BC26+'qr Bar'!BC26-'qs Bar'!BC26)/('Resistance Bar'!BC26)) -> 927.8445568 | BB49: =SQRT(('qc Bar'!BD26+'qr Bar'!BD26-'qs Bar'!BD26)/('Resistance Bar'!BD26)) -> 888.2258292 | BC49: =SQRT(('qc Bar'!BE26+'qr Bar'!BE26-'qs Bar'!BE26)/('Resistance Bar'!BE26)) -> 846.5292306 | BD49: =SQRT(('qc Bar'!BF26+'qr Bar'!BF26-'qs Bar'!BF26)/('Resistance Bar'!BF26)) -> 802.426005 | BE49: =SQRT(('qc Bar'!BG26+'qr Bar'!BG26-'qs Bar'!BG26)/('Resistance Bar'!BG26)) -> 755.4895411 | BF49: =SQRT(('qc Bar'!BH26+'qr Bar'!BH26-'qs Bar'!BH26)/('Resistance Bar'!BH26)) -> 705.1486255 | BG49: =SQRT(('qc Bar'!BI26+'qr Bar'!BI26-'qs Bar'!BI26)/('Resistance Bar'!BI26)) -> 650.6072711 | BH49: =SQRT(('qc Bar'!BJ26+'qr Bar'!BJ26-'qs Bar'!BJ26)/('Resistance Bar'!BJ26)) -> 590.6962021 | BI49: =SQRT(('qc Bar'!BK26+'qr Bar'!BK26-'qs Bar'!BK26)/('Resistance Bar'!BK26)) -> 523.5674781
A50: =min+7*incr -> 85 | B50: =SQRT(('qc Bar'!D29+'qr Bar'!D29-'qs Bar'!D29)/('Resistance Bar'!D29)) -> 1551.594891 | C50: =SQRT(('qc Bar'!E29+'qr Bar'!E29-'qs Bar'!E29)/('Resistance Bar'!E29)) -> 1513.479486 | D50: =SQRT(('qc Bar'!F29+'qr Bar'!F29-'qs Bar'!F29)/('Resistance Bar'!F29)) -> 1474.119285 | E50: =SQRT(('qc Bar'!G29+'qr Bar'!G29-'qs Bar'!G29)/('Resistance Bar'!G29)) -> 1433.398769 | F50: =SQRT(('qc Bar'!H29+'qr Bar'!H29-'qs Bar'!H29)/('Resistance Bar'!H29)) -> 1391.184851 | G50: =SQRT(('qc Bar'!I29+'qr Bar'!I29-'qs Bar'!I29)/('Resistance Bar'!I29)) -> 1347.3228 | H50: =SQRT(('qc Bar'!J29+'qr Bar'!J29-'qs Bar'!J29)/('Resistance Bar'!J29)) -> 1301.630857 | I50: =SQRT(('qc Bar'!K29+'qr Bar'!K29-'qs Bar'!K29)/('Resistance Bar'!K29)) -> 1253.892965 | J50: =SQRT(('qc Bar'!L29+'qr Bar'!L29-'qs Bar'!L29)/('Resistance Bar'!L29)) -> 1203.848754 | K50: =SQRT(('qc Bar'!M29+'qr Bar'!M29-'qs Bar'!M29)/('Resistance Bar'!M29)) -> 1151.179377 | L50: =SQRT(('qc Bar'!N29+'qr Bar'!N29-'qs Bar'!N29)/('Resistance Bar'!N29)) -> 1095.486899 | M50: =SQRT(('qc Bar'!O29+'qr Bar'!O29-'qs Bar'!O29)/('Resistance Bar'!O29)) -> 1036.263198 | Q50: =min+7*incr -> 85 | R50: =SQRT(('qc Bar'!T29+'qr Bar'!T29-'qs Bar'!T29)/('Resistance Bar'!T29)) -> 1814.900849 | S50: =SQRT(('qc Bar'!U29+'qr Bar'!U29-'qs Bar'!U29)/('Resistance Bar'!U29)) -> 1797.685277 | T50: =SQRT(('qc Bar'!V29+'qr Bar'!V29-'qs Bar'!V29)/('Resistance Bar'!V29)) -> 1780.260876 | U50: =SQRT(('qc Bar'!W29+'qr Bar'!W29-'qs Bar'!W29)/('Resistance Bar'!W29)) -> 1762.619956 | V50: =SQRT(('qc Bar'!X29+'qr Bar'!X29-'qs Bar'!X29)/('Resistance Bar'!X29)) -> 1744.754415 | W50: =SQRT(('qc Bar'!Y29+'qr Bar'!Y29-'qs Bar'!Y29)/('Resistance Bar'!Y29)) -> 1726.655711 | X50: =SQRT(('qc Bar'!Z29+'qr Bar'!Z29-'qs Bar'!Z29)/('Resistance Bar'!Z29)) -> 1708.314823 | Y50: =SQRT(('qc Bar'!AA29+'qr Bar'!AA29-'qs Bar'!AA29)/('Resistance Bar'!AA29)) -> 1689.722218 | Z50: =SQRT(('qc Bar'!AB29+'qr Bar'!AB29-'qs Bar'!AB29)/('Resistance Bar'!AB29)) -> 1670.867802 | AA50: =SQRT(('qc Bar'!AC29+'qr Bar'!AC29-'qs Bar'!AC29)/('Resistance Bar'!AC29)) -> 1651.740882 | AB50: =SQRT(('qc Bar'!AD29+'qr Bar'!AD29-'qs Bar'!AD29)/('Resistance Bar'!AD29)) -> 1632.330102 | AC50: =SQRT(('qc Bar'!AE29+'qr Bar'!AE29-'qs Bar'!AE29)/('Resistance Bar'!AE29)) -> 1612.623397 | AD50: =SQRT(('qc Bar'!AF29+'qr Bar'!AF29-'qs Bar'!AF29)/('Resistance Bar'!AF29)) -> 1592.607918 | AE50: =SQRT(('qc Bar'!AG29+'qr Bar'!AG29-'qs Bar'!AG29)/('Resistance Bar'!AG29)) -> 1572.269963 | AF50: =SQRT(('qc Bar'!AH29+'qr Bar'!AH29-'qs Bar'!AH29)/('Resistance Bar'!AH29)) -> 1551.594891 | AG50: =SQRT(('qc Bar'!AI29+'qr Bar'!AI29-'qs Bar'!AI29)/('Resistance Bar'!AI29)) -> 1530.567033 | AH50: =SQRT(('qc Bar'!AJ29+'qr Bar'!AJ29-'qs Bar'!AJ29)/('Resistance Bar'!AJ29)) -> 1509.16958 | AI50: =SQRT(('qc Bar'!AK29+'qr Bar'!AK29-'qs Bar'!AK29)/('Resistance Bar'!AK29)) -> 1487.384465 | AJ50: =SQRT(('qc Bar'!AL29+'qr Bar'!AL29-'qs Bar'!AL29)/('Resistance Bar'!AL29)) -> 1465.192226 | AK50: =SQRT(('qc Bar'!AM29+'qr Bar'!AM29-'qs Bar'!AM29)/('Resistance Bar'!AM29)) -> 1442.57184 | AL50: =SQRT(('qc Bar'!AN29+'qr Bar'!AN29-'qs Bar'!AN29)/('Resistance Bar'!AN29)) -> 1419.500547 | AM50: =SQRT(('qc Bar'!AO29+'qr Bar'!AO29-'qs Bar'!AO29)/('Resistance Bar'!AO29)) -> 1395.953634 | AN50: =SQRT(('qc Bar'!AP29+'qr Bar'!AP29-'qs Bar'!AP29)/('Resistance Bar'!AP29)) -> 1371.904187 | AO50: =SQRT(('qc Bar'!AQ29+'qr Bar'!AQ29-'qs Bar'!AQ29)/('Resistance Bar'!AQ29)) -> 1347.3228 | AP50: =SQRT(('qc Bar'!AR29+'qr Bar'!AR29-'qs Bar'!AR29)/('Resistance Bar'!AR29)) -> 1322.177235 | AQ50: =SQRT(('qc Bar'!AS29+'qr Bar'!AS29-'qs Bar'!AS29)/('Resistance Bar'!AS29)) -> 1296.432018 | AR50: =SQRT(('qc Bar'!AT29+'qr Bar'!AT29-'qs Bar'!AT29)/('Resistance Bar'!AT29)) -> 1270.04795 | AS50: =SQRT(('qc Bar'!AU29+'qr Bar'!AU29-'qs Bar'!AU29)/('Resistance Bar'!AU29)) -> 1242.981534 | AT50: =SQRT(('qc Bar'!AV29+'qr Bar'!AV29-'qs Bar'!AV29)/('Resistance Bar'!AV29)) -> 1215.184262 | AU50: =SQRT(('qc Bar'!AW29+'qr Bar'!AW29-'qs Bar'!AW29)/('Resistance Bar'!AW29)) -> 1186.60176 | AV50: =SQRT(('qc Bar'!AX29+'qr Bar'!AX29-'qs Bar'!AX29)/('Resistance Bar'!AX29)) -> 1157.172726 | AW50: =SQRT(('qc Bar'!AY29+'qr Bar'!AY29-'qs Bar'!AY29)/('Resistance Bar'!AY29)) -> 1126.8276 | AX50: =SQRT(('qc Bar'!AZ29+'qr Bar'!AZ29-'qs Bar'!AZ29)/('Resistance Bar'!AZ29)) -> 1095.486899 | AY50: =SQRT(('qc Bar'!BA29+'qr Bar'!BA29-'qs Bar'!BA29)/('Resistance Bar'!BA29)) -> 1063.059078 | AZ50: =SQRT(('qc Bar'!BB29+'qr Bar'!BB29-'qs Bar'!BB29)/('Resistance Bar'!BB29)) -> 1029.437765 | BA50: =SQRT(('qc Bar'!BC29+'qr Bar'!BC29-'qs Bar'!BC29)/('Resistance Bar'!BC29)) -> 994.4981148 | BB50: =SQRT(('qc Bar'!BD29+'qr Bar'!BD29-'qs Bar'!BD29)/('Resistance Bar'!BD29)) -> 958.0919208 | BC50: =SQRT(('qc Bar'!BE29+'qr Bar'!BE29-'qs Bar'!BE29)/('Resistance Bar'!BE29)) -> 920.040915 | BD50: =SQRT(('qc Bar'!BF29+'qr Bar'!BF29-'qs Bar'!BF29)/('Resistance Bar'!BF29)) -> 880.1273707 | BE50: =SQRT(('qc Bar'!BG29+'qr Bar'!BG29-'qs Bar'!BG29)/('Resistance Bar'!BG29)) -> 838.0805378 | BF50: =SQRT(('qc Bar'!BH29+'qr Bar'!BH29-'qs Bar'!BH29)/('Resistance Bar'!BH29)) -> 793.5564011 | BG50: =SQRT(('qc Bar'!BI29+'qr Bar'!BI29-'qs Bar'!BI29)/('Resistance Bar'!BI29)) -> 746.1062386 | BH50: =SQRT(('qc Bar'!BJ29+'qr Bar'!BJ29-'qs Bar'!BJ29)/('Resistance Bar'!BJ29)) -> 695.1253123 | BI50: =SQRT(('qc Bar'!BK29+'qr Bar'!BK29-'qs Bar'!BK29)/('Resistance Bar'!BK29)) -> 639.7637633
A51: =min+8*incr -> 90 | B51: =SQRT(('qc Bar'!D32+'qr Bar'!D32-'qs Bar'!D32)/('Resistance Bar'!D32)) -> 1586.590955 | C51: =SQRT(('qc Bar'!E32+'qr Bar'!E32-'qs Bar'!E32)/('Resistance Bar'!E32)) -> 1549.784623 | D51: =SQRT(('qc Bar'!F32+'qr Bar'!F32-'qs Bar'!F32)/('Resistance Bar'!F32)) -> 1511.83236 | E51: =SQRT(('qc Bar'!G32+'qr Bar'!G32-'qs Bar'!G32)/('Resistance Bar'!G32)) -> 1472.633076 | F51: =SQRT(('qc Bar'!H32+'qr Bar'!H32-'qs Bar'!H32)/('Resistance Bar'!H32)) -> 1432.071266 | G51: =SQRT(('qc Bar'!I32+'qr Bar'!I32-'qs Bar'!I32)/('Resistance Bar'!I32)) -> 1390.013888 | H51: =SQRT(('qc Bar'!J32+'qr Bar'!J32-'qs Bar'!J32)/('Resistance Bar'!J32)) -> 1346.306298 | I51: =SQRT(('qc Bar'!K32+'qr Bar'!K32-'qs Bar'!K32)/('Resistance Bar'!K32)) -> 1300.76688 | J51: =SQRT(('qc Bar'!L32+'qr Bar'!L32-'qs Bar'!L32)/('Resistance Bar'!L32)) -> 1253.179797 | K51: =SQRT(('qc Bar'!M32+'qr Bar'!M32-'qs Bar'!M32)/('Resistance Bar'!M32)) -> 1203.285009 | L51: =SQRT(('qc Bar'!N32+'qr Bar'!N32-'qs Bar'!N32)/('Resistance Bar'!N32)) -> 1150.764159 | M51: =SQRT(('qc Bar'!O32+'qr Bar'!O32-'qs Bar'!O32)/('Resistance Bar'!O32)) -> 1095.220038 | Q51: =min+8*incr -> 90 | R51: =SQRT(('qc Bar'!T32+'qr Bar'!T32-'qs Bar'!T32)/('Resistance Bar'!T32)) -> 1842.053779 | S51: =SQRT(('qc Bar'!U32+'qr Bar'!U32-'qs Bar'!U32)/('Resistance Bar'!U32)) -> 1825.296546 | T51: =SQRT(('qc Bar'!V32+'qr Bar'!V32-'qs Bar'!V32)/('Resistance Bar'!V32)) -> 1808.342861 | U51: =SQRT(('qc Bar'!W32+'qr Bar'!W32-'qs Bar'!W32)/('Resistance Bar'!W32)) -> 1791.185688 | V51: =SQRT(('qc Bar'!X32+'qr Bar'!X32-'qs Bar'!X32)/('Resistance Bar'!X32)) -> 1773.817629 | W51: =SQRT(('qc Bar'!Y32+'qr Bar'!Y32-'qs Bar'!Y32)/('Resistance Bar'!Y32)) -> 1756.230901 | X51: =SQRT(('qc Bar'!Z32+'qr Bar'!Z32-'qs Bar'!Z32)/('Resistance Bar'!Z32)) -> 1738.417302 | Y51: =SQRT(('qc Bar'!AA32+'qr Bar'!AA32-'qs Bar'!AA32)/('Resistance Bar'!AA32)) -> 1720.368183 | Z51: =SQRT(('qc Bar'!AB32+'qr Bar'!AB32-'qs Bar'!AB32)/('Resistance Bar'!AB32)) -> 1702.074411 | AA51: =SQRT(('qc Bar'!AC32+'qr Bar'!AC32-'qs Bar'!AC32)/('Resistance Bar'!AC32)) -> 1683.526331 | AB51: =SQRT(('qc Bar'!AD32+'qr Bar'!AD32-'qs Bar'!AD32)/('Resistance Bar'!AD32)) -> 1664.713723 | AC51: =SQRT(('qc Bar'!AE32+'qr Bar'!AE32-'qs Bar'!AE32)/('Resistance Bar'!AE32)) -> 1645.625752 | AD51: =SQRT(('qc Bar'!AF32+'qr Bar'!AF32-'qs Bar'!AF32)/('Resistance Bar'!AF32)) -> 1626.250917 | AE51: =SQRT(('qc Bar'!AG32+'qr Bar'!AG32-'qs Bar'!AG32)/('Resistance Bar'!AG32)) -> 1606.576992 | AF51: =SQRT(('qc Bar'!AH32+'qr Bar'!AH32-'qs Bar'!AH32)/('Resistance Bar'!AH32)) -> 1586.590955 | AG51: =SQRT(('qc Bar'!AI32+'qr Bar'!AI32-'qs Bar'!AI32)/('Resistance Bar'!AI32)) -> 1566.278916 | AH51: =SQRT(('qc Bar'!AJ32+'qr Bar'!AJ32-'qs Bar'!AJ32)/('Resistance Bar'!AJ32)) -> 1545.626032 | AI51: =SQRT(('qc Bar'!AK32+'qr Bar'!AK32-'qs Bar'!AK32)/('Resistance Bar'!AK32)) -> 1524.61641 | AJ51: =SQRT(('qc Bar'!AL32+'qr Bar'!AL32-'qs Bar'!AL32)/('Resistance Bar'!AL32)) -> 1503.232997 | AK51: =SQRT(('qc Bar'!AM32+'qr Bar'!AM32-'qs Bar'!AM32)/('Resistance Bar'!AM32)) -> 1481.457461 | AL51: =SQRT(('qc Bar'!AN32+'qr Bar'!AN32-'qs Bar'!AN32)/('Resistance Bar'!AN32)) -> 1459.270039 | AM51: =SQRT(('qc Bar'!AO32+'qr Bar'!AO32-'qs Bar'!AO32)/('Resistance Bar'!AO32)) -> 1436.649386 | AN51: =SQRT(('qc Bar'!AP32+'qr Bar'!AP32-'qs Bar'!AP32)/('Resistance Bar'!AP32)) -> 1413.572376 | AO51: =SQRT(('qc Bar'!AQ32+'qr Bar'!AQ32-'qs Bar'!AQ32)/('Resistance Bar'!AQ32)) -> 1390.013888 | AP51: =SQRT(('qc Bar'!AR32+'qr Bar'!AR32-'qs Bar'!AR32)/('Resistance Bar'!AR32)) -> 1365.946551 | AQ51: =SQRT(('qc Bar'!AS32+'qr Bar'!AS32-'qs Bar'!AS32)/('Resistance Bar'!AS32)) -> 1341.340444 | AR51: =SQRT(('qc Bar'!AT32+'qr Bar'!AT32-'qs Bar'!AT32)/('Resistance Bar'!AT32)) -> 1316.162746 | AS51: =SQRT(('qc Bar'!AU32+'qr Bar'!AU32-'qs Bar'!AU32)/('Resistance Bar'!AU32)) -> 1290.377313 | AT51: =SQRT(('qc Bar'!AV32+'qr Bar'!AV32-'qs Bar'!AV32)/('Resistance Bar'!AV32)) -> 1263.944182 | AU51: =SQRT(('qc Bar'!AW32+'qr Bar'!AW32-'qs Bar'!AW32)/('Resistance Bar'!AW32)) -> 1236.818971 | AV51: =SQRT(('qc Bar'!AX32+'qr Bar'!AX32-'qs Bar'!AX32)/('Resistance Bar'!AX32)) -> 1208.952142 | AW51: =SQRT(('qc Bar'!AY32+'qr Bar'!AY32-'qs Bar'!AY32)/('Resistance Bar'!AY32)) -> 1180.288115 | AX51: =SQRT(('qc Bar'!AZ32+'qr Bar'!AZ32-'qs Bar'!AZ32)/('Resistance Bar'!AZ32)) -> 1150.764159 | AY51: =SQRT(('qc Bar'!BA32+'qr Bar'!BA32-'qs Bar'!BA32)/('Resistance Bar'!BA32)) -> 1120.30901 | AZ51: =SQRT(('qc Bar'!BB32+'qr Bar'!BB32-'qs Bar'!BB32)/('Resistance Bar'!BB32)) -> 1088.84113 | BA51: =SQRT(('qc Bar'!BC32+'qr Bar'!BC32-'qs Bar'!BC32)/('Resistance Bar'!BC32)) -> 1056.266467 | BB51: =SQRT(('qc Bar'!BD32+'qr Bar'!BD32-'qs Bar'!BD32)/('Resistance Bar'!BD32)) -> 1022.475551 | BC51: =SQRT(('qc Bar'!BE32+'qr Bar'!BE32-'qs Bar'!BE32)/('Resistance Bar'!BE32)) -> 987.3396527 | BD51: =SQRT(('qc Bar'!BF32+'qr Bar'!BF32-'qs Bar'!BF32)/('Resistance Bar'!BF32)) -> 950.7056177 | BE51: =SQRT(('qc Bar'!BG32+'qr Bar'!BG32-'qs Bar'!BG32)/('Resistance Bar'!BG32)) -> 912.3887521 | BF51: =SQRT(('qc Bar'!BH32+'qr Bar'!BH32-'qs Bar'!BH32)/('Resistance Bar'!BH32)) -> 872.1628 | BG51: =SQRT(('qc Bar'!BI32+'qr Bar'!BI32-'qs Bar'!BI32)/('Resistance Bar'!BI32)) -> 829.7453922 | BH51: =SQRT(('qc Bar'!BJ32+'qr Bar'!BJ32-'qs Bar'!BJ32)/('Resistance Bar'!BJ32)) -> 784.7761878 | BI51: =SQRT(('qc Bar'!BK32+'qr Bar'!BK32-'qs Bar'!BK32)/('Resistance Bar'!BK32)) -> 736.7826407
A52: =min+9*incr -> 95 | B52: =SQRT(('qc Bar'!D35+'qr Bar'!D35-'qs Bar'!D35)/('Resistance Bar'!D35)) -> 1620.532945 | C52: =SQRT(('qc Bar'!E35+'qr Bar'!E35-'qs Bar'!E35)/('Resistance Bar'!E35)) -> 1584.943081 | D52: =SQRT(('qc Bar'!F35+'qr Bar'!F35-'qs Bar'!F35)/('Resistance Bar'!F35)) -> 1548.293966 | E52: =SQRT(('qc Bar'!G35+'qr Bar'!G35-'qs Bar'!G35)/('Resistance Bar'!G35)) -> 1510.49645 | F52: =SQRT(('qc Bar'!H35+'qr Bar'!H35-'qs Bar'!H35)/('Resistance Bar'!H35)) -> 1471.449422 | G52: =SQRT(('qc Bar'!I35+'qr Bar'!I35-'qs Bar'!I35)/('Resistance Bar'!I35)) -> 1431.037376 | H52: =SQRT(('qc Bar'!J35+'qr Bar'!J35-'qs Bar'!J35)/('Resistance Bar'!J35)) -> 1389.127297 | I52: =SQRT(('qc Bar'!K35+'qr Bar'!K35-'qs Bar'!K35)/('Resistance Bar'!K35)) -> 1345.564607 | J52: =SQRT(('qc Bar'!L35+'qr Bar'!L35-'qs Bar'!L35)/('Resistance Bar'!L35)) -> 1300.167808 | K52: =SQRT(('qc Bar'!M35+'qr Bar'!M35-'qs Bar'!M35)/('Resistance Bar'!M35)) -> 1252.721251 | L52: =SQRT(('qc Bar'!N35+'qr Bar'!N35-'qs Bar'!N35)/('Resistance Bar'!N35)) -> 1202.965186 | M52: =SQRT(('qc Bar'!O35+'qr Bar'!O35-'qs Bar'!O35)/('Resistance Bar'!O35)) -> 1150.581699 | Q52: =min+9*incr -> 95 | R52: =SQRT(('qc Bar'!T35+'qr Bar'!T35-'qs Bar'!T35)/('Resistance Bar'!T35)) -> 1868.618161 | S52: =SQRT(('qc Bar'!U35+'qr Bar'!U35-'qs Bar'!U35)/('Resistance Bar'!U35)) -> 1852.295951 | T52: =SQRT(('qc Bar'!V35+'qr Bar'!V35-'qs Bar'!V35)/('Resistance Bar'!V35)) -> 1835.788568 | U52: =SQRT(('qc Bar'!W35+'qr Bar'!W35-'qs Bar'!W35)/('Resistance Bar'!W35)) -> 1819.089551 | V52: =SQRT(('qc Bar'!X35+'qr Bar'!X35-'qs Bar'!X35)/('Resistance Bar'!X35)) -> 1802.192117 | W52: =SQRT(('qc Bar'!Y35+'qr Bar'!Y35-'qs Bar'!Y35)/('Resistance Bar'!Y35)) -> 1785.089146 | X52: =SQRT(('qc Bar'!Z35+'qr Bar'!Z35-'qs Bar'!Z35)/('Resistance Bar'!Z35)) -> 1767.773149 | Y52: =SQRT(('qc Bar'!AA35+'qr Bar'!AA35-'qs Bar'!AA35)/('Resistance Bar'!AA35)) -> 1750.236244 | Z52: =SQRT(('qc Bar'!AB35+'qr Bar'!AB35-'qs Bar'!AB35)/('Resistance Bar'!AB35)) -> 1732.47013 | AA52: =SQRT(('qc Bar'!AC35+'qr Bar'!AC35-'qs Bar'!AC35)/('Resistance Bar'!AC35)) -> 1714.466048 | AB52: =SQRT(('qc Bar'!AD35+'qr Bar'!AD35-'qs Bar'!AD35)/('Resistance Bar'!AD35)) -> 1696.214751 | AC52: =SQRT(('qc Bar'!AE35+'qr Bar'!AE35-'qs Bar'!AE35)/('Resistance Bar'!AE35)) -> 1677.706462 | AD52: =SQRT(('qc Bar'!AF35+'qr Bar'!AF35-'qs Bar'!AF35)/('Resistance Bar'!AF35)) -> 1658.930827 | AE52: =SQRT(('qc Bar'!AG35+'qr Bar'!AG35-'qs Bar'!AG35)/('Resistance Bar'!AG35)) -> 1639.876872 | AF52: =SQRT(('qc Bar'!AH35+'qr Bar'!AH35-'qs Bar'!AH35)/('Resistance Bar'!AH35)) -> 1620.532945 | AG52: =SQRT(('qc Bar'!AI35+'qr Bar'!AI35-'qs Bar'!AI35)/('Resistance Bar'!AI35)) -> 1600.886655 | AH52: =SQRT(('qc Bar'!AJ35+'qr Bar'!AJ35-'qs Bar'!AJ35)/('Resistance Bar'!AJ35)) -> 1580.924804 | AI52: =SQRT(('qc Bar'!AK35+'qr Bar'!AK35-'qs Bar'!AK35)/('Resistance Bar'!AK35)) -> 1560.633309 | AJ52: =SQRT(('qc Bar'!AL35+'qr Bar'!AL35-'qs Bar'!AL35)/('Resistance Bar'!AL35)) -> 1539.99712 | AK52: =SQRT(('qc Bar'!AM35+'qr Bar'!AM35-'qs Bar'!AM35)/('Resistance Bar'!AM35)) -> 1519.000114 | AL52: =SQRT(('qc Bar'!AN35+'qr Bar'!AN35-'qs Bar'!AN35)/('Resistance Bar'!AN35)) -> 1497.62499 | AM52: =SQRT(('qc Bar'!AO35+'qr Bar'!AO35-'qs Bar'!AO35)/('Resistance Bar'!AO35)) -> 1475.853138 | AN52: =SQRT(('qc Bar'!AP35+'qr Bar'!AP35-'qs Bar'!AP35)/('Resistance Bar'!AP35)) -> 1453.664495 | AO52: =SQRT(('qc Bar'!AQ35+'qr Bar'!AQ35-'qs Bar'!AQ35)/('Resistance Bar'!AQ35)) -> 1431.037376 | AP52: =SQRT(('qc Bar'!AR35+'qr Bar'!AR35-'qs Bar'!AR35)/('Resistance Bar'!AR35)) -> 1407.948282 | AQ52: =SQRT(('qc Bar'!AS35+'qr Bar'!AS35-'qs Bar'!AS35)/('Resistance Bar'!AS35)) -> 1384.371673 | AR52: =SQRT(('qc Bar'!AT35+'qr Bar'!AT35-'qs Bar'!AT35)/('Resistance Bar'!AT35)) -> 1360.279707 | AS52: =SQRT(('qc Bar'!AU35+'qr Bar'!AU35-'qs Bar'!AU35)/('Resistance Bar'!AU35)) -> 1335.641932 | AT52: =SQRT(('qc Bar'!AV35+'qr Bar'!AV35-'qs Bar'!AV35)/('Resistance Bar'!AV35)) -> 1310.424922 | AU52: =SQRT(('qc Bar'!AW35+'qr Bar'!AW35-'qs Bar'!AW35)/('Resistance Bar'!AW35)) -> 1284.591845 | AV52: =SQRT(('qc Bar'!AX35+'qr Bar'!AX35-'qs Bar'!AX35)/('Resistance Bar'!AX35)) -> 1258.101947 | AW52: =SQRT(('qc Bar'!AY35+'qr Bar'!AY35-'qs Bar'!AY35)/('Resistance Bar'!AY35)) -> 1230.909928 | AX52: =SQRT(('qc Bar'!AZ35+'qr Bar'!AZ35-'qs Bar'!AZ35)/('Resistance Bar'!AZ35)) -> 1202.965186 | AY52: =SQRT(('qc Bar'!BA35+'qr Bar'!BA35-'qs Bar'!BA35)/('Resistance Bar'!BA35)) -> 1174.210888 | AZ52: =SQRT(('qc Bar'!BB35+'qr Bar'!BB35-'qs Bar'!BB35)/('Resistance Bar'!BB35)) -> 1144.582818 | BA52: =SQRT(('qc Bar'!BC35+'qr Bar'!BC35-'qs Bar'!BC35)/('Resistance Bar'!BC35)) -> 1114.007941 | BB52: =SQRT(('qc Bar'!BD35+'qr Bar'!BD35-'qs Bar'!BD35)/('Resistance Bar'!BD35)) -> 1082.402576 | BC52: =SQRT(('qc Bar'!BE35+'qr Bar'!BE35-'qs Bar'!BE35)/('Resistance Bar'!BE35)) -> 1049.670053 | BD52: =SQRT(('qc Bar'!BF35+'qr Bar'!BF35-'qs Bar'!BF35)/('Resistance Bar'!BF35)) -> 1015.697662 | BE52: =SQRT(('qc Bar'!BG35+'qr Bar'!BG35-'qs Bar'!BG35)/('Resistance Bar'!BG35)) -> 980.3525991 | BF52: =SQRT(('qc Bar'!BH35+'qr Bar'!BH35-'qs Bar'!BH35)/('Resistance Bar'!BH35)) -> 943.4765047 | BG52: =SQRT(('qc Bar'!BI35+'qr Bar'!BI35-'qs Bar'!BI35)/('Resistance Bar'!BI35)) -> 904.8779026 | BH52: =SQRT(('qc Bar'!BJ35+'qr Bar'!BJ35-'qs Bar'!BJ35)/('Resistance Bar'!BJ35)) -> 864.3214974 | BI52: =SQRT(('qc Bar'!BK35+'qr Bar'!BK35-'qs Bar'!BK35)/('Resistance Bar'!BK35)) -> 821.5125473
A53: =min+10*incr -> 100 | B53: =SQRT(('qc Bar'!D38+'qr Bar'!D38-'qs Bar'!D38)/('Resistance Bar'!D38)) -> 1653.511002 | C53: =SQRT(('qc Bar'!E38+'qr Bar'!E38-'qs Bar'!E38)/('Resistance Bar'!E38)) -> 1619.055677 | D53: =SQRT(('qc Bar'!F38+'qr Bar'!F38-'qs Bar'!F38)/('Resistance Bar'!F38)) -> 1583.617603 | E53: =SQRT(('qc Bar'!G38+'qr Bar'!G38-'qs Bar'!G38)/('Resistance Bar'!G38)) -> 1547.117614 | F53: =SQRT(('qc Bar'!H38+'qr Bar'!H38-'qs Bar'!H38)/('Resistance Bar'!H38)) -> 1509.466511 | G53: =SQRT(('qc Bar'!I38+'qr Bar'!I38-'qs Bar'!I38)/('Resistance Bar'!I38)) -> 1470.563147 | H53: =SQRT(('qc Bar'!J38+'qr Bar'!J38-'qs Bar'!J38)/('Resistance Bar'!J38)) -> 1430.292002 | I53: =SQRT(('qc Bar'!K38+'qr Bar'!K38-'qs Bar'!K38)/('Resistance Bar'!K38)) -> 1388.52007 | J53: =SQRT(('qc Bar'!L38+'qr Bar'!L38-'qs Bar'!L38)/('Resistance Bar'!L38)) -> 1345.092818 | K53: =SQRT(('qc Bar'!M38+'qr Bar'!M38-'qs Bar'!M38)/('Resistance Bar'!M38)) -> 1299.828839 | L53: =SQRT(('qc Bar'!N38+'qr Bar'!N38-'qs Bar'!N38)/('Resistance Bar'!N38)) -> 1252.512644 | M53: =SQRT(('qc Bar'!O38+'qr Bar'!O38-'qs Bar'!O38)/('Resistance Bar'!O38)) -> 1202.884735 | Q53: =min+10*incr -> 100 | R53: =SQRT(('qc Bar'!T38+'qr Bar'!T38-'qs Bar'!T38)/('Resistance Bar'!T38)) -> 1894.638505 | S53: =SQRT(('qc Bar'!U38+'qr Bar'!U38-'qs Bar'!U38)/('Resistance Bar'!U38)) -> 1878.729955 | T53: =SQRT(('qc Bar'!V38+'qr Bar'!V38-'qs Bar'!V38)/('Resistance Bar'!V38)) -> 1862.646543 | U53: =SQRT(('qc Bar'!W38+'qr Bar'!W38-'qs Bar'!W38)/('Resistance Bar'!W38)) -> 1846.382314 | V53: =SQRT(('qc Bar'!X38+'qr Bar'!X38-'qs Bar'!X38)/('Resistance Bar'!X38)) -> 1829.93103 | W53: =SQRT(('qc Bar'!Y38+'qr Bar'!Y38-'qs Bar'!Y38)/('Resistance Bar'!Y38)) -> 1813.286149 | X53: =SQRT(('qc Bar'!Z38+'qr Bar'!Z38-'qs Bar'!Z38)/('Resistance Bar'!Z38)) -> 1796.440809 | Y53: =SQRT(('qc Bar'!AA38+'qr Bar'!AA38-'qs Bar'!AA38)/('Resistance Bar'!AA38)) -> 1779.387799 | Z53: =SQRT(('qc Bar'!AB38+'qr Bar'!AB38-'qs Bar'!AB38)/('Resistance Bar'!AB38)) -> 1762.119538 | AA53: =SQRT(('qc Bar'!AC38+'qr Bar'!AC38-'qs Bar'!AC38)/('Resistance Bar'!AC38)) -> 1744.628048 | AB53: =SQRT(('qc Bar'!AD38+'qr Bar'!AD38-'qs Bar'!AD38)/('Resistance Bar'!AD38)) -> 1726.904922 | AC53: =SQRT(('qc Bar'!AE38+'qr Bar'!AE38-'qs Bar'!AE38)/('Resistance Bar'!AE38)) -> 1708.941294 | AD53: =SQRT(('qc Bar'!AF38+'qr Bar'!AF38-'qs Bar'!AF38)/('Resistance Bar'!AF38)) -> 1690.727796 | AE53: =SQRT(('qc Bar'!AG38+'qr Bar'!AG38-'qs Bar'!AG38)/('Resistance Bar'!AG38)) -> 1672.254528 | AF53: =SQRT(('qc Bar'!AH38+'qr Bar'!AH38-'qs Bar'!AH38)/('Resistance Bar'!AH38)) -> 1653.511002 | AG53: =SQRT(('qc Bar'!AI38+'qr Bar'!AI38-'qs Bar'!AI38)/('Resistance Bar'!AI38)) -> 1634.486099 | AH53: =SQRT(('qc Bar'!AJ38+'qr Bar'!AJ38-'qs Bar'!AJ38)/('Resistance Bar'!AJ38)) -> 1615.168013 | AI53: =SQRT(('qc Bar'!AK38+'qr Bar'!AK38-'qs Bar'!AK38)/('Resistance Bar'!AK38)) -> 1595.544185 | AJ53: =SQRT(('qc Bar'!AL38+'qr Bar'!AL38-'qs Bar'!AL38)/('Resistance Bar'!AL38)) -> 1575.601237 | AK53: =SQRT(('qc Bar'!AM38+'qr Bar'!AM38-'qs Bar'!AM38)/('Resistance Bar'!AM38)) -> 1555.324889 | AL53: =SQRT(('qc Bar'!AN38+'qr Bar'!AN38-'qs Bar'!AN38)/('Resistance Bar'!AN38)) -> 1534.699876 | AM53: =SQRT(('qc Bar'!AO38+'qr Bar'!AO38-'qs Bar'!AO38)/('Resistance Bar'!AO38)) -> 1513.709842 | AN53: =SQRT(('qc Bar'!AP38+'qr Bar'!AP38-'qs Bar'!AP38)/('Resistance Bar'!AP38)) -> 1492.33723 | AO53: =SQRT(('qc Bar'!AQ38+'qr Bar'!AQ38-'qs Bar'!AQ38)/('Resistance Bar'!AQ38)) -> 1470.563147 | AP53: =SQRT(('qc Bar'!AR38+'qr Bar'!AR38-'qs Bar'!AR38)/('Resistance Bar'!AR38)) -> 1448.367218 | AQ53: =SQRT(('qc Bar'!AS38+'qr Bar'!AS38-'qs Bar'!AS38)/('Resistance Bar'!AS38)) -> 1425.727413 | AR53: =SQRT(('qc Bar'!AT38+'qr Bar'!AT38-'qs Bar'!AT38)/('Resistance Bar'!AT38)) -> 1402.619845 | AS53: =SQRT(('qc Bar'!AU38+'qr Bar'!AU38-'qs Bar'!AU38)/('Resistance Bar'!AU38)) -> 1379.018545 | AT53: =SQRT(('qc Bar'!AV38+'qr Bar'!AV38-'qs Bar'!AV38)/('Resistance Bar'!AV38)) -> 1354.895185 | AU53: =SQRT(('qc Bar'!AW38+'qr Bar'!AW38-'qs Bar'!AW38)/('Resistance Bar'!AW38)) -> 1330.218764 | AV53: =SQRT(('qc Bar'!AX38+'qr Bar'!AX38-'qs Bar'!AX38)/('Resistance Bar'!AX38)) -> 1304.955235 | AW53: =SQRT(('qc Bar'!AY38+'qr Bar'!AY38-'qs Bar'!AY38)/('Resistance Bar'!AY38)) -> 1279.067052 | AX53: =SQRT(('qc Bar'!AZ38+'qr Bar'!AZ38-'qs Bar'!AZ38)/('Resistance Bar'!AZ38)) -> 1252.512644 | AY53: =SQRT(('qc Bar'!BA38+'qr Bar'!BA38-'qs Bar'!BA38)/('Resistance Bar'!BA38)) -> 1225.245762 | AZ53: =SQRT(('qc Bar'!BB38+'qr Bar'!BB38-'qs Bar'!BB38)/('Resistance Bar'!BB38)) -> 1197.214699 | BA53: =SQRT(('qc Bar'!BC38+'qr Bar'!BC38-'qs Bar'!BC38)/('Resistance Bar'!BC38)) -> 1168.361322 | BB53: =SQRT(('qc Bar'!BD38+'qr Bar'!BD38-'qs Bar'!BD38)/('Resistance Bar'!BD38)) -> 1138.619875 | BC53: =SQRT(('qc Bar'!BE38+'qr Bar'!BE38-'qs Bar'!BE38)/('Resistance Bar'!BE38)) -> 1107.915478 | BD53: =SQRT(('qc Bar'!BF38+'qr Bar'!BF38-'qs Bar'!BF38)/('Resistance Bar'!BF38)) -> 1076.162216 | BE53: =SQRT(('qc Bar'!BG38+'qr Bar'!BG38-'qs Bar'!BG38)/('Resistance Bar'!BG38)) -> 1043.260685 | BF53: =SQRT(('qc Bar'!BH38+'qr Bar'!BH38-'qs Bar'!BH38)/('Resistance Bar'!BH38)) -> 1009.094782 | BG53: =SQRT(('qc Bar'!BI38+'qr Bar'!BI38-'qs Bar'!BI38)/('Resistance Bar'!BI38)) -> 973.5274284 | BH53: =SQRT(('qc Bar'!BJ38+'qr Bar'!BJ38-'qs Bar'!BJ38)/('Resistance Bar'!BJ38)) -> 936.3947852 | BI53: =SQRT(('qc Bar'!BK38+'qr Bar'!BK38-'qs Bar'!BK38)/('Resistance Bar'!BK38)) -> 897.4982117
A54: =min+11*incr -> 105 | B54: =SQRT(('qc Bar'!D41+'qr Bar'!D41-'qs Bar'!D41)/('Resistance Bar'!D41)) -> 1685.605524 | C54: =SQRT(('qc Bar'!E41+'qr Bar'!E41-'qs Bar'!E41)/('Resistance Bar'!E41)) -> 1652.211821 | D54: =SQRT(('qc Bar'!F41+'qr Bar'!F41-'qs Bar'!F41)/('Resistance Bar'!F41)) -> 1617.903298 | E54: =SQRT(('qc Bar'!G41+'qr Bar'!G41-'qs Bar'!G41)/('Resistance Bar'!G41)) -> 1582.609206 | F54: =SQRT(('qc Bar'!H41+'qr Bar'!H41-'qs Bar'!H41)/('Resistance Bar'!H41)) -> 1546.250308 | G54: =SQRT(('qc Bar'!I41+'qr Bar'!I41-'qs Bar'!I41)/('Resistance Bar'!I41)) -> 1508.737345 | H54: =SQRT(('qc Bar'!J41+'qr Bar'!J41-'qs Bar'!J41)/('Resistance Bar'!J41)) -> 1469.969125 | I54: =SQRT(('qc Bar'!K41+'qr Bar'!K41-'qs Bar'!K41)/('Resistance Bar'!K41)) -> 1429.830097 | J54: =SQRT(('qc Bar'!L41+'qr Bar'!L41-'qs Bar'!L41)/('Resistance Bar'!L41)) -> 1388.187249 | K54: =SQRT(('qc Bar'!M41+'qr Bar'!M41-'qs Bar'!M41)/('Resistance Bar'!M41)) -> 1344.886071 | L54: =SQRT(('qc Bar'!N41+'qr Bar'!N41-'qs Bar'!N41)/('Resistance Bar'!N41)) -> 1299.745224 | M54: =SQRT(('qc Bar'!O41+'qr Bar'!O41-'qs Bar'!O41)/('Resistance Bar'!O41)) -> 1252.549346 | Q54: =min+11*incr -> 105 | R54: =SQRT(('qc Bar'!T41+'qr Bar'!T41-'qs Bar'!T41)/('Resistance Bar'!T41)) -> 1920.155716 | S54: =SQRT(('qc Bar'!U41+'qr Bar'!U41-'qs Bar'!U41)/('Resistance Bar'!U41)) -> 1904.641188 | T54: =SQRT(('qc Bar'!V41+'qr Bar'!V41-'qs Bar'!V41)/('Resistance Bar'!V41)) -> 1888.961253 | U54: =SQRT(('qc Bar'!W41+'qr Bar'!W41-'qs Bar'!W41)/('Resistance Bar'!W41)) -> 1873.110406 | V54: =SQRT(('qc Bar'!X41+'qr Bar'!X41-'qs Bar'!X41)/('Resistance Bar'!X41)) -> 1857.082889 | W54: =SQRT(('qc Bar'!Y41+'qr Bar'!Y41-'qs Bar'!Y41)/('Resistance Bar'!Y41)) -> 1840.872672 | X54: =SQRT(('qc Bar'!Z41+'qr Bar'!Z41-'qs Bar'!Z41)/('Resistance Bar'!Z41)) -> 1824.473442 | Y54: =SQRT(('qc Bar'!AA41+'qr Bar'!AA41-'qs Bar'!AA41)/('Resistance Bar'!AA41)) -> 1807.878576 | Z54: =SQRT(('qc Bar'!AB41+'qr Bar'!AB41-'qs Bar'!AB41)/('Resistance Bar'!AB41)) -> 1791.081128 | AA54: =SQRT(('qc Bar'!AC41+'qr Bar'!AC41-'qs Bar'!AC41)/('Resistance Bar'!AC41)) -> 1774.073798 | AB54: =SQRT(('qc Bar'!AD41+'qr Bar'!AD41-'qs Bar'!AD41)/('Resistance Bar'!AD41)) -> 1756.848911 | AC54: =SQRT(('qc Bar'!AE41+'qr Bar'!AE41-'qs Bar'!AE41)/('Resistance Bar'!AE41)) -> 1739.39839 | AD54: =SQRT(('qc Bar'!AF41+'qr Bar'!AF41-'qs Bar'!AF41)/('Resistance Bar'!AF41)) -> 1721.713723 | AE54: =SQRT(('qc Bar'!AG41+'qr Bar'!AG41-'qs Bar'!AG41)/('Resistance Bar'!AG41)) -> 1703.785929 | AF54: =SQRT(('qc Bar'!AH41+'qr Bar'!AH41-'qs Bar'!AH41)/('Resistance Bar'!AH41)) -> 1685.605524 | AG54: =SQRT(('qc Bar'!AI41+'qr Bar'!AI41-'qs Bar'!AI41)/('Resistance Bar'!AI41)) -> 1667.162478 | AH54: =SQRT(('qc Bar'!AJ41+'qr Bar'!AJ41-'qs Bar'!AJ41)/('Resistance Bar'!AJ41)) -> 1648.446167 | AI54: =SQRT(('qc Bar'!AK41+'qr Bar'!AK41-'qs Bar'!AK41)/('Resistance Bar'!AK41)) -> 1629.445325 | AJ54: =SQRT(('qc Bar'!AL41+'qr Bar'!AL41-'qs Bar'!AL41)/('Resistance Bar'!AL41)) -> 1610.147987 | AK54: =SQRT(('qc Bar'!AM41+'qr Bar'!AM41-'qs Bar'!AM41)/('Resistance Bar'!AM41)) -> 1590.541423 | AL54: =SQRT(('qc Bar'!AN41+'qr Bar'!AN41-'qs Bar'!AN41)/('Resistance Bar'!AN41)) -> 1570.61207 | AM54: =SQRT(('qc Bar'!AO41+'qr Bar'!AO41-'qs Bar'!AO41)/('Resistance Bar'!AO41)) -> 1550.345448 | AN54: =SQRT(('qc Bar'!AP41+'qr Bar'!AP41-'qs Bar'!AP41)/('Resistance Bar'!AP41)) -> 1529.726071 | AO54: =SQRT(('qc Bar'!AQ41+'qr Bar'!AQ41-'qs Bar'!AQ41)/('Resistance Bar'!AQ41)) -> 1508.737345 | AP54: =SQRT(('qc Bar'!AR41+'qr Bar'!AR41-'qs Bar'!AR41)/('Resistance Bar'!AR41)) -> 1487.361447 | AQ54: =SQRT(('qc Bar'!AS41+'qr Bar'!AS41-'qs Bar'!AS41)/('Resistance Bar'!AS41)) -> 1465.579197 | AR54: =SQRT(('qc Bar'!AT41+'qr Bar'!AT41-'qs Bar'!AT41)/('Resistance Bar'!AT41)) -> 1443.369897 | AS54: =SQRT(('qc Bar'!AU41+'qr Bar'!AU41-'qs Bar'!AU41)/('Resistance Bar'!AU41)) -> 1420.711162 | AT54: =SQRT(('qc Bar'!AV41+'qr Bar'!AV41-'qs Bar'!AV41)/('Resistance Bar'!AV41)) -> 1397.57871 | AU54: =SQRT(('qc Bar'!AW41+'qr Bar'!AW41-'qs Bar'!AW41)/('Resistance Bar'!AW41)) -> 1373.946125 | AV54: =SQRT(('qc Bar'!AX41+'qr Bar'!AX41-'qs Bar'!AX41)/('Resistance Bar'!AX41)) -> 1349.784581 | AW54: =SQRT(('qc Bar'!AY41+'qr Bar'!AY41-'qs Bar'!AY41)/('Resistance Bar'!AY41)) -> 1325.062511 | AX54: =SQRT(('qc Bar'!AZ41+'qr Bar'!AZ41-'qs Bar'!AZ41)/('Resistance Bar'!AZ41)) -> 1299.745224 | AY54: =SQRT(('qc Bar'!BA41+'qr Bar'!BA41-'qs Bar'!BA41)/('Resistance Bar'!BA41)) -> 1273.794441 | AZ54: =SQRT(('qc Bar'!BB41+'qr Bar'!BB41-'qs Bar'!BB41)/('Resistance Bar'!BB41)) -> 1247.167742 | BA54: =SQRT(('qc Bar'!BC41+'qr Bar'!BC41-'qs Bar'!BC41)/('Resistance Bar'!BC41)) -> 1219.817897 | BB54: =SQRT(('qc Bar'!BD41+'qr Bar'!BD41-'qs Bar'!BD41)/('Resistance Bar'!BD41)) -> 1191.692055 | BC54: =SQRT(('qc Bar'!BE41+'qr Bar'!BE41-'qs Bar'!BE41)/('Resistance Bar'!BE41)) -> 1162.730732 | BD54: =SQRT(('qc Bar'!BF41+'qr Bar'!BF41-'qs Bar'!BF41)/('Resistance Bar'!BF41)) -> 1132.866572 | BE54: =SQRT(('qc Bar'!BG41+'qr Bar'!BG41-'qs Bar'!BG41)/('Resistance Bar'!BG41)) -> 1102.022773 | BF54: =SQRT(('qc Bar'!BH41+'qr Bar'!BH41-'qs Bar'!BH41)/('Resistance Bar'!BH41)) -> 1070.111092 | BG54: =SQRT(('qc Bar'!BI41+'qr Bar'!BI41-'qs Bar'!BI41)/('Resistance Bar'!BI41)) -> 1037.029269 | BH54: =SQRT(('qc Bar'!BJ41+'qr Bar'!BJ41-'qs Bar'!BJ41)/('Resistance Bar'!BJ41)) -> 1002.657646 | BI54: =SQRT(('qc Bar'!BK41+'qr Bar'!BK41-'qs Bar'!BK41)/('Resistance Bar'!BK41)) -> 966.8546558
A55: =min+12*incr -> 110 | B55: =SQRT(('qc Bar'!D44+'qr Bar'!D44-'qs Bar'!D44)/('Resistance Bar'!D44)) -> 1716.888595 | C55: =SQRT(('qc Bar'!E44+'qr Bar'!E44-'qs Bar'!E44)/('Resistance Bar'!E44)) -> 1684.491265 | D55: =SQRT(('qc Bar'!F44+'qr Bar'!F44-'qs Bar'!F44)/('Resistance Bar'!F44)) -> 1651.23976 | E55: =SQRT(('qc Bar'!G44+'qr Bar'!G44-'qs Bar'!G44)/('Resistance Bar'!G44)) -> 1617.070488 | F55: =SQRT(('qc Bar'!H44+'qr Bar'!H44-'qs Bar'!H44)/('Resistance Bar'!H44)) -> 1581.912617 | G55: =SQRT(('qc Bar'!I44+'qr Bar'!I44-'qs Bar'!I44)/('Resistance Bar'!I44)) -> 1545.686829 | H55: =SQRT(('qc Bar'!J44+'qr Bar'!J44-'qs Bar'!J44)/('Resistance Bar'!J44)) -> 1508.3038 | I55: =SQRT(('qc Bar'!K44+'qr Bar'!K44-'qs Bar'!K44)/('Resistance Bar'!K44)) -> 1469.662276 | J55: =SQRT(('qc Bar'!L44+'qr Bar'!L44-'qs Bar'!L44)/('Resistance Bar'!L44)) -> 1429.646663 | K55: =SQRT(('qc Bar'!M44+'qr Bar'!M44-'qs Bar'!M44)/('Resistance Bar'!M44)) -> 1388.123926 | L55: =SQRT(('qc Bar'!N44+'qr Bar'!N44-'qs Bar'!N44)/('Resistance Bar'!N44)) -> 1344.93956 | M55: =SQRT(('qc Bar'!O44+'qr Bar'!O44-'qs Bar'!O44)/('Resistance Bar'!O44)) -> 1299.912266 | Q55: =min+12*incr -> 110 | R55: =SQRT(('qc Bar'!T44+'qr Bar'!T44-'qs Bar'!T44)/('Resistance Bar'!T44)) -> 1945.207477 | S55: =SQRT(('qc Bar'!U44+'qr Bar'!U44-'qs Bar'!U44)/('Resistance Bar'!U44)) -> 1930.06887 | T55: =SQRT(('qc Bar'!V44+'qr Bar'!V44-'qs Bar'!V44)/('Resistance Bar'!V44)) -> 1914.773552 | U55: =SQRT(('qc Bar'!W44+'qr Bar'!W44-'qs Bar'!W44)/('Resistance Bar'!W44)) -> 1899.316416 | V55: =SQRT(('qc Bar'!X44+'qr Bar'!X44-'qs Bar'!X44)/('Resistance Bar'!X44)) -> 1883.69213 | W55: =SQRT(('qc Bar'!Y44+'qr Bar'!Y44-'qs Bar'!Y44)/('Resistance Bar'!Y44)) -> 1867.895121 | X55: =SQRT(('qc Bar'!Z44+'qr Bar'!Z44-'qs Bar'!Z44)/('Resistance Bar'!Z44)) -> 1851.91956 | Y55: =SQRT(('qc Bar'!AA44+'qr Bar'!AA44-'qs Bar'!AA44)/('Resistance Bar'!AA44)) -> 1835.759343 | Z55: =SQRT(('qc Bar'!AB44+'qr Bar'!AB44-'qs Bar'!AB44)/('Resistance Bar'!AB44)) -> 1819.408081 | AA55: =SQRT(('qc Bar'!AC44+'qr Bar'!AC44-'qs Bar'!AC44)/('Resistance Bar'!AC44)) -> 1802.859069 | AB55: =SQRT(('qc Bar'!AD44+'qr Bar'!AD44-'qs Bar'!AD44)/('Resistance Bar'!AD44)) -> 1786.105274 | AC55: =SQRT(('qc Bar'!AE44+'qr Bar'!AE44-'qs Bar'!AE44)/('Resistance Bar'!AE44)) -> 1769.139307 | AD55: =SQRT(('qc Bar'!AF44+'qr Bar'!AF44-'qs Bar'!AF44)/('Resistance Bar'!AF44)) -> 1751.953397 | AE55: =SQRT(('qc Bar'!AG44+'qr Bar'!AG44-'qs Bar'!AG44)/('Resistance Bar'!AG44)) -> 1734.539366 | AF55: =SQRT(('qc Bar'!AH44+'qr Bar'!AH44-'qs Bar'!AH44)/('Resistance Bar'!AH44)) -> 1716.888595 | AG55: =SQRT(('qc Bar'!AI44+'qr Bar'!AI44-'qs Bar'!AI44)/('Resistance Bar'!AI44)) -> 1698.991988 | AH55: =SQRT(('qc Bar'!AJ44+'qr Bar'!AJ44-'qs Bar'!AJ44)/('Resistance Bar'!AJ44)) -> 1680.839941 | AI55: =SQRT(('qc Bar'!AK44+'qr Bar'!AK44-'qs Bar'!AK44)/('Resistance Bar'!AK44)) -> 1662.42229 | AJ55: =SQRT(('qc Bar'!AL44+'qr Bar'!AL44-'qs Bar'!AL44)/('Resistance Bar'!AL44)) -> 1643.728274 | AK55: =SQRT(('qc Bar'!AM44+'qr Bar'!AM44-'qs Bar'!AM44)/('Resistance Bar'!AM44)) -> 1624.746477 | AL55: =SQRT(('qc Bar'!AN44+'qr Bar'!AN44-'qs Bar'!AN44)/('Resistance Bar'!AN44)) -> 1605.464771 | AM55: =SQRT(('qc Bar'!AO44+'qr Bar'!AO44-'qs Bar'!AO44)/('Resistance Bar'!AO44)) -> 1585.870252 | AN55: =SQRT(('qc Bar'!AP44+'qr Bar'!AP44-'qs Bar'!AP44)/('Resistance Bar'!AP44)) -> 1565.949167 | AO55: =SQRT(('qc Bar'!AQ44+'qr Bar'!AQ44-'qs Bar'!AQ44)/('Resistance Bar'!AQ44)) -> 1545.686829 | AP55: =SQRT(('qc Bar'!AR44+'qr Bar'!AR44-'qs Bar'!AR44)/('Resistance Bar'!AR44)) -> 1525.067529 | AQ55: =SQRT(('qc Bar'!AS44+'qr Bar'!AS44-'qs Bar'!AS44)/('Resistance Bar'!AS44)) -> 1504.074425 | AR55: =SQRT(('qc Bar'!AT44+'qr Bar'!AT44-'qs Bar'!AT44)/('Resistance Bar'!AT44)) -> 1482.689426 | AS55: =SQRT(('qc Bar'!AU44+'qr Bar'!AU44-'qs Bar'!AU44)/('Resistance Bar'!AU44)) -> 1460.893053 | AT55: =SQRT(('qc Bar'!AV44+'qr Bar'!AV44-'qs Bar'!AV44)/('Resistance Bar'!AV44)) -> 1438.664279 | AU55: =SQRT(('qc Bar'!AW44+'qr Bar'!AW44-'qs Bar'!AW44)/('Resistance Bar'!AW44)) -> 1415.980353 | AV55: =SQRT(('qc Bar'!AX44+'qr Bar'!AX44-'qs Bar'!AX44)/('Resistance Bar'!AX44)) -> 1392.816584 | AW55: =SQRT(('qc Bar'!AY44+'qr Bar'!AY44-'qs Bar'!AY44)/('Resistance Bar'!AY44)) -> 1369.146101 | AX55: =SQRT(('qc Bar'!AZ44+'qr Bar'!AZ44-'qs Bar'!AZ44)/('Resistance Bar'!AZ44)) -> 1344.93956 | AY55: =SQRT(('qc Bar'!BA44+'qr Bar'!BA44-'qs Bar'!BA44)/('Resistance Bar'!BA44)) -> 1320.164812 | AZ55: =SQRT(('qc Bar'!BB44+'qr Bar'!BB44-'qs Bar'!BB44)/('Resistance Bar'!BB44)) -> 1294.786503 | BA55: =SQRT(('qc Bar'!BC44+'qr Bar'!BC44-'qs Bar'!BC44)/('Resistance Bar'!BC44)) -> 1268.765592 | BB55: =SQRT(('qc Bar'!BD44+'qr Bar'!BD44-'qs Bar'!BD44)/('Resistance Bar'!BD44)) -> 1242.058784 | BC55: =SQRT(('qc Bar'!BE44+'qr Bar'!BE44-'qs Bar'!BE44)/('Resistance Bar'!BE44)) -> 1214.617835 | BD55: =SQRT(('qc Bar'!BF44+'qr Bar'!BF44-'qs Bar'!BF44)/('Resistance Bar'!BF44)) -> 1186.388702 | BE55: =SQRT(('qc Bar'!BG44+'qr Bar'!BG44-'qs Bar'!BG44)/('Resistance Bar'!BG44)) -> 1157.310505 | BF55: =SQRT(('qc Bar'!BH44+'qr Bar'!BH44-'qs Bar'!BH44)/('Resistance Bar'!BH44)) -> 1127.31422 | BG55: =SQRT(('qc Bar'!BI44+'qr Bar'!BI44-'qs Bar'!BI44)/('Resistance Bar'!BI44)) -> 1096.321047 | BH55: =SQRT(('qc Bar'!BJ44+'qr Bar'!BJ44-'qs Bar'!BJ44)/('Resistance Bar'!BJ44)) -> 1064.240312 | BI55: =SQRT(('qc Bar'!BK44+'qr Bar'!BK44-'qs Bar'!BK44)/('Resistance Bar'!BK44)) -> 1030.96677
A56: =min+13*incr -> 115 | B56: =SQRT(('qc Bar'!D47+'qr Bar'!D47-'qs Bar'!D47)/('Resistance Bar'!D47)) -> 1747.425138 | C56: =SQRT(('qc Bar'!E47+'qr Bar'!E47-'qs Bar'!E47)/('Resistance Bar'!E47)) -> 1715.965506 | D56: =SQRT(('qc Bar'!F47+'qr Bar'!F47-'qs Bar'!F47)/('Resistance Bar'!F47)) -> 1683.706109 | E56: =SQRT(('qc Bar'!G47+'qr Bar'!G47-'qs Bar'!G47)/('Resistance Bar'!G47)) -> 1650.58949 | F56: =SQRT(('qc Bar'!H47+'qr Bar'!H47-'qs Bar'!H47)/('Resistance Bar'!H47)) -> 1616.551962 | G56: =SQRT(('qc Bar'!I47+'qr Bar'!I47-'qs Bar'!I47)/('Resistance Bar'!I47)) -> 1581.5226 | H56: =SQRT(('qc Bar'!J47+'qr Bar'!J47-'qs Bar'!J47)/('Resistance Bar'!J47)) -> 1545.422003 | I56: =SQRT(('qc Bar'!K47+'qr Bar'!K47-'qs Bar'!K47)/('Resistance Bar'!K47)) -> 1508.160765 | J56: =SQRT(('qc Bar'!L47+'qr Bar'!L47-'qs Bar'!L47)/('Resistance Bar'!L47)) -> 1469.637565 | K56: =SQRT(('qc Bar'!M47+'qr Bar'!M47-'qs Bar'!M47)/('Resistance Bar'!M47)) -> 1429.736749 | L56: =SQRT(('qc Bar'!N47+'qr Bar'!N47-'qs Bar'!N47)/('Resistance Bar'!N47)) -> 1388.325242 | M56: =SQRT(('qc Bar'!O47+'qr Bar'!O47-'qs Bar'!O47)/('Resistance Bar'!O47)) -> 1345.248525 | Q56: =min+13*incr -> 115 | R56: =SQRT(('qc Bar'!T47+'qr Bar'!T47-'qs Bar'!T47)/('Resistance Bar'!T47)) -> 1969.828592 | S56: =SQRT(('qc Bar'!U47+'qr Bar'!U47-'qs Bar'!U47)/('Resistance Bar'!U47)) -> 1955.049177 | T56: =SQRT(('qc Bar'!V47+'qr Bar'!V47-'qs Bar'!V47)/('Resistance Bar'!V47)) -> 1940.121067 | U56: =SQRT(('qc Bar'!W47+'qr Bar'!W47-'qs Bar'!W47)/('Resistance Bar'!W47)) -> 1925.039514 | V56: =SQRT(('qc Bar'!X47+'qr Bar'!X47-'qs Bar'!X47)/('Resistance Bar'!X47)) -> 1909.799565 | W56: =SQRT(('qc Bar'!Y47+'qr Bar'!Y47-'qs Bar'!Y47)/('Resistance Bar'!Y47)) -> 1894.396052 | X56: =SQRT(('qc Bar'!Z47+'qr Bar'!Z47-'qs Bar'!Z47)/('Resistance Bar'!Z47)) -> 1878.823576 | Y56: =SQRT(('qc Bar'!AA47+'qr Bar'!AA47-'qs Bar'!AA47)/('Resistance Bar'!AA47)) -> 1863.076496 | Z56: =SQRT(('qc Bar'!AB47+'qr Bar'!AB47-'qs Bar'!AB47)/('Resistance Bar'!AB47)) -> 1847.14891 | AA56: =SQRT(('qc Bar'!AC47+'qr Bar'!AC47-'qs Bar'!AC47)/('Resistance Bar'!AC47)) -> 1831.034643 | AB56: =SQRT(('qc Bar'!AD47+'qr Bar'!AD47-'qs Bar'!AD47)/('Resistance Bar'!AD47)) -> 1814.727224 | AC56: =SQRT(('qc Bar'!AE47+'qr Bar'!AE47-'qs Bar'!AE47)/('Resistance Bar'!AE47)) -> 1798.219867 | AD56: =SQRT(('qc Bar'!AF47+'qr Bar'!AF47-'qs Bar'!AF47)/('Resistance Bar'!AF47)) -> 1781.505453 | AE56: =SQRT(('qc Bar'!AG47+'qr Bar'!AG47-'qs Bar'!AG47)/('Resistance Bar'!AG47)) -> 1764.576499 | AF56: =SQRT(('qc Bar'!AH47+'qr Bar'!AH47-'qs Bar'!AH47)/('Resistance Bar'!AH47)) -> 1747.425138 | AG56: =SQRT(('qc Bar'!AI47+'qr Bar'!AI47-'qs Bar'!AI47)/('Resistance Bar'!AI47)) -> 1730.04309 | AH56: =SQRT(('qc Bar'!AJ47+'qr Bar'!AJ47-'qs Bar'!AJ47)/('Resistance Bar'!AJ47)) -> 1712.421625 | AI56: =SQRT(('qc Bar'!AK47+'qr Bar'!AK47-'qs Bar'!AK47)/('Resistance Bar'!AK47)) -> 1694.551531 | AJ56: =SQRT(('qc Bar'!AL47+'qr Bar'!AL47-'qs Bar'!AL47)/('Resistance Bar'!AL47)) -> 1676.42308 | AK56: =SQRT(('qc Bar'!AM47+'qr Bar'!AM47-'qs Bar'!AM47)/('Resistance Bar'!AM47)) -> 1658.025976 | AL56: =SQRT(('qc Bar'!AN47+'qr Bar'!AN47-'qs Bar'!AN47)/('Resistance Bar'!AN47)) -> 1639.349313 | AM56: =SQRT(('qc Bar'!AO47+'qr Bar'!AO47-'qs Bar'!AO47)/('Resistance Bar'!AO47)) -> 1620.381523 | AN56: =SQRT(('qc Bar'!AP47+'qr Bar'!AP47-'qs Bar'!AP47)/('Resistance Bar'!AP47)) -> 1601.110313 | AO56: =SQRT(('qc Bar'!AQ47+'qr Bar'!AQ47-'qs Bar'!AQ47)/('Resistance Bar'!AQ47)) -> 1581.5226 | AP56: =SQRT(('qc Bar'!AR47+'qr Bar'!AR47-'qs Bar'!AR47)/('Resistance Bar'!AR47)) -> 1561.604436 | AQ56: =SQRT(('qc Bar'!AS47+'qr Bar'!AS47-'qs Bar'!AS47)/('Resistance Bar'!AS47)) -> 1541.340924 | AR56: =SQRT(('qc Bar'!AT47+'qr Bar'!AT47-'qs Bar'!AT47)/('Resistance Bar'!AT47)) -> 1520.716123 | AS56: =SQRT(('qc Bar'!AU47+'qr Bar'!AU47-'qs Bar'!AU47)/('Resistance Bar'!AU47)) -> 1499.712941 | AT56: =SQRT(('qc Bar'!AV47+'qr Bar'!AV47-'qs Bar'!AV47)/('Resistance Bar'!AV47)) -> 1478.313009 | AU56: =SQRT(('qc Bar'!AW47+'qr Bar'!AW47-'qs Bar'!AW47)/('Resistance Bar'!AW47)) -> 1456.49654 | AV56: =SQRT(('qc Bar'!AX47+'qr Bar'!AX47-'qs Bar'!AX47)/('Resistance Bar'!AX47)) -> 1434.242172 | AW56: =SQRT(('qc Bar'!AY47+'qr Bar'!AY47-'qs Bar'!AY47)/('Resistance Bar'!AY47)) -> 1411.526776 | AX56: =SQRT(('qc Bar'!AZ47+'qr Bar'!AZ47-'qs Bar'!AZ47)/('Resistance Bar'!AZ47)) -> 1388.325242 | AY56: =SQRT(('qc Bar'!BA47+'qr Bar'!BA47-'qs Bar'!BA47)/('Resistance Bar'!BA47)) -> 1364.610226 | AZ56: =SQRT(('qc Bar'!BB47+'qr Bar'!BB47-'qs Bar'!BB47)/('Resistance Bar'!BB47)) -> 1340.351854 | BA56: =SQRT(('qc Bar'!BC47+'qr Bar'!BC47-'qs Bar'!BC47)/('Resistance Bar'!BC47)) -> 1315.517377 | BB56: =SQRT(('qc Bar'!BD47+'qr Bar'!BD47-'qs Bar'!BD47)/('Resistance Bar'!BD47)) -> 1290.070752 | BC56: =SQRT(('qc Bar'!BE47+'qr Bar'!BE47-'qs Bar'!BE47)/('Resistance Bar'!BE47)) -> 1263.972155 | BD56: =SQRT(('qc Bar'!BF47+'qr Bar'!BF47-'qs Bar'!BF47)/('Resistance Bar'!BF47)) -> 1237.177386 | BE56: =SQRT(('qc Bar'!BG47+'qr Bar'!BG47-'qs Bar'!BG47)/('Resistance Bar'!BG47)) -> 1209.637145 | BF56: =SQRT(('qc Bar'!BH47+'qr Bar'!BH47-'qs Bar'!BH47)/('Resistance Bar'!BH47)) -> 1181.296161 | BG56: =SQRT(('qc Bar'!BI47+'qr Bar'!BI47-'qs Bar'!BI47)/('Resistance Bar'!BI47)) -> 1152.092097 | BH56: =SQRT(('qc Bar'!BJ47+'qr Bar'!BJ47-'qs Bar'!BJ47)/('Resistance Bar'!BJ47)) -> 1121.954199 | BI56: =SQRT(('qc Bar'!BK47+'qr Bar'!BK47-'qs Bar'!BK47)/('Resistance Bar'!BK47)) -> 1090.801583
A57: =min+14*incr -> 120 | B57: =SQRT(('qc Bar'!D50+'qr Bar'!D50-'qs Bar'!D50)/('Resistance Bar'!D50)) -> 1777.273883 | C57: =SQRT(('qc Bar'!E50+'qr Bar'!E50-'qs Bar'!E50)/('Resistance Bar'!E50)) -> 1746.698942 | D57: =SQRT(('qc Bar'!F50+'qr Bar'!F50-'qs Bar'!F50)/('Resistance Bar'!F50)) -> 1715.373279 | E57: =SQRT(('qc Bar'!G50+'qr Bar'!G50-'qs Bar'!G50)/('Resistance Bar'!G50)) -> 1683.244724 | F57: =SQRT(('qc Bar'!H50+'qr Bar'!H50-'qs Bar'!H50)/('Resistance Bar'!H50)) -> 1650.255717 | G57: =SQRT(('qc Bar'!I50+'qr Bar'!I50-'qs Bar'!I50)/('Resistance Bar'!I50)) -> 1616.34247 | H57: =SQRT(('qc Bar'!J50+'qr Bar'!J50-'qs Bar'!J50)/('Resistance Bar'!J50)) -> 1581.433961 | I57: =SQRT(('qc Bar'!K50+'qr Bar'!K50-'qs Bar'!K50)/('Resistance Bar'!K50)) -> 1545.450695 | J57: =SQRT(('qc Bar'!L50+'qr Bar'!L50-'qs Bar'!L50)/('Resistance Bar'!L50)) -> 1508.303176 | K57: =SQRT(('qc Bar'!M50+'qr Bar'!M50-'qs Bar'!M50)/('Resistance Bar'!M50)) -> 1469.890001 | L57: =SQRT(('qc Bar'!N50+'qr Bar'!N50-'qs Bar'!N50)/('Resistance Bar'!N50)) -> 1430.095449 | M57: =SQRT(('qc Bar'!O50+'qr Bar'!O50-'qs Bar'!O50)/('Resistance Bar'!O50)) -> 1388.786386 | Q57: =min+14*incr -> 120 | R57: =SQRT(('qc Bar'!T50+'qr Bar'!T50-'qs Bar'!T50)/('Resistance Bar'!T50)) -> 1994.05128 | S57: =SQRT(('qc Bar'!U50+'qr Bar'!U50-'qs Bar'!U50)/('Resistance Bar'!U50)) -> 1979.615554 | T57: =SQRT(('qc Bar'!V50+'qr Bar'!V50-'qs Bar'!V50)/('Resistance Bar'!V50)) -> 1965.038544 | U57: =SQRT(('qc Bar'!W50+'qr Bar'!W50-'qs Bar'!W50)/('Resistance Bar'!W50)) -> 1950.315821 | V57: =SQRT(('qc Bar'!X50+'qr Bar'!X50-'qs Bar'!X50)/('Resistance Bar'!X50)) -> 1935.442774 | W57: =SQRT(('qc Bar'!Y50+'qr Bar'!Y50-'qs Bar'!Y50)/('Resistance Bar'!Y50)) -> 1920.414594 | X57: =SQRT(('qc Bar'!Z50+'qr Bar'!Z50-'qs Bar'!Z50)/('Resistance Bar'!Z50)) -> 1905.226268 | Y57: =SQRT(('qc Bar'!AA50+'qr Bar'!AA50-'qs Bar'!AA50)/('Resistance Bar'!AA50)) -> 1889.872564 | Z57: =SQRT(('qc Bar'!AB50+'qr Bar'!AB50-'qs Bar'!AB50)/('Resistance Bar'!AB50)) -> 1874.348017 | AA57: =SQRT(('qc Bar'!AC50+'qr Bar'!AC50-'qs Bar'!AC50)/('Resistance Bar'!AC50)) -> 1858.646917 | AB57: =SQRT(('qc Bar'!AD50+'qr Bar'!AD50-'qs Bar'!AD50)/('Resistance Bar'!AD50)) -> 1842.763291 | AC57: =SQRT(('qc Bar'!AE50+'qr Bar'!AE50-'qs Bar'!AE50)/('Resistance Bar'!AE50)) -> 1826.690886 | AD57: =SQRT(('qc Bar'!AF50+'qr Bar'!AF50-'qs Bar'!AF50)/('Resistance Bar'!AF50)) -> 1810.423153 | AE57: =SQRT(('qc Bar'!AG50+'qr Bar'!AG50-'qs Bar'!AG50)/('Resistance Bar'!AG50)) -> 1793.953221 | AF57: =SQRT(('qc Bar'!AH50+'qr Bar'!AH50-'qs Bar'!AH50)/('Resistance Bar'!AH50)) -> 1777.273883 | AG57: =SQRT(('qc Bar'!AI50+'qr Bar'!AI50-'qs Bar'!AI50)/('Resistance Bar'!AI50)) -> 1760.377563 | AH57: =SQRT(('qc Bar'!AJ50+'qr Bar'!AJ50-'qs Bar'!AJ50)/('Resistance Bar'!AJ50)) -> 1743.256297 | AI57: =SQRT(('qc Bar'!AK50+'qr Bar'!AK50-'qs Bar'!AK50)/('Resistance Bar'!AK50)) -> 1725.901697 | AJ57: =SQRT(('qc Bar'!AL50+'qr Bar'!AL50-'qs Bar'!AL50)/('Resistance Bar'!AL50)) -> 1708.304922 | AK57: =SQRT(('qc Bar'!AM50+'qr Bar'!AM50-'qs Bar'!AM50)/('Resistance Bar'!AM50)) -> 1690.456645 | AL57: =SQRT(('qc Bar'!AN50+'qr Bar'!AN50-'qs Bar'!AN50)/('Resistance Bar'!AN50)) -> 1672.347007 | AM57: =SQRT(('qc Bar'!AO50+'qr Bar'!AO50-'qs Bar'!AO50)/('Resistance Bar'!AO50)) -> 1653.965578 | AN57: =SQRT(('qc Bar'!AP50+'qr Bar'!AP50-'qs Bar'!AP50)/('Resistance Bar'!AP50)) -> 1635.301308 | AO57: =SQRT(('qc Bar'!AQ50+'qr Bar'!AQ50-'qs Bar'!AQ50)/('Resistance Bar'!AQ50)) -> 1616.34247 | AP57: =SQRT(('qc Bar'!AR50+'qr Bar'!AR50-'qs Bar'!AR50)/('Resistance Bar'!AR50)) -> 1597.076602 | AQ57: =SQRT(('qc Bar'!AS50+'qr Bar'!AS50-'qs Bar'!AS50)/('Resistance Bar'!AS50)) -> 1577.490439 | AR57: =SQRT(('qc Bar'!AT50+'qr Bar'!AT50-'qs Bar'!AT50)/('Resistance Bar'!AT50)) -> 1557.569834 | AS57: =SQRT(('qc Bar'!AU50+'qr Bar'!AU50-'qs Bar'!AU50)/('Resistance Bar'!AU50)) -> 1537.299674 | AT57: =SQRT(('qc Bar'!AV50+'qr Bar'!AV50-'qs Bar'!AV50)/('Resistance Bar'!AV50)) -> 1516.663782 | AU57: =SQRT(('qc Bar'!AW50+'qr Bar'!AW50-'qs Bar'!AW50)/('Resistance Bar'!AW50)) -> 1495.644806 | AV57: =SQRT(('qc Bar'!AX50+'qr Bar'!AX50-'qs Bar'!AX50)/('Resistance Bar'!AX50)) -> 1474.224094 | AW57: =SQRT(('qc Bar'!AY50+'qr Bar'!AY50-'qs Bar'!AY50)/('Resistance Bar'!AY50)) -> 1452.381545 | AX57: =SQRT(('qc Bar'!AZ50+'qr Bar'!AZ50-'qs Bar'!AZ50)/('Resistance Bar'!AZ50)) -> 1430.095449 | AY57: =SQRT(('qc Bar'!BA50+'qr Bar'!BA50-'qs Bar'!BA50)/('Resistance Bar'!BA50)) -> 1407.342289 | AZ57: =SQRT(('qc Bar'!BB50+'qr Bar'!BB50-'qs Bar'!BB50)/('Resistance Bar'!BB50)) -> 1384.096523 | BA57: =SQRT(('qc Bar'!BC50+'qr Bar'!BC50-'qs Bar'!BC50)/('Resistance Bar'!BC50)) -> 1360.330323 | BB57: =SQRT(('qc Bar'!BD50+'qr Bar'!BD50-'qs Bar'!BD50)/('Resistance Bar'!BD50)) -> 1336.013267 | BC57: =SQRT(('qc Bar'!BE50+'qr Bar'!BE50-'qs Bar'!BE50)/('Resistance Bar'!BE50)) -> 1311.111984 | BD57: =SQRT(('qc Bar'!BF50+'qr Bar'!BF50-'qs Bar'!BF50)/('Resistance Bar'!BF50)) -> 1285.589725 | BE57: =SQRT(('qc Bar'!BG50+'qr Bar'!BG50-'qs Bar'!BG50)/('Resistance Bar'!BG50)) -> 1259.405854 | BF57: =SQRT(('qc Bar'!BH50+'qr Bar'!BH50-'qs Bar'!BH50)/('Resistance Bar'!BH50)) -> 1232.515232 | BG57: =SQRT(('qc Bar'!BI50+'qr Bar'!BI50-'qs Bar'!BI50)/('Resistance Bar'!BI50)) -> 1204.86747 | BH57: =SQRT(('qc Bar'!BJ50+'qr Bar'!BJ50-'qs Bar'!BJ50)/('Resistance Bar'!BJ50)) -> 1176.406019 | BI57: =SQRT(('qc Bar'!BK50+'qr Bar'!BK50-'qs Bar'!BK50)/('Resistance Bar'!BK50)) -> 1147.067032
A58: =min+15*incr -> 125 | B58: =SQRT(('qc Bar'!D53+'qr Bar'!D53-'qs Bar'!D53)/('Resistance Bar'!D53)) -> 1806.488155 | C58: =SQRT(('qc Bar'!E53+'qr Bar'!E53-'qs Bar'!E53)/('Resistance Bar'!E53)) -> 1776.749824 | D58: =SQRT(('qc Bar'!F53+'qr Bar'!F53-'qs Bar'!F53)/('Resistance Bar'!F53)) -> 1746.305156 | E58: =SQRT(('qc Bar'!G53+'qr Bar'!G53-'qs Bar'!G53)/('Resistance Bar'!G53)) -> 1715.106576 | F58: =SQRT(('qc Bar'!H53+'qr Bar'!H53-'qs Bar'!H53)/('Resistance Bar'!H53)) -> 1683.101806 | G58: =SQRT(('qc Bar'!I53+'qr Bar'!I53-'qs Bar'!I53)/('Resistance Bar'!I53)) -> 1650.233179 | H58: =SQRT(('qc Bar'!J53+'qr Bar'!J53-'qs Bar'!J53)/('Resistance Bar'!J53)) -> 1616.4368 | I58: =SQRT(('qc Bar'!K53+'qr Bar'!K53-'qs Bar'!K53)/('Resistance Bar'!K53)) -> 1581.641542 | J58: =SQRT(('qc Bar'!L53+'qr Bar'!L53-'qs Bar'!L53)/('Resistance Bar'!L53)) -> 1545.767809 | K58: =SQRT(('qc Bar'!M53+'qr Bar'!M53-'qs Bar'!M53)/('Resistance Bar'!M53)) -> 1508.726007 | L58: =SQRT(('qc Bar'!N53+'qr Bar'!N53-'qs Bar'!N53)/('Resistance Bar'!N53)) -> 1470.414641 | M58: =SQRT(('qc Bar'!O53+'qr Bar'!O53-'qs Bar'!O53)/('Resistance Bar'!O53)) -> 1430.717903 | Q58: =min+15*incr -> 125 | R58: =SQRT(('qc Bar'!T53+'qr Bar'!T53-'qs Bar'!T53)/('Resistance Bar'!T53)) -> 2017.905422 | S58: =SQRT(('qc Bar'!U53+'qr Bar'!U53-'qs Bar'!U53)/('Resistance Bar'!U53)) -> 2003.798988 | T58: =SQRT(('qc Bar'!V53+'qr Bar'!V53-'qs Bar'!V53)/('Resistance Bar'!V53)) -> 1989.558135 | U58: =SQRT(('qc Bar'!W53+'qr Bar'!W53-'qs Bar'!W53)/('Resistance Bar'!W53)) -> 1975.178724 | V58: =SQRT(('qc Bar'!X53+'qr Bar'!X53-'qs Bar'!X53)/('Resistance Bar'!X53)) -> 1960.656446 | W58: =SQRT(('qc Bar'!Y53+'qr Bar'!Y53-'qs Bar'!Y53)/('Resistance Bar'!Y53)) -> 1945.98682 | X58: =SQRT(('qc Bar'!Z53+'qr Bar'!Z53-'qs Bar'!Z53)/('Resistance Bar'!Z53)) -> 1931.165175 | Y58: =SQRT(('qc Bar'!AA53+'qr Bar'!AA53-'qs Bar'!AA53)/('Resistance Bar'!AA53)) -> 1916.186645 | Z58: =SQRT(('qc Bar'!AB53+'qr Bar'!AB53-'qs Bar'!AB53)/('Resistance Bar'!AB53)) -> 1901.046155 | AA58: =SQRT(('qc Bar'!AC53+'qr Bar'!AC53-'qs Bar'!AC53)/('Resistance Bar'!AC53)) -> 1885.738408 | AB58: =SQRT(('qc Bar'!AD53+'qr Bar'!AD53-'qs Bar'!AD53)/('Resistance Bar'!AD53)) -> 1870.257873 | AC58: =SQRT(('qc Bar'!AE53+'qr Bar'!AE53-'qs Bar'!AE53)/('Resistance Bar'!AE53)) -> 1854.59877 | AD58: =SQRT(('qc Bar'!AF53+'qr Bar'!AF53-'qs Bar'!AF53)/('Resistance Bar'!AF53)) -> 1838.755053 | AE58: =SQRT(('qc Bar'!AG53+'qr Bar'!AG53-'qs Bar'!AG53)/('Resistance Bar'!AG53)) -> 1822.720391 | AF58: =SQRT(('qc Bar'!AH53+'qr Bar'!AH53-'qs Bar'!AH53)/('Resistance Bar'!AH53)) -> 1806.488155 | AG58: =SQRT(('qc Bar'!AI53+'qr Bar'!AI53-'qs Bar'!AI53)/('Resistance Bar'!AI53)) -> 1790.051389 | AH58: =SQRT(('qc Bar'!AJ53+'qr Bar'!AJ53-'qs Bar'!AJ53)/('Resistance Bar'!AJ53)) -> 1773.402796 | AI58: =SQRT(('qc Bar'!AK53+'qr Bar'!AK53-'qs Bar'!AK53)/('Resistance Bar'!AK53)) -> 1756.534707 | AJ58: =SQRT(('qc Bar'!AL53+'qr Bar'!AL53-'qs Bar'!AL53)/('Resistance Bar'!AL53)) -> 1739.439054 | AK58: =SQRT(('qc Bar'!AM53+'qr Bar'!AM53-'qs Bar'!AM53)/('Resistance Bar'!AM53)) -> 1722.107345 | AL58: =SQRT(('qc Bar'!AN53+'qr Bar'!AN53-'qs Bar'!AN53)/('Resistance Bar'!AN53)) -> 1704.530626 | AM58: =SQRT(('qc Bar'!AO53+'qr Bar'!AO53-'qs Bar'!AO53)/('Resistance Bar'!AO53)) -> 1686.699446 | AN58: =SQRT(('qc Bar'!AP53+'qr Bar'!AP53-'qs Bar'!AP53)/('Resistance Bar'!AP53)) -> 1668.60382 | AO58: =SQRT(('qc Bar'!AQ53+'qr Bar'!AQ53-'qs Bar'!AQ53)/('Resistance Bar'!AQ53)) -> 1650.233179 | AP58: =SQRT(('qc Bar'!AR53+'qr Bar'!AR53-'qs Bar'!AR53)/('Resistance Bar'!AR53)) -> 1631.576323 | AQ58: =SQRT(('qc Bar'!AS53+'qr Bar'!AS53-'qs Bar'!AS53)/('Resistance Bar'!AS53)) -> 1612.621365 | AR58: =SQRT(('qc Bar'!AT53+'qr Bar'!AT53-'qs Bar'!AT53)/('Resistance Bar'!AT53)) -> 1593.355672 | AS58: =SQRT(('qc Bar'!AU53+'qr Bar'!AU53-'qs Bar'!AU53)/('Resistance Bar'!AU53)) -> 1573.765789 | AT58: =SQRT(('qc Bar'!AV53+'qr Bar'!AV53-'qs Bar'!AV53)/('Resistance Bar'!AV53)) -> 1553.837368 | AU58: =SQRT(('qc Bar'!AW53+'qr Bar'!AW53-'qs Bar'!AW53)/('Resistance Bar'!AW53)) -> 1533.555074 | AV58: =SQRT(('qc Bar'!AX53+'qr Bar'!AX53-'qs Bar'!AX53)/('Resistance Bar'!AX53)) -> 1512.902487 | AW58: =SQRT(('qc Bar'!AY53+'qr Bar'!AY53-'qs Bar'!AY53)/('Resistance Bar'!AY53)) -> 1491.861991 | AX58: =SQRT(('qc Bar'!AZ53+'qr Bar'!AZ53-'qs Bar'!AZ53)/('Resistance Bar'!AZ53)) -> 1470.414641 | AY58: =SQRT(('qc Bar'!BA53+'qr Bar'!BA53-'qs Bar'!BA53)/('Resistance Bar'!BA53)) -> 1448.540014 | AZ58: =SQRT(('qc Bar'!BB53+'qr Bar'!BB53-'qs Bar'!BB53)/('Resistance Bar'!BB53)) -> 1426.216042 | BA58: =SQRT(('qc Bar'!BC53+'qr Bar'!BC53-'qs Bar'!BC53)/('Resistance Bar'!BC53)) -> 1403.418811 | BB58: =SQRT(('qc Bar'!BD53+'qr Bar'!BD53-'qs Bar'!BD53)/('Resistance Bar'!BD53)) -> 1380.122334 | BC58: =SQRT(('qc Bar'!BE53+'qr Bar'!BE53-'qs Bar'!BE53)/('Resistance Bar'!BE53)) -> 1356.298281 | BD58: =SQRT(('qc Bar'!BF53+'qr Bar'!BF53-'qs Bar'!BF53)/('Resistance Bar'!BF53)) -> 1331.915669 | BE58: =SQRT(('qc Bar'!BG53+'qr Bar'!BG53-'qs Bar'!BG53)/('Resistance Bar'!BG53)) -> 1306.940484 | BF58: =SQRT(('qc Bar'!BH53+'qr Bar'!BH53-'qs Bar'!BH53)/('Resistance Bar'!BH53)) -> 1281.335247 | BG58: =SQRT(('qc Bar'!BI53+'qr Bar'!BI53-'qs Bar'!BI53)/('Resistance Bar'!BI53)) -> 1255.058483 | BH58: =SQRT(('qc Bar'!BJ53+'qr Bar'!BJ53-'qs Bar'!BJ53)/('Resistance Bar'!BJ53)) -> 1228.064081 | BI58: =SQRT(('qc Bar'!BK53+'qr Bar'!BK53-'qs Bar'!BK53)/('Resistance Bar'!BK53)) -> 1200.300525
A59: =min+16*incr -> 130 | B59: =SQRT(('qc Bar'!D56+'qr Bar'!D56-'qs Bar'!D56)/('Resistance Bar'!D56)) -> 1835.116549 | C59: =SQRT(('qc Bar'!E56+'qr Bar'!E56-'qs Bar'!E56)/('Resistance Bar'!E56)) -> 1806.171043 | D59: =SQRT(('qc Bar'!F56+'qr Bar'!F56-'qs Bar'!F56)/('Resistance Bar'!F56)) -> 1776.559529 | E59: =SQRT(('qc Bar'!G56+'qr Bar'!G56-'qs Bar'!G56)/('Resistance Bar'!G56)) -> 1746.23844 | F59: =SQRT(('qc Bar'!H56+'qr Bar'!H56-'qs Bar'!H56)/('Resistance Bar'!H56)) -> 1715.160089 | G59: =SQRT(('qc Bar'!I56+'qr Bar'!I56-'qs Bar'!I56)/('Resistance Bar'!I56)) -> 1683.272085 | H59: =SQRT(('qc Bar'!J56+'qr Bar'!J56-'qs Bar'!J56)/('Resistance Bar'!J56)) -> 1650.516649 | I59: =SQRT(('qc Bar'!K56+'qr Bar'!K56-'qs Bar'!K56)/('Resistance Bar'!K56)) -> 1616.829775 | J59: =SQRT(('qc Bar'!L56+'qr Bar'!L56-'qs Bar'!L56)/('Resistance Bar'!L56)) -> 1582.140225 | K59: =SQRT(('qc Bar'!M56+'qr Bar'!M56-'qs Bar'!M56)/('Resistance Bar'!M56)) -> 1546.368293 | L59: =SQRT(('qc Bar'!N56+'qr Bar'!N56-'qs Bar'!N56)/('Resistance Bar'!N56)) -> 1509.424277 | M59: =SQRT(('qc Bar'!O56+'qr Bar'!O56-'qs Bar'!O56)/('Resistance Bar'!O56)) -> 1471.206581 | Q59: =min+16*incr -> 130 | R59: =SQRT(('qc Bar'!T56+'qr Bar'!T56-'qs Bar'!T56)/('Resistance Bar'!T56)) -> 2041.418793 | S59: =SQRT(('qc Bar'!U56+'qr Bar'!U56-'qs Bar'!U56)/('Resistance Bar'!U56)) -> 2027.62825 | T59: =SQRT(('qc Bar'!V56+'qr Bar'!V56-'qs Bar'!V56)/('Resistance Bar'!V56)) -> 2013.709661 | U59: =SQRT(('qc Bar'!W56+'qr Bar'!W56-'qs Bar'!W56)/('Resistance Bar'!W56)) -> 1999.659149 | V59: =SQRT(('qc Bar'!X56+'qr Bar'!X56-'qs Bar'!X56)/('Resistance Bar'!X56)) -> 1985.47268 | W59: =SQRT(('qc Bar'!Y56+'qr Bar'!Y56-'qs Bar'!Y56)/('Resistance Bar'!Y56)) -> 1971.146065 | X59: =SQRT(('qc Bar'!Z56+'qr Bar'!Z56-'qs Bar'!Z56)/('Resistance Bar'!Z56)) -> 1956.674941 | Y59: =SQRT(('qc Bar'!AA56+'qr Bar'!AA56-'qs Bar'!AA56)/('Resistance Bar'!AA56)) -> 1942.054772 | Z59: =SQRT(('qc Bar'!AB56+'qr Bar'!AB56-'qs Bar'!AB56)/('Resistance Bar'!AB56)) -> 1927.28083 | AA59: =SQRT(('qc Bar'!AC56+'qr Bar'!AC56-'qs Bar'!AC56)/('Resistance Bar'!AC56)) -> 1912.348188 | AB59: =SQRT(('qc Bar'!AD56+'qr Bar'!AD56-'qs Bar'!AD56)/('Resistance Bar'!AD56)) -> 1897.25171 | AC59: =SQRT(('qc Bar'!AE56+'qr Bar'!AE56-'qs Bar'!AE56)/('Resistance Bar'!AE56)) -> 1881.986033 | AD59: =SQRT(('qc Bar'!AF56+'qr Bar'!AF56-'qs Bar'!AF56)/('Resistance Bar'!AF56)) -> 1866.54556 | AE59: =SQRT(('qc Bar'!AG56+'qr Bar'!AG56-'qs Bar'!AG56)/('Resistance Bar'!AG56)) -> 1850.924439 | AF59: =SQRT(('qc Bar'!AH56+'qr Bar'!AH56-'qs Bar'!AH56)/('Resistance Bar'!AH56)) -> 1835.116549 | AG59: =SQRT(('qc Bar'!AI56+'qr Bar'!AI56-'qs Bar'!AI56)/('Resistance Bar'!AI56)) -> 1819.115483 | AH59: =SQRT(('qc Bar'!AJ56+'qr Bar'!AJ56-'qs Bar'!AJ56)/('Resistance Bar'!AJ56)) -> 1802.914528 | AI59: =SQRT(('qc Bar'!AK56+'qr Bar'!AK56-'qs Bar'!AK56)/('Resistance Bar'!AK56)) -> 1786.506644 | AJ59: =SQRT(('qc Bar'!AL56+'qr Bar'!AL56-'qs Bar'!AL56)/('Resistance Bar'!AL56)) -> 1769.884442 | AK59: =SQRT(('qc Bar'!AM56+'qr Bar'!AM56-'qs Bar'!AM56)/('Resistance Bar'!AM56)) -> 1753.040154 | AL59: =SQRT(('qc Bar'!AN56+'qr Bar'!AN56-'qs Bar'!AN56)/('Resistance Bar'!AN56)) -> 1735.965614 | AM59: =SQRT(('qc Bar'!AO56+'qr Bar'!AO56-'qs Bar'!AO56)/('Resistance Bar'!AO56)) -> 1718.65222 | AN59: =SQRT(('qc Bar'!AP56+'qr Bar'!AP56-'qs Bar'!AP56)/('Resistance Bar'!AP56)) -> 1701.090901 | AO59: =SQRT(('qc Bar'!AQ56+'qr Bar'!AQ56-'qs Bar'!AQ56)/('Resistance Bar'!AQ56)) -> 1683.272085 | AP59: =SQRT(('qc Bar'!AR56+'qr Bar'!AR56-'qs Bar'!AR56)/('Resistance Bar'!AR56)) -> 1665.185653 | AQ59: =SQRT(('qc Bar'!AS56+'qr Bar'!AS56-'qs Bar'!AS56)/('Resistance Bar'!AS56)) -> 1646.820896 | AR59: =SQRT(('qc Bar'!AT56+'qr Bar'!AT56-'qs Bar'!AT56)/('Resistance Bar'!AT56)) -> 1628.166462 | AS59: =SQRT(('qc Bar'!AU56+'qr Bar'!AU56-'qs Bar'!AU56)/('Resistance Bar'!AU56)) -> 1609.210302 | AT59: =SQRT(('qc Bar'!AV56+'qr Bar'!AV56-'qs Bar'!AV56)/('Resistance Bar'!AV56)) -> 1589.939602 | AU59: =SQRT(('qc Bar'!AW56+'qr Bar'!AW56-'qs Bar'!AW56)/('Resistance Bar'!AW56)) -> 1570.34072 | AV59: =SQRT(('qc Bar'!AX56+'qr Bar'!AX56-'qs Bar'!AX56)/('Resistance Bar'!AX56)) -> 1550.399097 | AW59: =SQRT(('qc Bar'!AY56+'qr Bar'!AY56-'qs Bar'!AY56)/('Resistance Bar'!AY56)) -> 1530.099172 | AX59: =SQRT(('qc Bar'!AZ56+'qr Bar'!AZ56-'qs Bar'!AZ56)/('Resistance Bar'!AZ56)) -> 1509.424277 | AY59: =SQRT(('qc Bar'!BA56+'qr Bar'!BA56-'qs Bar'!BA56)/('Resistance Bar'!BA56)) -> 1488.356525 | AZ59: =SQRT(('qc Bar'!BB56+'qr Bar'!BB56-'qs Bar'!BB56)/('Resistance Bar'!BB56)) -> 1466.876668 | BA59: =SQRT(('qc Bar'!BC56+'qr Bar'!BC56-'qs Bar'!BC56)/('Resistance Bar'!BC56)) -> 1444.963956 | BB59: =SQRT(('qc Bar'!BD56+'qr Bar'!BD56-'qs Bar'!BD56)/('Resistance Bar'!BD56)) -> 1422.595951 | BC59: =SQRT(('qc Bar'!BE56+'qr Bar'!BE56-'qs Bar'!BE56)/('Resistance Bar'!BE56)) -> 1399.74833 | BD59: =SQRT(('qc Bar'!BF56+'qr Bar'!BF56-'qs Bar'!BF56)/('Resistance Bar'!BF56)) -> 1376.394648 | BE59: =SQRT(('qc Bar'!BG56+'qr Bar'!BG56-'qs Bar'!BG56)/('Resistance Bar'!BG56)) -> 1352.506061 | BF59: =SQRT(('qc Bar'!BH56+'qr Bar'!BH56-'qs Bar'!BH56)/('Resistance Bar'!BH56)) -> 1328.051002 | BG59: =SQRT(('qc Bar'!BI56+'qr Bar'!BI56-'qs Bar'!BI56)/('Resistance Bar'!BI56)) -> 1302.994798 | BH59: =SQRT(('qc Bar'!BJ56+'qr Bar'!BJ56-'qs Bar'!BJ56)/('Resistance Bar'!BJ56)) -> 1277.299214 | BI59: =SQRT(('qc Bar'!BK56+'qr Bar'!BK56-'qs Bar'!BK56)/('Resistance Bar'!BK56)) -> 1250.921908
